Workbook

Sheet Summary 2188
A1: Average Investment & Depreciation Summary
A2: 2188 - Lewis County/Joe's Refuse
A3: 2023-12-31
A4: ASSETS THROUGH 12.31.2020 | J4: NEW ASSET ADDS FROM FAR (1.1.2021 and Beyond) | S4: PROFORMA ADDS | AB4: Combined Summary - This Section to Proforma
F5: Beginning | G5: Ending | H5: Average | O5: Beginning | P5: Ending | Q5: Average | X5: Beginning | Y5: Ending | Z5: Average | AG5: Beginning | AH5: Ending | AI5: Average
A6: Equipment | B6: Cost | C6: Salvage | D6: Depr | E6: Test Year | F6: Accum Depr | G6: Accum Depr | H6: Investment | J6: Equipment | K6: Cost | L6: Salvage | M6: Depr | N6: Test Year | O6: Accum Depr | P6: Accum Depr | Q6: Investment | S6: Equipment | T6: Cost | U6: Salvage | V6: Depr | W6: Test Year | X6: Accum Depr | Y6: Accum Depr | Z6: Investment | AB6: Equipment | AC6: Cost | AD6: Salvage | AE6: Depr | AF6: Test Year | AG6: Accum Depr | AH6: Accum Depr | AI6: Investment
D7: Cost | E7: Depr | F7: =+G7-364 -> 2023-01-01 | G7: =+A3 -> 2023-12-31 | H7: =G7 -> 2023-12-31 | M7: Cost | N7: Depr | O7: =F7 -> 2023-01-01 | P7: =G7 -> 2023-12-31 | Q7: =H7 -> 2023-12-31 | V7: Cost | W7: Depr | X7: =F7 -> 2023-01-01 | Y7: =G7 -> 2023-12-31 | Z7: =H7 -> 2023-12-31 | AE7: Cost | AF7: Depr | AG7: =F7 -> 2023-01-01 | AH7: =G7 -> 2023-12-31 | AI7: =H7 -> 2023-12-31
A8: Trucks | J8: Trucks | S8: Trucks | AB8: Trucks
A9: Garbage | B9: ='Trucks 2188'!M84 -> 6961623.017 | C9: =B9-D9 -> 0 | D9: ='Trucks 2188'!N84 -> 6961623.017 | E9: ='Trucks 2188'!Q84 -> 503167.6811 | F9: ='Trucks 2188'!R84 -> 4237430.381 | G9: ='Trucks 2188'!S84 -> 4779126.261 | H9: ='Trucks 2188'!T84 -> 2182496.756 | J9: Garbage | K9: =IFERROR(VLOOKUP($J9,'FAR Dep Summary'!$A$18:$F$29,2,FALSE),0) -> 3597885.03 | L9: =K9-M9 -> 0 | M9: =K9 -> 3597885.03 | N9: =IFERROR(VLOOKUP($J9,'FAR Dep Summary'!$A$18:$F$28,3,FALSE),0) -> 332342.4933 | O9: =IFERROR(VLOOKUP($J9,'FAR Dep Summary'!$A$18:$F$28,4,FALSE),0) -> 704994.7884 | P9: =IFERROR(VLOOKUP($J9,'FAR Dep Summary'!$A$18:$F$28,5,FALSE),0) -> 1037337.282 | Q9: =IFERROR(VLOOKUP($J9,'FAR Dep Summary'!$A$18:$F$28,6,FALSE),0) -> 2560547.748 | S9: Garbage | AB9: Garbage | AC9: =B9+K9+T9 -> 10559508.05 | AD9: =C9+L9+U9 -> 0 | AE9: 10559508.05 | AF9: 835510.1744 | AG9: 4942425.17 | AH9: 5816463.543 | AI9: 4743044.504
A11: Roll Off | B11: ='Trucks 2188'!M117 -> 1174256.8 | C11: =B11-D11 -> 0 | D11: ='Trucks 2188'!N117 -> 1174256.8 | E11: ='Trucks 2188'!Q117 -> 0 | F11: ='Trucks 2188'!R117 -> 1174256.8 | G11: ='Trucks 2188'!S117 -> 1174256.8 | H11: ='Trucks 2188'!T117 -> 0 | J11: Roll Off | K11: =IFERROR(VLOOKUP($J11,'FAR Dep Summary'!$A$18:$F$29,2,FALSE),0) -> 376378.51 | L11: =K11-M11 -> 0 | M11: =K11 -> 376378.51 | N11: =IFERROR(VLOOKUP($J11,'FAR Dep Summary'!$A$18:$F$28,3,FALSE),0) -> 59865.11167 | O11: =IFERROR(VLOOKUP($J11,'FAR Dep Summary'!$A$18:$F$28,4,FALSE),0) -> 63479.38294 | P11: =IFERROR(VLOOKUP($J11,'FAR Dep Summary'!$A$18:$F$28,5,FALSE),0) -> 123344.4946 | Q11: =IFERROR(VLOOKUP($J11,'FAR Dep Summary'!$A$18:$F$28,6,FALSE),0) -> 253034.0154 | S11: Roll Off | AB11: Roll Off | AC11: =B11+K11+T11 -> 1550635.31 | AD11: 0 | AE11: 1550635.31 | AF11: 59865.11167 | AG11: 1237736.183 | AH11: 1297601.295 | AI11: 253034.0154
A13: Residential Recycling | B13: ='Trucks 2188'!M134 -> 651021.5072 | C13: =B13-D13 -> 0 | D13: ='Trucks 2188'!N134 -> 651021.5072 | E13: ='Trucks 2188'!Q134 -> 37977.8 | F13: ='Trucks 2188'!R134 -> 363023.1905 | G13: ='Trucks 2188'!S134 -> 401000.9905 | H13: ='Trucks 2188'!T134 -> 250020.5167 | J13: Residential Recycling | K13: =IFERROR(VLOOKUP($J13,'FAR Dep Summary'!$A$18:$F$29,2,FALSE),0) -> 133500 | L13: =K13-M13 -> 0 | M13: =K13 -> 133500 | N13: =IFERROR(VLOOKUP($J13,'FAR Dep Summary'!$A$18:$F$28,3,FALSE),0) -> 0 | O13: =IFERROR(VLOOKUP($J13,'FAR Dep Summary'!$A$18:$F$28,4,FALSE),0) -> 133500 | P13: =IFERROR(VLOOKUP($J13,'FAR Dep Summary'!$A$18:$F$28,5,FALSE),0) -> 133500 | Q13: =IFERROR(VLOOKUP($J13,'FAR Dep Summary'!$A$18:$F$28,6,FALSE),0) -> 0 | S13: Residential Recycling | AB13: Residential Recycling | AC13: =B13+K13+T13 -> 784521.5072 | AD13: 0 | AE13: 784521.5072 | AF13: 37977.8 | AG13: 496523.1905 | AH13: 534500.9905 | AI13: 250020.5167
A15: MF | B15: ='Trucks 2188'!M146 -> 15451.2 | C15: =B15-D15 -> 0 | D15: ='Trucks 2188'!N146 -> 15451.2 | E15: ='Trucks 2188'!Q146 -> 0 | F15: ='Trucks 2188'!R146 -> 15451.2 | G15: ='Trucks 2188'!S146 -> 15451.2 | H15: ='Trucks 2188'!T146 -> 0 | J15: MF | K15: =IFERROR(VLOOKUP($J15,'FAR Dep Summary'!$A$18:$F$29,2,FALSE),0) -> 0 | L15: =K15-M15 -> 0 | M15: =K15 -> 0 | N15: =IFERROR(VLOOKUP($J15,'FAR Dep Summary'!$A$18:$F$28,3,FALSE),0) -> 0 | O15: =IFERROR(VLOOKUP($J15,'FAR Dep Summary'!$A$18:$F$28,4,FALSE),0) -> 0 | P15: =IFERROR(VLOOKUP($J15,'FAR Dep Summary'!$A$18:$F$28,5,FALSE),0) -> 0 | Q15: =IFERROR(VLOOKUP($J15,'FAR Dep Summary'!$A$18:$F$28,6,FALSE),0) -> 0 | S15: MF | AB15: MF | AC15: =B15+K15+T15 -> 15451.2 | AD15: 0 | AE15: 15451.2 | AF15: 0 | AG15: 15451.2 | AH15: 15451.2 | AI15: 0
A17: Yard Waste | B17: ='Trucks 2188'!M158 -> 15451.2 | C17: =B17-D17 -> 0 | D17: ='Trucks 2188'!N158 -> 15451.2 | E17: ='Trucks 2188'!Q158 -> 0 | F17: ='Trucks 2188'!R158 -> 15451.2 | G17: ='Trucks 2188'!S158 -> 15451.2 | H17: ='Trucks 2188'!T158 -> 0 | J17: Yard Waste | K17: =IFERROR(VLOOKUP($J17,'FAR Dep Summary'!$A$18:$F$29,2,FALSE),0) -> 0 | L17: =K17-M17 -> 0 | M17: =K17 -> 0 | N17: =IFERROR(VLOOKUP($J17,'FAR Dep Summary'!$A$18:$F$28,3,FALSE),0) -> 0 | O17: =IFERROR(VLOOKUP($J17,'FAR Dep Summary'!$A$18:$F$28,4,FALSE),0) -> 0 | P17: =IFERROR(VLOOKUP($J17,'FAR Dep Summary'!$A$18:$F$28,5,FALSE),0) -> 0 | Q17: =IFERROR(VLOOKUP($J17,'FAR Dep Summary'!$A$18:$F$28,6,FALSE),0) -> 0 | S17: Yard Waste | AB17: Yard Waste | AC17: =B17+K17+T17 -> 15451.2 | AD17: 0 | AE17: 15451.2 | AF17: 0 | AG17: 15451.2 | AH17: 15451.2 | AI17: 0
A19: Commercial Recycling | B19: ='Trucks 2188'!M177 -> 346297.32 | C19: =B19-D19 -> 0 | D19: ='Trucks 2188'!N177 -> 346297.32 | E19: ='Trucks 2188'!Q177 -> 11449.46333 | F19: ='Trucks 2188'!R177 -> 281417.0278 | G19: ='Trucks 2188'!S177 -> 292866.4911 | H19: ='Trucks 2188'!T177 -> 52964.16222 | J19: Commercial Recycling | K19: =IFERROR(VLOOKUP($J19,'FAR Dep Summary'!$A$18:$F$29,2,FALSE),0) -> 0 | L19: =K19-M19 -> 0 | M19: =K19 -> 0 | N19: =IFERROR(VLOOKUP($J19,'FAR Dep Summary'!$A$18:$F$28,3,FALSE),0) -> 0 | O19: =IFERROR(VLOOKUP($J19,'FAR Dep Summary'!$A$18:$F$28,4,FALSE),0) -> 0 | P19: =IFERROR(VLOOKUP($J19,'FAR Dep Summary'!$A$18:$F$28,5,FALSE),0) -> 0 | Q19: =IFERROR(VLOOKUP($J19,'FAR Dep Summary'!$A$18:$F$28,6,FALSE),0) -> 0 | S19: Commercial Recycling | AB19: Commercial Recycling | AC19: =B19+K19+T19 -> 346297.32 | AD19: 0 | AE19: 346297.32 | AF19: 11449.46333 | AG19: 281417.0278 | AH19: 292866.4911 | AI19: 52964.16222
A21: Container Delivery | B21: ='Trucks 2188'!M186 -> 186330.39 | C21: =B21-D21 -> 0 | D21: ='Trucks 2188'!N186 -> 186330.39 | E21: ='Trucks 2188'!Q186 -> 0 | F21: ='Trucks 2188'!R186 -> 186330.39 | G21: ='Trucks 2188'!S186 -> 186330.39 | H21: ='Trucks 2188'!T186 -> 0 | J21: Container Delivery | K21: =IFERROR(VLOOKUP($J21,'FAR Dep Summary'!$A$18:$F$29,2,FALSE),0) -> 0 | L21: =K21-M21 -> 0 | M21: =K21 -> 0 | N21: =IFERROR(VLOOKUP($J21,'FAR Dep Summary'!$A$18:$F$28,3,FALSE),0) -> 0 | O21: =IFERROR(VLOOKUP($J21,'FAR Dep Summary'!$A$18:$F$28,4,FALSE),0) -> 0 | P21: =IFERROR(VLOOKUP($J21,'FAR Dep Summary'!$A$18:$F$28,5,FALSE),0) -> 0 | Q21: =IFERROR(VLOOKUP($J21,'FAR Dep Summary'!$A$18:$F$28,6,FALSE),0) -> 0 | S21: Container Delivery | AB21: Container Delivery | AC21: =B21+K21+T21 -> 186330.39 | AD21: 0 | AE21: 186330.39 | AF21: 0 | AG21: 186330.39 | AH21: 186330.39 | AI21: 0
A23: General Recycling | B23: =+'Trucks 2188'!M196 -> 21000 | C23: =B23-D23 -> 0 | D23: =+'Trucks 2188'!N196 -> 21000 | E23: =+'Trucks 2188'!Q196 -> 0 | F23: =+'Trucks 2188'!R196 -> 21000 | G23: =+'Trucks 2188'!S196 -> 21000 | H23: =+'Trucks 2188'!T196 -> 0 | J23: General Recycling | K23: =IFERROR(VLOOKUP($J23,'FAR Dep Summary'!$A$18:$F$29,2,FALSE),0) -> 0 | L23: =K23-M23 -> 0 | M23: =K23 -> 0 | N23: =IFERROR(VLOOKUP($J23,'FAR Dep Summary'!$A$18:$F$28,3,FALSE),0) -> 0 | O23: =IFERROR(VLOOKUP($J23,'FAR Dep Summary'!$A$18:$F$28,4,FALSE),0) -> 0 | P23: =IFERROR(VLOOKUP($J23,'FAR Dep Summary'!$A$18:$F$28,5,FALSE),0) -> 0 | Q23: =IFERROR(VLOOKUP($J23,'FAR Dep Summary'!$A$18:$F$28,6,FALSE),0) -> 0 | S23: General Recycling | AB23: General Recycling | AC23: =B23+K23+T23 -> 21000 | AD23: 0 | AE23: 21000 | AF23: 0 | AG23: 21000 | AH23: 21000 | AI23: 0
A25: Total Trucks | B25: =SUM(B9:B24) -> 9371431.434 | C25: =SUM(C9:C24) -> 0 | D25: 9371431.434 | E25: 552594.9445 | F25: 6294360.189 | G25: 6885483.333 | H25: 2485481.434 | J25: Total Trucks | K25: =SUM(K9:K24) -> 4107763.54 | L25: =SUM(L9:L24) -> 0 | M25: 4107763.54 | N25: 392207.605 | O25: 901974.1713 | P25: 1294181.776 | Q25: 2813581.764 | S25: Total Trucks | T25: =SUM(T9:T24) -> 0 | U25: =SUM(U9:U24) -> 0 | V25: 0 | W25: 0 | X25: 0 | Y25: 0 | Z25: 0 | AB25: Total Trucks | AC25: =SUM(AC9:AC24) -> 13479194.97 | AD25: =SUM(AD9:AD24) -> 0 | AE25: 13479194.97 | AF25: 944802.5494 | AG25: 7196334.361 | AH25: 8179665.109 | AI25: 5299063.198
B26: =+B25-'Trucks 2188'!M198 -> 0 | E26: =+E25-'Trucks 2188'!Q198 -> 0 | F26: =+F25-'Trucks 2188'!R198 -> 0 | G26: =+G25-'Trucks 2188'!S198 -> 0 | H26: =+H25-'Trucks 2188'!T198 -> 0
A27: Containers: | I27: + | J27: Containers: | R27: + | S27: Containers: | AA27: = | AB27: Containers:
A28: Garbage Containers | B28: ='Containers 2188'!K143 -> 1224354.78 | C28: =B28-D28 -> 0 | D28: ='Containers 2188'!L143 -> 1224354.78 | E28: ='Containers 2188'!O143 -> 50070.03341 | F28: ='Containers 2188'!P143 -> 901832.693 | G28: ='Containers 2188'!Q143 -> 957751.1887 | H28: ='Containers 2188'!R143 -> 266603.5913 | J28: Garbage Containers | K28: =IFERROR(VLOOKUP($J28,'FAR Dep Summary'!$A$18:$F$29,2,FALSE),0) -> 589902.33 | L28: =K28-M28 -> 0 | M28: =K28 -> 589902.33 | N28: =IFERROR(VLOOKUP($J28,'FAR Dep Summary'!$A$18:$F$28,3,FALSE),0) -> 45112.13 | O28: =IFERROR(VLOOKUP($J28,'FAR Dep Summary'!$A$18:$F$28,4,FALSE),0) -> 85162.29521 | P28: =IFERROR(VLOOKUP($J28,'FAR Dep Summary'!$A$18:$F$28,5,FALSE),0) -> 130274.4252 | Q28: =IFERROR(VLOOKUP($J28,'FAR Dep Summary'!$A$18:$F$28,6,FALSE),0) -> 459627.9048 | S28: Garbage Containers | AB28: Garbage Containers | AC28: =B28+K28+T28 -> 1814257.11 | AD28: 0 | AE28: 1814257.11 | AF28: 95182.16341 | AG28: 986994.9882 | AH28: 1088025.614 | AI28: 726231.496
A30: Garbage Carts | B30: ='Containers 2188'!K215 -> 1364265.69 | C30: =B30-D30 -> 0 | D30: ='Containers 2188'!L215 -> 1364265.69 | E30: ='Containers 2188'!O215 -> 57199.14879 | F30: ='Containers 2188'!P215 -> 1186132.144 | G30: ='Containers 2188'!Q215 -> 1245696.184 | H30: ='Containers 2188'!R215 -> 118569.5056 | J30: Garbage Carts | K30: =IFERROR(VLOOKUP($J30,'FAR Dep Summary'!$A$18:$F$29,2,FALSE),0) -> 525841.88 | L30: =K30-M30 -> 0 | M30: =K30 -> 525841.88 | N30: =IFERROR(VLOOKUP($J30,'FAR Dep Summary'!$A$18:$F$28,3,FALSE),0) -> 73761.53857 | O30: =IFERROR(VLOOKUP($J30,'FAR Dep Summary'!$A$18:$F$28,4,FALSE),0) -> 66879.90583 | P30: =IFERROR(VLOOKUP($J30,'FAR Dep Summary'!$A$18:$F$28,5,FALSE),0) -> 140641.4444 | Q30: =IFERROR(VLOOKUP($J30,'FAR Dep Summary'!$A$18:$F$28,6,FALSE),0) -> 385200.4356 | S30: Garbage Carts | AB30: Garbage Carts | AC30: =B30+K30+T30 -> 1890107.57 | AD30: 0 | AE30: 1890107.57 | AF30: 130960.6874 | AG30: 1253012.05 | AH30: 1386337.629 | AI30: 503769.9412
A32: Drop Boxes | B32: ='Containers 2188'!K232 -> 400342.9 | C32: =B32-D32 -> 0 | D32: ='Containers 2188'!L232 -> 400342.9 | E32: ='Containers 2188'!O232 -> 23623.55417 | F32: ='Containers 2188'!P232 -> 226467.9864 | G32: ='Containers 2188'!Q232 -> 250091.5406 | H32: ='Containers 2188'!R232 -> 150251.3594 | J32: Drop Boxes | K32: =IFERROR(VLOOKUP($J32,'FAR Dep Summary'!$A$18:$F$29,2,FALSE),0) -> 971399.33 | L32: =K32-M32 -> 0 | M32: =K32 -> 971399.33 | N32: =IFERROR(VLOOKUP($J32,'FAR Dep Summary'!$A$18:$F$28,3,FALSE),0) -> 62558.75 | O32: =IFERROR(VLOOKUP($J32,'FAR Dep Summary'!$A$18:$F$28,4,FALSE),0) -> 273421.5175 | P32: =IFERROR(VLOOKUP($J32,'FAR Dep Summary'!$A$18:$F$28,5,FALSE),0) -> 335980.2675 | Q32: =IFERROR(VLOOKUP($J32,'FAR Dep Summary'!$A$18:$F$28,6,FALSE),0) -> 635419.0625 | S32: Drop Boxes | AB32: Drop Boxes | AC32: =B32+K32+T32 -> 1371742.23 | AD32: 0 | AE32: 1371742.23 | AF32: 86182.30417 | AG32: 499889.5039 | AH32: 586071.8081 | AI32: 785670.4219
A34: Recycling | B34: ='Containers 2188'!K268 -> 716485.17 | C34: =B34-D34 -> 0 | D34: ='Containers 2188'!L268 -> 716485.17 | E34: ='Containers 2188'!O268 -> 27657.93 | F34: ='Containers 2188'!P268 -> 617592.3167 | G34: ='Containers 2188'!Q268 -> 649727.8333 | H34: ='Containers 2188'!R268 -> 66757.33667 | J34: Recycling | K34: =IFERROR(VLOOKUP($J34,'FAR Dep Summary'!$A$18:$F$29,2,FALSE),0) -> 270629.43 | L34: =K34-M34 -> 0 | M34: =K34 -> 270629.43 | N34: =IFERROR(VLOOKUP($J34,'FAR Dep Summary'!$A$18:$F$28,3,FALSE),0) -> 18603.89 | O34: =IFERROR(VLOOKUP($J34,'FAR Dep Summary'!$A$18:$F$28,4,FALSE),0) -> 151316.7724 | P34: =IFERROR(VLOOKUP($J34,'FAR Dep Summary'!$A$18:$F$28,5,FALSE),0) -> 169920.6624 | Q34: =IFERROR(VLOOKUP($J34,'FAR Dep Summary'!$A$18:$F$28,6,FALSE),0) -> 100708.7676 | S34: Recycling | T34: =+'Bud Capital Input 2024'!N66 -> 115000 | U34: 0 | V34: =+T34-U34 -> 115000 | W34: =+'Bud Capital Input 2024'!P66 -> 16428.57143 | X34: 0 | Y34: =+X34+W34 -> 16428.57143 | Z34: =+'Bud Capital Input 2024'!R66 -> 98571.42857 | AB34: Recycling | AC34: =B34+K34+T34 -> 1102114.6 | AD34: 0 | AE34: 1102114.6 | AF34: 62690.39143 | AG34: 768909.089 | AH34: 836077.0671 | AI34: 266037.5329
A36: Yard Waste | B36: ='Containers 2188'!K282 -> 88536.53 | C36: =B36-D36 -> 0 | D36: ='Containers 2188'!L282 -> 88536.53 | E36: ='Containers 2188'!O282 -> 6106.284286 | F36: ='Containers 2188'!P282 -> 66018.42321 | G36: ='Containers 2188'!Q282 -> 72124.7075 | H36: ='Containers 2188'!R282 -> 16411.8225 | J36: Yard Waste | K36: =IFERROR(VLOOKUP($J36,'FAR Dep Summary'!$A$18:$F$29,2,FALSE),0) -> 44290.18 | L36: =K36-M36 -> 0 | M36: =K36 -> 44290.18 | N36: =IFERROR(VLOOKUP($J36,'FAR Dep Summary'!$A$18:$F$28,3,FALSE),0) -> 6327.168571 | O36: =IFERROR(VLOOKUP($J36,'FAR Dep Summary'!$A$18:$F$28,4,FALSE),0) -> 4278.154286 | P36: =IFERROR(VLOOKUP($J36,'FAR Dep Summary'!$A$18:$F$28,5,FALSE),0) -> 10605.32286 | Q36: =IFERROR(VLOOKUP($J36,'FAR Dep Summary'!$A$18:$F$28,6,FALSE),0) -> 33684.85714 | S36: Yard Waste | AB36: Yard Waste | AC36: =B36+K36+T36 -> 132826.71 | AD36: 0 | AE36: 132826.71 | AF36: 12433.45286 | AG36: 70296.5775 | AH36: 82730.03036 | AI36: 50096.67964
A38: Total Cont, Carts,Totes | B38: =SUM(B28:B37) -> 3793985.07 | C38: 0 | D38: 3793985.07 | E38: 164656.9507 | F38: 2998043.563 | G38: 3175391.455 | H38: 618593.6154 | J38: Total Cont, Carts,Totes | K38: =SUM(K28:K37) -> 2402063.15 | L38: 0 | M38: 2402063.15 | N38: 206363.4771 | O38: 581058.6452 | P38: 787422.1224 | Q38: 1614641.028 | S38: Total Cont, Carts,Totes | T38: =SUM(T28:T37) -> 115000 | U38: 0 | V38: 115000 | W38: 16428.57143 | X38: 0 | Y38: 16428.57143 | Z38: 98571.42857 | AB38: Total Cont, Carts,Totes | AC38: =SUM(AC28:AC37) -> 6311048.22 | AD38: =SUM(AD28:AD37) -> 0 | AE38: 6311048.22 | AF38: 387448.9992 | AG38: 3579102.208 | AH38: 3979242.148 | AI38: 2331806.072
B39: =+B38-'Containers 2188'!K284 -> 0 | E39: =+E38-'Containers 2188'!O284 -> 0 | F39: =+F38-'Containers 2188'!P284 -> 0 | G39: =+G38-'Containers 2188'!Q284 -> 0 | H39: =+H38-'Containers 2188'!R284 -> 0
A40: Service Equipment | B40: ='OTHER EQUIP 2188'!L98 -> 121996.53 | C40: =B40-D40 -> 0 | D40: ='OTHER EQUIP 2188'!M98 -> 121996.53 | E40: ='OTHER EQUIP 2188'!P98 -> 17641.2595 | F40: ='OTHER EQUIP 2188'!Q98 -> 81521.98454 | G40: ='OTHER EQUIP 2188'!R98 -> 99163.24404 | H40: ='OTHER EQUIP 2188'!S98 -> 22833.28596 | J40: Service Equipment | K40: =IFERROR(VLOOKUP($J40,'FAR Dep Summary'!$A$18:$F$29,2,FALSE),0) -> 103290.89 | L40: =K40-M40 -> 0 | M40: =K40 -> 103290.89 | N40: =IFERROR(VLOOKUP($J40,'FAR Dep Summary'!$A$18:$F$28,3,FALSE),0) -> 14248.27516 | O40: =IFERROR(VLOOKUP($J40,'FAR Dep Summary'!$A$18:$F$28,4,FALSE),0) -> 35098.07988 | P40: =IFERROR(VLOOKUP($J40,'FAR Dep Summary'!$A$18:$F$28,5,FALSE),0) -> 49808.35087 | Q40: =IFERROR(VLOOKUP($J40,'FAR Dep Summary'!$A$18:$F$28,6,FALSE),0) -> 53482.53913 | S40: Service Equipment | AB40: Service Equipment | AC40: =B40+K40+T40 -> 225287.42 | AD40: 0 | AE40: 225287.42 | AF40: 31889.53466 | AG40: 116620.0644 | AH40: 148971.5949 | AI40: 76315.82509
A42: Shop Equipment | B42: ='OTHER EQUIP 2188'!L82 -> 150246.61 | C42: =B42-D42 -> 0 | D42: ='OTHER EQUIP 2188'!M82 -> 150246.61 | E42: ='OTHER EQUIP 2188'!P82 -> 2548.485 | F42: ='OTHER EQUIP 2188'!Q82 -> 145588.5779 | G42: ='OTHER EQUIP 2188'!R82 -> 148137.0629 | H42: ='OTHER EQUIP 2188'!S82 -> 2109.547083 | J42: Shop Equipment | K42: =IFERROR(VLOOKUP($J42,'FAR Dep Summary'!$A$18:$F$29,2,FALSE),0) -> 0 | L42: =K42-M42 -> 0 | M42: =K42 -> 0 | N42: =IFERROR(VLOOKUP($J42,'FAR Dep Summary'!$A$18:$F$28,3,FALSE),0) -> 0 | O42: =IFERROR(VLOOKUP($J42,'FAR Dep Summary'!$A$18:$F$28,4,FALSE),0) -> 0 | P42: =IFERROR(VLOOKUP($J42,'FAR Dep Summary'!$A$18:$F$28,5,FALSE),0) -> 0 | Q42: =IFERROR(VLOOKUP($J42,'FAR Dep Summary'!$A$18:$F$28,6,FALSE),0) -> 0 | S42: Shop Equipment | T42: =+'Bud Capital Input 2024'!N67 -> 14000 | U42: 0 | V42: =+T42-U42 -> 14000 | W42: =+'Bud Capital Input 2024'!P67 -> 1400 | X42: 0 | Y42: =+W42+X42 -> 1400 | Z42: =+'Bud Capital Input 2024'!R67 -> 12600 | AB42: Shop Equipment | AC42: =B42+K42+T42 -> 164246.61 | AD42: 0 | AE42: 164246.61 | AF42: 3948.485 | AG42: 145588.5779 | AH42: 149537.0629 | AI42: 14709.54708
A44: Office Equipment | B44: ='OTHER EQUIP 2188'!L125 -> 112812.93 | C44: =B44-D44 -> 0 | D44: ='OTHER EQUIP 2188'!M125 -> 112812.93 | E44: ='OTHER EQUIP 2188'!P125 -> 0 | F44: ='OTHER EQUIP 2188'!Q125 -> 110867.3535 | G44: ='OTHER EQUIP 2188'!R125 -> 112812.93 | H44: ='OTHER EQUIP 2188'!S125 -> 0 | J44: Office Equipment | K44: =IFERROR(VLOOKUP($J44,'FAR Dep Summary'!$A$18:$F$29,2,FALSE),0) -> 2469.63 | L44: =K44-M44 -> 0 | M44: =K44 -> 2469.63 | N44: =IFERROR(VLOOKUP($J44,'FAR Dep Summary'!$A$18:$F$28,3,FALSE),0) -> 823.21 | O44: =IFERROR(VLOOKUP($J44,'FAR Dep Summary'!$A$18:$F$28,4,FALSE),0) -> 1082.313889 | P44: =IFERROR(VLOOKUP($J44,'FAR Dep Summary'!$A$18:$F$28,5,FALSE),0) -> 1905.523889 | Q44: =IFERROR(VLOOKUP($J44,'FAR Dep Summary'!$A$18:$F$28,6,FALSE),0) -> 564.1061111 | S44: Office Equipment | AB44: Office Equipment | AC44: =B44+K44+T44 -> 115282.56 | AD44: 0 | AE44: 115282.56 | AF44: 823.21 | AG44: 111949.6674 | AH44: 114718.4539 | AI44: 564.1061111
A46: Software/Comp Upgrades | B46: ='OTHER EQUIP 2188'!L145 -> 33277.76 | C46: =B46-D46 -> 0 | D46: ='OTHER EQUIP 2188'!M145 -> 33277.76 | E46: ='OTHER EQUIP 2188'!P145 -> 0 | F46: ='OTHER EQUIP 2188'!Q145 -> 33277.76 | G46: ='OTHER EQUIP 2188'!R145 -> 33277.76 | H46: ='OTHER EQUIP 2188'!S145 -> 0 | J46: Software/Comp Upgrades | K46: =IFERROR(VLOOKUP($J46,'FAR Dep Summary'!$A$18:$F$29,2,FALSE),0) -> 0 | L46: =K46-M46 -> 0 | M46: =K46 -> 0 | N46: =IFERROR(VLOOKUP($J46,'FAR Dep Summary'!$A$18:$F$28,3,FALSE),0) -> 0 | O46: =IFERROR(VLOOKUP($J46,'FAR Dep Summary'!$A$18:$F$28,4,FALSE),0) -> 0 | P46: =IFERROR(VLOOKUP($J46,'FAR Dep Summary'!$A$18:$F$28,5,FALSE),0) -> 0 | Q46: =IFERROR(VLOOKUP($J46,'FAR Dep Summary'!$A$18:$F$28,6,FALSE),0) -> 0 | S46: Software/Comp Upgrades | AB46: Software/Comp Upgrades | AC46: =B46+K46+T46 -> 33277.76 | AD46: 0 | AE46: 33277.76 | AF46: 0 | AG46: 33277.76 | AH46: 33277.76 | AI46: 0
A48: Leasehold Improvements | B48: ='OTHER EQUIP 2188'!L51 -> 1102701.96 | C48: =B48-D48 -> 0 | D48: ='OTHER EQUIP 2188'!M51 -> 1102701.96 | E48: ='OTHER EQUIP 2188'!P51 -> 53924.75041 | F48: ='OTHER EQUIP 2188'!Q51 -> 847997.6751 | G48: ='OTHER EQUIP 2188'!R51 -> 901922.4255 | H48: ='OTHER EQUIP 2188'!S51 -> 200779.5345 | J48: Leasehold Improvements | K48: =IFERROR(VLOOKUP($J48,'FAR Dep Summary'!$A$18:$F$29,2,FALSE),0) -> 0 | L48: =K48-M48 -> 0 | M48: =K48 -> 0 | N48: =IFERROR(VLOOKUP($J48,'FAR Dep Summary'!$A$18:$F$28,3,FALSE),0) -> 0 | O48: =IFERROR(VLOOKUP($J48,'FAR Dep Summary'!$A$18:$F$28,4,FALSE),0) -> 0 | P48: =IFERROR(VLOOKUP($J48,'FAR Dep Summary'!$A$18:$F$28,5,FALSE),0) -> 0 | Q48: =IFERROR(VLOOKUP($J48,'FAR Dep Summary'!$A$18:$F$28,6,FALSE),0) -> 0 | S48: Leasehold Improvements | AB48: Leasehold Improvements | AC48: =B48+K48+T48 -> 1102701.96 | AD48: 0 | AE48: 1102701.96 | AF48: 53924.75041 | AG48: 847997.6751 | AH48: 901922.4255 | AI48: 200779.5345
A50: Recycling Baler | B50: ='OTHER EQUIP 2188'!L151 -> 8532.31 | C50: =B50-D50 -> 0 | D50: ='OTHER EQUIP 2188'!M151 -> 8532.31 | E50: ='OTHER EQUIP 2188'!P151 -> 0 | F50: ='OTHER EQUIP 2188'!Q151 -> 8532.31 | G50: ='OTHER EQUIP 2188'!R151 -> 8532.31 | H50: ='OTHER EQUIP 2188'!S151 -> 0 | J50: Recycling Baler | K50: =IFERROR(VLOOKUP($J50,'FAR Dep Summary'!$A$18:$F$29,2,FALSE),0) -> 0 | L50: =K50-M50 -> 0 | M50: =K50 -> 0 | N50: =IFERROR(VLOOKUP($J50,'FAR Dep Summary'!$A$18:$F$28,3,FALSE),0) -> 0 | O50: =IFERROR(VLOOKUP($J50,'FAR Dep Summary'!$A$18:$F$28,4,FALSE),0) -> 0 | P50: =IFERROR(VLOOKUP($J50,'FAR Dep Summary'!$A$18:$F$28,5,FALSE),0) -> 0 | Q50: =IFERROR(VLOOKUP($J50,'FAR Dep Summary'!$A$18:$F$28,6,FALSE),0) -> 0 | S50: Recycling Baler | AB50: Recycling Baler | AC50: =B50+K50+T50 -> 8532.31 | AD50: 0 | AE50: 8532.31 | AF50: 0 | AG50: 8532.31 | AH50: 8532.31 | AI50: 0
A52: Building | B52: ='OTHER EQUIP 2188'!L27 -> 658913.29 | C52: =B52-D52 -> 0 | D52: ='OTHER EQUIP 2188'!M27 -> 658913.29 | E52: ='OTHER EQUIP 2188'!P27 -> 15762.17821 | F52: ='OTHER EQUIP 2188'!Q27 -> 384763.5287 | G52: ='OTHER EQUIP 2188'!R27 -> 400525.7069 | H52: ='OTHER EQUIP 2188'!S27 -> 258387.5831 | J52: Building | K52: =IFERROR(VLOOKUP($J52,'FAR Dep Summary'!$A$18:$F$29,2,FALSE),0) -> 0 | L52: =K52-M52 -> 0 | M52: =K52 -> 0 | N52: =IFERROR(VLOOKUP($J52,'FAR Dep Summary'!$A$18:$F$28,3,FALSE),0) -> 0 | O52: =IFERROR(VLOOKUP($J52,'FAR Dep Summary'!$A$18:$F$28,4,FALSE),0) -> 0 | P52: =IFERROR(VLOOKUP($J52,'FAR Dep Summary'!$A$18:$F$28,5,FALSE),0) -> 0 | Q52: =IFERROR(VLOOKUP($J52,'FAR Dep Summary'!$A$18:$F$28,6,FALSE),0) -> 0 | S52: Building | AB52: Building | AC52: =B52+K52+T52 -> 658913.29 | AD52: 0 | AE52: 658913.29 | AF52: 15762.17821 | AG52: 384763.5287 | AH52: 400525.7069 | AI52: 258387.5831
A54: Land | B54: =54962.41 -> 54962.41 | C54: 0 | D54: 0 | E54: 0 | F54: 0 | G54: 0 | H54: =+B54 -> 54962.41 | J54: Land | K54: =IFERROR(VLOOKUP($J54,'FAR Dep Summary'!$A$18:$F$29,2,FALSE),0) -> 0 | L54: =K54-M54 -> 0 | M54: =K54 -> 0 | N54: =IFERROR(VLOOKUP($J54,'FAR Dep Summary'!$A$18:$F$28,3,FALSE),0) -> 0 | O54: =IFERROR(VLOOKUP($J54,'FAR Dep Summary'!$A$18:$F$28,4,FALSE),0) -> 0 | P54: =IFERROR(VLOOKUP($J54,'FAR Dep Summary'!$A$18:$F$28,5,FALSE),0) -> 0 | Q54: =IFERROR(VLOOKUP($J54,'FAR Dep Summary'!$A$18:$F$28,6,FALSE),0) -> 0 | S54: Land | AB54: Land | AC54: =B54+K54+T54 -> 54962.41 | AD54: 0 | AE54: 0 | AF54: 0 | AG54: 0 | AH54: 0 | AI54: 54962.41
A56: Total Other Equipment | B56: =SUM(B40:B55) -> 2243443.8 | C56: =SUM(C40:C55) -> 0 | D56: =SUM(D40:D55) -> 2188481.39 | E56: 89876.67312 | F56: 1612549.19 | G56: 1704371.439 | H56: 539072.3606 | J56: Total Other Equipment | K56: =SUM(K40:K55) -> 105760.52 | L56: =SUM(L40:L55) -> 0 | M56: 105760.52 | N56: 15071.48516 | O56: 36180.39377 | P56: 51713.87476 | Q56: 54046.64524 | S56: Total Other Equipment | T56: =SUM(T40:T55) -> 14000 | U56: =SUM(U40:U55) -> 0 | V56: 14000 | W56: 1400 | X56: 0 | Y56: 1400 | Z56: 12600 | AB56: Total Other Equipment | AC56: =SUM(AC40:AC55) -> 2363204.32 | AD56: =SUM(AD40:AD55) -> 0 | AE56: 2308241.91 | AF56: 106348.1583 | AG56: 1648729.584 | AH56: 1757485.314 | AI56: 605719.0059
B57: =+B56-'OTHER EQUIP 2188'!L153-B54 -> 1.455191523e-10
A58: Total Equipment | B58: =B25+B38+B56 -> 15408860.3 | C58: 0 | D58: 15353897.89 | E58: 807128.5682 | F58: 10904952.94 | G58: 11765246.23 | H58: 3643147.411 | J58: Total Equipment | K58: =K25+K38+K56 -> 6615587.21 | L58: 0 | M58: 6615587.21 | N58: 613642.5673 | O58: 1519213.21 | P58: 2133317.773 | Q58: 4482269.437 | S58: Total Equipment | T58: =T25+T38+T56 -> 129000 | U58: 0 | V58: 129000 | W58: 17828.57143 | X58: 0 | Y58: 17828.57143 | Z58: 111171.4286 | AB58: Total Equipment | AC58: =AC25+AC38+AC56 -> 22153447.51 | AD58: 0 | AE58: 22098485.1 | AF58: 1438599.707 | AG58: 12424166.15 | AH58: 13916392.57 | AI58: 8236588.276
A60: Check | B60: =B58-'Trucks 2188'!M198-'Containers 2188'!K284-'OTHER EQUIP 2188'!L153-B54 -> -2.182787284e-09 | D60: ='Trucks 2188'!N198+'Containers 2188'!L284+'OTHER EQUIP 2188'!M153-D58 -> 0 | E60: ='Trucks 2188'!Q198+'Containers 2188'!O284+'OTHER EQUIP 2188'!P153-E58 -> 0 | F60: ='Trucks 2188'!R198+'Containers 2188'!P284+'OTHER EQUIP 2188'!Q153-F58 -> 0 | G60: ='Trucks 2188'!S198+'Containers 2188'!Q284+'OTHER EQUIP 2188'!R153-G58 -> 0 | H60: ='Trucks 2188'!T198+'Containers 2188'!R284+'OTHER EQUIP 2188'!S153-H58+H54 -> -1.455191523e-10 | I60: Check | K60: =K58-'FAR Dep Summary'!B28 -> 0 | N60: =N58-'FAR Dep Summary'!C28 -> 0 | O60: =O58-'FAR Dep Summary'!D28 -> 0 | P60: =P58-'FAR Dep Summary'!E28 -> 0 | Q60: =Q58-'FAR Dep Summary'!F28 -> 0 | AB60: Check | AC60: =AC58-B58-K58-T58 -> 9.313225746e-10 | AD60: =AD58-C58-L58-U58 -> 0 | AE60: 9.313225746e-10 | AF60: 5.09317033e-11 | AG60: -6.98491931e-10 | AH60: -5.311449058e-10 | AI60: -4.074536264e-10
A81: UTC Group Tracking
A83: Updated Through | B83: Updated By | C83: FAR $ | D83: UTC Sched $ | E83: Difference
A85: 1/1/2010 - 12/31/2010 | B85: HL | C85: 101214.57 | D85: 92769.64
A86: Asset #71922 | D86: 10920.23
A87: Asset #79884 | C87: 2472.3
C88: =SUM(C85:C87) -> 103686.87 | D88: =SUM(D85:D87) -> 103689.87 | E88: =D88-C88 -> 3
A89: 1/1/2011 - 12/31/2011 | B89: HL | C89: =669668.96+C87 -> 672141.26 | D89: =776571.07+2019.6+129.14 -> 778719.81 | E89: =C89-D89 -> -106578.55 | F89: =-108532.26-3443.64-129.14 -> -112105.04 | G89: Truck #3543 on 2189 FAR, on 2188 UTC.
F90: =-625.95 -> -625.95 | G90: Drive Cam for #3543 on 2189 FAR, on 2188 UTC
F91: -9450 | G91: 12/31/2011 CAPEX
F92: =13130.09 -> 13130.09 | G92: Radios on 2189
F93: =C87 -> 2472.3 | G93: 12/31/2010 CAPEX
A94: 1/1/2012 - 3/31/2012 | B94: HL | C94: 17783.19 | D94: 8333.19 | E94: =C94-D94 -> 9450 | F94: 9450 | G94: 12/31/2011 CAPEX | I94: Retirements/Transfers also updated through 3/31/2012.
A95: 1/1/2013-6/30/2013 | B95: HL | C95: 41851.44 | D95: 41851.44 | E95: 0
A96: 7/1/2013-12/31/2013 | B96: HG | C96: 545484.02 | D96: 559470.02 | E96: -13986
B97: CAP EX #111061 | C97: 13986 | E97: 13986
C98: 559470.02 | E98: 559470.02
A99: 1/1/2014-6/30/2014 | B99: HG | C99: 43543.38 | D99: 43543.38 | E99: 0
A100: 1/1/2014-12/31/2014 | B100: JB | C100: 771174.23 | D100: 770997.98 | E100: 176.25
A101: Irmgard updated Jan-June 2015, need to reconcile and do retirements/transfers. | E101: 0
A102: 1/1/2015 - 10/31/2015 | B102: HG | C102: 266133.57 | D102: 266133.57 | E102: 0
A103: 11/1/2015 - 12/31/2015 | B103: JB | C103: 513934.35 | D103: 513934.35 | E103: 0
A104: 01/01/2016 - 08/31/2016 | B104: BJT | C104: 983119.51 | D104: 983119.51 | E104: 0
A105: 09/01/2016 - 12/31/2016 | B105: BJT | C105: 125208.99 | D105: 125208.99 | E105: 0
A106: 1/1/2017-9/30/2017 | B106: LAW | C106: 212935.92 | D106: 212935.92 | E106: 0
A107: 10/1/2017-12/31/2018 | B107: CRP | C107: =SUM([2]Assets!$R$14:$R$44,[2]Assets!$R$47) -> 1598805.78 | D107: =SUM('Trucks 2188'!M60:M347,'Containers 2188'!K96:K110,'Containers 2188'!K199:K202,'Containers 2188'!K222:K223,'Containers 2188'!K259:K261,'Containers 2188'!K277) -> 30261200.57 | E107: -28662394.79
A108: 1/1/2019-08/31/2019 | B108: LAW | C108: 902041.45 | D108: =+SUM('Trucks 2188'!M68,'Trucks 2188'!M284,'Trucks 2188'!M282,'Containers 2188'!K51:K54,'Containers 2188'!K62,'Containers 2188'!K68:K71,'Containers 2188'!K77:K79,'Containers 2188'!K127:K132,'Containers 2188'!K203:K206,'Containers 2188'!K221:K221,'Containers 2188'!K229,'Containers 2188'!K262:K263,'OTHER EQUIP 2188'!L76:L79,'OTHER EQUIP 2188'!L91,'OTHER EQUIP 2188'!L94:L95) -> 831368.89 | E108: 70672.56 | F108: Difference is related to FAR 209229. This was transferred from 2183 so and had salvage value to amortize. We updated the value to match 2183's Depr Schedule.
A109: 9/1/2019-12/31/2019 | B109: HMG | C109: 1155212.48 | D109: ='Trucks 2188'!M6+'Containers 2188'!K8+'OTHER EQUIP 2188'!L7+682.66 -> 1149221.05 | E109: =C109-D109 -> 5991.43
A110: 1/1/2020-05/31/2020 | B110: LAW | C110: 811881.02 | D110: =+SUM('Trucks 2188'!M295,'Trucks 2188'!M296,'Trucks 2188'!M72:M74,'OTHER EQUIP 2188'!L49) -> 811881.02 | E110: =C110-D110 -> 0
A111: 6/1/2020-12/31/2020 | B111: JTH | C111: 1077753.3 | D111: =+SUM('Trucks 2188'!M75:M82,'Containers 2188'!K307,'Containers 2188'!K55:K301,'Containers 2188'!K106,'Containers 2188'!K126,'Containers 2188'!K134:K141,'Containers 2188'!K209:K213,'Containers 2188'!K428:K434,'Containers 2188'!K265:K266,'Containers 2188'!K279:K280,'OTHER EQUIP 2188'!L96,'OTHER EQUIP 2188'!L123) -> 12178263.41 | E111: =D111-C111 -> 11100510.11 | F111: 4353.6 | G111: =+E111+F111 -> 11104863.71 | H111: imm | I111: The $4.3k is related to an old asset that was xferred in and had no depreciable value (FAR: 240301)

Sheet FAR 12.2023
B1: Location | C1: AssetID | D1: ParentChild | E1: Description | F1: SystemNo | H1: MFGSerialNum | I1: LicensePlate | J1: ModelYear | K1: VendorMfg | L1: BodyManuf | M1: InsuranceCategory | N1: InServiceDate | O1: AcquisitionDate | P1: PONumber | Q1: EstimatedLife | R1: AssetGL | S1: AcqValue | T1: AccumulatedGL | U1: CurrentLifeToDate | W1: CurrentYearToDate | X1: ExpenseGL | Y1: CurrentPeriodDepr | Z1: AcqType | AA1: FormerCompany | AB1: InvoiceNum | AC1: CompAsstNo | AD1: Book | AE1: ActivityCd | AF1: DeprMethod | AG1: BegLsDeprDate | AH1: LongName | AI1: Sequence | AJ1: BegLifeToDate
V2: =S2-U2 -> 0
B3: =_xll.ReportRange("FARReport",A14:AJ581,A1:AJ1,A2:AJ2,_xll.Param($C$9,$C$10,C12,$M$9,$M$10,$M$11,$S$9,M12,$Y$10,$Y$9,S10,S11,CELL("address",$E$6)),TRUE,FALSE) -> OK!: ReportRange Formula OK [jAction{}] | L3: Default Month : | M3: =MONTH(NOW()) -> 3 | S3: =_xll.ReportDrill([3]ProjDepr!D3,,_xll.PairGroup(_xll.Pair('FAR 12.2023'!C9,[3]ProjDepr!D19),_xll.Pair("C:B",[3]ProjDepr!D20),_xll.Pair("C:C",[3]ProjDepr!D21),_xll.Pair("C:V",[3]ProjDepr!D22)),"Projected Depr") -> OK!: ReportDrill 'Projected Depr' Formula OK [jAction{}] | Y3: =_xll.jFreezePanes(A14,A5) -> > jFreezePanes is ready. | AB3: =_xll.jFocus(C9) -> > jFocus is ready.
L4: Default Year : | M4: =IF(M3=12,YEAR(NOW()),YEAR(NOW())) -> 2024 | S4: reportdrill(Invoice!C2,,pairgroup(pair("C:C",Invoice!E8),pair("",Invoice!E7,"N")),"Drill To Invoices by FAS# (Exc CIP)") | U4: =_xll.ReportDrill([3]Invoice!$C$2,,_xll.PairGroup(_xll.Pair("C:P",[3]Invoice!$E$7),_xll.Pair("",[3]Invoice!$E$8,"N"),_xll.Pair("",[3]Invoice!$E$9,"n")),"Drill To All Invoices by PO#") -> OK!: ReportDrill 'Drill To All Invoices by PO#' Formula OK [jAction{}] | X4: =_xll.ReportDrill([3]Invoice!$C$2,,_xll.PairGroup(_xll.Pair("C:P",[3]Invoice!$E$7),_xll.Pair("",[3]Invoice!$E$8,"N"),_xll.Pair("C:Z",[3]Invoice!$E$9,"n")),"Drill to Invoice by PO# and Invoice #") -> OK!: ReportDrill 'Drill to Invoice by PO# and Invoice #' Formula OK [jAction{}]
B5: Fixed Asset Register | H5: Asset Count: | I5: =COUNT(C14:C581) -> 567 | AK5: 1 | AL5: Test Period Beg. Month
B6: Data Last Updated in this Pull: | E6: Jan 11 2024 8:26AM | AK6: 12 | AL6: Test Period End Month
AK7: 2023 | AL7: First Year
AK8: 2023 | AL8: Second year
B9: Period: | C9: 2023-12 | F9: Ctrl + Shift + J | L9: VIN: | O9: (Contains the string) | R9: Parent/Child: | T9: (Leave blank for all) | X9: Service Date To: | AK9: =+AK8+(AK6/12) -> 2024 | AL9: Test Period End Mo/Yr
B10: District: | C10: 2188 | E10: (F9 Aware) | L10: Description: | O10: (Contains the string) | R10: Asset Acct: | X10: Service Date From: | AK10: =+AK7+(AK5/12) -> 2023.083333 | AL10: Test Period Beg. Mo/Yr
L11: PO Number: | O11: (Contains the string) | R11: Exp Acct:
B12: Asset #: | L12: Ins Category: | O12: (Not setup yet) | R12: Depreciated %: | T12: (Not setup yet)
B13: District | C13: Asset # | D13: Parent/ Child | E13: Descr | F13: Container Count | G13: BL | H13: MFG Serial# | I13: License Plate | J13: Model Year | K13: Vendor/Mfg | L13: Body Mfg | M13: Ins Category | N13: In Service Date | O13: Acq Date | P13: CER # | Q13: Useful Life | R13: Asset Account | S13: Cost | T13: Accum Account | U13: Accum Life to Date | V13: NBV | W13: Accum YTD | X13: Expense Account | Y13: Current Depr | Z13: Acq Type | AA13: Former Company | AB13: Invoice # | AC13: Company Asset # | AD13: Book | AE13: Activity Cd | AF13: Depr Meth | AG13: Beg Date | AH13: Dbase | AI13: Seq | AJ13: Beg Depr | AK13: Truck # | AL13: Equipment Type | AM13: Month | AN13: Year | AO13: Year Fully Dep | AP13: Year/Mo Fully Dep | AQ13: Monthly Depreciation | AR13: Annual Depreciation | AS13: Test Year Depreciation | AT13: BOY Accum | AU13: EOY Accum | AV13: EOY Average Investment | AW13: Pre 2021 Add?
B14: 2188 | C14: 321164 | D14: P | E14: 2024 Peterbilt ASL Truck | H14: 3BPDLK0X5RF116259 | J14: 2024 | M14: Automated Sideload | N14: 2023-12-30 | O14: 2023-12-30 | P14: 2188-23-0003-1 | Q14: 1000 | R14: 14040 | S14: 224449.02 | T14: 14046 | U14: 0 | V14: =S14-U14 -> 224449.02 | W14: 0 | X14: 51260 | Y14: 0 | Z14: P | AD14: Internal | AE14: A | AF14: SL | AH14: WCNX | AI14: 0 | AJ14: 0 | AL14: Garbage | AM14: =MONTH($N14) -> 12 | AN14: =YEAR($N14) -> 2023 | AO14: =$AN14+($Q14/100) -> 2033 | AP14: =$AO14+($AM14/12) -> 2034 | AQ14: =IFERROR($S14/($Q14/100)/12,0) -> 1870.4085 | AR14: =$AQ14*12 -> 22444.902 | AS14: =+IF(AP14<=$AK$9,0,AR14) -> 22444.902 | AT14: =+IF(AP14<=$AK$10,S14,IF((AN14+(AM14/12))>=$AK$10,0,((S14-((AP14-$AK$10)*12)*AQ14)))) -> 0 | AU14: =IF(AP14<=$AK$9,S14,IF($AT14=0,$AS14,($AT14+$AS14))) -> 22444.902 | AV14: =$S14-$AU14 -> 202004.118 | AW14: No | AY14: =+AR14-AS14 -> 0
B15: 2188 | C15: 321163 | D15: P | E15: 2024 Peterbilt ASL Truck | H15: 3BPDLK0X1RF116260 | J15: 2024 | M15: Automated Sideload | N15: 2023-12-30 | O15: 2023-12-30 | P15: 2188-23-0004-1 | Q15: 1000 | R15: 14040 | S15: 224509.73 | T15: 14046 | U15: 0 | V15: 224509.73 | W15: 0 | X15: 51260 | Y15: 0 | Z15: P | AD15: Internal | AE15: A | AF15: SL | AH15: WCNX | AI15: 0 | AJ15: 0 | AL15: Garbage | AM15: 12 | AN15: 2023 | AO15: 2033 | AP15: 2034 | AQ15: 1870.914417 | AR15: 22450.973 | AS15: =+IF(AP15<=$AK$9,0,AR15) -> 22450.973 | AT15: =+IF(AP15<=$AK$10,S15,IF((AN15+(AM15/12))>=$AK$10,0,((S15-((AP15-$AK$10)*12)*AQ15)))) -> 0 | AU15: =IF(AP15<=$AK$9,S15,IF($AT15=0,$AS15,($AT15+$AS15))) -> 22450.973 | AV15: =$S15-$AU15 -> 202058.757 | AW15: No
B16: 2188 | C16: 321162 | D16: P | E16: 2024 Freightliner REL Truck | H16: 1FVHCYFEXRHUV1452 | J16: 2024 | M16: REL Truck | N16: 2023-12-30 | O16: 2023-12-30 | P16: 2188-23-0005-1 | Q16: 1000 | R16: 14040 | S16: 136818.84 | T16: 14046 | U16: 0 | V16: 136818.84 | W16: 0 | X16: 51260 | Y16: 0 | Z16: P | AD16: Internal | AE16: A | AF16: SL | AH16: WCNX | AI16: 0 | AJ16: 0 | AL16: Garbage | AM16: 12 | AN16: 2023 | AO16: 2033 | AP16: 2034 | AQ16: 1140.157 | AR16: 13681.884 | AS16: 13681.884 | AT16: 0 | AU16: 13681.884 | AV16: 123136.956 | AW16: No
B17: 2188 | C17: 319456 | D17: P | E17: 96 Gal Carts | F17: 351 | J17: 0 | K17: FILE 2524 | M17: Non-Container Audit | N17: 2023-11-23 | O17: 2023-11-23 | P17: 2188-23-0012-2 | Q17: 700 | R17: 14050 | S17: 22179.26 | T17: 14056 | U17: 264.04 | V17: 21915.22 | W17: 264.04 | X17: 54260 | Y17: 264.04 | Z17: P | AB17: 50354681 | AD17: Internal | AE17: A | AF17: SL | AH17: WCNX | AI17: 0 | AJ17: 0 | AL17: Garbage Carts | AM17: 11 | AN17: 2023 | AO17: 2030 | AP17: 2030.916667 | AQ17: 264.0388095 | AR17: 3168.465714 | AS17: 3168.465714 | AT17: 0 | AU17: 3168.465714 | AV17: 19010.79429 | AW17: No
B18: 2188 | C18: 319455 | D18: P | E18: 65 Gal Carts | F18: 468 | J18: 0 | K18: FILE 2524 | M18: Non-Container Audit | N18: 2023-11-29 | O18: 2023-11-29 | P18: 2188-23-0012-1 | Q18: 700 | R18: 14050 | S18: 25632.75 | T18: 14056 | U18: 305.15 | V18: 25327.6 | W18: 305.15 | X18: 54260 | Y18: 305.15 | Z18: P | AB18: 50354681 | AD18: Internal | AE18: A | AF18: SL | AH18: WCNX | AI18: 0 | AJ18: 0 | AL18: Garbage Carts | AM18: 11 | AN18: 2023 | AO18: 2030 | AP18: 2030.916667 | AQ18: 305.1517857 | AR18: 3661.821429 | AS18: 3661.821429 | AT18: 0 | AU18: 3661.821429 | AV18: 21970.92857 | AW18: No
B19: 2188 | C19: 318781 | D19: 318781 | E19: 1 Yd Frontload/Rearload Containers | F19: 6 | J19: 0 | K19: Cascade Container | M19: 1 YD FEL/REL/SL Metal | N19: 2002-05-24 | O19: 2002-05-24 | P19: 02-2010-014 | Q19: 1200 | R19: 14050 | S19: 4637.89 | T19: 14056 | U19: 4637.89 | V19: 0 | W19: 0 | X19: 54260 | Y19: 0 | Z19: P | AB19: 2202484 | AD19: Internal | AE19: A | AF19: SL | AG19: 2023-10-31 | AH19: WCNX | AI19: 0 | AJ19: 4637.89 | AL19: Garbage Containers | AM19: 5 | AN19: 2002 | AO19: 2014 | AP19: 2014.416667 | AQ19: 32.20756944 | AR19: 386.4908333 | AS19: 0 | AT19: 4637.89 | AU19: 4637.89 | AV19: 0 | AW19: No
B20: 2188 | C20: 318307 | D20: P | E20: 2 YD REARLOAD CONTAINERS | F20: 26 | J20: 0 | M20: 2 YD FEL/REL/SL Metal | N20: 2000-02-01 | O20: 2000-02-01 | Q20: 700 | R20: 14050 | S20: 602.22 | T20: 14056 | U20: 602.22 | V20: 0 | W20: 0 | X20: 54260 | Y20: 0 | Z20: A | AA20: Lakeside Disposal | AD20: Internal | AE20: A | AF20: SL | AG20: 2023-10-31 | AH20: WCNX | AI20: 0 | AJ20: 602.22 | AL20: Garbage Containers | AM20: 2 | AN20: 2000 | AO20: 2007 | AP20: 2007.166667 | AQ20: 7.169285714 | AR20: 86.03142857 | AS20: 0 | AT20: 602.22 | AU20: 602.22 | AV20: 0 | AW20: No
B21: 2188 | C21: 316406 | D21: P | E21: 2007 Type H Ttrac Tr | F21: 0 | H21: 4V4M99GH17N481935 | J21: 2007 | K21: Volvo | L21: N/A | M21: Road Tractor | N21: 2008-11-03 | O21: 2008-11-03 | Q21: 800 | R21: 14040 | S21: 58500 | T21: 14046 | U21: 58500 | V21: 0 | W21: 0 | X21: 51260 | Y21: 0 | Z21: A | AA21: LeMay Enterprises | AC21: 5616 | AD21: Internal | AE21: A | AF21: SL | AG21: 2023-09-30 | AH21: WCNX | AI21: 0 | AJ21: 58500 | AL21: Recycling | AM21: 11 | AN21: 2008 | AO21: 2016 | AP21: 2016.916667 | AQ21: 609.375 | AR21: 7312.5 | AS21: 0 | AT21: 58500 | AU21: 58500 | AV21: 0 | AW21: No
B22: 2188 | C22: 316405 | D22: P | E22: 2020 Peterbilt 389 Transfer Tractor | H22: 1XPXP49X3LD679890 | J22: 2020 | K22: PETERBILT | L22: 389 | M22: Transfer Tractor | N22: 2023-01-02 | O22: 44928 | P22: 2189-22-0003 | Q22: 700 | R22: 14040 | S22: 186448 | T22: 14046 | U22: 26635.43 | V22: 159812.57 | W22: 6658.86 | X22: 51260 | Y22: 2219.62 | Z22: P | AC22: 5671 | AD22: Internal | AE22: A | AF22: SL | AG22: 45199 | AH22: WCNX | AI22: 0 | AJ22: 19976.57 | AL22: Recycling | AM22: 1 | AN22: 2023 | AO22: 2030 | AP22: 2030.083333 | AQ22: 2219.619048 | AR22: 26635.42857 | AS22: 26635.42857 | AT22: 0 | AU22: 26635.42857 | AV22: 159812.5714 | AW22: No
B23: 2188 | C23: 316404 | D23: 316403 | E23: Licensing on new tractor 5648 | J23: 0 | K23: WA DOL | M23: Non-Rolling Stock | N23: 2017-06-30 | O23: 2017-06-30 | P23: 2189-17-0001-1 | Q23: 1000 | R23: 14040 | S23: 1074.96 | T23: 14046 | U23: 698.75 | V23: 376.21 | W23: 26.87 | X23: 51260 | Y23: 8.96 | Z23: P | AB23: 5648 License | AD23: Internal | AE23: A | AF23: SL | AG23: 2023-09-30 | AH23: WCNX | AI23: 0 | AJ23: 671.88 | AL23: Garbage | AM23: 6 | AN23: 2017 | AO23: 2027 | AP23: 2027.5 | AQ23: 8.958 | AR23: 107.496 | AS23: 107.496 | AT23: 600.186 | AU23: 707.682 | AV23: 367.278 | AW23: No
B24: 2188 | C24: 316403 | D24: P | E24: 2018 Type H Trac Tr | H24: 1XPCP49X5JD462353 | J24: 2018 | K24: peterbilt | L24: peterbilt | M24: Tractor | N24: 42916 | O24: 42916 | P24: 2189-17-0001-1 | Q24: 700 | R24: 14040 | S24: 157455.8 | T24: 14046 | U24: 146208.97 | V24: 11246.83 | W24: 5623.41 | X24: 51260 | Y24: 1874.47 | Z24: P | AB24: P462353 | AC24: 5648 | AD24: Internal | AE24: A | AF24: SL | AG24: 45199 | AH24: WCNX | AI24: 0 | AJ24: 140585.56 | AL24: Garbage | AM24: 6 | AN24: 2017 | AO24: 2024 | AP24: 2024.5 | AQ24: 1874.47381 | AR24: 22493.68571 | AS24: 22493.68571 | AT24: 125589.7452 | AU24: 148083.431 | AV24: 9372.369048 | AW24: No
B25: 2188 | C25: 316402 | D25: P | E25: 2008 Type H Ttrac Tr | F25: 0 | H25: 4V4M99GH48N487374 | J25: 2008 | K25: Volvo 2008 Year | L25: N/A | M25: Road Tractor | N25: 2008-11-03 | O25: 2008-11-03 | Q25: 900 | R25: 14040 | S25: 73500 | T25: 14046 | U25: 73500 | V25: 0 | W25: 0 | X25: 51260 | Y25: 0 | Z25: A | AA25: LeMay Enterprises | AC25: 5622 | AD25: Internal | AE25: A | AF25: SL | AG25: 2023-09-30 | AH25: WCNX | AI25: 0 | AJ25: 73500 | AL25: Garbage | AM25: 11 | AN25: 2008 | AO25: 2017 | AP25: 2017.916667 | AQ25: 680.5555556 | AR25: 8166.666667 | AS25: 0 | AT25: 73500 | AU25: 73500 | AV25: 0 | AW25: No
B26: 2188 | C26: 313381 | D26: P | E26: 2005 Type HT W-F Trailer | F26: 0 | H26: 2K9WF1Z485H035447 | J26: 2005 | K26: Titan | L26: Other | M26: Trailer | N26: 2008-11-03 | O26: 2008-11-03 | Q26: 300 | R26: 14040 | S26: 38000 | T26: 14046 | U26: 38000 | V26: 0 | W26: 0 | X26: 51260 | Y26: 0 | Z26: A | AA26: LeMay Enterprises | AC26: 8040 | AD26: Internal | AE26: A | AF26: SL | AG26: 2023-08-31 | AH26: WCNX | AI26: 0 | AJ26: 38000 | AL26: Recycling | AM26: 11 | AN26: 2008 | AO26: 2011 | AP26: 2011.916667 | AQ26: 1055.555556 | AR26: 12666.66667 | AS26: 0 | AT26: 38000 | AU26: 38000 | AV26: 0 | AW26: No
B27: 2188 | C27: 312997 | D27: P | E27: 2005 Type HT W-F Trailer | F27: 0 | H27: 2K9WF1Z465H035446 | J27: 2005 | K27: Titan | L27: Other | M27: Trailer | N27: 2008-11-03 | O27: 2008-11-03 | Q27: 300 | R27: 14040 | S27: 38000 | T27: 14046 | U27: 38000 | V27: 0 | W27: 0 | X27: 51260 | Y27: 0 | Z27: A | AA27: LeMay Enterprises | AC27: 8039 | AD27: Internal | AE27: A | AF27: SL | AG27: 2023-07-31 | AH27: WCNX | AI27: 0 | AJ27: 38000 | AK27: 0 | AL27: Recycling | AM27: 11 | AN27: 2008 | AO27: 2011 | AP27: 2011.916667 | AQ27: 1055.555556 | AR27: 12666.66667 | AS27: 0 | AT27: 38000 | AU27: 38000 | AV27: 0 | AW27: No
B28: 2188 | C28: 310505 | D28: P | E28: 95Gal Yardwaste Cart - Plastic | F28: 351 | J28: 0 | K28: FILE 2524 | M28: Non-Container Audit | N28: 2023-06-14 | O28: 2023-06-14 | P28: 2188-23-0010-3 | Q28: 700 | R28: 14050 | S28: 21829.87 | T28: 14056 | U28: 1819.16 | V28: 20010.71 | W28: 1819.16 | X28: 54260 | Y28: 259.88 | Z28: P | AB28: 50320742 | AD28: Internal | AE28: A | AF28: SL | AH28: WCNX | AI28: 0 | AJ28: 0 | AK28: 0 | AL28: Yard Waste | AM28: 6 | AN28: 2023 | AO28: 2030 | AP28: 2030.5 | AQ28: 259.8794048 | AR28: 3118.552857 | AS28: 3118.552857 | AT28: 0 | AU28: 3118.552857 | AV28: 18711.31714 | AW28: No
B29: 2188 | C29: 310504 | D29: P | E29: 96Gal Recycle Cart - Plastic | F29: 351 | J29: 0 | K29: FILE 2524 | M29: Non-Container Audit | N29: 2023-06-14 | O29: 2023-06-14 | P29: 2188-23-0010-2 | Q29: 700 | R29: 14050 | S29: 22589.42 | T29: 14056 | U29: 1882.45 | V29: 20706.97 | W29: 1882.45 | X29: 54260 | Y29: 268.92 | Z29: P | AB29: 50320742 | AD29: Internal | AE29: A | AF29: SL | AH29: WCNX | AI29: 0 | AJ29: 0 | AK29: 0 | AL29: Recycling | AM29: 6 | AN29: 2023 | AO29: 2030 | AP29: 2030.5 | AQ29: 268.9216667 | AR29: 3227.06 | AS29: 3227.06 | AT29: 0 | AU29: 3227.06 | AV29: 19362.36 | AW29: No
B30: 2188 | C30: 309355 | D30: P | E30: 30Yd Roll Off Containers | F30: 2 | J30: 0 | K30: PO BOX 80983 | M30: 30 YD RO Box | N30: 2023-05-31 | O30: 2023-05-31 | P30: 2188-23-0007-1 | Q30: 1200 | R30: 14050 | S30: 19960 | T30: 14056 | U30: 970.27 | V30: 18989.73 | W30: 970.27 | X30: 54260 | Y30: 138.61 | Z30: P | AB30: 179186 | AD30: Internal | AE30: A | AF30: SL | AH30: WCNX | AI30: 0 | AJ30: 0 | AK30: 0 | AL30: Drop Boxes | AM30: 5 | AN30: 2023 | AO30: 2035 | AP30: 2035.416667 | AQ30: 138.6111111 | AR30: 1663.333333 | AS30: 1663.333333 | AT30: 0 | AU30: 1663.333333 | AV30: 18296.66667 | AW30: No
B31: 2188 | C31: 309354 | D31: P | E31: 30Yd Roll Off Containers | F31: 2 | J31: 0 | K31: PO BOX 80983 | M31: 30 YD RO Box | N31: 2023-05-31 | O31: 2023-05-31 | P31: 2188-23-0007-1 | Q31: 1200 | R31: 14050 | S31: 19960 | T31: 14056 | U31: 970.27 | V31: 18989.73 | W31: 970.27 | X31: 54260 | Y31: 138.61 | Z31: P | AB31: 179187 | AD31: Internal | AE31: A | AF31: SL | AH31: WCNX | AI31: 0 | AJ31: 0 | AK31: 0 | AL31: Drop Boxes | AM31: 5 | AN31: 2023 | AO31: 2035 | AP31: 2035.416667 | AQ31: 138.6111111 | AR31: 1663.333333 | AS31: 1663.333333 | AT31: 0 | AU31: 1663.333333 | AV31: 18296.66667 | AW31: No
B32: 2188 | C32: 309353 | D32: P | E32: 30Yd Roll Off Containers | F32: 2 | J32: 0 | K32: PO BOX 80983 | M32: 30 YD RO Box | N32: 2023-05-31 | O32: 2023-05-31 | P32: 2188-23-0007-1 | Q32: 1200 | R32: 14050 | S32: 19960 | T32: 14056 | U32: 970.27 | V32: 18989.73 | W32: 970.27 | X32: 54260 | Y32: 138.61 | Z32: P | AB32: 179188 | AD32: Internal | AE32: A | AF32: SL | AH32: WCNX | AI32: 0 | AJ32: 0 | AK32: 0 | AL32: Drop Boxes | AM32: 5 | AN32: 2023 | AO32: 2035 | AP32: 2035.416667 | AQ32: 138.6111111 | AR32: 1663.333333 | AS32: 1663.333333 | AT32: 0 | AU32: 1663.333333 | AV32: 18296.66667 | AW32: No
B33: 2188 | C33: 309352 | D33: P | E33: 30Yd Roll Off Containers | F33: 2 | J33: 0 | K33: PO BOX 80983 | M33: 30 YD RO Box | N33: 2023-05-31 | O33: 2023-05-31 | P33: 2188-23-0007-1 | Q33: 1200 | R33: 14050 | S33: 19960 | T33: 14056 | U33: 970.27 | V33: 18989.73 | W33: 970.27 | X33: 54260 | Y33: 138.61 | Z33: P | AB33: 179189 | AD33: Internal | AE33: A | AF33: SL | AH33: WCNX | AI33: 0 | AJ33: 0 | AK33: 0 | AL33: Drop Boxes | AM33: 5 | AN33: 2023 | AO33: 2035 | AP33: 2035.416667 | AQ33: 138.6111111 | AR33: 1663.333333 | AS33: 1663.333333 | AT33: 0 | AU33: 1663.333333 | AV33: 18296.66667 | AW33: No
B34: 2188 | C34: 309349 | D34: P | E34: 30Yd Roll Off Containers | F34: 2 | J34: 0 | K34: PO BOX 80983 | M34: 30 YD RO Box | N34: 2023-05-31 | O34: 2023-05-31 | P34: 2188-23-0007-1 | Q34: 1200 | R34: 14050 | S34: 19960 | T34: 14056 | U34: 970.27 | V34: 18989.73 | W34: 970.27 | X34: 54260 | Y34: 138.61 | Z34: P | AB34: 179190 | AD34: Internal | AE34: A | AF34: SL | AH34: WCNX | AI34: 0 | AJ34: 0 | AK34: 0 | AL34: Drop Boxes | AM34: 5 | AN34: 2023 | AO34: 2035 | AP34: 2035.416667 | AQ34: 138.6111111 | AR34: 1663.333333 | AS34: 1663.333333 | AT34: 0 | AU34: 1663.333333 | AV34: 18296.66667 | AW34: No
B35: 2188 | C35: 309052 | D35: P | E35: 95 Gallon Trash Carts | F35: 702 | J35: 0 | K35: FILE 2524 | M35: Non-Container Audit | N35: 2023-06-16 | O35: 2023-06-16 | P35: 2188-23-0010-1 | Q35: 700 | R35: 14050 | S35: 43659.74 | T35: 14056 | U35: 3118.55 | V35: 40541.19 | W35: 3118.55 | X35: 54260 | Y35: 519.76 | Z35: P | AB35: 50319008 | AD35: Internal | AE35: A | AF35: SL | AH35: WCNX | AI35: 0 | AJ35: 0 | AK35: 0 | AL35: Garbage Carts | AM35: 6 | AN35: 2023 | AO35: 2030 | AP35: 2030.5 | AQ35: 519.7588095 | AR35: 6237.105714 | AS35: 6237.105714 | AT35: 0 | AU35: 6237.105714 | AV35: 37422.63429 | AW35: No
B36: 2188 | C36: 308611 | D36: P | E36: 2YD REL Containers | F36: 10 | J36: 0 | K36: PO BOX 80983 | M36: 2 YD REL Container | N36: 2023-05-31 | O36: 2023-05-31 | P36: 2188-23-0007-1 | Q36: 1200 | R36: 14050 | S36: 9683.9 | T36: 14056 | U36: 470.75 | V36: 9213.15 | W36: 470.75 | X36: 54260 | Y36: 67.25 | Z36: P | AB36: 179185 | AD36: Internal | AE36: A | AF36: SL | AH36: WCNX | AI36: 0 | AJ36: 0 | AK36: 0 | AL36: Garbage Containers | AM36: 5 | AN36: 2023 | AO36: 2035 | AP36: 2035.416667 | AQ36: 67.24930556 | AR36: 806.9916667 | AS36: 806.9916667 | AT36: 0 | AU36: 806.9916667 | AV36: 8876.908333 | AW36: No
B37: 2188 | C37: 308342 | D37: P | E37: 20 yard boxes | F37: 11 | H37: 0 | J37: 0 | K37: CAPITAL INDUSTRIES, INC. | M37: 20 YD RO Box | N37: 2006-12-14 | O37: 2006-12-14 | P37: 06-2144-402 | Q37: 1200 | R37: 14050 | S37: 39951.36 | T37: 14056 | U37: 39951.36 | V37: 0 | W37: 0 | X37: 54260 | Y37: 0 | Z37: P | AB37: 174410000 | AD37: Internal | AE37: A | AF37: SL | AG37: 2023-05-31 | AH37: WCNX | AI37: 0 | AJ37: 39951.36 | AK37: 0 | AL37: Drop Boxes | AM37: 12 | AN37: 2006 | AO37: 2018 | AP37: 2019 | AQ37: 277.44 | AR37: 3329.28 | AS37: 0 | AT37: 39951.36 | AU37: 39951.36 | AV37: 0 | AW37: No
B38: 2188 | C38: 308287 | D38: P | E38: 2 YD Commercial Customers ($100 each) | F38: 7 | J38: 0 | N38: 2008-11-03 | O38: 2008-11-03 | Q38: 700 | R38: 14050 | S38: 609.59 | T38: 14056 | U38: 609.59 | V38: 0 | W38: 0 | X38: 54260 | Y38: 0 | Z38: A | AA38: LeMay Enterprises | AD38: Internal | AE38: A | AF38: SL | AG38: 2023-05-31 | AH38: WCNX | AI38: 0 | AJ38: 609.59 | AK38: 0 | AL38: Garbage Containers | AM38: 11 | AN38: 2008 | AO38: 2015 | AP38: 2015.916667 | AQ38: 7.25702381 | AR38: 87.08428571 | AS38: 0 | AT38: 609.59 | AU38: 609.59 | AV38: 0 | AW38: No
B39: 2188 | C39: 308286 | D39: P | E39: 2 YD Commercial Customers ($100 each) | F39: 7 | J39: 0 | N39: 2008-11-03 | O39: 2008-11-03 | Q39: 700 | R39: 14050 | S39: 609.59 | T39: 14056 | U39: 609.59 | V39: 0 | W39: 0 | X39: 54260 | Y39: 0 | Z39: A | AA39: LeMay Enterprises | AD39: Internal | AE39: A | AF39: SL | AG39: 2023-05-31 | AH39: WCNX | AI39: 0 | AJ39: 609.59 | AK39: 0 | AL39: Garbage Containers | AM39: 11 | AN39: 2008 | AO39: 2015 | AP39: 2015.916667 | AQ39: 7.25702381 | AR39: 87.08428571 | AS39: 0 | AT39: 609.59 | AU39: 609.59 | AV39: 0 | AW39: No
B40: 2188 | C40: 308202 | D40: P | E40: 3 Yard Commercial Containers | F40: 8 | J40: 0 | M40: 3 YD FEL/REL/SL Metal | N40: 2008-11-03 | O40: 2008-11-03 | Q40: 1200 | R40: 14050 | S40: 1110 | T40: 14056 | U40: 1110 | V40: 0 | W40: 0 | X40: 54260 | Y40: 0 | Z40: A | AA40: LeMay Enterprises | AD40: Internal | AE40: A | AF40: SL | AG40: 2023-05-31 | AH40: WCNX | AI40: 0 | AJ40: 1110 | AK40: 0 | AL40: Garbage Containers | AM40: 11 | AN40: 2008 | AO40: 2020 | AP40: 2020.916667 | AQ40: 7.708333333 | AR40: 92.5 | AS40: 0 | AT40: 1110 | AU40: 1110 | AV40: 0 | AW40: No
B41: 2188 | C41: 307819 | D41: P | E41: 1 Yd Containers | F41: 153 | J41: 0 | M41: 1 YD FEL/REL/SL Metal | N41: 2008-11-03 | O41: 2008-11-03 | Q41: 700 | R41: 14050 | S41: 13742.86 | T41: 14056 | U41: 13742.86 | V41: 0 | W41: 0 | X41: 54260 | Y41: 0 | Z41: A | AA41: LeMay Enterprises | AD41: Internal | AE41: A | AF41: SL | AG41: 2023-05-31 | AH41: WCNX | AI41: 0 | AJ41: 13742.86 | AK41: 0 | AL41: Garbage Containers | AM41: 11 | AN41: 2008 | AO41: 2015 | AP41: 2015.916667 | AQ41: 163.6054762 | AR41: 1963.265714 | AS41: 0 | AT41: 13742.86 | AU41: 13742.86 | AV41: 0 | AW41: No
B42: 2188 | C42: 307720 | D42: P | E42: 20Yd RO Container | F42: 1 | J42: 0 | K42: PO BOX 80983 | M42: 20 YD RO Box | N42: 2023-05-31 | O42: 2023-05-31 | P42: 2188-23-0007-1 | Q42: 1200 | R42: 14050 | S42: 8815 | T42: 14056 | U42: 428.51 | V42: 8386.49 | W42: 428.51 | X42: 54260 | Y42: 61.22 | Z42: P | AB42: 179553 | AD42: Internal | AE42: A | AF42: SL | AH42: WCNX | AI42: 0 | AJ42: 0 | AK42: 0 | AL42: Drop Boxes | AM42: 5 | AN42: 2023 | AO42: 2035 | AP42: 2035.416667 | AQ42: 61.21527778 | AR42: 734.5833333 | AS42: 734.5833333 | AT42: 0 | AU42: 734.5833333 | AV42: 8080.416667 | AW42: No
B43: 2188 | C43: 307717 | D43: P | E43: 20Yd RO Container | F43: 3 | J43: 0 | K43: PO BOX 80983 | M43: 20 YD RO Box | N43: 2023-05-31 | O43: 2023-05-31 | P43: 2188-23-0007-1 | Q43: 1200 | R43: 14050 | S43: 26445 | T43: 14056 | U43: 1285.52 | V43: 25159.48 | W43: 1285.52 | X43: 54260 | Y43: 183.65 | Z43: P | AB43: 179551 | AD43: Internal | AE43: A | AF43: SL | AH43: WCNX | AI43: 0 | AJ43: 0 | AK43: 0 | AL43: Drop Boxes | AM43: 5 | AN43: 2023 | AO43: 2035 | AP43: 2035.416667 | AQ43: 183.6458333 | AR43: 2203.75 | AS43: 2203.75 | AT43: 0 | AU43: 2203.75 | AV43: 24241.25 | AW43: No
B44: 2188 | C44: 307716 | D44: P | E44: 20Yd RO Container | F44: 3 | J44: 0 | K44: PO BOX 80983 | M44: 20 YD RO Box | N44: 2023-05-31 | O44: 2023-05-31 | P44: 2188-23-0007-1 | Q44: 1200 | R44: 14050 | S44: 26445 | T44: 14056 | U44: 1285.52 | V44: 25159.48 | W44: 1285.52 | X44: 54260 | Y44: 183.65 | Z44: P | AB44: 179552 | AD44: Internal | AE44: A | AF44: SL | AH44: WCNX | AI44: 0 | AJ44: 0 | AK44: 0 | AL44: Drop Boxes | AM44: 5 | AN44: 2023 | AO44: 2035 | AP44: 2035.416667 | AQ44: 183.6458333 | AR44: 2203.75 | AS44: 2203.75 | AT44: 0 | AU44: 2203.75 | AV44: 24241.25 | AW44: No
B45: 2188 | C45: 307715 | D45: P | E45: 20Yd RO Container | F45: 3 | J45: 0 | K45: PO BOX 80983 | M45: 20 YD RO Box | N45: 2023-05-31 | O45: 2023-05-31 | P45: 2188-23-0007-1 | Q45: 1200 | R45: 14050 | S45: 26445 | T45: 14056 | U45: 1285.52 | V45: 25159.48 | W45: 1285.52 | X45: 54260 | Y45: 183.65 | Z45: P | AB45: 179542 | AD45: Internal | AE45: A | AF45: SL | AH45: WCNX | AI45: 0 | AJ45: 0 | AK45: 0 | AL45: Drop Boxes | AM45: 5 | AN45: 2023 | AO45: 2035 | AP45: 2035.416667 | AQ45: 183.6458333 | AR45: 2203.75 | AS45: 2203.75 | AT45: 0 | AU45: 2203.75 | AV45: 24241.25 | AW45: No
B46: 2188 | C46: 307558 | D46: P | E46: 4 Yard Commercial Containers | F46: 6 | J46: 0 | M46: 4 YD FEL/REL/SL Metal | N46: 2008-11-03 | O46: 2008-11-03 | Q46: 1200 | R46: 14050 | S46: 1379.83 | T46: 14056 | U46: 1379.83 | V46: 0 | W46: 0 | X46: 54260 | Y46: 0 | Z46: A | AA46: LeMay Enterprises | AD46: Internal | AE46: A | AF46: SL | AG46: 2023-05-31 | AH46: WCNX | AI46: 0 | AJ46: 1379.83 | AK46: 0 | AL46: Garbage Containers | AM46: 11 | AN46: 2008 | AO46: 2020 | AP46: 2020.916667 | AQ46: 9.582152778 | AR46: 114.9858333 | AS46: 0 | AT46: 1379.83 | AU46: 1379.83 | AV46: 0 | AW46: No
B47: 2188 | C47: 307556 | D47: P | E47: 3 Yard Commercial Containers | F47: 13 | J47: 0 | M47: 3 YD FEL/REL/SL Metal | N47: 2008-11-03 | O47: 2008-11-03 | Q47: 1200 | R47: 14050 | S47: 1110.42 | T47: 14056 | U47: 1110.42 | V47: 0 | W47: 0 | X47: 54260 | Y47: 0 | Z47: A | AA47: LeMay Enterprises | AD47: Internal | AE47: A | AF47: SL | AG47: 2023-05-31 | AH47: WCNX | AI47: 0 | AJ47: 1110.42 | AK47: 0 | AL47: Garbage Containers | AM47: 11 | AN47: 2008 | AO47: 2020 | AP47: 2020.916667 | AQ47: 7.71125 | AR47: 92.535 | AS47: 0 | AT47: 1110.42 | AU47: 1110.42 | AV47: 0 | AW47: No
B48: 2188 | C48: 307555 | D48: P | E48: 40 Yard R/O Containers | F48: 33 | J48: 0 | M48: 40 YD RO Box | N48: 2008-11-03 | O48: 2008-11-03 | Q48: 700 | R48: 14050 | S48: 19350 | T48: 14056 | U48: 19350 | V48: 0 | W48: 0 | X48: 54260 | Y48: 0 | Z48: A | AA48: LeMay Enterprises | AD48: Internal | AE48: A | AF48: SL | AG48: 2023-05-31 | AH48: WCNX | AI48: 0 | AJ48: 19350 | AK48: 0 | AL48: Drop Boxes | AM48: 11 | AN48: 2008 | AO48: 2015 | AP48: 2015.916667 | AQ48: 230.3571429 | AR48: 2764.285714 | AS48: 0 | AT48: 19350 | AU48: 19350 | AV48: 0 | AW48: No
B49: 2188 | C49: 307554 | D49: P | E49: 30 Yard R/O Containers | F49: 29 | J49: 0 | M49: 30 YD RO Box | N49: 2008-11-03 | O49: 2008-11-03 | Q49: 700 | R49: 14050 | S49: 14000 | T49: 14056 | U49: 14000 | V49: 0 | W49: 0 | X49: 54260 | Y49: 0 | Z49: A | AA49: LeMay Enterprises | AD49: Internal | AE49: A | AF49: SL | AG49: 2023-05-31 | AH49: WCNX | AI49: 0 | AJ49: 14000 | AK49: 0 | AL49: Drop Boxes | AM49: 11 | AN49: 2008 | AO49: 2015 | AP49: 2015.916667 | AQ49: 166.6666667 | AR49: 2000 | AS49: 0 | AT49: 14000 | AU49: 14000 | AV49: 0 | AW49: No
B50: 2188 | C50: 307546 | D50: P | E50: 1.5 Yard Containers | F50: 112 | J50: 0 | M50: 1.5 YD FEL/REL/SL Metal | N50: 2008-11-20 | O50: 2008-11-20 | Q50: 700 | R50: 14050 | S50: 11187.12 | T50: 14056 | U50: 11187.12 | V50: 0 | W50: 0 | X50: 54260 | Y50: 0 | Z50: A | AA50: Yakima Waste Systems | AD50: Internal | AE50: A | AF50: SL | AG50: 2023-05-31 | AH50: WCNX | AI50: 0 | AJ50: 11187.12 | AK50: 0 | AL50: Garbage Containers | AM50: 11 | AN50: 2008 | AO50: 2015 | AP50: 2015.916667 | AQ50: 133.18 | AR50: 1598.16 | AS50: 0 | AT50: 11187.12 | AU50: 11187.12 | AV50: 0 | AW50: No
B51: 2188 | C51: 306153 | D51: 264434 | E51: Drivecam | H51: 1NPCL40X5ND789344 | J51: 2022 | K51: xxxx | L51: Van Raden | M51: Non-Rolling Stock | N51: 2023-04-20 | O51: 2023-04-20 | P51: 2188-23-0009-1 | Q51: 500 | R51: 14040 | S51: 605.94 | T51: 14046 | U51: 80.79 | V51: 525.15 | W51: 80.79 | X51: 51260 | Y51: 10.1 | Z51: P | AB51: 5621924 | AD51: Internal | AE51: A | AF51: SL | AH51: WCNX | AI51: 0 | AJ51: 0 | AK51: 0 | AL51: Roll Off | AM51: 4 | AN51: 2023 | AO51: 2028 | AP51: 2028.333333 | AQ51: 10.099 | AR51: 121.188 | AS51: 121.188 | AT51: 0 | AU51: 121.188 | AV51: 484.752 | AW51: No
B52: 2188 | C52: 305313 | D52: P | E52: 2YD REL Container | F52: 20 | I52: 94-3283464 | J52: 0 | K52: PO BOX 80983 | M52: 2 YD REL Container | N52: 2023-04-30 | O52: 2023-04-30 | P52: 2188-23-0007-1 | Q52: 1200 | R52: 14050 | S52: 17203.8 | T52: 14056 | U52: 955.77 | V52: 16248.03 | W52: 955.77 | X52: 54260 | Y52: 119.47 | Z52: P | AB52: 179039 | AD52: Internal | AE52: A | AF52: SL | AH52: WCNX | AI52: 0 | AJ52: 0 | AK52: 0 | AL52: Garbage Containers | AM52: 4 | AN52: 2023 | AO52: 2035 | AP52: 2035.333333 | AQ52: 119.4708333 | AR52: 1433.65 | AS52: 1433.65 | AT52: 0 | AU52: 1433.65 | AV52: 15770.15 | AW52: No
B53: 2188 | C53: 305312 | D53: P | E53: 1 YD REL Container | F53: 20 | I53: 94-3283464 | J53: 0 | K53: PO BOX 80983 | M53: 1 YD REL Container | N53: 2023-04-30 | O53: 2023-04-30 | P53: 2188-23-0007-1 | Q53: 1200 | R53: 14050 | S53: 16446.4 | T53: 14056 | U53: 913.69 | V53: 15532.71 | W53: 913.69 | X53: 54260 | Y53: 114.21 | Z53: P | AB53: 179040 | AD53: Internal | AE53: A | AF53: SL | AH53: WCNX | AI53: 0 | AJ53: 0 | AK53: 0 | AL53: Garbage Containers | AM53: 4 | AN53: 2023 | AO53: 2035 | AP53: 2035.333333 | AQ53: 114.2111111 | AR53: 1370.533333 | AS53: 1370.533333 | AT53: 0 | AU53: 1370.533333 | AV53: 15075.86667 | AW53: No
B54: 2188 | C54: 305311 | D54: P | E54: 40yd R/O Containers | F54: 10 | I54: 94-3283464 | J54: 0 | K54: PO BOX 80983 | M54: 40 YD RO Box | N54: 2023-04-30 | O54: 2023-04-30 | P54: 2188-23-0007-1 | Q54: 1200 | R54: 14050 | S54: 109700 | T54: 14056 | U54: 6094.45 | V54: 103605.55 | W54: 6094.45 | X54: 54260 | Y54: 761.81 | Z54: P | AB54: 179034 | AD54: Internal | AE54: A | AF54: SL | AH54: WCNX | AI54: 0 | AJ54: 0 | AK54: 0 | AL54: Drop Boxes | AM54: 4 | AN54: 2023 | AO54: 2035 | AP54: 2035.333333 | AQ54: 761.8055556 | AR54: 9141.666667 | AS54: 9141.666667 | AT54: 0 | AU54: 9141.666667 | AV54: 100558.3333 | AW54: No
B55: 2188 | C55: 305087 | D55: P | E55: 6yd FEL Containers | F55: 14 | I55: 94-3283464 | J55: 0 | K55: PO BOX 603008 | M55: 6 YD FEL Container | N55: 2023-04-24 | O55: 2023-04-24 | P55: 2188-23-0008-1 | Q55: 1200 | R55: 14050 | S55: 17479.03 | T55: 14056 | U55: 971.06 | V55: 16507.97 | W55: 971.06 | X55: 54260 | Y55: 121.38 | Z55: P | AB55: 20INV000356078 | AD55: Internal | AE55: A | AF55: SL | AH55: WCNX | AI55: 0 | AJ55: 0 | AK55: 0 | AL55: Garbage Containers | AM55: 4 | AN55: 2023 | AO55: 2035 | AP55: 2035.333333 | AQ55: 121.3821528 | AR55: 1456.585833 | AS55: 1456.585833 | AT55: 0 | AU55: 1456.585833 | AV55: 16022.44417 | AW55: No
B56: 2188 | C56: 305070 | D56: 264434 | E56: 2022 Peterbilt ROL Truck - Remaining Balance - Rollover 2188-21-0004 | H56: 1NPCL40X5ND789344 | I56: 94-3283464 | J56: 2022 | K56: Van Raden | M56: Non-Rolling Stock | N56: 2023-04-20 | O56: 2023-04-20 | P56: 2188-23-0009-1 | Q56: 1000 | R56: 14040 | S56: 53330.24 | T56: 14046 | U56: 3555.35 | V56: 49774.89 | W56: 3555.35 | X56: 51260 | Y56: 444.42 | Z56: P | AB56: 43384 | AD56: Internal | AE56: A | AF56: SL | AH56: WCNX | AI56: 0 | AJ56: 0 | AK56: 0 | AL56: Roll Off | AM56: 4 | AN56: 2023 | AO56: 2033 | AP56: 2033.333333 | AQ56: 444.4186667 | AR56: 5333.024 | AS56: 5333.024 | AT56: 0 | AU56: 5333.024 | AV56: 47997.216 | AW56: No
B57: 2188 | C57: 303915 | D57: P | E57: 65 Gallon Refuse Carts | F57: 936 | I57: 94-3283464 | J57: 0 | K57: REHRIG PACIFIC COMPANY IN | M57: Non-Container Audit | N57: 2023-01-28 | O57: 2023-01-28 | P57: 2188-23-0006-1 | Q57: 700 | R57: 14050 | S57: 50465.43 | T57: 14056 | U57: 6608.57 | V57: 43856.86 | W57: 6608.57 | X57: 54260 | Y57: 600.78 | Z57: P | AB57: 50292968 | AD57: Internal | AE57: A | AF57: SL | AH57: WCNX | AI57: 0 | AJ57: 0 | AK57: 0 | AL57: Garbage Carts | AM57: 1 | AN57: 2023 | AO57: 2030 | AP57: 2030.083333 | AQ57: 600.7789286 | AR57: 7209.347143 | AS57: 7209.347143 | AT57: 0 | AU57: 7209.347143 | AV57: 43256.08286 | AW57: No
B58: 2188 | C58: 302429 | D58: P | E58: 1993 Wabi Van Trailers #9304 | F58: 0 | H58: 1JJV533UXPL203694 | I58: 9936VY | J58: 1993 | K58: Wabi Van | L58: Other | M58: Trailer | N58: 2010-12-01 | O58: 2010-12-01 | P58: 2170-10-0006-1 | Q58: 300 | R58: 14040 | S58: 5902.2 | T58: 14046 | U58: 5902.2 | V58: 0 | W58: 0 | X58: 51260 | Y58: 0 | Z58: P | AB58: October 20 2010 | AC58: 8923 | AD58: Internal | AE58: A | AF58: SL | AG58: 2023-03-31 | AH58: WCNX | AI58: 0 | AJ58: 5902.2 | AK58: 0 | AL58: Recycling | AM58: 12 | AN58: 2010 | AO58: 2013 | AP58: 2014 | AQ58: 163.95 | AR58: 1967.4 | AS58: 0 | AT58: 5902.2 | AU58: 5902.2 | AV58: 0 | AW58: No
B59: 2188 | C59: 300093 | D59: 294557 | E59: Decals Truck #3731 | J59: 0 | K59: LARSEN SIGN CO | M59: Non-Rolling Stock | N59: 2023-01-02 | O59: 2023-01-02 | P59: 2188-22-0003-1 | Q59: 1000 | R59: 14040 | S59: 984.62 | T59: 14046 | U59: 98.45 | V59: 886.17 | W59: 98.45 | X59: 51260 | Y59: 8.2 | Z59: P | AB59: 31549 | AD59: Internal | AE59: A | AF59: SL | AH59: WCNX | AI59: 0 | AJ59: 0 | AK59: 0 | AL59: Garbage | AM59: 1 | AN59: 2023 | AO59: 2033 | AP59: 2033.083333 | AQ59: 8.205166667 | AR59: 98.462 | AS59: 98.462 | AT59: 0 | AU59: 98.462 | AV59: 886.158 | AW59: No
B60: 2188 | C60: 299485 | D60: P | E60: 2007 Type H TSide ASL | F60: 0 | H60: 3BPZLD9X17F717573 | J60: 2007 | K60: Peterbilt | L60: Wayne | M60: Automated Sideload | N60: 2008-11-03 | O60: 2008-11-03 | Q60: 800 | R60: 14040 | S60: 133500 | T60: 14046 | U60: 133500 | V60: 0 | W60: 0 | X60: 51260 | Y60: 0 | Z60: A | AA60: LeMay Enterprises | AC60: 3601 | AD60: Internal | AE60: A | AF60: SL | AG60: 2023-01-31 | AH60: WCNX | AI60: 0 | AJ60: 133500 | AK60: 0 | AL60: Garbage | AM60: 11 | AN60: 2008 | AO60: 2016 | AP60: 2016.916667 | AQ60: 1390.625 | AR60: 16687.5 | AS60: 0 | AT60: 133500 | AU60: 133500 | AV60: 0 | AW60: No
B61: 2188 | C61: 299470 | D61: P | E61: 2007 Type H TSide ASL | F61: 0 | H61: 3BPZLD9X97F717577 | J61: 2007 | K61: Peterbilt | L61: Wayne | M61: Automated Sideload | N61: 2008-11-03 | O61: 2008-11-03 | Q61: 800 | R61: 14040 | S61: 133500 | T61: 14046 | U61: 133500 | V61: 0 | W61: 0 | X61: 51260 | Y61: 0 | Z61: A | AA61: LeMay Enterprises | AC61: 3605 | AD61: Internal | AE61: A | AF61: SL | AG61: 2023-01-31 | AH61: WCNX | AI61: 0 | AJ61: 133500 | AK61: 0 | AL61: Residential Recycling | AM61: 11 | AN61: 2008 | AO61: 2016 | AP61: 2016.916667 | AQ61: 1390.625 | AR61: 16687.5 | AS61: 0 | AT61: 133500 | AU61: 133500 | AV61: 0 | AW61: No
B62: 2188 | C62: 299416 | D62: P | E62: 95 Gallon Recycle Carts | F62: 702 | J62: 0 | K62: REHRIG PACIFIC COMPANY IN | M62: Non-Container Audit | N62: 2023-02-08 | O62: 2023-02-08 | P62: 2188-23-0006-1 | Q62: 700 | R62: 14050 | S62: 43287.55 | T62: 14056 | U62: 5668.61 | V62: 37618.94 | W62: 5668.61 | X62: 54260 | Y62: 515.33 | Z62: P | AB62: 50295318 | AD62: Internal | AE62: A | AF62: SL | AH62: WCNX | AI62: 0 | AJ62: 0 | AK62: 0 | AL62: Recycling | AM62: 2 | AN62: 2023 | AO62: 2030 | AP62: 2030.166667 | AQ62: 515.3279762 | AR62: 6183.935714 | AS62: 6183.935714 | AT62: 0 | AU62: 6183.935714 | AV62: 37103.61429 | AW62: No
B63: 2188 | C63: 299359 | D63: P | E63: 2023 Peterbilt MSL Truck | H63: 3BPDLK0X3PF114135 | J63: 2023 | M63: S/L Truck | N63: 2023-01-02 | O63: 2023-01-02 | P63: 2188-22-0002 | Q63: 1000 | R63: 14040 | S63: 424670.08 | T63: 14046 | U63: 42467.01 | V63: 382203.07 | W63: 42467.01 | X63: 51260 | Y63: 3538.92 | Z63: P | AD63: Internal | AE63: A | AF63: SL | AH63: WCNX | AI63: 0 | AJ63: 0 | AK63: 0 | AL63: Garbage | AM63: 1 | AN63: 2023 | AO63: 2033 | AP63: 2033.083333 | AQ63: 3538.917333 | AR63: 42467.008 | AS63: 42467.008 | AT63: 0 | AU63: 42467.008 | AV63: 382203.072 | AW63: No
B64: 2188 | C64: 298878 | D64: 294557 | E64: License Truck #3731 | J64: 0 | K64: WA DOL | M64: Non-Rolling Stock | N64: 2023-01-02 | O64: 2023-01-02 | P64: 2188-22-0003-1 | Q64: 1000 | R64: 14040 | S64: 957.13 | T64: 14046 | U64: 95.71 | V64: 861.42 | W64: 95.71 | X64: 51260 | Y64: 7.98 | Z64: P | AB64: D02067B | AD64: Internal | AE64: A | AF64: SL | AH64: WCNX | AI64: 0 | AJ64: 0 | AK64: 0 | AL64: Garbage | AM64: 1 | AN64: 2023 | AO64: 2033 | AP64: 2033.083333 | AQ64: 7.976083333 | AR64: 95.713 | AS64: 95.713 | AT64: 0 | AU64: 95.713 | AV64: 861.417 | AW64: No
B65: 2188 | C65: 298282 | D65: P | E65: 2013 Great Dane Flat Bed (Flat Bed 53' trailer) | H65: 1GRDM96201M002303 | J65: 2013 | M65: Flat Bed Trailer | N65: 2021-11-01 | O65: 2021-11-01 | Q65: 300 | R65: 14040 | S65: 95000 | T65: 14046 | U65: 68611.12 | V65: 26388.88 | W65: 31666.67 | X65: 51260 | Y65: 2638.89 | Z65: A | AA65: Peninsula Sanitation | AC65: 80 | AD65: Internal | AE65: A | AF65: SL | AG65: 2022-12-31 | AH65: WCNX | AI65: 0 | AJ65: 36944.45 | AK65: 0 | AL65: Roll Off | AM65: 11 | AN65: 2021 | AO65: 2024 | AP65: 2024.916667 | AQ65: 2638.888889 | AR65: 31666.66667 | AS65: 31666.66667 | AT65: 36944.44444 | AU65: 68611.11111 | AV65: 26388.88889 | AW65: No
B66: 2188 | C66: 295933 | D66: P | E66: 24 Gallon Plastic Totes | F66: 200 | J66: 0 | K66: WASTEQUIP LLC | M66: Non-Container Audit | N66: 2022-11-26 | O66: 2022-11-26 | P66: 2188-22-0014-1 | Q66: 700 | R66: 14050 | S66: 12669.17 | T66: 14056 | U66: 1960.7 | V66: 10708.47 | W66: 1809.88 | X66: 54260 | Y66: 150.82 | Z66: P | AB66: 20INV000269828 | AD66: Internal | AE66: A | AF66: SL | AH66: WCNX | AI66: 0 | AJ66: 0 | AK66: 0 | AL66: Garbage Carts | AM66: 11 | AN66: 2022 | AO66: 2029 | AP66: 2029.916667 | AQ66: 150.8234524 | AR66: 1809.881429 | AS66: 1809.881429 | AT66: 301.6469048 | AU66: 2111.528333 | AV66: 10557.64167 | AW66: No
B67: 2188 | C67: 295932 | D67: P | E67: 3Yd FEL Containers | F67: 15 | J67: 0 | K67: CAPITAL INDUSTRIES INC | M67: 3 YD FEL Container | N67: 2022-12-19 | O67: 2022-12-19 | P67: 2188-22-0010-1 | Q67: 1200 | R67: 14050 | S67: 17771.85 | T67: 14056 | U67: 1480.99 | V67: 16290.86 | W67: 1480.99 | X67: 54260 | Y67: 123.42 | Z67: P | AB67: 176724 | AD67: Internal | AE67: A | AF67: SL | AH67: WCNX | AI67: 0 | AJ67: 0 | AK67: 0 | AL67: Garbage Containers | AM67: 12 | AN67: 2022 | AO67: 2034 | AP67: 2035 | AQ67: 123.415625 | AR67: 1480.9875 | AS67: 1480.9875 | AT67: 123.415625 | AU67: 1604.403125 | AV67: 16167.44688 | AW67: No
B68: 2188 | C68: 295071 | D68: P | E68: 4YD FEL Container | F68: 5 | J68: 0 | K68: CAPITAL INDUSTRIES INC | M68: 4 YD FEL Container | N68: 2022-12-19 | O68: 2022-12-19 | P68: 2188-22-0010-1 | Q68: 1200 | R68: 14050 | S68: 6816.6 | T68: 14056 | U68: 568.05 | V68: 6248.55 | W68: 568.05 | X68: 54260 | Y68: 47.34 | Z68: P | AB68: 176647 | AD68: Internal | AE68: A | AF68: SL | AH68: WCNX | AI68: 0 | AJ68: 0 | AK68: 0 | AL68: Garbage Containers | AM68: 12 | AN68: 2022 | AO68: 2034 | AP68: 2035 | AQ68: 47.3375 | AR68: 568.05 | AS68: 568.05 | AT68: 47.3375 | AU68: 615.3875 | AV68: 6201.2125 | AW68: No
B69: 2188 | C69: 295070 | D69: P | E69: 4Yd FEL Containers | F69: 10 | J69: 0 | K69: CAPITAL INDUSTRIES INC | M69: 4 YD FEL Container | N69: 2022-12-19 | O69: 2022-12-19 | P69: 2188-22-0010-1 | Q69: 1200 | R69: 14050 | S69: 13633.2 | T69: 14056 | U69: 1136.1 | V69: 12497.1 | W69: 1136.1 | X69: 54260 | Y69: 94.67 | Z69: P | AB69: 176631 | AD69: Internal | AE69: A | AF69: SL | AH69: WCNX | AI69: 0 | AJ69: 0 | AK69: 0 | AL69: Garbage Containers | AM69: 12 | AN69: 2022 | AO69: 2034 | AP69: 2035 | AQ69: 94.675 | AR69: 1136.1 | AS69: 1136.1 | AT69: 94.675 | AU69: 1230.775 | AV69: 12402.425 | AW69: No
B70: 2188 | C70: 294557 | D70: P | E70: 2023 Peterbilt MSL Truck | H70: 3BPDLK0X1PF114134 | J70: 2023 | K70: PETERBILT | L70: LABRIE | M70: S/L Truck | N70: 2022-12-01 | O70: 2022-12-01 | P70: 2188-22-0003-1 | Q70: 1000 | R70: 14040 | S70: 423721.68 | T70: 14046 | U70: 45903.18 | V70: 377818.5 | W70: 42372.17 | X70: 51260 | Y70: 3531.01 | Z70: P | AC70: 3731 | AD70: Internal | AE70: A | AF70: SL | AH70: WCNX | AI70: 0 | AJ70: 0 | AK70: 12303 | AL70: Garbage | AM70: 12 | AN70: 2022 | AO70: 2032 | AP70: 2033 | AQ70: 3531.014 | AR70: 42372.168 | AS70: 42372.168 | AT70: 3531.014 | AU70: 45903.182 | AV70: 377818.498 | AW70: No
B71: 2188 | C71: 294347 | D71: P | E71: Truck Lift | F71: 1 | H71: 958-008442 | J71: 0 | K71: GRAY MANUFACTURING CO INC | N71: 2022-11-10 | O71: 2022-11-10 | P71: 2188-22-0015-1 | Q71: 500 | R71: 14070 | S71: 16374.48 | T71: 14076 | U71: 3820.72 | V71: 12553.76 | W71: 3274.9 | X71: 51260 | Y71: 272.91 | Z71: P | AB71: 947614 | AD71: Internal | AE71: A | AF71: SL | AH71: WCNX | AI71: 0 | AJ71: 0 | AK71: 0 | AL71: Service Equipment | AM71: 11 | AN71: 2022 | AO71: 2027 | AP71: 2027.916667 | AQ71: 272.908 | AR71: 3274.896 | AS71: 3274.896 | AT71: 545.816 | AU71: 3820.712 | AV71: 12553.768 | AW71: No
B72: 2188 | C72: 294346 | D72: P | E72: Truck Lift | F72: 1 | H72: 958-008451 | J72: 0 | K72: GRAY MANUFACTURING CO INC | N72: 2022-11-10 | O72: 2022-11-10 | P72: 2188-22-0015-1 | Q72: 500 | R72: 14070 | S72: 16374.47 | T72: 14076 | U72: 3820.71 | V72: 12553.76 | W72: 3274.89 | X72: 51260 | Y72: 272.91 | Z72: P | AB72: 947614 | AD72: Internal | AE72: A | AF72: SL | AH72: WCNX | AI72: 0 | AJ72: 0 | AK72: 0 | AL72: Service Equipment | AM72: 11 | AN72: 2022 | AO72: 2027 | AP72: 2027.916667 | AQ72: 272.9078333 | AR72: 3274.894 | AS72: 3274.894 | AT72: 545.8156667 | AU72: 3820.709667 | AV72: 12553.76033 | AW72: No
B73: 2188 | C73: 294345 | D73: P | E73: Truck Lift | F73: 1 | H73: 958-008447 | J73: 0 | K73: GRAY MANUFACTURING CO INC | N73: 2022-11-10 | O73: 2022-11-10 | P73: 2188-22-0015-1 | Q73: 500 | R73: 14070 | S73: 16374.47 | T73: 14076 | U73: 3820.71 | V73: 12553.76 | W73: 3274.89 | X73: 51260 | Y73: 272.91 | Z73: P | AB73: 947614 | AD73: Internal | AE73: A | AF73: SL | AH73: WCNX | AI73: 0 | AJ73: 0 | AK73: 0 | AL73: Service Equipment | AM73: 11 | AN73: 2022 | AO73: 2027 | AP73: 2027.916667 | AQ73: 272.9078333 | AR73: 3274.894 | AS73: 3274.894 | AT73: 545.8156667 | AU73: 3820.709667 | AV73: 12553.76033 | AW73: No
B74: 2188 | C74: 294344 | D74: P | E74: Truck Lift | F74: 1 | H74: 958-008443 | J74: 0 | K74: GRAY MANUFACTURING CO INC | N74: 2022-11-10 | O74: 2022-11-10 | P74: 2188-22-0015-1 | Q74: 500 | R74: 14070 | S74: 16374.48 | T74: 14076 | U74: 3820.72 | V74: 12553.76 | W74: 3274.9 | X74: 51260 | Y74: 272.91 | Z74: P | AB74: 947614 | AD74: Internal | AE74: A | AF74: SL | AH74: WCNX | AI74: 0 | AJ74: 0 | AK74: 0 | AL74: Service Equipment | AM74: 11 | AN74: 2022 | AO74: 2027 | AP74: 2027.916667 | AQ74: 272.908 | AR74: 3274.896 | AS74: 3274.896 | AT74: 545.816 | AU74: 3820.712 | AV74: 12553.768 | AW74: No
B75: 2188 | C75: 293932 | D75: 290432 | E75: Overpayment Credit | J75: 0 | K75: Dobbs Peterbilt | M75: Non-Rolling Stock | N75: 2022-09-07 | O75: 2022-09-07 | P75: 2188-22-0001-1 | Q75: 1000 | R75: 14040 | S75: -990.27 | T75: 14046 | U75: -132.04 | V75: -858.23 | W75: -99.03 | X75: 51260 | Y75: -8.25 | Z75: P | AB75: PPD811914 | AD75: Internal | AE75: A | AF75: SL | AH75: WCNX | AI75: 0 | AJ75: 0 | AK75: 4096 | AL75: Garbage | AM75: 9 | AN75: 2022 | AO75: 2032 | AP75: 2032.75 | AQ75: -8.25225 | AR75: -99.027 | AS75: -99.027 | AT75: -33.009 | AU75: -132.036 | AV75: -858.234 | AW75: No
B76: 2188 | C76: 292606 | D76: P | E76: 2Yd REL Containers | F76: 15 | J76: 0 | K76: CAPITAL INDUSTRIES INC | M76: 2 YD REL Container | N76: 2022-10-18 | O76: 2022-10-18 | P76: 2188-22-0010-2 | Q76: 1200 | R76: 14050 | S76: 14282.4 | T76: 14056 | U76: 1388.57 | V76: 12893.83 | W76: 1190.2 | X76: 54260 | Y76: 99.18 | Z76: P | AB76: 175974 | AD76: Internal | AE76: A | AF76: SL | AH76: WCNX | AI76: 0 | AJ76: 0 | AK76: 0 | AL76: Garbage Containers | AM76: 10 | AN76: 2022 | AO76: 2034 | AP76: 2034.833333 | AQ76: 99.18333333 | AR76: 1190.2 | AS76: 1190.2 | AT76: 297.55 | AU76: 1487.75 | AV76: 12794.65 | AW76: No
B77: 2188 | C77: 292605 | D77: P | E77: 1.5Yd REL Containers | F77: 15 | J77: 0 | K77: CAPITAL INDUSTRIES INC | M77: 1.5 YD REL Container | N77: 2022-10-18 | O77: 2022-10-18 | P77: 2188-22-0010-2 | Q77: 1200 | R77: 14050 | S77: 14038.95 | T77: 14056 | U77: 1364.9 | V77: 12674.05 | W77: 1169.91 | X77: 54260 | Y77: 97.49 | Z77: P | AB77: 175619 | AD77: Internal | AE77: A | AF77: SL | AH77: WCNX | AI77: 0 | AJ77: 0 | AK77: 0 | AL77: Garbage Containers | AM77: 10 | AN77: 2022 | AO77: 2034 | AP77: 2034.833333 | AQ77: 97.49270833 | AR77: 1169.9125 | AS77: 1169.9125 | AT77: 292.478125 | AU77: 1462.390625 | AV77: 12576.55938 | AW77: No
B78: 2188 | C78: 292604 | D78: P | E78: 1Yd REL Containers | F78: 15 | J78: 0 | K78: CAPITAL INDUSTRIES INC | M78: 1 YD REL Container | N78: 2022-10-18 | O78: 2022-10-18 | P78: 2188-22-0010-2 | Q78: 1200 | R78: 14050 | S78: 13795.5 | T78: 14056 | U78: 1341.24 | V78: =S78-U78 -> 12454.26 | W78: 1149.63 | X78: 54260 | Y78: 95.8 | Z78: P | AB78: 175618 | AD78: Internal | AE78: A | AF78: SL | AH78: WCNX | AI78: 0 | AJ78: 0 | AK78: 0 | AL78: Garbage Containers | AM78: =MONTH($N78) -> 10 | AN78: =YEAR($N78) -> 2022 | AO78: =$AN78+($Q78/100) -> 2034 | AP78: =$AO78+($AM78/12) -> 2034.833333 | AQ78: =IFERROR($S78/($Q78/100)/12,0) -> 95.80208333 | AR78: =$AQ78*12 -> 1149.625 | AS78: 1149.625 | AT78: 287.40625 | AU78: 1437.03125 | AV78: 12358.46875 | AW78: No
B79: 2188 | C79: 291784 | D79: 290432 | E79: Truck 4096 Decals | J79: 2023 | K79: LARSEN SIGN CO | M79: Non-Rolling Stock | N79: 2022-09-07 | O79: 2022-09-07 | P79: 2188-22-0001-1 | Q79: 1000 | R79: 14040 | S79: 286.73 | T79: 14046 | U79: 38.23 | V79: 248.5 | W79: 28.67 | X79: 51260 | Y79: 2.39 | Z79: P | AB79: 30985 | AD79: Internal | AE79: A | AF79: SL | AH79: WCNX | AI79: 0 | AJ79: 0 | AK79: 4096 | AL79: Garbage | AM79: 9 | AN79: 2022 | AO79: 2032 | AP79: 2032.75 | AQ79: 2.389416667 | AR79: 28.673 | AS79: =+IF(AP79<=$AK$9,0,AR79) -> 28.673 | AT79: =+IF(AP79<=$AK$10,S79,IF((AN79+(AM79/12))>=$AK$10,0,((S79-((AP79-$AK$10)*12)*AQ79)))) -> 9.557666667 | AU79: =IF(AP79<=$AK$9,S79,IF($AT79=0,$AS79,($AT79+$AS79))) -> 38.23066667 | AV79: =$S79-$AU79 -> 248.4993333 | AW79: No
B80: 2188 | C80: 290432 | D80: P | E80: 2023 Peterbilt ROL Truck | H80: 1NPCX4EX0PD811914 | J80: 2023 | K80: PETERBILT | L80: AA WELDING | M80: R/O Truck | N80: 2022-08-10 | O80: 2022-08-10 | P80: 2188-22-0001-1 | Q80: 1000 | R80: 14040 | S80: 282845.65 | T80: 14046 | U80: 40069.81 | V80: 242775.84 | W80: 28284.57 | X80: 51260 | Y80: 2357.05 | Z80: P | AC80: 4096 | AD80: Internal | AE80: A | AF80: SL | AH80: WCNX | AI80: 0 | AJ80: 0 | AK80: 4096 | AL80: Garbage | AM80: 8 | AN80: 2022 | AO80: 2032 | AP80: 2032.666667 | AQ80: 2357.047083 | AR80: 28284.565 | AS80: 28284.565 | AT80: 11785.23542 | AU80: 40069.80042 | AV80: 242775.8496 | AW80: No
B81: 2188 | C81: 289420 | D81: 290432 | E81: License Truck # 4096 | J81: 0 | K81: WA DOL | M81: Non-Rolling Stock | N81: 2022-09-07 | O81: 2022-09-07 | P81: 2188-22-0001-1 | Q81: 1000 | R81: 14040 | S81: 1152.06 | T81: 14046 | U81: 153.6 | V81: 998.46 | W81: 115.2 | X81: 51260 | Y81: 9.6 | Z81: P | AB81: D68504A | AD81: Internal | AE81: A | AF81: SL | AH81: WCNX | AI81: 0 | AJ81: 0 | AK81: 4096 | AL81: Garbage | AM81: 9 | AN81: 2022 | AO81: 2032 | AP81: 2032.75 | AQ81: 9.6005 | AR81: 115.206 | AS81: 115.206 | AT81: 38.402 | AU81: 153.608 | AV81: 998.452 | AW81: No
B82: 2188 | C82: 289363 | D82: P | E82: 95 Gallon Plastic Recycle Totes | F82: 351 | J82: 0 | K82: REHRIG PACIFIC COMPANY IN | M82: Non-Container Audit | N82: 2022-09-20 | O82: 2022-09-20 | P82: 2188-22-0013-1 | Q82: 700 | R82: 14050 | S82: 23136.32 | T82: 14056 | U82: 4131.49 | V82: 19004.83 | W82: 3305.19 | X82: 54260 | Y82: 275.43 | Z82: P | AB82: 50266895 | AD82: Internal | AE82: A | AF82: SL | AH82: WCNX | AI82: 0 | AJ82: 0 | AK82: 0 | AL82: Recycling | AM82: 9 | AN82: 2022 | AO82: 2029 | AP82: 2029.75 | AQ82: 275.432381 | AR82: 3305.188571 | AS82: 3305.188571 | AT82: 1101.729524 | AU82: 4406.918095 | AV82: 18729.4019 | AW82: No
B83: 2188 | C83: 289362 | D83: P | E83: 65 Gallon Plastic MSW Totes | F83: 468 | J83: 0 | K83: REHRIG PACIFIC COMPANY IN | M83: Non-Container Audit | N83: 2022-09-20 | O83: 2022-09-20 | P83: 2188-22-0013-1 | Q83: 700 | R83: 14050 | S83: 26959.46 | T83: 14056 | U83: 4814.19 | V83: 22145.27 | W83: 3851.35 | X83: 54260 | Y83: 320.95 | Z83: P | AB83: 50266895 | AD83: Internal | AE83: A | AF83: SL | AH83: WCNX | AI83: 0 | AJ83: 0 | AK83: 0 | AL83: Garbage Carts | AM83: 9 | AN83: 2022 | AO83: 2029 | AP83: 2029.75 | AQ83: 320.9459524 | AR83: 3851.351429 | AS83: 3851.351429 | AT83: 1283.78381 | AU83: 5135.135238 | AV83: 21824.32476 | AW83: No
B84: 2188 | C84: 289101 | D84: 240077 | E84: Cap Repair - Engine | F84: 0 | J84: 0 | M84: Non-Rolling Stock | N84: 2019-07-31 | O84: 2019-07-31 | P84: 2183-19-0027-1 | Q84: 300 | R84: 14040 | S84: 2748.77 | T84: 14046 | U84: 2748.77 | V84: 0 | W84: 0 | X84: 51260 | Y84: 0 | Z84: P | AD84: Internal | AE84: A | AF84: SL | AG84: 2022-08-31 | AH84: WCNX | AI84: 0 | AJ84: 2748.77 | AK84: 4067 | AL84: Garbage | AM84: 7 | AN84: 2019 | AO84: 2022 | AP84: 2022.583333 | AQ84: 76.35472222 | AR84: 916.2566667 | AS84: 0 | AT84: 2748.77 | AU84: 2748.77 | AV84: 0 | AW84: No
B85: 2188 | C85: 289100 | D85: 240077 | E85: Truck 4068 Engine Replacement | J85: 0 | K85: TEC EQUIPMENT INC | M85: Non-Rolling Stock | N85: 2019-06-05 | O85: 2019-06-05 | P85: 2183-19-0027-1 | Q85: 300 | R85: 14040 | S85: 35401.68 | T85: 14046 | U85: 35401.68 | V85: 0 | W85: 0 | X85: 51260 | Y85: 0 | Z85: P | AB85: 5002850KS | AD85: Internal | AE85: A | AF85: SL | AG85: 2022-08-31 | AH85: WCNX | AI85: 0 | AJ85: 35401.68 | AK85: 4067 | AL85: Garbage | AM85: 6 | AN85: 2019 | AO85: 2022 | AP85: 2022.5 | AQ85: 983.38 | AR85: 11800.56 | AS85: 0 | AT85: 35401.68 | AU85: 35401.68 | AV85: 0 | AW85: No
B86: 2188 | C86: 289099 | D86: 240077 | E86: Install AA Welding Auto Tarper | J86: 0 | K86: SOLID WASTE SYSTEMS INC | M86: Non-Rolling Stock | N86: 2013-11-12 | O86: 2013-11-12 | P86: 2183-13-0008-4 | Q86: 300 | R86: 14040 | S86: 8837.86 | T86: 14046 | U86: 8837.86 | V86: 0 | W86: 0 | X86: 51260 | Y86: 0 | Z86: P | AB86: 127589 | AD86: Internal | AE86: A | AF86: SL | AG86: 2022-08-31 | AH86: WCNX | AI86: 0 | AJ86: 8837.86 | AK86: 4067 | AL86: Garbage | AM86: 11 | AN86: 2013 | AO86: 2016 | AP86: 2016.916667 | AQ86: 245.4961111 | AR86: 2945.953333 | AS86: 0 | AT86: 8837.86 | AU86: 8837.86 | AV86: 0 | AW86: No
B87: 2188 | C87: 289098 | D87: 240077 | E87: Autogreaser for Truck 4067 | F87: 0 | J87: 0 | M87: Non-Rolling Stock | N87: 2009-01-01 | O87: 2009-01-01 | P87: 2180-8-0011-1 | Q87: 300 | R87: 14040 | S87: 3895.03 | T87: 14046 | U87: 3895.03 | V87: 0 | W87: 0 | X87: 51260 | Y87: 0 | Z87: P | AB87: 024/40006518 | AD87: Internal | AE87: A | AF87: SL | AG87: 2022-08-31 | AH87: WCNX | AI87: 0 | AJ87: 3895.03 | AK87: 4067 | AL87: Garbage | AM87: 1 | AN87: 2009 | AO87: 2012 | AP87: 2012.083333 | AQ87: 108.1952778 | AR87: 1298.343333 | AS87: 0 | AT87: 3895.03 | AU87: 3895.03 | AV87: 0 | AW87: No
B88: 2188 | C88: 289097 | D88: P | E88: 2009 Type H Drop R/O Unit# 4068 | F88: 0 | H88: 4V5M99EH59N277270 | I88: C70186S | J88: 2009 | K88: Volvo | L88: Helm | M88: R/O Truck | N88: 2008-11-03 | O88: 2008-11-03 | Q88: 1000 | R88: 14040 | S88: 165486.5 | T88: 14046 | U88: 165486.5 | V88: 0 | W88: 0 | X88: 51260 | Y88: 0 | Z88: A | AA88: LeMay Enterprises | AC88: 4068 | AD88: Internal | AE88: A | AF88: SL | AG88: 2022-08-31 | AH88: WCNX | AI88: 0 | AJ88: 165486.5 | AK88: 4068 | AL88: Garbage | AM88: 11 | AN88: 2008 | AO88: 2018 | AP88: 2018.916667 | AQ88: 1379.054167 | AR88: 16548.65 | AS88: 0 | AT88: 165486.5 | AU88: 165486.5 | AV88: 0 | AW88: No
B89: 2188 | C89: 288039 | D89: P | E89: 2 Yd REL Metal Containers | F89: 15 | J89: 0 | K89: CAPITAL INDUSTRIES INC | M89: 2 YD REL Container | N89: 2022-08-19 | O89: 2022-08-19 | P89: 2188-22-0009-1 | Q89: 1200 | R89: 14050 | S89: 14525.85 | T89: 14056 | U89: 1613.99 | V89: 12911.86 | W89: 1210.49 | X89: 54260 | Y89: 100.87 | Z89: P | AB89: 174639 | AD89: Internal | AE89: A | AF89: SL | AH89: WCNX | AI89: 0 | AJ89: 0 | AK89: 0 | AL89: Garbage Containers | AM89: 8 | AN89: 2022 | AO89: 2034 | AP89: 2034.666667 | AQ89: 100.8739583 | AR89: 1210.4875 | AS89: 1210.4875 | AT89: 504.3697917 | AU89: 1714.857292 | AV89: 12810.99271 | AW89: No
B90: 2188 | C90: 288038 | D90: P | E90: 2 Yd REL Metal Containers | F90: 15 | J90: 0 | K90: CAPITAL INDUSTRIES INC | M90: 2 YD REL Container | N90: 2022-08-19 | O90: 2022-08-19 | P90: 2188-22-0009-1 | Q90: 1200 | R90: 14050 | S90: 14525.85 | T90: 14056 | U90: 1613.99 | V90: 12911.86 | W90: 1210.49 | X90: 54260 | Y90: 100.87 | Z90: P | AB90: 174645 | AD90: Internal | AE90: A | AF90: SL | AH90: WCNX | AI90: 0 | AJ90: 0 | AK90: 0 | AL90: Garbage Containers | AM90: 8 | AN90: 2022 | AO90: 2034 | AP90: 2034.666667 | AQ90: 100.8739583 | AR90: 1210.4875 | AS90: 1210.4875 | AT90: 504.3697917 | AU90: 1714.857292 | AV90: 12810.99271 | AW90: No
B91: 2188 | C91: 287248 | D91: 290432 | E91: DriveCam | J91: 0 | K91: Lytx | M91: Non-Rolling Stock | N91: 2022-08-10 | O91: 2022-08-10 | P91: 2188-22-0001-1 | Q91: 500 | R91: 14040 | S91: 602.7 | T91: 14046 | U91: 170.76 | V91: 431.94 | W91: 120.53 | X91: 51260 | Y91: 10.04 | Z91: P | AB91: 5524396 | AD91: Internal | AE91: A | AF91: SL | AH91: WCNX | AI91: 0 | AJ91: 0 | AK91: 4096 | AL91: Garbage | AM91: 8 | AN91: 2022 | AO91: 2027 | AP91: 2027.666667 | AQ91: 10.045 | AR91: 120.54 | AS91: 120.54 | AT91: 50.225 | AU91: 170.765 | AV91: 431.935 | AW91: No
B92: 2188 | C92: 285934 | D92: P | E92: 6 Yd FEL Metal Containers | F92: 8 | J92: 0 | K92: CAPITAL INDUSTRIES INC | M92: 6 YD FEL Container | N92: 2022-06-29 | O92: 2022-06-29 | P92: 2188-22-0009-1 | Q92: 1200 | R92: 14050 | S92: 16403.12 | T92: 14056 | U92: 2050.39 | V92: 14352.73 | W92: 1366.93 | X92: 54260 | Y92: 113.91 | Z92: P | AB92: 173813 | AD92: Internal | AE92: A | AF92: SL | AH92: WCNX | AI92: 0 | AJ92: 0 | AK92: 0 | AL92: Garbage Containers | AM92: 6 | AN92: 2022 | AO92: 2034 | AP92: 2034.5 | AQ92: 113.9105556 | AR92: 1366.926667 | AS92: 1366.926667 | AT92: 797.3738889 | AU92: 2164.300556 | AV92: 14238.81944 | AW92: No
B93: 2188 | C93: 285933 | D93: P | E93: 6 Yd FEL Metal Containers | F93: 8 | J93: 0 | K93: CAPITAL INDUSTRIES INC | M93: 6 YD FEL Container | N93: 2022-06-30 | O93: 2022-06-30 | P93: 2188-22-0009-1 | Q93: 1200 | R93: 14050 | S93: 16403.12 | T93: 14056 | U93: 2050.39 | V93: 14352.73 | W93: 1366.93 | X93: 54260 | Y93: 113.91 | Z93: P | AB93: 173815 | AD93: Internal | AE93: A | AF93: SL | AH93: WCNX | AI93: 0 | AJ93: 0 | AK93: 0 | AL93: Garbage Containers | AM93: 6 | AN93: 2022 | AO93: 2034 | AP93: 2034.5 | AQ93: 113.9105556 | AR93: 1366.926667 | AS93: 1366.926667 | AT93: 797.3738889 | AU93: 2164.300556 | AV93: 14238.81944 | AW93: No
B94: 2188 | C94: 285932 | D94: P | E94: 6 Yd FEL Metal Containers | F94: 7 | J94: 0 | K94: CAPITAL INDUSTRIES INC | M94: 6 YD FEL Container | N94: 2022-06-29 | O94: 2022-06-29 | P94: 2188-22-0009-1 | Q94: 1200 | R94: 14050 | S94: 14352.73 | T94: 14056 | U94: 1794.09 | V94: 12558.64 | W94: 1196.06 | X94: 54260 | Y94: 99.67 | Z94: P | AB94: 173814 | AD94: Internal | AE94: A | AF94: SL | AH94: WCNX | AI94: 0 | AJ94: 0 | AK94: 0 | AL94: Garbage Containers | AM94: 6 | AN94: 2022 | AO94: 2034 | AP94: 2034.5 | AQ94: 99.67173611 | AR94: 1196.060833 | AS94: 1196.060833 | AT94: 697.7021528 | AU94: 1893.762986 | AV94: 12458.96701 | AW94: No
B95: 2188 | C95: 285929 | D95: P | E95: 6 Yd FEL Metal Containers | F95: 7 | J95: 0 | K95: CAPITAL INDUSTRIES INC | M95: 6 YD FEL Container | N95: 2022-06-30 | O95: 2022-06-30 | P95: 2188-22-0009-1 | Q95: 1200 | R95: 14050 | S95: 14352.73 | T95: 14056 | U95: 1794.09 | V95: 12558.64 | W95: 1196.06 | X95: 54260 | Y95: 99.67 | Z95: P | AB95: 173810 | AD95: Internal | AE95: A | AF95: SL | AH95: WCNX | AI95: 0 | AJ95: 0 | AK95: 0 | AL95: Garbage Containers | AM95: 6 | AN95: 2022 | AO95: 2034 | AP95: 2034.5 | AQ95: 99.67173611 | AR95: 1196.060833 | AS95: 1196.060833 | AT95: 697.7021528 | AU95: 1893.762986 | AV95: 12458.96701 | AW95: No
B96: 2188 | C96: 285294 | D96: P | E96: 95 Gallon Plastic MSW Totes | F96: 351 | J96: 0 | K96: REHRIG PACIFIC COMPANY IN | M96: Non-Container Audit | N96: 2022-07-18 | O96: 2022-07-18 | P96: 2188-22-0011-1 | Q96: 700 | R96: 14050 | S96: 23371.78 | T96: 14056 | U96: 4730.01 | V96: 18641.77 | W96: 3338.83 | X96: 54260 | Y96: 278.24 | Z96: P | AB96: 50254233 | AD96: Internal | AE96: A | AF96: SL | AH96: WCNX | AI96: 0 | AJ96: 0 | AK96: 0 | AL96: Garbage Carts | AM96: 7 | AN96: 2022 | AO96: 2029 | AP96: 2029.583333 | AQ96: 278.2354762 | AR96: 3338.825714 | AS96: 3338.825714 | AT96: 1669.412857 | AU96: 5008.238571 | AV96: 18363.54143 | AW96: No
B97: 2188 | C97: 285293 | D97: P | E97: 65 Gallon Plastic MSW Totes | F97: 468 | J97: 0 | K97: REHRIG PACIFIC COMPANY IN | M97: Non-Container Audit | N97: 2022-07-18 | O97: 2022-07-18 | P97: 2188-22-0011-1 | Q97: 700 | R97: 14050 | S97: 28144.38 | T97: 14056 | U97: 5695.89 | V97: 22448.49 | W97: 4020.63 | X97: 54260 | Y97: 335.05 | Z97: P | AB97: 50254233 | AD97: Internal | AE97: A | AF97: SL | AH97: WCNX | AI97: 0 | AJ97: 0 | AK97: 0 | AL97: Garbage Carts | AM97: 7 | AN97: 2022 | AO97: 2029 | AP97: 2029.583333 | AQ97: 335.0521429 | AR97: 4020.625714 | AS97: 4020.625714 | AT97: 2010.312857 | AU97: 6030.938571 | AV97: 22113.44143 | AW97: No
B98: 2188 | C98: 285279 | D98: P | E98: 1.5 Yd REL Metal Containers | F98: 30 | J98: 0 | K98: CAPITAL INDUSTRIES INC | M98: 1.5 YD REL Container | N98: 2022-07-25 | O98: 2022-07-25 | P98: 2188-22-0009-1 | Q98: 1200 | R98: 14050 | S98: 28077.9 | T98: 14056 | U98: 3314.76 | V98: 24763.14 | W98: 2339.83 | X98: 54260 | Y98: 194.99 | Z98: P | AB98: 174165 | AD98: Internal | AE98: A | AF98: SL | AH98: WCNX | AI98: 0 | AJ98: 0 | AK98: 0 | AL98: Garbage Containers | AM98: 7 | AN98: 2022 | AO98: 2034 | AP98: 2034.583333 | AQ98: 194.9854167 | AR98: 2339.825 | AS98: 2339.825 | AT98: 1169.9125 | AU98: 3509.7375 | AV98: 24568.1625 | AW98: No
B99: 2188 | C99: 283447 | D99: 277225 | E99: Truck 3721 Decals | J99: 0 | K99: Larsen Sign Co. | M99: Non-Rolling Stock | N99: 2022-04-22 | O99: 2022-04-22 | P99: 2188-22-0004-1 | Q99: 1000 | R99: 14040 | S99: 984.62 | T99: 14046 | U99: 164.08 | V99: 820.54 | W99: 98.45 | X99: 51260 | Y99: 8.2 | Z99: P | AB99: 30372 | AD99: Internal | AE99: A | AF99: SL | AH99: WCNX | AI99: 0 | AJ99: 0 | AK99: 3721 | AL99: Garbage | AM99: 4 | AN99: 2022 | AO99: 2032 | AP99: 2032.333333 | AQ99: 8.205166667 | AR99: 98.462 | AS99: 98.462 | AT99: 73.8465 | AU99: 172.3085 | AV99: 812.3115 | AW99: No
B100: 2188 | C100: 283446 | D100: 277225 | E100: Truck 3721 License | J100: 0 | K100: WA DOL | M100: Non-Rolling Stock | N100: 2022-04-14 | O100: 2022-04-14 | P100: 2188-22-0004-1 | Q100: 1000 | R100: 14040 | S100: 576.29 | T100: 14046 | U100: 100.85 | V100: 475.44 | W100: 57.63 | X100: 51260 | Y100: 4.8 | Z100: P | AB100: 144285604 | AD100: Internal | AE100: A | AF100: SL | AH100: WCNX | AI100: 0 | AJ100: 0 | AK100: 3721 | AL100: Garbage | AM100: 4 | AN100: 2022 | AO100: 2032 | AP100: 2032.333333 | AQ100: 4.802416667 | AR100: 57.629 | AS100: 57.629 | AT100: 43.22175 | AU100: 100.85075 | AV100: 475.43925 | AW100: No
B101: 2188 | C101: 283420 | D101: P | E101: 53' Three Axle Van Trailer | F101: 0 | H101: 1JJV533U4ML158019 | J101: 1991 | K101: Wabi Van | L101: Other | M101: Trailer | N101: 2010-12-01 | O101: 2010-12-01 | P101: 2170-10-0006-1 | Q101: 300 | R101: 14040 | S101: 5902.2 | T101: 14046 | U101: 5902.2 | V101: 0 | W101: 0 | X101: 51260 | Y101: 0 | Z101: P | AB101: October 20 2010 | AC101: 9138 | AD101: Internal | AE101: A | AF101: SL | AG101: 2022-05-31 | AH101: WCNX | AI101: 0 | AJ101: 5902.2 | AK101: 0 | AL101: Service Equipment | AM101: 12 | AN101: 2010 | AO101: 2013 | AP101: 2014 | AQ101: 163.95 | AR101: 1967.4 | AS101: 0 | AT101: 5902.2 | AU101: 5902.2 | AV101: 0 | AW101: No
B102: 2188 | C102: 283419 | D102: P | E102: 53' Three Axle Van Trailer | F102: 0 | H102: 1JJV533U8ML158007 | J102: 1991 | K102: Wabi Van | L102: Other | M102: Trailer | N102: 2010-12-01 | O102: 2010-12-01 | P102: 2170-10-0006-1 | Q102: 300 | R102: 14040 | S102: 5902.2 | T102: 14046 | U102: 5902.2 | V102: 0 | W102: 0 | X102: 51260 | Y102: 0 | Z102: P | AB102: October 20 2010 | AC102: 9126 | AD102: Internal | AE102: A | AF102: SL | AG102: 2022-05-31 | AH102: WCNX | AI102: 0 | AJ102: 5902.2 | AK102: 0 | AL102: Service Equipment | AM102: 12 | AN102: 2010 | AO102: 2013 | AP102: 2014 | AQ102: 163.95 | AR102: 1967.4 | AS102: 0 | AT102: 5902.2 | AU102: 5902.2 | AV102: 0 | AW102: No
B103: 2188 | C103: 282656 | D103: P | E103: 2 Yd REL Metal Containers | F103: 30 | J103: 0 | K103: CAPITAL INDUSTRIES INC | M103: 2 YD REL Container | N103: 2022-05-31 | O103: 2022-05-31 | P103: 2188-22-0009-1 | Q103: 1200 | R103: 14050 | S103: 28564.8 | T103: 14056 | U103: 3768.97 | V103: 24795.83 | W103: 2380.4 | X103: 54260 | Y103: 198.37 | Z103: P | AB103: 173157 | AD103: Internal | AE103: A | AF103: SL | AH103: WCNX | AI103: 0 | AJ103: 0 | AK103: 0 | AL103: Garbage Containers | AM103: 5 | AN103: 2022 | AO103: 2034 | AP103: 2034.416667 | AQ103: 198.3666667 | AR103: 2380.4 | AS103: 2380.4 | AT103: 1586.933333 | AU103: 3967.333333 | AV103: 24597.46667 | AW103: No
B104: 2188 | C104: 282648 | D104: P | E104: 1 Yd REL Metal Containers | F104: 30 | J104: 0 | K104: CAPITAL INDUSTRIES INC | M104: 1 YD REL Container | N104: 2022-05-31 | O104: 2022-05-31 | P104: 2188-22-0009-1 | Q104: 1200 | R104: 14050 | S104: 27591 | T104: 14056 | U104: 3640.48 | V104: 23950.52 | W104: 2299.25 | X104: 54260 | Y104: 191.6 | Z104: P | AB104: 173120 | AD104: Internal | AE104: A | AF104: SL | AH104: WCNX | AI104: 0 | AJ104: 0 | AK104: 0 | AL104: Garbage Containers | AM104: 5 | AN104: 2022 | AO104: 2034 | AP104: 2034.416667 | AQ104: 191.6041667 | AR104: 2299.25 | AS104: 2299.25 | AT104: 1532.833333 | AU104: 3832.083333 | AV104: 23758.91667 | AW104: No
B105: 2188 | C105: 280272 | D105: P | E105: 2 YD Containers | F105: 24 | J105: 0 | M105: 2 YD FEL/REL/SL Metal | N105: 2008-11-03 | O105: 2008-11-03 | Q105: 700 | R105: 14050 | S105: 2210.4 | T105: 14056 | U105: 2210.4 | V105: 0 | W105: 0 | X105: 54260 | Y105: 0 | Z105: A | AA105: LeMay Enterprises | AD105: Internal | AE105: A | AF105: SL | AG105: 2022-04-30 | AH105: WCNX | AI105: 0 | AJ105: 2210.4 | AK105: 0 | AL105: Garbage Containers | AM105: 11 | AN105: 2008 | AO105: 2015 | AP105: 2015.916667 | AQ105: 26.31428571 | AR105: 315.7714286 | AS105: 0 | AT105: 2210.4 | AU105: 2210.4 | AV105: 0 | AW105: No
B106: 2188 | C106: 279877 | D106: P | E106: 6 YD Commercial Customers ($100 each) | F106: 51 | J106: 0 | N106: 2008-11-03 | O106: 2008-11-03 | Q106: 700 | R106: 14050 | S106: 4441.31 | T106: 14056 | U106: 4441.31 | V106: 0 | W106: 0 | X106: 54260 | Y106: 0 | Z106: A | AA106: LeMay Enterprises | AD106: Internal | AE106: A | AF106: SL | AG106: 2022-04-30 | AH106: WCNX | AI106: 0 | AJ106: 4441.31 | AK106: 0 | AL106: Garbage Containers | AM106: 11 | AN106: 2008 | AO106: 2015 | AP106: 2015.916667 | AQ106: 52.8727381 | AR106: 634.4728571 | AS106: 0 | AT106: 4441.31 | AU106: 4441.31 | AV106: 0 | AW106: No
B107: 2188 | C107: 279859 | D107: P | E107: 1 Yard Commerical Containers | F107: 12 | J107: 0 | M107: 1 YD FEL/REL/SL Metal | N107: 2008-11-03 | O107: 2008-11-03 | Q107: 1200 | R107: 14050 | S107: 868.68 | T107: 14056 | U107: 868.68 | V107: 0 | W107: 0 | X107: 54260 | Y107: 0 | Z107: A | AA107: LeMay Enterprises | AD107: Internal | AE107: A | AF107: SL | AG107: 2022-04-30 | AH107: WCNX | AI107: 2 | AJ107: 868.68 | AK107: 0 | AL107: Garbage Containers | AM107: 11 | AN107: 2008 | AO107: 2020 | AP107: 2020.916667 | AQ107: 6.0325 | AR107: 72.39 | AS107: 0 | AT107: 868.68 | AU107: 868.68 | AV107: 0 | AW107: No
B108: 2188 | C108: 279850 | D108: P | E108: 40 Yard R/O Containers | F108: 1 | J108: 0 | M108: 40 YD RO Box | N108: 2008-11-03 | O108: 2008-11-03 | Q108: 700 | R108: 14050 | S108: 10968.75 | T108: 14056 | U108: 10968.75 | V108: 0 | W108: 0 | X108: 54260 | Y108: 0 | Z108: A | AA108: LeMay Enterprises | AD108: Internal | AE108: A | AF108: SL | AG108: 2022-04-30 | AH108: WCNX | AI108: 0 | AJ108: 10968.75 | AK108: 0 | AL108: Drop Boxes | AM108: 11 | AN108: 2008 | AO108: 2015 | AP108: 2015.916667 | AQ108: 130.5803571 | AR108: 1566.964286 | AS108: 0 | AT108: 10968.75 | AU108: 10968.75 | AV108: 0 | AW108: No
B109: 2188 | C109: 279806 | D109: P | E109: 1.5 Yard REL Containers | F109: 4 | J109: 0 | M109: 1.5 YD FEL/REL/SL Metal | N109: 2001-11-01 | O109: 2001-11-01 | Q109: 600 | R109: 14050 | S109: 98.71 | T109: 14056 | U109: 98.71 | V109: 0 | W109: 0 | X109: 54260 | Y109: 0 | Z109: A | AA109: Island | AD109: Internal | AE109: A | AF109: SL | AG109: 2022-04-30 | AH109: WCNX | AI109: 2 | AJ109: 98.71 | AK109: 0 | AL109: Garbage Containers | AM109: 11 | AN109: 2001 | AO109: 2007 | AP109: 2007.916667 | AQ109: 1.370972222 | AR109: 16.45166667 | AS109: 0 | AT109: 98.71 | AU109: 98.71 | AV109: 0 | AW109: No
B110: 2188 | C110: 279340 | D110: P | E110: Open Top 20 YD Roll Off Container | F110: 1 | J110: 0 | K110: Enterprise Sales, Inc | M110: 20 YD RO Box | N110: 2004-10-29 | O110: 2004-10-29 | P110: 42149005 | Q110: 1200 | R110: 14050 | S110: 3561.66 | T110: 14056 | U110: 3561.66 | V110: 0 | W110: 0 | X110: 54260 | Y110: 0 | Z110: P | AA110: 0 | AB110: 2270 | AD110: Internal | AE110: A | AF110: SL | AG110: 2022-04-30 | AH110: WCNX | AI110: 0 | AJ110: 3561.66 | AK110: 0 | AL110: Drop Boxes | AM110: 10 | AN110: 2004 | AO110: 2016 | AP110: 2016.833333 | AQ110: 24.73375 | AR110: 296.805 | AS110: 0 | AT110: 3561.66 | AU110: 3561.66 | AV110: 0 | AW110: No
B111: 2188 | C111: 279339 | D111: P | E111: 20 Yd Containers | F111: 3 | J111: 0 | K111: Cascon | M111: 20 YD RO Box | N111: 2002-01-04 | O111: 2002-01-04 | P111: 02-2149-004 | Q111: 1200 | R111: 14050 | S111: 7623.75 | T111: 14056 | U111: 7623.75 | V111: 0 | W111: 0 | X111: 54260 | Y111: 0 | Z111: P | AB111: 2202006 | AD111: Internal | AE111: A | AF111: SL | AG111: 2022-04-30 | AH111: WCNX | AI111: 0 | AJ111: 7623.75 | AK111: 0 | AL111: Drop Boxes | AM111: 1 | AN111: 2002 | AO111: 2014 | AP111: 2014.083333 | AQ111: 52.94270833 | AR111: 635.3125 | AS111: 0 | AT111: 7623.75 | AU111: 7623.75 | AV111: 0 | AW111: No
B112: 2188 | C112: 279338 | D112: P | E112: 20 YD Roll Off Containers | F112: 2 | J112: 0 | M112: 20 YD RO Box | N112: 2001-07-01 | O112: 2001-07-01 | Q112: 600 | R112: 14050 | S112: 941.2 | T112: 14056 | U112: 941.2 | V112: 0 | W112: 0 | X112: 54260 | Y112: 0 | Z112: A | AA112: Mason County | AD112: Internal | AE112: A | AF112: SL | AG112: 2022-04-30 | AH112: WCNX | AI112: 2 | AJ112: 941.2 | AK112: 0 | AL112: Drop Boxes | AM112: 7 | AN112: 2001 | AO112: 2007 | AP112: 2007.583333 | AQ112: 13.07222222 | AR112: 156.8666667 | AS112: 0 | AT112: 941.2 | AU112: 941.2 | AV112: 0 | AW112: No
B113: 2188 | C113: 277225 | D113: P | E113: 2022 Peterbilt ASL Truck | H113: 3BPDLK0X1NF113160 | J113: 2022 | K113: PETERBILT | L113: labrie | M113: Automated Sideload | N113: 2022-04-14 | O113: 2022-04-14 | P113: 2188-22-0004-1 | Q113: 1000 | R113: 14040 | S113: 391578.28 | T113: 14046 | U113: 68526.18 | V113: 323052.1 | W113: 39157.82 | X113: 51260 | Y113: 3263.15 | Z113: P | AC113: 3721 | AD113: Internal | AE113: A | AF113: SL | AH113: WCNX | AI113: 0 | AJ113: 0 | AK113: 3721 | AL113: Garbage | AM113: 4 | AN113: 2022 | AO113: 2032 | AP113: 2032.333333 | AQ113: 3263.152333 | AR113: 39157.828 | AS113: 39157.828 | AT113: 29368.371 | AU113: 68526.199 | AV113: 323052.081 | AW113: No
B114: 2188 | C114: 276524 | D114: 276523 | E114: solid state drive - 500 GB - SATA6Gb | F114: 1 | J114: 0 | K114: CDW DIR #PO 2188-22-0 | N114: 2022-03-03 | O114: 2022-03-03 | P114: 2188-22-0008-1 | Q114: 300 | R114: 14110 | S114: 101.91 | T114: 14116 | U114: 62.26 | V114: 39.65 | W114: 33.96 | X114: 70260 | Y114: 2.83 | Z114: P | AB114: T093574 | AD114: Internal | AE114: A | AF114: SL | AH114: WCNX | AI114: 0 | AJ114: 0 | AK114: 0 | AL114: Office Equipment | AM114: 3 | AN114: 2022 | AO114: 2025 | AP114: 2025.25 | AQ114: 2.830833333 | AR114: 33.97 | AS114: 33.97 | AT114: 28.30833333 | AU114: 62.27833333 | AV114: 39.63166667 | AW114: No
B115: 2188 | C115: 276523 | D115: P | E115: HP ProBook 450 Serial # : 5CD145NFF6 | F115: 1 | J115: 0 | K115: CDW DIR #PO 2188-22-0 | N115: 2022-03-03 | O115: 2022-03-03 | P115: 2188-22-0008-1 | Q115: 300 | R115: 14110 | S115: 1070.72 | T115: 14116 | U115: 654.33 | V115: 416.39 | W115: 356.91 | X115: 70260 | Y115: 29.74 | Z115: P | AB115: T005513 | AD115: Internal | AE115: A | AF115: SL | AH115: WCNX | AI115: 0 | AJ115: 0 | AK115: 0 | AL115: Office Equipment | AM115: 3 | AN115: 2022 | AO115: 2025 | AP115: 2025.25 | AQ115: 29.74222222 | AR115: 356.9066667 | AS115: 356.9066667 | AT115: 297.4222222 | AU115: 654.3288889 | AV115: 416.3911111 | AW115: No
B116: 2188 | C116: 274962 | D116: P | E116: 95 Gallon Plastic Yardwaste Totes | F116: 351 | J116: 0 | K116: REHRIG PACIFIC COMPANY IN | M116: Non-Container Audit | N116: 2022-02-28 | O116: 2022-02-28 | P116: 2188-22-0007-1 | Q116: 700 | R116: 14050 | S116: 23227.46 | T116: 14056 | U116: 6083.38 | V116: 17144.08 | W116: 3318.21 | X116: 54260 | Y116: 276.52 | Z116: P | AB116: 50225494 | AD116: Internal | AE116: A | AF116: SL | AH116: WCNX | AI116: 0 | AJ116: 0 | AK116: 0 | AL116: Garbage Carts | AM116: 2 | AN116: 2022 | AO116: 2029 | AP116: 2029.166667 | AQ116: 276.517381 | AR116: 3318.208571 | AS116: 3318.208571 | AT116: 3041.69119 | AU116: 6359.899762 | AV116: 16867.56024 | AW116: No
B117: 2188 | C117: 274961 | D117: P | E117: 95 Gallon Plastic Recycle Totes | F117: 702 | J117: 0 | K117: REHRIG PACIFIC COMPANY IN | M117: Non-Container Audit | N117: 2022-03-01 | O117: 2022-03-01 | P117: 2188-22-0007-1 | Q117: 700 | R117: 14050 | S117: 47958.87 | T117: 14056 | U117: 12560.66 | V117: 35398.21 | W117: 6851.27 | X117: 54260 | Y117: 570.94 | Z117: P | AB117: 50226718 | AD117: Internal | AE117: A | AF117: SL | AH117: WCNX | AI117: 0 | AJ117: 0 | AK117: 0 | AL117: Garbage Carts | AM117: 3 | AN117: 2022 | AO117: 2029 | AP117: 2029.25 | AQ117: 570.9389286 | AR117: 6851.267143 | AS117: 6851.267143 | AT117: 5709.389286 | AU117: 12560.65643 | AV117: 35398.21357 | AW117: No
B118: 2188 | C118: 274960 | D118: P | E118: 95 Gallon Plastic MSW Totes | F118: 351 | J118: 0 | K118: REHRIG PACIFIC COMPANY IN | M118: Non-Container Audit | N118: 2022-02-28 | O118: 2022-02-28 | P118: 2188-22-0007-1 | Q118: 700 | R118: 14050 | S118: 23227.47 | T118: 14056 | U118: 6083.39 | V118: 17144.08 | W118: 3318.21 | X118: 54260 | Y118: 276.52 | Z118: P | AB118: 50225494 | AD118: Internal | AE118: A | AF118: SL | AH118: WCNX | AI118: 0 | AJ118: 0 | AK118: 0 | AL118: Garbage Carts | AM118: 2 | AN118: 2022 | AO118: 2029 | AP118: 2029.166667 | AQ118: 276.5175 | AR118: 3318.21 | AS118: 3318.21 | AT118: 3041.6925 | AU118: 6359.9025 | AV118: 16867.5675 | AW118: No
B119: 2188 | C119: 274389 | D119: P | E119: 65 Gallon Plastic MSW Totes | F119: 936 | J119: 0 | K119: REHRIG PACIFIC COMPANY IN | M119: Non-Container Audit | N119: 2022-02-18 | O119: 2022-02-18 | P119: 2188-22-0007-1 | Q119: 700 | R119: 14050 | S119: 54334.14 | T119: 14056 | U119: 14230.37 | V119: 40103.77 | W119: 7762.02 | X119: 54260 | Y119: 646.83 | Z119: P | AB119: 50224373 | AD119: Internal | AE119: A | AF119: SL | AH119: WCNX | AI119: 0 | AJ119: 0 | AK119: 0 | AL119: Garbage Carts | AM119: 2 | AN119: 2022 | AO119: 2029 | AP119: 2029.166667 | AQ119: 646.835 | AR119: 7762.02 | AS119: 7762.02 | AT119: 7115.185 | AU119: 14877.205 | AV119: 39456.935 | AW119: No
B120: 2188 | C120: 273626 | D120: P | E120: Geo Tablets | F120: 75 | J120: 0 | N120: 2022-01-31 | O120: 2022-01-31 | P120: 1010-21-0060 | Q120: 100 | R120: 14110 | S120: 9511.11 | T120: 14116 | U120: 9511.11 | V120: 0 | W120: 792.59 | X120: 70260 | Y120: 0 | Z120: P | AD120: Internal | AE120: A | AF120: SL | AH120: WCNX | AI120: 0 | AJ120: 0 | AK120: 0 | AL120: Garbage Carts | AM120: 1 | AN120: 2022 | AO120: 2023 | AP120: 2023.083333 | AQ120: 792.5925 | AR120: 9511.11 | AS120: 0 | AT120: 9511.11 | AU120: 9511.11 | AV120: 0 | AW120: No
B121: 2188 | C121: 270757 | D121: P | E121: 3rd Eye Camera - installs | J121: 0 | N121: 2021-12-31 | O121: 2021-12-31 | P121: 1010-21-0039 | Q121: 500 | R121: 14070 | S121: 4436.2 | T121: 14076 | U121: 1774.48 | V121: 2661.72 | W121: 887.24 | X121: 51260 | Y121: 73.94 | Z121: P | AD121: Internal | AE121: A | AF121: SL | AH121: WCNX | AI121: 0 | AJ121: 0 | AK121: 0 | AL121: Service Equipment | AM121: 12 | AN121: 2021 | AO121: 2026 | AP121: 2027 | AQ121: 73.93666667 | AR121: 887.24 | AS121: 887.24 | AT121: 961.1766667 | AU121: 1848.416667 | AV121: 2587.783333 | AW121: No
B122: 2188 | C122: 270740 | D122: P | E122: 3rd Eye Camera -Cables | J122: 0 | N122: 2021-12-31 | O122: 2021-12-31 | P122: 1010-21-0039 | Q122: 500 | R122: 14070 | S122: 42.21 | T122: 14076 | U122: 16.88 | V122: 25.33 | W122: 8.44 | X122: 51260 | Y122: 0.7 | Z122: P | AD122: Internal | AE122: A | AF122: SL | AH122: WCNX | AI122: 0 | AJ122: 0 | AK122: 0 | AL122: Service Equipment | AM122: 12 | AN122: 2021 | AO122: 2026 | AP122: 2027 | AQ122: 0.7035 | AR122: 8.442 | AS122: 8.442 | AT122: 9.1455 | AU122: 17.5875 | AV122: 24.6225 | AW122: No
B123: 2188 | C123: 270657 | D123: P | E123: 3rd Eye Camera - Credit | J123: 0 | N123: 2021-12-31 | O123: 2021-12-31 | P123: 1010-21-0039 | Q123: 500 | R123: 14070 | S123: -177.47 | T123: 14076 | U123: -70.98 | V123: -106.49 | W123: -35.49 | X123: 51260 | Y123: -2.96 | Z123: P | AD123: Internal | AE123: A | AF123: SL | AH123: WCNX | AI123: 0 | AJ123: 0 | AK123: 0 | AL123: Service Equipment | AM123: 12 | AN123: 2021 | AO123: 2026 | AP123: 2027 | AQ123: -2.957833333 | AR123: -35.494 | AS123: -35.494 | AT123: -38.45183333 | AU123: -73.94583333 | AV123: -103.5241667 | AW123: No
B124: 2188 | C124: 270656 | D124: P | E124: 3rd Eye Camera | F124: 6 | J124: 0 | N124: 2021-12-31 | O124: 2021-12-31 | P124: 1010-21-0039 | Q124: 500 | R124: 14070 | S124: 1628.64 | T124: 14076 | U124: 651.46 | V124: 977.18 | W124: 325.73 | X124: 51260 | Y124: 27.14 | Z124: P | AD124: Internal | AE124: A | AF124: SL | AH124: WCNX | AI124: 0 | AJ124: 0 | AK124: 0 | AL124: Service Equipment | AM124: 12 | AN124: 2021 | AO124: 2026 | AP124: 2027 | AQ124: 27.144 | AR124: 325.728 | AS124: 325.728 | AT124: 352.872 | AU124: 678.6 | AV124: 950.04 | AW124: No
B125: 2188 | C125: 270334 | D125: P | E125: 18 RouteTab Mounts for 2188 | J125: 0 | K125: PROCLIPUSA | N125: 2020-04-25 | O125: 2020-04-25 | P125: 1010-20-0033-2 | Q125: 300 | R125: 14110 | S125: 2851.18 | T125: 14116 | U125: 2851.18 | V125: 0 | W125: 316.8 | X125: 70260 | Y125: 0 | Z125: P | AB125: SI-1171635 | AD125: Internal | AE125: A | AF125: SL | AG125: 2021-11-30 | AH125: WCNX | AI125: 0 | AJ125: 1504.79 | AK125: 0 | AL125: Service Equipment | AM125: 4 | AN125: 2020 | AO125: 2023 | AP125: 2023.333333 | AQ125: 79.19944444 | AR125: 950.3933333 | AS125: 0 | AT125: 2613.581667 | AU125: 2851.18 | AV125: 0 | AW125: No
B126: 2188 | C126: 270333 | D126: P | E126: 17 RouteTab Mounts for 2188 | J126: 0 | K126: PROCLIPUSA | N126: 2020-04-25 | O126: 2020-04-25 | P126: 1010-20-0033-2 | Q126: 300 | R126: 14110 | S126: 2692.77 | T126: 14116 | U126: 2692.77 | V126: 0 | W126: 299.2 | X126: 70260 | Y126: 0 | Z126: P | AB126: SI-1171635 | AD126: Internal | AE126: A | AF126: SL | AG126: 2021-11-30 | AH126: WCNX | AI126: 0 | AJ126: 1421.18 | AK126: 0 | AL126: Service Equipment | AM126: 4 | AN126: 2020 | AO126: 2023 | AP126: 2023.333333 | AQ126: 74.79916667 | AR126: 897.59 | AS126: 0 | AT126: 2468.3725 | AU126: 2692.77 | AV126: 0 | AW126: No
B127: 2188 | C127: 270332 | D127: P | E127: 18 Samsung Active Pro Tablets for 2188 | J127: 0 | K127: COMPLETE TABLET SOLUTIONS | N127: 2020-04-15 | O127: 2020-04-15 | P127: 1010-20-0033-1 | Q127: 100 | R127: 14110 | S127: 12315.06 | T127: 14116 | U127: 12315.06 | V127: 0 | W127: 0 | X127: 70260 | Y127: 0 | Z127: P | AB127: 13279 | AD127: Internal | AE127: A | AF127: SL | AG127: 2021-11-30 | AH127: WCNX | AI127: 0 | AJ127: 12315.06 | AK127: 0 | AL127: Service Equipment | AM127: 4 | AN127: 2020 | AO127: 2021 | AP127: 2021.333333 | AQ127: 1026.255 | AR127: 12315.06 | AS127: 0 | AT127: 12315.06 | AU127: 12315.06 | AV127: 0 | AW127: No
B128: 2188 | C128: 270161 | D128: P | E128: 40Yd Metal RO Boxes | F128: 2 | J128: 0 | K128: CAPITAL INDUSTRIES INC | M128: 40 YD RO Box | N128: 2021-12-20 | O128: 2021-12-20 | P128: 2188-21-0022-1 | Q128: 1200 | R128: 14050 | S128: 17450 | T128: 14056 | U128: 2908.34 | V128: 14541.66 | W128: 1454.17 | X128: 54260 | Y128: 121.18 | Z128: P | AB128: 170424 | AD128: Internal | AE128: A | AF128: SL | AH128: WCNX | AI128: 0 | AJ128: 0 | AK128: 0 | AL128: Drop Boxes | AM128: 12 | AN128: 2021 | AO128: 2033 | AP128: 2034 | AQ128: 121.1805556 | AR128: 1454.166667 | AS128: 1454.166667 | AT128: 1575.347222 | AU128: 3029.513889 | AV128: 14420.48611 | AW128: No
B129: 2188 | C129: 270160 | D129: P | E129: 40Yd Metal RO Boxes | F129: 2 | J129: 0 | K129: CAPITAL INDUSTRIES INC | M129: 40 YD RO Box | N129: 2021-12-20 | O129: 2021-12-20 | P129: 2188-21-0022-1 | Q129: 1200 | R129: 14050 | S129: 17450 | T129: 14056 | U129: 2908.34 | V129: 14541.66 | W129: 1454.17 | X129: 54260 | Y129: 121.18 | Z129: P | AB129: 170423 | AD129: Internal | AE129: A | AF129: SL | AH129: WCNX | AI129: 0 | AJ129: 0 | AK129: 0 | AL129: Drop Boxes | AM129: 12 | AN129: 2021 | AO129: 2033 | AP129: 2034 | AQ129: 121.1805556 | AR129: 1454.166667 | AS129: 1454.166667 | AT129: 1575.347222 | AU129: 3029.513889 | AV129: 14420.48611 | AW129: No
B130: 2188 | C130: 270159 | D130: P | E130: 40Yd Metal RO Boxes | F130: 2 | J130: 0 | K130: CAPITAL INDUSTRIES INC | M130: 40 YD RO Box | N130: 2021-12-20 | O130: 2021-12-20 | P130: 2188-21-0022-1 | Q130: 1200 | R130: 14050 | S130: 17450 | T130: 14056 | U130: 2908.34 | V130: 14541.66 | W130: 1454.17 | X130: 54260 | Y130: 121.18 | Z130: P | AB130: 170421 | AD130: Internal | AE130: A | AF130: SL | AH130: WCNX | AI130: 0 | AJ130: 0 | AK130: 0 | AL130: Drop Boxes | AM130: 12 | AN130: 2021 | AO130: 2033 | AP130: 2034 | AQ130: 121.1805556 | AR130: 1454.166667 | AS130: 1454.166667 | AT130: 1575.347222 | AU130: 3029.513889 | AV130: 14420.48611 | AW130: No
B131: 2188 | C131: 270158 | D131: P | E131: 40Yd Metal RO Boxes | F131: 2 | J131: 0 | K131: CAPITAL INDUSTRIES INC | M131: 40 YD RO Box | N131: 2021-12-20 | O131: 2021-12-20 | P131: 2188-21-0022-1 | Q131: 1200 | R131: 14050 | S131: 17450 | T131: 14056 | U131: 2908.34 | V131: 14541.66 | W131: 1454.17 | X131: 54260 | Y131: 121.18 | Z131: P | AB131: 170419 | AD131: Internal | AE131: A | AF131: SL | AH131: WCNX | AI131: 0 | AJ131: 0 | AK131: 0 | AL131: Drop Boxes | AM131: 12 | AN131: 2021 | AO131: 2033 | AP131: 2034 | AQ131: 121.1805556 | AR131: 1454.166667 | AS131: 1454.166667 | AT131: 1575.347222 | AU131: 3029.513889 | AV131: 14420.48611 | AW131: No
B132: 2188 | C132: 270154 | D132: P | E132: 40 Yd Metal RO Boxes | F132: 2 | J132: 0 | K132: CAPITAL INDUSTRIES INC | M132: 40 YD RO Box | N132: 2021-12-20 | O132: 2021-12-20 | P132: 2188-21-0022-1 | Q132: 1200 | R132: 14050 | S132: 17450 | T132: 14056 | U132: 2908.34 | V132: 14541.66 | W132: 1454.17 | X132: 54260 | Y132: 121.18 | Z132: P | AB132: 170422 | AD132: Internal | AE132: A | AF132: SL | AH132: WCNX | AI132: 0 | AJ132: 0 | AK132: 0 | AL132: Drop Boxes | AM132: 12 | AN132: 2021 | AO132: 2033 | AP132: 2034 | AQ132: 121.1805556 | AR132: 1454.166667 | AS132: 1454.166667 | AT132: 1575.347222 | AU132: 3029.513889 | AV132: 14420.48611 | AW132: No
B133: 2188 | C133: 270135 | D133: P | E133: 2yd REL Metal Container | F133: 12 | J133: 0 | K133: CAPITAL INDUSTRIES INC | M133: 2 YD REL Container | N133: 2021-12-22 | O133: 2021-12-22 | P133: 2188-21-0024-1 | Q133: 1200 | R133: 14050 | S133: 11490.84 | T133: 14056 | U133: 1915.14 | V133: 9575.7 | W133: 957.57 | X133: 54260 | Y133: 79.8 | Z133: P | AB133: 170460 | AD133: Internal | AE133: A | AF133: SL | AH133: WCNX | AI133: 0 | AJ133: 0 | AK133: 0 | AL133: Garbage Containers | AM133: 12 | AN133: 2021 | AO133: 2033 | AP133: 2034 | AQ133: 79.7975 | AR133: 957.57 | AS133: 957.57 | AT133: 1037.3675 | AU133: 1994.9375 | AV133: 9495.9025 | AW133: No
B134: 2188 | C134: 270134 | D134: P | E134: 2yd REL Metal Container | F134: 13 | J134: 0 | K134: CAPITAL INDUSTRIES INC | M134: 2 YD REL Container | N134: 2021-12-22 | O134: 2021-12-22 | P134: 2188-21-0024-1 | Q134: 1200 | R134: 14050 | S134: 12448.41 | T134: 14056 | U134: 2074.74 | V134: 10373.67 | W134: 1037.37 | X134: 54260 | Y134: 86.45 | Z134: P | AB134: 170464 | AD134: Internal | AE134: A | AF134: SL | AH134: WCNX | AI134: 0 | AJ134: 0 | AK134: 0 | AL134: Garbage Containers | AM134: 12 | AN134: 2021 | AO134: 2033 | AP134: 2034 | AQ134: 86.44729167 | AR134: 1037.3675 | AS134: 1037.3675 | AT134: 1123.814792 | AU134: 2161.182292 | AV134: 10287.22771 | AW134: No
B135: 2188 | C135: 270127 | D135: P | E135: 20Yd Metal RO Boxes | F135: 3 | J135: 0 | K135: CAPITAL INDUSTRIES INC | M135: 20 YD RO Box | N135: 2021-12-20 | O135: 2021-12-20 | P135: 2188-21-0022-1 | Q135: 1200 | R135: 14050 | S135: 20670 | T135: 14056 | U135: 3445 | V135: 17225 | W135: 1722.5 | X135: 54260 | Y135: 143.54 | Z135: P | AB135: 169842 | AD135: Internal | AE135: A | AF135: SL | AH135: WCNX | AI135: 0 | AJ135: 0 | AK135: 0 | AL135: Drop Boxes | AM135: 12 | AN135: 2021 | AO135: 2033 | AP135: 2034 | AQ135: 143.5416667 | AR135: 1722.5 | AS135: 1722.5 | AT135: 1866.041667 | AU135: 3588.541667 | AV135: 17081.45833 | AW135: No
B136: 2188 | C136: 270126 | D136: P | E136: 20Yd Metal RO Boxes | F136: 3 | J136: 0 | K136: CAPITAL INDUSTRIES INC | M136: 20 YD RO Box | N136: 2021-12-20 | O136: 2021-12-20 | P136: 2188-21-0022-1 | Q136: 1200 | R136: 14050 | S136: 20670 | T136: 14056 | U136: 3445 | V136: 17225 | W136: 1722.5 | X136: 54260 | Y136: 143.54 | Z136: P | AB136: 169841 | AD136: Internal | AE136: A | AF136: SL | AH136: WCNX | AI136: 0 | AJ136: 0 | AK136: 0 | AL136: Drop Boxes | AM136: 12 | AN136: 2021 | AO136: 2033 | AP136: 2034 | AQ136: 143.5416667 | AR136: 1722.5 | AS136: 1722.5 | AT136: 1866.041667 | AU136: 3588.541667 | AV136: 17081.45833 | AW136: No
B137: 2188 | C137: 268649 | D137: P | E137: 1yd REL Metal Containers | F137: 6 | J137: 0 | K137: CAPITAL INDUSTRIES INC | M137: 1 YD REL Container | N137: 2021-12-20 | O137: 2021-12-20 | P137: 2188-21-0024-1 | Q137: 1200 | R137: 14050 | S137: 5420.82 | T137: 14056 | U137: 903.48 | V137: 4517.34 | W137: 451.74 | X137: 54260 | Y137: 37.64 | Z137: P | AB137: 170358 | AD137: Internal | AE137: A | AF137: SL | AH137: WCNX | AI137: 0 | AJ137: 0 | AK137: 0 | AL137: Garbage Containers | AM137: 12 | AN137: 2021 | AO137: 2033 | AP137: 2034 | AQ137: 37.64458333 | AR137: 451.735 | AS137: 451.735 | AT137: 489.3795833 | AU137: 941.1145833 | AV137: 4479.705417 | AW137: No
B138: 2188 | C138: 268648 | D138: P | E138: 1Yd Rel Metal Containers | F138: 12 | J138: 0 | K138: CAPITAL INDUSTRIES INC | M138: 1 YD REL Container | N138: 2021-12-20 | O138: 2021-12-20 | P138: 2188-21-0024-1 | Q138: 1200 | R138: 14050 | S138: 10841.64 | T138: 14056 | U138: 1806.94 | V138: 9034.7 | W138: 903.47 | X138: 54260 | Y138: 75.29 | Z138: P | AB138: 170357 | AD138: Internal | AE138: A | AF138: SL | AH138: WCNX | AI138: 0 | AJ138: 0 | AK138: 0 | AL138: Garbage Containers | AM138: 12 | AN138: 2021 | AO138: 2033 | AP138: 2034 | AQ138: 75.28916667 | AR138: 903.47 | AS138: 903.47 | AT138: 978.7591667 | AU138: 1882.229167 | AV138: 8959.410833 | AW138: No
B139: 2188 | C139: 268647 | D139: P | E139: 1Yd REL Metal Containers | F139: 12 | J139: 0 | K139: CAPITAL INDUSTRIES INC | M139: 1 YD REL Container | N139: 2021-12-20 | O139: 2021-12-20 | P139: 2188-21-0024-1 | Q139: 1200 | R139: 14050 | S139: 10841.64 | T139: 14056 | U139: 1806.94 | V139: 9034.7 | W139: 903.47 | X139: 54260 | Y139: 75.29 | Z139: P | AB139: 170348 | AD139: Internal | AE139: A | AF139: SL | AH139: WCNX | AI139: 0 | AJ139: 0 | AK139: 0 | AL139: Garbage Containers | AM139: 12 | AN139: 2021 | AO139: 2033 | AP139: 2034 | AQ139: 75.28916667 | AR139: 903.47 | AS139: 903.47 | AT139: 978.7591667 | AU139: 1882.229167 | AV139: 8959.410833 | AW139: No
B140: 2188 | C140: 266851 | D140: P | E140: 30yd RO Boxes | F140: 2 | J140: 0 | K140: CAPITAL INDUSTRIES INC | M140: 30 YD RO Box | N140: 2021-10-30 | O140: 2021-10-30 | P140: 2188-21-0022-1 | Q140: 1200 | R140: 14050 | S140: 15500 | T140: 14056 | U140: 2798.62 | V140: 12701.38 | W140: 1291.67 | X140: 54260 | Y140: 107.64 | Z140: P | AB140: 169522 | AD140: Internal | AE140: A | AF140: SL | AH140: WCNX | AI140: 0 | AJ140: 0 | AK140: 0 | AL140: Drop Boxes | AM140: 10 | AN140: 2021 | AO140: 2033 | AP140: 2033.833333 | AQ140: 107.6388889 | AR140: 1291.666667 | AS140: 1291.666667 | AT140: 1614.583333 | AU140: 2906.25 | AV140: 12593.75 | AW140: No
B141: 2188 | C141: 266850 | D141: P | E141: 2yd REL Metal Container | F141: 30 | J141: 0 | K141: CAPITAL INDUSTRIES INC | M141: 2 YD REL Container | N141: 2021-11-22 | O141: 2021-11-22 | P141: 2188-21-0024-1 | Q141: 1200 | R141: 14050 | S141: 27591 | T141: 14056 | U141: 4790.11 | V141: 22800.89 | W141: 2299.25 | X141: 54260 | Y141: 191.6 | Z141: P | AB141: 169949 | AD141: Internal | AE141: A | AF141: SL | AH141: WCNX | AI141: 0 | AJ141: 0 | AK141: 0 | AL141: Garbage Containers | AM141: 11 | AN141: 2021 | AO141: 2033 | AP141: 2033.916667 | AQ141: 191.6041667 | AR141: 2299.25 | AS141: 2299.25 | AT141: 2682.458333 | AU141: 4981.708333 | AV141: 22609.29167 | AW141: No
B142: 2188 | C142: 266849 | D142: P | E142: 20yd RO Boxes | F142: 2 | J142: 0 | K142: CAPITAL INDUSTRIES INC | M142: 20 YD RO Box | N142: 2021-11-16 | O142: 2021-11-16 | P142: 2188-21-0022-1 | Q142: 1200 | R142: 14050 | S142: 13780 | T142: 14056 | U142: 2392.36 | V142: =S142-U142 -> 11387.64 | W142: 1148.33 | X142: 54260 | Y142: 95.69 | Z142: P | AB142: 169839 | AD142: Internal | AE142: A | AF142: SL | AH142: WCNX | AI142: 0 | AJ142: 0 | AK142: 0 | AL142: Drop Boxes | AM142: =MONTH($N142) -> 11 | AN142: =YEAR($N142) -> 2021 | AO142: =$AN142+($Q142/100) -> 2033 | AP142: =$AO142+($AM142/12) -> 2033.916667 | AQ142: =IFERROR($S142/($Q142/100)/12,0) -> 95.69444444 | AR142: =$AQ142*12 -> 1148.333333 | AS142: 1148.333333 | AT142: 1339.722222 | AU142: 2488.055556 | AV142: 11291.94444 | AW142: No
B143: 2188 | C143: 265429 | D143: P | E143: 30yd RO Boxes | F143: 2 | J143: 0 | K143: CAPITAL INDUSTRIES INC | M143: 30 YD RO Box | N143: 2021-10-30 | O143: 2021-10-30 | P143: 2188-21-0022-1 | Q143: 1200 | R143: 14050 | S143: 15500 | T143: 14056 | U143: 2798.62 | V143: 12701.38 | W143: 1291.67 | X143: 54260 | Y143: 107.64 | Z143: P | AB143: 169523 | AD143: Internal | AE143: A | AF143: SL | AH143: WCNX | AI143: 0 | AJ143: 0 | AK143: 0 | AL143: Drop Boxes | AM143: 10 | AN143: 2021 | AO143: 2033 | AP143: 2033.833333 | AQ143: 107.6388889 | AR143: 1291.666667 | AS143: =+IF(AP143<=$AK$9,0,AR143) -> 1291.666667 | AT143: =+IF(AP143<=$AK$10,S143,IF((AN143+(AM143/12))>=$AK$10,0,((S143-((AP143-$AK$10)*12)*AQ143)))) -> 1614.583333 | AU143: =IF(AP143<=$AK$9,S143,IF($AT143=0,$AS143,($AT143+$AS143))) -> 2906.25 | AV143: =$S143-$AU143 -> 12593.75 | AW143: No
B144: 2188 | C144: 265428 | D144: P | E144: 30yd RO Boxes | F144: 2 | J144: 0 | K144: CAPITAL INDUSTRIES INC | M144: 30 YD RO Box | N144: 2021-10-30 | O144: 2021-10-30 | P144: 2188-21-0022-1 | Q144: 1200 | R144: 14050 | S144: 15500 | T144: 14056 | U144: 2798.62 | V144: 12701.38 | W144: 1291.67 | X144: 54260 | Y144: 107.64 | Z144: P | AB144: 169521 | AD144: Internal | AE144: A | AF144: SL | AH144: WCNX | AI144: 0 | AJ144: 0 | AK144: 0 | AL144: Drop Boxes | AM144: 10 | AN144: 2021 | AO144: 2033 | AP144: 2033.833333 | AQ144: 107.6388889 | AR144: 1291.666667 | AS144: 1291.666667 | AT144: 1614.583333 | AU144: 2906.25 | AV144: 12593.75 | AW144: No
B145: 2188 | C145: 265427 | D145: P | E145: 30yd RO Boxes | F145: 2 | J145: 0 | K145: CAPITAL INDUSTRIES INC | M145: 30 YD RO Box | N145: 2021-10-30 | O145: 2021-10-30 | P145: 2188-21-0022-1 | Q145: 1200 | R145: 14050 | S145: 15500 | T145: 14056 | U145: 2798.62 | V145: 12701.38 | W145: 1291.67 | X145: 54260 | Y145: 107.64 | Z145: P | AB145: 169520 | AD145: Internal | AE145: A | AF145: SL | AH145: WCNX | AI145: 0 | AJ145: 0 | AK145: 0 | AL145: Drop Boxes | AM145: 10 | AN145: 2021 | AO145: 2033 | AP145: 2033.833333 | AQ145: 107.6388889 | AR145: 1291.666667 | AS145: 1291.666667 | AT145: 1614.583333 | AU145: 2906.25 | AV145: 12593.75 | AW145: No
B146: 2188 | C146: 265426 | D146: P | E146: 30yd RO Box | F146: 2 | J146: 0 | K146: CAPITAL INDUSTRIES INC | M146: 30 YD RO Box | N146: 2021-10-30 | O146: 2021-10-30 | P146: 2188-21-0022-1 | Q146: 1200 | R146: 14050 | S146: 15500 | T146: 14056 | U146: 2798.62 | V146: 12701.38 | W146: 1291.67 | X146: 54260 | Y146: 107.64 | Z146: P | AB146: 169516 | AD146: Internal | AE146: A | AF146: SL | AH146: WCNX | AI146: 0 | AJ146: 0 | AK146: 0 | AL146: Drop Boxes | AM146: 10 | AN146: 2021 | AO146: 2033 | AP146: 2033.833333 | AQ146: 107.6388889 | AR146: 1291.666667 | AS146: 1291.666667 | AT146: 1614.583333 | AU146: 2906.25 | AV146: 12593.75 | AW146: No
B147: 2188 | C147: 265278 | D147: P | E147: 20yd RO Boxes | F147: 2 | J147: 0 | K147: CAPITAL INDUSTRIES INC | M147: 20 YD RO Box | N147: 2021-11-16 | O147: 2021-11-16 | P147: 2188-21-0022-1 | Q147: 1200 | R147: 14050 | S147: 13780 | T147: 14056 | U147: 2392.36 | V147: 11387.64 | W147: 1148.33 | X147: 54260 | Y147: 95.69 | Z147: P | AB147: 169840 | AD147: Internal | AE147: A | AF147: SL | AH147: WCNX | AI147: 0 | AJ147: 0 | AK147: 0 | AL147: Drop Boxes | AM147: 11 | AN147: 2021 | AO147: 2033 | AP147: 2033.916667 | AQ147: 95.69444444 | AR147: 1148.333333 | AS147: 1148.333333 | AT147: 1339.722222 | AU147: 2488.055556 | AV147: 11291.94444 | AW147: No
B148: 2188 | C148: 264434 | D148: P | E148: 2022 Peterbilt ROL Truck | H148: 1NPCL40X5ND789344 | J148: 2022 | M148: R/O Truck | N148: 2021-11-30 | O148: 2021-11-30 | P148: 2188-21-0004 | Q148: 1000 | R148: 14040 | S148: 227442.33 | T148: 14046 | U148: 47383.81 | V148: 180058.52 | W148: 22744.23 | X148: 51260 | Y148: 1895.35 | Z148: P | AD148: Internal | AE148: A | AF148: SL | AH148: WCNX | AI148: 0 | AJ148: 0 | AK148: 0 | AL148: Roll Off | AM148: 11 | AN148: 2021 | AO148: 2031 | AP148: 2031.916667 | AQ148: 1895.35275 | AR148: 22744.233 | AS148: 22744.233 | AT148: 26534.9385 | AU148: 49279.1715 | AV148: 178163.1585 | AW148: No
B149: 2188 | C149: 260639 | D149: P | E149: 1995 Type HT D-V Trailer | H149: 1S13E9536SE392140 | J149: 1995 | K149: STRICKLAND | L149: Other | M149: Trailer | N149: 2008-11-03 | O149: 2008-11-03 | Q149: 300 | R149: 14040 | S149: 2500 | T149: 14046 | U149: 2500 | V149: 0 | W149: 0 | X149: 51260 | Y149: 0 | Z149: A | AA149: LeMay Enterprises | AC149: 8141 | AD149: Internal | AE149: A | AF149: SL | AG149: 2021-08-31 | AH149: WCNX | AI149: 0 | AJ149: 2500 | AK149: 0 | AL149: Service Equipment | AM149: 11 | AN149: 2008 | AO149: 2011 | AP149: 2011.916667 | AQ149: 69.44444444 | AR149: 833.3333333 | AS149: 0 | AT149: 2500 | AU149: 2500 | AV149: 0 | AW149: No
B150: 2188 | C150: 260020 | D150: P | E150: 2Yd Metal FEL Commercial Container | F150: 14 | J150: 0 | K150: CAPITAL INDUSTRIES INC | M150: 2 YD FEL Container | N150: 2021-08-13 | O150: 2021-08-13 | P150: 2188-21-0020-1 | Q150: 1200 | R150: 14050 | S150: 10982.3 | T150: 14056 | U150: 2211.71 | V150: 8770.59 | W150: 915.19 | X150: 54260 | Y150: 76.27 | Z150: P | AB150: 168212 | AD150: Internal | AE150: A | AF150: SL | AH150: WCNX | AI150: 0 | AJ150: 0 | AK150: 0 | AL150: Garbage Containers | AM150: 8 | AN150: 2021 | AO150: 2033 | AP150: 2033.666667 | AQ150: 76.26597222 | AR150: 915.1916667 | AS150: 915.1916667 | AT150: 1296.521528 | AU150: 2211.713194 | AV150: 8770.586806 | AW150: No
B151: 2188 | C151: 259972 | D151: P | E151: 95gal Yardwaste Totes | F151: 351 | J151: 0 | K151: REHRIG PACIFIC COMPANY IN | M151: Non-Container Audit | N151: 2021-09-02 | O151: 2021-09-02 | P151: 2188-21-0023-1 | Q151: 700 | R151: 14050 | S151: 22460.31 | T151: 14056 | U151: 7486.78 | V151: 14973.53 | W151: 3208.62 | X151: 54260 | Y151: 267.38 | Z151: P | AB151: 50191505 | AD151: Internal | AE151: A | AF151: SL | AH151: WCNX | AI151: 0 | AJ151: 0 | AK151: 0 | AL151: Yard Waste | AM151: 9 | AN151: 2021 | AO151: 2028 | AP151: 2028.75 | AQ151: 267.3846429 | AR151: 3208.615714 | AS151: 3208.615714 | AT151: 4278.154286 | AU151: 7486.77 | AV151: 14973.54 | AW151: No
B152: 2188 | C152: 259971 | D152: P | E152: 65gal MSW Totes | F152: 324 | J152: 0 | K152: REHRIG PACIFIC COMPANY IN | M152: Non-Container Audit | N152: 2021-09-02 | O152: 2021-09-02 | P152: 2188-21-0023-1 | Q152: 700 | R152: 14050 | S152: 18520.5 | T152: 14056 | U152: 6173.51 | V152: 12346.99 | W152: 2645.79 | X152: 54260 | Y152: 220.48 | Z152: P | AB152: 50191505 | AD152: Internal | AE152: A | AF152: SL | AH152: WCNX | AI152: 0 | AJ152: 0 | AK152: 0 | AL152: Garbage Carts | AM152: 9 | AN152: 2021 | AO152: 2028 | AP152: 2028.75 | AQ152: 220.4821429 | AR152: 2645.785714 | AS152: 2645.785714 | AT152: 3527.714286 | AU152: 6173.5 | AV152: 12347 | AW152: No
B153: 2188 | C153: 259508 | D153: 255412 | E153: License for truck # 3716 | J153: 0 | K153: WA DOL | M153: Non-Rolling Stock | N153: 2021-07-20 | O153: 2021-07-20 | P153: 2188-21-0002-1 | Q153: 1000 | R153: 14040 | S153: 368.61 | T153: 14046 | U153: 89.08 | V153: 279.53 | W153: 36.86 | X153: 51260 | Y153: 3.07 | Z153: P | AB153: C17316Y | AD153: Internal | AE153: A | AF153: SL | AH153: WCNX | AI153: 0 | AJ153: 0 | AK153: 3716 | AL153: Garbage | AM153: 7 | AN153: 2021 | AO153: 2031 | AP153: 2031.583333 | AQ153: 3.07175 | AR153: 36.861 | AS153: 36.861 | AT153: 55.2915 | AU153: 92.1525 | AV153: 276.4575 | AW153: No
B154: 2188 | C154: 258996 | D154: P | E154: 3Yd Metal FEL Commercial Containers | F154: 12 | J154: 0 | K154: CAPITAL INDUSTRIES INC | M154: 3 YD FEL Container | N154: 2021-08-19 | O154: 2021-08-19 | P154: 2188-21-0020-1 | Q154: 1200 | R154: 14050 | S154: 10581.96 | T154: 14056 | U154: 2057.6 | V154: 8524.36 | W154: 881.83 | X154: 54260 | Y154: 73.49 | Z154: P | AB154: 168312 | AD154: Internal | AE154: A | AF154: SL | AH154: WCNX | AI154: 0 | AJ154: 0 | AK154: 0 | AL154: Garbage Containers | AM154: 8 | AN154: 2021 | AO154: 2033 | AP154: 2033.666667 | AQ154: 73.48583333 | AR154: 881.83 | AS154: 881.83 | AT154: 1249.259167 | AU154: 2131.089167 | AV154: 8450.870833 | AW154: No
B155: 2188 | C155: 258995 | D155: P | E155: 3Yd Metal FEL Commercial Containers | F155: 8 | J155: 0 | K155: CAPITAL INDUSTRIES INC | M155: 3 YD FEL Container | N155: 2021-08-19 | O155: 2021-08-19 | P155: 2188-21-0020-1 | Q155: 1200 | R155: 14050 | S155: 7054.64 | T155: 14056 | U155: 1371.72 | V155: 5682.92 | W155: 587.88 | X155: 54260 | Y155: 48.99 | Z155: P | AB155: 168305 | AD155: Internal | AE155: A | AF155: SL | AH155: WCNX | AI155: 0 | AJ155: 0 | AK155: 0 | AL155: Garbage Containers | AM155: 8 | AN155: 2021 | AO155: 2033 | AP155: 2033.666667 | AQ155: 48.99055556 | AR155: 587.8866667 | AS155: 587.8866667 | AT155: 832.8394444 | AU155: 1420.726111 | AV155: 5633.913889 | AW155: No
B156: 2188 | C156: 258987 | D156: P | E156: 2Yd Metal FEL Commercial Container | F156: 6 | J156: 0 | K156: CAPITAL INDUSTRIES INC | M156: 2 YD FEL Container | N156: 2021-08-13 | O156: 2021-08-13 | P156: 2188-21-0020-1 | Q156: 1200 | R156: 14050 | S156: 4706.7 | T156: 14056 | U156: 947.89 | V156: 3758.81 | W156: 392.23 | X156: 54260 | Y156: 32.69 | Z156: P | AB156: 168235 | AD156: Internal | AE156: A | AF156: SL | AH156: WCNX | AI156: 0 | AJ156: 0 | AK156: 0 | AL156: Garbage Containers | AM156: 8 | AN156: 2021 | AO156: 2033 | AP156: 2033.666667 | AQ156: 32.68541667 | AR156: 392.225 | AS156: 392.225 | AT156: 555.6520833 | AU156: 947.8770833 | AV156: 3758.822917 | AW156: No
B157: 2188 | C157: 257150 | D157: P | E157: 20 Yd Containers | F157: 24 | J157: 0 | M157: 20 YD RO Box | N157: 2008-11-03 | O157: 2008-11-03 | Q157: 700 | R157: 14050 | S157: 36041.52 | T157: 14056 | U157: 36041.52 | V157: 0 | W157: 0 | X157: 54260 | Y157: 0 | Z157: A | AA157: LeMay Enterprises | AD157: Internal | AE157: A | AF157: SL | AG157: 2021-07-31 | AH157: WCNX | AI157: 0 | AJ157: 36041.52 | AK157: 0 | AL157: Drop Boxes | AM157: 11 | AN157: 2008 | AO157: 2015 | AP157: 2015.916667 | AQ157: 429.0657143 | AR157: 5148.788571 | AS157: 0 | AT157: 36041.52 | AU157: 36041.52 | AV157: 0 | AW157: No
B158: 2188 | C158: 257149 | D158: P | E158: 2 Yard Commercial Containers | F158: 15 | J158: 0 | M158: 2 YD FEL/REL/SL Metal | N158: 2008-11-03 | O158: 2008-11-03 | Q158: 1200 | R158: 14050 | S158: 2094.75 | T158: 14056 | U158: 2094.75 | V158: 0 | W158: 0 | X158: 54260 | Y158: 0 | Z158: A | AA158: LeMay Enterprises | AD158: Internal | AE158: A | AF158: SL | AG158: 2021-07-31 | AH158: WCNX | AI158: 0 | AJ158: 2094.75 | AK158: 0 | AL158: Garbage Containers | AM158: 11 | AN158: 2008 | AO158: 2020 | AP158: 2020.916667 | AQ158: 14.546875 | AR158: 174.5625 | AS158: 0 | AT158: 2094.75 | AU158: 2094.75 | AV158: 0 | AW158: No
B159: 2188 | C159: 256613 | D159: P | E159: 2 yd Lids w/Chute | F159: 25 | J159: 0 | M159: 2 YD FEL/REL/SL Metal | N159: 1988-01-26 | O159: 1988-01-26 | Q159: 1200 | R159: 14050 | S159: 1804.65 | T159: 14056 | U159: 1804.65 | V159: 0 | W159: 0 | X159: 54260 | Y159: 0 | Z159: A | AA159: DM Recycling | AD159: Internal | AE159: A | AF159: SL | AG159: 2021-07-31 | AH159: WCNX | AI159: 0 | AJ159: 1804.65 | AK159: 0 | AL159: Garbage Containers | AM159: 1 | AN159: 1988 | AO159: 2000 | AP159: 2000.083333 | AQ159: 12.53229167 | AR159: 150.3875 | AS159: 0 | AT159: 1804.65 | AU159: 1804.65 | AV159: 0 | AW159: No
B160: 2188 | C160: 256612 | D160: P | E160: 20 Yard R/O Containers | F160: 8 | J160: 0 | M160: 20 YD RO Box | N160: 2008-11-03 | O160: 2008-11-03 | Q160: 700 | R160: 14050 | S160: 88000 | T160: 14056 | U160: 88000 | V160: 0 | W160: 0 | X160: 54260 | Y160: 0 | Z160: A | AA160: LeMay Enterprises | AD160: Internal | AE160: A | AF160: SL | AG160: 2021-07-31 | AH160: WCNX | AI160: 0 | AJ160: 88000 | AK160: 0 | AL160: Drop Boxes | AM160: 11 | AN160: 2008 | AO160: 2015 | AP160: 2015.916667 | AQ160: 1047.619048 | AR160: 12571.42857 | AS160: 0 | AT160: 88000 | AU160: 88000 | AV160: 0 | AW160: No
B161: 2188 | C161: 256279 | D161: 255412 | E161: Truck 3716 Decals | J161: 0 | K161: Larsen Sign Co. | M161: Non-Rolling Stock | N161: 2021-07-20 | O161: 2021-07-20 | P161: 2188-21-0002-1 | Q161: 1000 | R161: 14040 | S161: 984.62 | T161: 14046 | U161: 237.93 | V161: 746.69 | W161: 98.45 | X161: 51260 | Y161: 8.2 | Z161: P | AB161: 28836 | AD161: Internal | AE161: A | AF161: SL | AH161: WCNX | AI161: 0 | AJ161: 0 | AK161: 3716 | AL161: Garbage | AM161: 7 | AN161: 2021 | AO161: 2031 | AP161: 2031.583333 | AQ161: 8.205166667 | AR161: 98.462 | AS161: 98.462 | AT161: 147.693 | AU161: 246.155 | AV161: 738.465 | AW161: No
B162: 2188 | C162: 256278 | D162: 253112 | E162: Truck 2063 License | J162: 0 | K162: WA DOL | M162: Non-Rolling Stock | N162: 2021-06-30 | O162: 2021-06-30 | P162: 2188-21-0001-1 | Q162: 1000 | R162: 14040 | S162: 555.69 | T162: 14046 | U162: 138.93 | V162: 416.76 | W162: 55.57 | X162: 51260 | Y162: 4.63 | Z162: P | AB162: C02200X | AD162: Internal | AE162: A | AF162: SL | AH162: WCNX | AI162: 0 | AJ162: 0 | AK162: 2063 | AL162: Garbage | AM162: 6 | AN162: 2021 | AO162: 2031 | AP162: 2031.5 | AQ162: 4.63075 | AR162: 55.569 | AS162: 55.569 | AT162: 87.98425 | AU162: 143.55325 | AV162: 412.13675 | AW162: No
B163: 2188 | C163: 256277 | D163: 253112 | E163: Truck 2063 Decals | J163: 0 | K163: Larsen Sign Co. | M163: Non-Rolling Stock | N163: 2021-06-30 | O163: 2021-06-30 | P163: 2188-21-0001-1 | Q163: 1000 | R163: 14040 | S163: 952.16 | T163: 14046 | U163: 238.05 | V163: 714.11 | W163: 95.22 | X163: 51260 | Y163: 7.93 | Z163: P | AB163: 28745 | AD163: Internal | AE163: A | AF163: SL | AH163: WCNX | AI163: 0 | AJ163: 0 | AK163: 2063 | AL163: Garbage | AM163: 6 | AN163: 2021 | AO163: 2031 | AP163: 2031.5 | AQ163: 7.934666667 | AR163: 95.216 | AS163: 95.216 | AT163: 150.7586667 | AU163: 245.9746667 | AV163: 706.1853333 | AW163: No
B164: 2188 | C164: 255883 | D164: P | E164: 4 yd Metal FEL Commercial Containers | F164: 10 | J164: 0 | K164: CAPITAL INDUSTRIES INC | M164: 4 YD FEL Container | N164: 2021-07-14 | O164: 2021-07-14 | P164: 2188-21-0020-1 | Q164: 1200 | R164: 14050 | S164: 9683.9 | T164: 14056 | U164: 2017.48 | V164: 7666.42 | W164: 806.99 | X164: 54260 | Y164: 67.25 | Z164: P | AB164: 167525 | AD164: Internal | AE164: A | AF164: SL | AH164: WCNX | AI164: 0 | AJ164: 0 | AK164: 0 | AL164: Garbage Containers | AM164: 7 | AN164: 2021 | AO164: 2033 | AP164: 2033.583333 | AQ164: 67.24930556 | AR164: 806.9916667 | AS164: 806.9916667 | AT164: 1210.4875 | AU164: 2017.479167 | AV164: 7666.420833 | AW164: No
B165: 2188 | C165: 255882 | D165: P | E165: 4 yd Metal FEL Commercial Containers | F165: 10 | J165: 0 | K165: CAPITAL INDUSTRIES INC | M165: 4 YD FEL Container | N165: 2021-07-14 | O165: 2021-07-14 | P165: 2188-21-0020-1 | Q165: 1200 | R165: 14050 | S165: 9683.9 | T165: 14056 | U165: 2017.48 | V165: 7666.42 | W165: 806.99 | X165: 54260 | Y165: 67.25 | Z165: P | AB165: 167527 | AD165: Internal | AE165: A | AF165: SL | AH165: WCNX | AI165: 0 | AJ165: 0 | AK165: 0 | AL165: Garbage Containers | AM165: 7 | AN165: 2021 | AO165: 2033 | AP165: 2033.583333 | AQ165: 67.24930556 | AR165: 806.9916667 | AS165: 806.9916667 | AT165: 1210.4875 | AU165: 2017.479167 | AV165: 7666.420833 | AW165: No
B166: 2188 | C166: 255412 | D166: P | E166: 2021 Peterbilt ASL Truck | H166: 3BPDLK0X1MF111049 | J166: 2021 | M166: Automated Sideload | N166: 2021-07-20 | O166: 2021-07-20 | P166: 2188-21-0002 | Q166: 1000 | R166: 14040 | S166: 370212.96 | T166: 14046 | U166: 89468.14 | V166: 280744.82 | W166: 37021.3 | X166: 51260 | Y166: 3085.11 | Z166: P | AC166: 3716 | AD166: Internal | AE166: A | AF166: SL | AH166: WCNX | AI166: 0 | AJ166: 0 | AK166: 0 | AL166: Garbage | AM166: 7 | AN166: 2021 | AO166: 2031 | AP166: 2031.583333 | AQ166: 3085.108 | AR166: 37021.296 | AS166: 37021.296 | AT166: 55531.944 | AU166: 92553.24 | AV166: 277659.72 | AW166: No
B167: 2188 | C167: 255163 | D167: P | E167: 6 Yd Metal FEL Containers | F167: 3 | J167: 0 | K167: CAPITAL INDUSTRIES INC | M167: 6 YD FEL Container | N167: 2021-05-26 | O167: 2021-05-26 | P167: 2188-21-0018-1 | Q167: 1200 | R167: 14050 | S167: 4073.73 | T167: 14056 | U167: 876.99 | V167: 3196.74 | W167: 339.48 | X167: 54260 | Y167: 28.29 | Z167: P | AB167: 166657 | AD167: Internal | AE167: A | AF167: SL | AH167: WCNX | AI167: 0 | AJ167: 0 | AK167: 0 | AL167: Garbage Containers | AM167: 5 | AN167: 2021 | AO167: 2033 | AP167: 2033.416667 | AQ167: 28.28979167 | AR167: 339.4775 | AS167: 339.4775 | AT167: 565.7958333 | AU167: 905.2733333 | AV167: 3168.456667 | AW167: No
B168: 2188 | C168: 255162 | D168: P | E168: 6 Yd Metal FEL Containers | F168: 5 | J168: 0 | K168: CAPITAL INDUSTRIES INC | M168: 6 YD FEL Container | N168: 2021-05-26 | O168: 2021-05-26 | P168: 2188-21-0018-1 | Q168: 1200 | R168: 14050 | S168: 6789.55 | T168: 14056 | U168: 1461.65 | V168: 5327.9 | W168: 565.8 | X168: 54260 | Y168: 47.15 | Z168: P | AB168: 166658 | AD168: Internal | AE168: A | AF168: SL | AH168: WCNX | AI168: 0 | AJ168: 0 | AK168: 0 | AL168: Garbage Containers | AM168: 5 | AN168: 2021 | AO168: 2033 | AP168: 2033.416667 | AQ168: 47.14965278 | AR168: 565.7958333 | AS168: 565.7958333 | AT168: 942.9930556 | AU168: 1508.788889 | AV168: 5280.761111 | AW168: No
B169: 2188 | C169: 255161 | D169: P | E169: 20yd Metal RO Boxes | F169: 15 | J169: 0 | K169: CAPITAL INDUSTRIES INC | M169: 20 YD RO Box | N169: 2021-06-22 | O169: 2021-06-22 | P169: 2188-21-0017-1 | Q169: 1200 | R169: 14050 | S169: 85650 | T169: 14056 | U169: 17843.75 | V169: 67806.25 | W169: 7137.5 | X169: 54260 | Y169: 594.79 | Z169: P | AB169: 167144 | AD169: Internal | AE169: A | AF169: SL | AH169: WCNX | AI169: 0 | AJ169: 0 | AK169: 0 | AL169: Drop Boxes | AM169: 6 | AN169: 2021 | AO169: 2033 | AP169: 2033.5 | AQ169: 594.7916667 | AR169: 7137.5 | AS169: 7137.5 | AT169: 11301.04167 | AU169: 18438.54167 | AV169: 67211.45833 | AW169: No
B170: 2188 | C170: 255150 | D170: 253112 | E170: Truck 2063 Radio | J170: 0 | K170: WHISLER COMMUNICATIONS | M170: Non-Rolling Stock | N170: 2021-06-30 | O170: 2021-06-30 | P170: 2188-21-0001-1 | Q170: 500 | R170: 14040 | S170: 681.66 | T170: 14046 | U170: 340.83 | V170: 340.83 | W170: 136.33 | X170: 51260 | Y170: 11.36 | Z170: P | AB170: 70833 | AD170: Internal | AE170: A | AF170: SL | AH170: WCNX | AI170: 0 | AJ170: 0 | AK170: 2063 | AL170: Garbage | AM170: 6 | AN170: 2021 | AO170: 2026 | AP170: 2026.5 | AQ170: 11.361 | AR170: 136.332 | AS170: 136.332 | AT170: 215.859 | AU170: 352.191 | AV170: 329.469 | AW170: No
B171: 2188 | C171: 254231 | D171: P | E171: 6 Yd Metal FEL Containers | F171: 6 | J171: 0 | K171: CAPITAL INDUSTRIES INC | M171: 6 YD FEL Container | N171: 2021-05-26 | O171: 2021-05-26 | P171: 2188-21-0018-1 | Q171: 1200 | R171: 14050 | S171: 8147.46 | T171: 14056 | U171: 1753.98 | V171: 6393.48 | W171: 678.96 | X171: 54260 | Y171: 56.58 | Z171: P | AB171: 166655 | AD171: Internal | AE171: A | AF171: SL | AH171: WCNX | AI171: 0 | AJ171: 0 | AK171: 0 | AL171: Garbage Containers | AM171: 5 | AN171: 2021 | AO171: 2033 | AP171: 2033.416667 | AQ171: 56.57958333 | AR171: 678.955 | AS171: 678.955 | AT171: 1131.591667 | AU171: 1810.546667 | AV171: 6336.913333 | AW171: No
B172: 2188 | C172: 254230 | D172: P | E172: 6 Yd Metal FEL Containers | F172: 4 | J172: 0 | K172: CAPITAL INDUSTRIES INC | M172: 6 YD FEL Container | N172: 2021-05-26 | O172: 2021-05-26 | P172: 2188-21-0018-1 | Q172: 1200 | R172: 14050 | S172: 5431.64 | T172: 14056 | U172: 1169.32 | V172: 4262.32 | W172: 452.64 | X172: 54260 | Y172: 37.72 | Z172: P | AB172: 166659 | AD172: Internal | AE172: A | AF172: SL | AH172: WCNX | AI172: 0 | AJ172: 0 | AK172: 0 | AL172: Garbage Containers | AM172: 5 | AN172: 2021 | AO172: 2033 | AP172: 2033.416667 | AQ172: 37.71972222 | AR172: 452.6366667 | AS172: 452.6366667 | AT172: 754.3944444 | AU172: 1207.031111 | AV172: 4224.608889 | AW172: No
B173: 2188 | C173: 254229 | D173: P | E173: 2Yd Metal REL Container | F173: 5 | J173: 0 | K173: CAPITAL INDUSTRIES INC | M173: 2 YD REL Container | N173: 2021-05-26 | O173: 2021-05-26 | P173: 2188-21-0018-1 | Q173: 1200 | R173: 14050 | S173: 3516.5 | T173: 14056 | U173: 757.02 | V173: 2759.48 | W173: 293.04 | X173: 54260 | Y173: 24.42 | Z173: P | AB173: 166701 | AD173: Internal | AE173: A | AF173: SL | AH173: WCNX | AI173: 0 | AJ173: 0 | AK173: 0 | AL173: Garbage Containers | AM173: 5 | AN173: 2021 | AO173: 2033 | AP173: 2033.416667 | AQ173: 24.42013889 | AR173: 293.0416667 | AS173: 293.0416667 | AT173: 488.4027778 | AU173: 781.4444444 | AV173: 2735.055556 | AW173: No
B174: 2188 | C174: 254228 | D174: P | E174: 2Yd Metal REL Container | F174: 6 | J174: 0 | K174: CAPITAL INDUSTRIES INC | M174: 2 YD REL Container | N174: 2021-05-26 | O174: 2021-05-26 | P174: 2188-21-0018-1 | Q174: 1200 | R174: 14050 | S174: 4219.8 | T174: 14056 | U174: 908.43 | V174: 3311.37 | W174: 351.65 | X174: 54260 | Y174: 29.3 | Z174: P | AB174: 166702 | AD174: Internal | AE174: A | AF174: SL | AH174: WCNX | AI174: 0 | AJ174: 0 | AK174: 0 | AL174: Garbage Containers | AM174: 5 | AN174: 2021 | AO174: 2033 | AP174: 2033.416667 | AQ174: 29.30416667 | AR174: 351.65 | AS174: 351.65 | AT174: 586.0833333 | AU174: 937.7333333 | AV174: 3282.066667 | AW174: No
B175: 2188 | C175: 254227 | D175: P | E175: 2Yd Metal REL Container | F175: 4 | J175: 0 | K175: CAPITAL INDUSTRIES INC | M175: 2 YD REL Container | N175: 2021-05-24 | O175: 2021-05-24 | P175: 2188-21-0018-1 | Q175: 1200 | R175: 14050 | S175: 2813.2 | T175: 14056 | U175: 605.61 | V175: 2207.59 | W175: 234.43 | X175: 54260 | Y175: 19.54 | Z175: P | AB175: 166703 | AD175: Internal | AE175: A | AF175: SL | AH175: WCNX | AI175: 0 | AJ175: 0 | AK175: 0 | AL175: Garbage Containers | AM175: 5 | AN175: 2021 | AO175: 2033 | AP175: 2033.416667 | AQ175: 19.53611111 | AR175: 234.4333333 | AS175: 234.4333333 | AT175: 390.7222222 | AU175: 625.1555556 | AV175: 2188.044444 | AW175: No
B176: 2188 | C176: 253863 | D176: P | E176: 95gal Recycle Totes | F176: 702 | J176: 0 | K176: REHRIG PACIFIC COMPANY IN | M176: Non-Container Audit | N176: 2021-05-28 | O176: 2021-05-28 | P176: 2188-21-0021-1 | Q176: 700 | R176: 14050 | S176: 41213.94 | T176: 14056 | U176: 15209.92 | V176: 26004.02 | W176: 5887.71 | X176: 54260 | Y176: 490.64 | Z176: P | AB176: 50172244 | AD176: Internal | AE176: A | AF176: SL | AH176: WCNX | AI176: 0 | AJ176: 0 | AK176: 0 | AL176: Recycling | AM176: 5 | AN176: 2021 | AO176: 2028 | AP176: 2028.416667 | AQ176: 490.6421429 | AR176: 5887.705714 | AS176: 5887.705714 | AT176: 9812.842857 | AU176: 15700.54857 | AV176: 25513.39143 | AW176: No
B177: 2188 | C177: 253862 | D177: P | E177: 95gal Garbage Totes | F177: 351 | J177: 0 | K177: REHRIG PACIFIC COMPANY IN | M177: Non-Container Audit | N177: 2021-06-01 | O177: 2021-06-01 | P177: 2188-21-0021-1 | Q177: 700 | R177: 14050 | S177: 19923.36 | T177: 14056 | U177: 7352.68 | V177: 12570.68 | W177: 2846.2 | X177: 54260 | Y177: 237.18 | Z177: P | AB177: 50172977 | AD177: Internal | AE177: A | AF177: SL | AH177: WCNX | AI177: 0 | AJ177: 0 | AK177: 0 | AL177: Garbage Carts | AM177: 6 | AN177: 2021 | AO177: 2028 | AP177: 2028.5 | AQ177: 237.1828571 | AR177: 2846.194286 | AS177: 2846.194286 | AT177: 4506.474286 | AU177: 7352.668571 | AV177: 12570.69143 | AW177: No
B178: 2188 | C178: 253861 | D178: P | E178: 65gal Garbage Totes | F178: 468 | J178: 0 | K178: REHRIG PACIFIC COMPANY IN | M178: Non-Container Audit | N178: 2021-06-01 | O178: 2021-06-01 | P178: 2188-21-0021-1 | Q178: 700 | R178: 14050 | S178: 23936.4 | T178: 14056 | U178: 8833.68 | V178: 15102.72 | W178: 3419.49 | X178: 54260 | Y178: 284.96 | Z178: P | AB178: 50172977 | AD178: Internal | AE178: A | AF178: SL | AH178: WCNX | AI178: 0 | AJ178: 0 | AK178: 0 | AL178: Garbage Carts | AM178: 6 | AN178: 2021 | AO178: 2028 | AP178: 2028.5 | AQ178: 284.9571429 | AR178: 3419.485714 | AS178: 3419.485714 | AT178: 5414.185714 | AU178: 8833.671429 | AV178: 15102.72857 | AW178: No
B179: 2188 | C179: 253458 | D179: P | E179: 20 YD RO | F179: 3 | J179: 0 | N179: 2008-11-03 | O179: 2008-11-03 | Q179: 700 | R179: 14050 | S179: 256.09 | T179: 14056 | U179: 256.09 | V179: 0 | W179: 0 | X179: 54260 | Y179: 0 | Z179: A | AA179: LeMay Enterprises | AD179: Internal | AE179: A | AF179: SL | AG179: 2021-05-31 | AH179: WCNX | AI179: 0 | AJ179: 256.09 | AK179: 0 | AL179: Drop Boxes | AM179: 11 | AN179: 2008 | AO179: 2015 | AP179: 2015.916667 | AQ179: 3.048690476 | AR179: 36.58428571 | AS179: 0 | AT179: 256.09 | AU179: 256.09 | AV179: 0 | AW179: No
B180: 2188 | C180: 253457 | D180: P | E180: 2 YD Container | F180: 24 | J180: 0 | N180: 2008-11-03 | O180: 2008-11-03 | Q180: 700 | R180: 14050 | S180: 2048.75 | T180: 14056 | U180: 2048.75 | V180: 0 | W180: 0 | X180: 54260 | Y180: 0 | Z180: A | AA180: LeMay Enterprises | AD180: Internal | AE180: A | AF180: SL | AG180: 2021-05-31 | AH180: WCNX | AI180: 0 | AJ180: 2048.75 | AK180: 0 | AL180: Garbage Containers | AM180: 11 | AN180: 2008 | AO180: 2015 | AP180: 2015.916667 | AQ180: 24.38988095 | AR180: 292.6785714 | AS180: 0 | AT180: 2048.75 | AU180: 2048.75 | AV180: 0 | AW180: No
B181: 2188 | C181: 253166 | D181: P | E181: 6yd Metal FEL Containers | F181: 6 | I181: 94-3283464 | J181: 0 | K181: CAPITAL INDUSTRIES INC | M181: 6 YD FEL Container | N181: 2021-05-26 | O181: 2021-05-26 | P181: 2188-21-0018-1 | Q181: 1200 | R181: 14050 | S181: 8147.46 | T181: 14056 | U181: 1753.98 | V181: 6393.48 | W181: 678.96 | X181: 54260 | Y181: 56.58 | Z181: P | AB181: 166599 | AD181: Internal | AE181: A | AF181: SL | AH181: WCNX | AI181: 0 | AJ181: 0 | AK181: 0 | AL181: Garbage Containers | AM181: 5 | AN181: 2021 | AO181: 2033 | AP181: 2033.416667 | AQ181: 56.57958333 | AR181: 678.955 | AS181: 678.955 | AT181: 1131.591667 | AU181: 1810.546667 | AV181: 6336.913333 | AW181: No
B182: 2188 | C182: 253165 | D182: P | E182: 2yd Metal REL Containers | F182: 10 | I182: 94-3283464 | J182: 0 | K182: CAPITAL INDUSTRIES INC | M182: 2 YD REL Container | N182: 2021-05-26 | O182: 2021-05-26 | P182: 2188-21-0018-1 | Q182: 1200 | R182: 14050 | S182: 7033 | T182: 14056 | U182: 1514.04 | V182: 5518.96 | W182: 586.08 | X182: 54260 | Y182: 48.84 | Z182: P | AB182: 166682 | AD182: Internal | AE182: A | AF182: SL | AH182: WCNX | AI182: 0 | AJ182: 0 | AK182: 0 | AL182: Garbage Containers | AM182: 5 | AN182: 2021 | AO182: 2033 | AP182: 2033.416667 | AQ182: 48.84027778 | AR182: 586.0833333 | AS182: 586.0833333 | AT182: 976.8055556 | AU182: 1562.888889 | AV182: 5470.111111 | AW182: No
B183: 2188 | C183: 253164 | D183: P | E183: 2Yd Metal REL Containers | F183: 10 | I183: 94-3283464 | J183: 0 | K183: CAPITAL INDUSTRIES INC | M183: 2 YD REL Container | N183: 2021-05-26 | O183: 2021-05-26 | P183: 2188-21-0018-1 | Q183: 1200 | R183: 14050 | S183: 7033 | T183: 14056 | U183: 1514.04 | V183: 5518.96 | W183: 586.08 | X183: 54260 | Y183: 48.84 | Z183: P | AB183: 166698 | AD183: Internal | AE183: A | AF183: SL | AH183: WCNX | AI183: 0 | AJ183: 0 | AK183: 0 | AL183: Garbage Containers | AM183: 5 | AN183: 2021 | AO183: 2033 | AP183: 2033.416667 | AQ183: 48.84027778 | AR183: 586.0833333 | AS183: 586.0833333 | AT183: 976.8055556 | AU183: 1562.888889 | AV183: 5470.111111 | AW183: No
B184: 2188 | C184: 253163 | D184: P | E184: 2Yd Metal REL Containers | F184: 5 | I184: 94-3283464 | J184: 0 | K184: CAPITAL INDUSTRIES INC | M184: 2 YD REL Container | N184: 2021-05-26 | O184: 2021-05-26 | P184: 2188-21-0018-1 | Q184: 1200 | R184: 14050 | S184: 3516.5 | T184: 14056 | U184: 757.02 | V184: 2759.48 | W184: 293.04 | X184: 54260 | Y184: 24.42 | Z184: P | AB184: 166700 | AD184: Internal | AE184: A | AF184: SL | AH184: WCNX | AI184: 0 | AJ184: 0 | AK184: 0 | AL184: Garbage Containers | AM184: 5 | AN184: 2021 | AO184: 2033 | AP184: 2033.416667 | AQ184: 24.42013889 | AR184: 293.0416667 | AS184: 293.0416667 | AT184: 488.4027778 | AU184: 781.4444444 | AV184: 2735.055556 | AW184: No
B185: 2188 | C185: 253162 | D185: P | E185: 30yd Metal RO Boxes | F185: 10 | I185: 94-3283464 | J185: 0 | K185: CAPITAL INDUSTRIES INC | M185: 30 YD RO Box | N185: 2021-05-26 | O185: 2021-05-26 | P185: 2188-21-0017-1 | Q185: 1200 | R185: 14050 | S185: 63500 | T185: 14056 | U185: 13670.15 | V185: 49829.85 | W185: 5291.67 | X185: 54260 | Y185: 440.97 | Z185: P | AB185: 166706 | AD185: Internal | AE185: A | AF185: SL | AH185: WCNX | AI185: 0 | AJ185: 0 | AK185: 0 | AL185: Drop Boxes | AM185: 5 | AN185: 2021 | AO185: 2033 | AP185: 2033.416667 | AQ185: 440.9722222 | AR185: 5291.666667 | AS185: 5291.666667 | AT185: 8819.444444 | AU185: 14111.11111 | AV185: 49388.88889 | AW185: No
B186: 2188 | C186: 253112 | D186: P | E186: 2020 Peterbilt FEL Truck -Chassis | H186: 3BPDLK0X0LF108674 | J186: 2020 | M186: FEL Truck | N186: 2021-06-30 | O186: 2021-06-30 | P186: 2188-20-0011 | Q186: 1000 | R186: 14040 | S186: 183322.84 | T186: 14046 | U186: 45830.7 | V186: 137492.14 | W186: 18332.28 | X186: 51260 | Y186: 1527.69 | Z186: P | AC186: 2063 | AD186: Internal | AE186: A | AF186: SL | AH186: WCNX | AI186: 0 | AJ186: 0 | AK186: 2063 | AL186: Garbage | AM186: 6 | AN186: 2021 | AO186: 2031 | AP186: 2031.5 | AQ186: 1527.690333 | AR186: 18332.284 | AS186: 18332.284 | AT186: 29026.11633 | AU186: 47358.40033 | AV186: 135964.4397 | AW186: No
B187: 2188 | C187: 253111 | D187: 253112 | E187: 2020 Peterbilt FEL Truck -Body | H187: 3BPDLK0X0LF108674 | J187: 2020 | M187: Non-Rolling Stock | N187: 2021-06-30 | O187: 2021-06-30 | P187: 2188-21-0001 | Q187: 1000 | R187: 14040 | S187: 157373.95 | T187: 14046 | U187: 39343.5 | V187: 118030.45 | W187: 15737.4 | X187: 51260 | Y187: 1311.45 | Z187: P | AD187: Internal | AE187: A | AF187: SL | AH187: WCNX | AI187: 0 | AJ187: 0 | AK187: 2063 | AL187: Garbage | AM187: 6 | AN187: 2021 | AO187: 2031 | AP187: 2031.5 | AQ187: 1311.449583 | AR187: 15737.395 | AS187: 15737.395 | AT187: 24917.54208 | AU187: 40654.93708 | AV187: 116719.0129 | AW187: No
B188: 2188 | C188: 251872 | D188: 253162 | E188: Plastic RO Lids | F188: 25 | J188: 0 | K188: IMPACT PLASTICS CORPORATI | M188: Non-Container Audit | N188: 2021-04-30 | O188: 2021-04-30 | P188: 2188-21-0017-1 | Q188: 1200 | R188: 14050 | S188: 70255 | T188: 14056 | U188: 15612.22 | V188: 54642.78 | W188: 5854.58 | X188: 54260 | Y188: 487.88 | Z188: P | AB188: 101734 | AD188: Internal | AE188: A | AF188: SL | AH188: WCNX | AI188: 0 | AJ188: 0 | AK188: 0 | AL188: Drop Boxes | AM188: 4 | AN188: 2021 | AO188: 2033 | AP188: 2033.333333 | AQ188: 487.8819444 | AR188: 5854.583333 | AS188: 5854.583333 | AT188: 10245.52083 | AU188: 16100.10417 | AV188: 54154.89583 | AW188: No
B189: 2188 | C189: 251601 | D189: P | E189: HP ProBook 630 Serial # 5CD112SS94 | F189: 1 | J189: 0 | K189: CDW | N189: 2021-04-22 | O189: 2021-04-22 | P189: 2188-21-0019-1 | Q189: 300 | R189: 14110 | S189: 1297 | T189: 14116 | U189: 1152.88 | V189: 144.12 | W189: 432.33 | X189: 70260 | Y189: 36.03 | Z189: P | AB189: C183897 | AD189: Internal | AE189: A | AF189: SL | AH189: WCNX | AI189: 0 | AJ189: 0 | AK189: 0 | AL189: Office Equipment | AM189: 4 | AN189: 2021 | AO189: 2024 | AP189: 2024.333333 | AQ189: 36.02777778 | AR189: 432.3333333 | AS189: 432.3333333 | AT189: 756.5833333 | AU189: 1188.916667 | AV189: 108.0833333 | AW189: No
B190: 2188 | C190: 250036 | D190: P | E190: 1.5yd Metal REL Container | F190: 30 | J190: 0 | K190: RULE STEEL TANKS INC | M190: 1.5 YD FEL/REL/SL Metal | N190: 2021-03-10 | O190: 2021-03-10 | P190: 2188-21-0015-1 | Q190: 1200 | R190: 14050 | S190: 17322.82 | T190: 14056 | U190: 4090.11 | V190: 13232.71 | W190: 1443.57 | X190: 54260 | Y190: 120.3 | Z190: P | AB190: 0038793-IN | AD190: Internal | AE190: A | AF190: SL | AH190: WCNX | AI190: 0 | AJ190: 0 | AK190: 0 | AL190: Garbage Containers | AM190: 3 | AN190: 2021 | AO190: 2033 | AP190: 2033.25 | AQ190: 120.2973611 | AR190: 1443.568333 | AS190: 1443.568333 | AT190: 2646.541944 | AU190: 4090.110278 | AV190: 13232.70972 | AW190: No
B191: 2188 | C191: 250035 | D191: P | E191: 1yd Metal REL Container | F191: 30 | J191: 0 | K191: RULE STEEL TANKS INC | M191: 1 YD FEL/REL/SL Metal | N191: 2021-03-10 | O191: 2021-03-10 | P191: 2188-21-0015-1 | Q191: 1200 | R191: 14050 | S191: 16024.42 | T191: 14056 | U191: 3783.5 | V191: 12240.92 | W191: 1335.35 | X191: 54260 | Y191: 111.28 | Z191: P | AB191: 0038793-IN | AD191: Internal | AE191: A | AF191: SL | AH191: WCNX | AI191: 0 | AJ191: 0 | AK191: 0 | AL191: Garbage Containers | AM191: 3 | AN191: 2021 | AO191: 2033 | AP191: 2033.25 | AQ191: 111.2806944 | AR191: 1335.368333 | AS191: 1335.368333 | AT191: 2448.175278 | AU191: 3783.543611 | AV191: 12240.87639 | AW191: No
B192: 2188 | C192: 247914 | D192: P | E192: 65 Gallon Plast MSW totes | F192: 936 | J192: 0 | K192: REHRIG PACIFIC COMPANY IN | M192: Non-Container Audit | N192: 2021-02-26 | O192: 2021-02-26 | P192: 2188-21-0016-1 | Q192: 700 | R192: 14050 | S192: 39041.59 | T192: 14056 | U192: 15802.53 | V192: 23239.06 | W192: 5577.36 | X192: 54260 | Y192: 464.78 | Z192: P | AB192: 50151666 | AD192: Internal | AE192: A | AF192: SL | AH192: WCNX | AI192: 0 | AJ192: 0 | AK192: 0 | AL192: Garbage Carts | AM192: 2 | AN192: 2021 | AO192: 2028 | AP192: 2028.166667 | AQ192: 464.7808333 | AR192: 5577.37 | AS192: 5577.37 | AT192: 10689.95917 | AU192: 16267.32917 | AV192: 22774.26083 | AW192: No
B193: 2188 | C193: 247913 | D193: P | E193: 95 Gallon Plastic MSW Totes | F193: 702 | J193: 0 | K193: REHRIG PACIFIC COMPANY IN | M193: Non-Container Audit | N193: 2021-02-26 | O193: 2021-02-26 | P193: 2188-21-0016-1 | Q193: 700 | R193: 14050 | S193: 33079.01 | T193: 14056 | U193: 13389.12 | V193: 19689.89 | W193: 4725.57 | X193: 54260 | Y193: 393.8 | Z193: P | AB193: 50151999 | AD193: Internal | AE193: A | AF193: SL | AH193: WCNX | AI193: 0 | AJ193: 0 | AK193: 0 | AL193: Garbage Carts | AM193: 2 | AN193: 2021 | AO193: 2028 | AP193: 2028.166667 | AQ193: 393.7977381 | AR193: 4725.572857 | AS193: 4725.572857 | AT193: 9057.347976 | AU193: 13782.92083 | AV193: 19296.08917 | AW193: No
B194: 2188 | C194: 247391 | D194: 212515 | E194: Tommie Vaugh Rebate | J194: 0 | M194: Non-Rolling Stock | N194: 2021-02-01 | O194: 2021-02-01 | P194: 2188-19-0006-1 | Q194: 806 | R194: 14040 | S194: -300 | T194: 14046 | U194: -102.94 | V194: -197.06 | W194: -35.3 | X194: 51260 | Y194: -2.94 | Z194: P | AD194: Internal | AE194: A | AF194: SL | AH194: WCNX | AI194: 0 | AJ194: 0 | AK194: 0 | AL194: Service Equipment | AM194: 2 | AN194: 2021 | AO194: 2029.06 | AP194: 2029.226667 | AQ194: -3.101736973 | AR194: -37.22084367 | AS194: -37.22084367 | AT194: -71.33995037 | AU194: -108.560794 | AV194: -191.439206 | AW194: No
B195: 2188 | C195: 246438 | D195: 241522 | E195: FEL Truck 2062 Decals | J195: 2020 | K195: Big Truck Rental | L195: McNeilus | M195: Non-Rolling Stock | N195: 2021-01-01 | O195: 2021-01-01 | P195: 2188-20-0018-1 | Q195: 800 | R195: 14040 | S195: 952.16 | T195: 14046 | U195: 357.06 | V195: 595.1 | W195: 119.02 | X195: 51260 | Y195: 9.92 | Z195: P | AB195: 27893 | AD195: Internal | AE195: A | AF195: SL | AH195: WCNX | AI195: 0 | AJ195: 0 | AK195: 2062 | AL195: Garbage | AM195: 1 | AN195: 2021 | AO195: 2029 | AP195: 2029.083333 | AQ195: 9.918333333 | AR195: 119.02 | AS195: 119.02 | AT195: 238.04 | AU195: 357.06 | AV195: 595.1 | AW195: No
B196: 2188 | C196: 246437 | D196: 242815 | E196: ASL Truck 3714 Decals | J196: 0 | K196: Larsen Sign Co. | M196: Non-Rolling Stock | N196: 2021-01-01 | O196: 2021-01-01 | P196: 2188-20-0010-1 | Q196: 1000 | R196: 14040 | S196: 984.62 | T196: 14046 | U196: 295.35 | V196: 689.27 | W196: 98.45 | X196: 51260 | Y196: 8.2 | Z196: P | AB196: 27966 | AD196: Internal | AE196: A | AF196: SL | AH196: WCNX | AI196: 0 | AJ196: 0 | AK196: 3714 | AL196: Garbage | AM196: 1 | AN196: 2021 | AO196: 2031 | AP196: 2031.083333 | AQ196: 8.205166667 | AR196: 98.462 | AS196: 98.462 | AT196: 196.924 | AU196: 295.386 | AV196: 689.234 | AW196: No
B197: 2188 | C197: 244671 | D197: 241522 | E197: License & Use Tax | J197: 2020 | K197: Big Truck Rental | L197: McNeilus | M197: Non-Rolling Stock | N197: 2020-12-08 | O197: 2020-12-08 | P197: 2188-20-0018-1 | Q197: 800 | R197: 14040 | S197: 2442.65 | T197: 14046 | U197: 941.44 | V197: 1501.21 | W197: 305.33 | X197: 51260 | Y197: 25.44 | Z197: P | AB197: C33949V-5 | AD197: Internal | AE197: A | AF197: SL | AH197: WCNX | AI197: 0 | AJ197: 0
B198: 2188 | C198: 244670 | D198: 241522 | E198: License & Use Tax | J198: 2020 | K198: Big Truck Rental | L198: McNeilus | M198: Non-Rolling Stock | N198: 2020-12-08 | O198: 2020-12-08 | P198: 2188-20-0018-1 | Q198: 800 | R198: 14040 | S198: 5150 | T198: 14046 | U198: 1984.9 | V198: 3165.1 | W198: 643.75 | X198: 51260 | Y198: 53.65 | Z198: P | AB198: C33949V-4 | AD198: Internal | AE198: A | AF198: SL | AH198: WCNX | AI198: 0 | AJ198: 0
B199: 2188 | C199: 244669 | D199: 241522 | E199: License & Use Tax | J199: 2020 | K199: Big Truck Rental | L199: McNeilus | M199: Non-Rolling Stock | N199: 2020-12-08 | O199: 2020-12-08 | P199: 2188-20-0018-1 | Q199: 800 | R199: 14040 | S199: 5150 | T199: 14046 | U199: 1984.9 | V199: 3165.1 | W199: 643.75 | X199: 51260 | Y199: 53.65 | Z199: P | AB199: C33949V-3 | AD199: Internal | AE199: A | AF199: SL | AH199: WCNX | AI199: 0 | AJ199: 0
B200: 2188 | C200: 244668 | D200: 241522 | E200: License & Use Tax | J200: 2020 | K200: Big Truck Rental | L200: McNeilus | M200: Non-Rolling Stock | N200: 2020-12-08 | O200: 2020-12-08 | P200: 2188-20-0018-1 | Q200: 800 | R200: 14040 | S200: 5150 | T200: 14046 | U200: 1984.9 | V200: 3165.1 | W200: 643.75 | X200: 51260 | Y200: 53.65 | Z200: P | AB200: C33949V-2 | AD200: Internal | AE200: A | AF200: SL | AH200: WCNX | AI200: 0 | AJ200: 0
... 380 more rows

Sheet FAR Dep Summary
A1: Pre 2021 Add? | B1: No | D1: LIVE PIVOT
A3: Row Labels | B3: Sum of Cost | C3: Sum of Test Year Depreciation | D3: Sum of BOY Accum | E3: Sum of EOY Accum | F3: Sum of EOY Average Investment
A4: Drop Boxes | B4: 971399.33 | C4: 62558.75 | D4: 273421.5175 | E4: 335980.2675 | F4: 635419.0625
A5: Garbage | B5: 3597885.03 | C5: 332342.4933 | D5: 704994.7884 | E5: 1037337.282 | F5: 2560547.748
A6: Garbage Carts | B6: 525841.88 | C6: 73761.53857 | D6: 66879.90583 | E6: 140641.4444 | F6: 385200.4356
A7: Garbage Containers | B7: 589902.33 | C7: 45112.13 | D7: 85162.29521 | E7: 130274.4252 | F7: 459627.9048
A8: Office Equipment | B8: 2469.63 | C8: 823.21 | D8: 1082.313889 | E8: 1905.523889 | F8: 564.1061111
A9: Recycling | B9: 270629.43 | C9: 18603.89 | D9: 151316.7724 | E9: 169920.6624 | F9: 100708.7676
A10: Roll Off | B10: 376378.51 | C10: 59865.11167 | D10: 63479.38294 | E10: 123344.4946 | F10: 253034.0154
A11: Service Equipment | B11: 103290.89 | C11: 14248.27516 | D11: 35098.07988 | E11: 49808.35087 | F11: 53482.53913
A12: Yard Waste | B12: 44290.18 | C12: 6327.168571 | D12: 4278.154286 | E12: 10605.32286 | F12: 33684.85714
A13: Residential Recycling | B13: 133500 | C13: 0 | D13: 133500 | E13: 133500 | F13: 0
A14: Grand Total | B14: 6615587.21 | C14: 613642.5673 | D14: 1519213.21 | E14: 2133317.773 | F14: 4482269.437
A16: PASTED VALUES
A17: Row Labels | B17: Sum of Cost | C17: Sum of Test Year Depreciation | D17: Sum of BOY Accum | E17: Sum of EOY Accum | F17: Sum of EOY Average Investment
A18: Drop Boxes | B18: 971399.33 | C18: 62558.75 | D18: 273421.5175 | E18: 335980.2675 | F18: 635419.0625
A19: Garbage | B19: 3597885.03 | C19: 332342.4933 | D19: 704994.7884 | E19: 1037337.282 | F19: 2560547.748
A20: Garbage Carts | B20: 525841.88 | C20: 73761.53857 | D20: 66879.90583 | E20: 140641.4444 | F20: 385200.4356
A21: Garbage Containers | B21: 589902.33 | C21: 45112.13 | D21: 85162.29521 | E21: 130274.4252 | F21: 459627.9048
A22: Office Equipment | B22: 2469.63 | C22: 823.21 | D22: 1082.313889 | E22: 1905.523889 | F22: 564.1061111
A23: Recycling | B23: 270629.43 | C23: 18603.89 | D23: 151316.7724 | E23: 169920.6624 | F23: 100708.7676
A24: Roll Off | B24: 376378.51 | C24: 59865.11167 | D24: 63479.38294 | E24: 123344.4946 | F24: 253034.0154
A25: Service Equipment | B25: 103290.89 | C25: 14248.27516 | D25: 35098.07988 | E25: 49808.35087 | F25: 53482.53913
A26: Yard Waste | B26: 44290.18 | C26: 6327.168571 | D26: 4278.154286 | E26: 10605.32286 | F26: 33684.85714
A27: Residential Recycling | B27: 133500 | C27: 0 | D27: 133500 | E27: 133500 | F27: 0
A28: Grand Total | B28: =SUM(B18:B27) -> 6615587.21 | C28: =SUM(C18:C27) -> 613642.5673 | D28: =SUM(D18:D27) -> 1519213.21 | E28: =SUM(E18:E27) -> 2133317.773 | F28: =SUM(F18:F27) -> 4482269.437
B29: =B14-B28 -> 0 | C29: =C14-C28 -> 0 | D29: =D14-D28 -> 0 | E29: =E14-E28 -> 0 | F29: =F14-F28 -> 0

Sheet Bud Capital Input 2024
D1: Column Definitions
R2: TruckRequest#
A3: PONum_Modified | B3: CurrentProjectNumber_FPS | C3: ProjectNumber_FPS | E3: DeleteFlag | F3: BusinessUnitCode | G3: PoNumber | H3: PoItemNumber | I3: ProjectName_FPS | J3: ItemDescription | K3: Explanation | M3: AssetType | N3: AssetSubType | O3: Life | P3: AddReplace | Q3: Condition | R3: TruckCenterNum ValueList:RequestedTruckList | S3: Jan | T3: Feb | U3: Mar | V3: Apr | W3: May | X3: Jun | Y3: Jul | Z3: Aug | AA3: Sep | AB3: Oct | AC3: Nov | AD3: Dec | AH3: FASNum | AJ3: ReplacementNotes | AK3: EquipmentNum | AL3: EquipmentModelYear | AN3: FileLink hlink:FileLink
C4: CurrentProjectNumber_FPS | H4: PoItemNumber | AP4: MessageToUser
D5: Formatting Range
A6: =IF(AND(C6<>"", B6<>C6),TRUE, FALSE) -> FALSE | B6: =IF(RIGHT("0000"&G6,4)&"-"&H6 <> "0000-", RIGHT("0000"&G6,4)&"-"&H6, "") ->  | D6: 1 | AF6: =SUM(S6:AD6) -> 0 | AR6: =IF(R6="", "", R6) ->  | AS6: =IFERROR(VLOOKUP($AR6,[1]TruckCenterReference!$C$23:$I32,3,FALSE), "") ->  | AT6: =IF(R6<>"",IF(AS6<>I6,"Review","ok"), "") ->  | AV6: =IFERROR(VLOOKUP($AR6,[1]TruckCenterReference!$C$23:$I32,4,FALSE), "") ->  | AW6: =IF(R6="","", IF($AV6<>$Q6, "Fix!", "OK")) ->  | AY6: =IFERROR(VLOOKUP(N6,SubtypeToTruckType,2,FALSE),"") ->  | AZ6: =IFERROR(VLOOKUP($AR6,[1]TruckCenterReference!$C$23:$I32,6,FALSE), "") ->  | BA6: =IF(R6<>"",IF(AY6<>AZ6,"Fix!","ok"), "") ->  | BC6: =IFERROR(VLOOKUP($AR6,[1]TruckCenterReference!$C$23:$I32,7,FALSE), 0) -> 0 | BD6: =IFERROR(VLOOKUP($AR6,[1]TruckCenterReference!$C$23:$K32,9,FALSE), 0) -> 0 | BE6: =IFERROR(VLOOKUP($AR6,[1]TruckCenterReference!$C$23:$K32,8,FALSE), 0) -> 0 | BF6: =IF(BC6<>0,BC6-AF6-BE6,"") ->  | BG6: =IF(R6="","",IF(ABS(BF6)>3000,IF(RIGHT(N6,4)="Body","Review","Fix!"),"OK")) -> 
D7: Report Formulas
F8: Pull | M8: =_xll.jFreezePanes(J29,D22) -> > jFreezePanes is ready.
E9: Clear Hash: | F9: =_xll.ReportDefaults("Pull","Clear",_xll.PairGroup(_xll.Pair("",H18))) -> OK!: ReportDefaults Formula OK [jAction{}] | L9: CC Query Drill: | M9: =_xll.ReportDrill(,"CCQueryDrill",_xll.PairGroup(_xll.Pair(L18,"SummaryLevel"),_xll.Pair(I24,"BudYear"),_xll.Pair(I23,"DistrictCell"),_xll.Pair(C30:C84,"PONumber"),_xll.Pair(G20:AP20)),"Drill to CC Query for Change History") -> OK!: ReportDrill 'Drill to CC Query for Change History' Formula OK [jAction{}]
E10: Pull AssetTypeList: | F10: =_xll.ReportRun([1]AssetTypeList!C7,FALSE,"Pull") -> OK!: ReportRun Formula OK [jAction{}]
E11: Pull - BudCap: | F11: =_xll.ReportRange("BudgetCapitalDetailPull",30:58,C3:BF3,C6:BF6,_xll.Param(I23,I24,H18,O18,L19)) -> OK!: ReportRange Formula OK [jAction{}] | AH11: FASNum | AI11: FASDescription
E12: Pull - FAS: | F12: =_xll.ReportFixed("BudCap1",AH30:AH58,AH11:AI11,_xll.Param(DetailBudYear, DetailDistrict)) -> OK!: ReportFixed Formula OK [jAction{}]
F13: =_xll.ReportRun([1]TruckCenterReference!F16,,"Pull") -> OK!: ReportRun Formula OK [jAction{}]
F14: Save
E15: Save: | F15: =_xll.ReportSave("BudgetCapitalDetailSave",F30:F58,A3:AN3,C4:AP4,_xll.Param(I23,I24,H18,O18)) -> OK!: ReportSave Formula OK [jAction{}]
D17: Hidden Parameters & Notes
A18: Repull?: | B18: =IFERROR(OR(A30:A58),FALSE) -> FALSE | G18: FilterHash: | H18: 44FC3F5321BC42270F210C90C44071 | K18: CC Query Summary Level: | L18: By Change | N18: Exclude Items: | O18: 2
B19: =IF(B18=TRUE,"Save","SkipRePull") -> SkipRePull | K19: Pull Blank Rows: | L19: Yes
G20: For Drill | H20: For Drill | I20: For Drill | J20: For Drill | K20: For Drill | M20: For Drill | N20: For Drill | O20: For Drill | P20: For Drill | Q20: For Drill | R20: For Drill | S20: For Drill | T20: For Drill | U20: For Drill | V20: For Drill | W20: For Drill | X20: For Drill | Y20: For Drill | Z20: For Drill | AA20: For Drill | AB20: For Drill | AC20: For Drill | AD20: For Drill | AF20: For Drill | AH20: For Drill | AK20: For Drill | AL20: For Drill | AN20: For Drill | AP20: For Drill
D21: Report Area Below
H23: Dist / Div / Reg: | I23: 2188
H24: Budget Year: | I24: 2024
M25: IMPORTANT: Pull your district(s) BEFORE inputting. This will auto create new lines for you and prepare the page for input. | AR25: Recon Check Against Garage
E26: CAPITAL DETAIL
AG27: Replacement Info | AS27: Suggested | AV27: New / Used | AY27: Truck Type | AZ27: Truck Type | BC27: Truck Cost
E28: Delete on Save | F28: Dist. | G28: PO # | H28: Item # | I28: PO Description (Required) | J28: PO Item Description | K28: PO Explanation | M28: Asset Type | N28: SubType | O28: Life | P28: A / R | Q28: N / U | R28: Truck # | S28: 2010-01-31 | T28: 2010-02-28 | U28: 2010-03-31 | V28: 2010-04-30 | W28: 2010-05-31 | X28: 2010-06-30 | Y28: 2010-07-31 | Z28: 2010-08-31 | AA28: 2010-09-30 | AB28: 2010-10-31 | AC28: 2010-11-30 | AD28: 2010-12-31 | AF28: Total | AH28: FAS # | AI28: FAS Description | AJ28: Replacement Notes | AK28: Site Eq # | AL28: Model Year | AN28: Folder/File Link | AP28: Save Message | AR28: Truck # | AS28: PO Description | AT28: Note | AV28: Garage | AW28: Note* | AY28: PO Center | AZ28: Garage | BA28: Note | BC28: Garage $ | BD28: Prior PO | BE28: Prior PO $ | BF28: Variance | BG28: Note*
A30: =IF(AND(C30<>"", B30<>C30),TRUE, FALSE) -> FALSE | B30: =IF(RIGHT("0000"&G30,4)&"-"&H30 <> "0000-", RIGHT("0000"&G30,4)&"-"&H30, "") -> 0001-1 | C30: 0001-1 | D30: 1 | E30: $115,000 of containers will arrive before May 1st. | F30: 2188 | G30: 1 | H30: 1 | I30: Containers Various | J30: Various Containers | K30: Site spent $675k on containers in 2023, and $505k in 2022. Site has seen growth in all lines of business as well as increase in cost of containers. Site anticipates similar spend to 2023 with 100k anticipated for roll out of east end Lewis county recucling program. Plastic carts are expected to cost $181k and metal containers will cost $493k for a combined $775k for containers. | M30: Containers | N30: Toter – Plastic | O30: 7 | P30: R | Q30: N | S30: 168750 | T30: 0 | U30: 0 | V30: 168750 | W30: 0 | X30: 0 | Y30: 168750 | Z30: 0 | AA30: 0 | AB30: 168750 | AC30: 0 | AD30: 0 | AF30: =SUM(S30:AD30) -> 675000 | AJ30: Site spent $675k on containers in 2023, and $505k in 2022. Site has seen growth in all lines of business as well as increase in cost of containers. Site anticipates similar spend to 2023 with 100k anticipated for roll out of east end Lewis county recucling program. Plastic carts are expected to cost $181k and metal containers will cost $493k for a combined $775k for containers. | AN30: =HYPERLINK("\\WEST-FILE01\DistShares\2000 Western Region Office\ControllerDir\KevinJ\South LeMay\Budget History\Budget 2024\2183-2184\Capex Support","\\WEST-FILE01\DistShares\2000 Western Region Office\ControllerDir\KevinJ\South LeMay\Budget History\Budget 2024\2183-2184\Capex Support") -> \\WEST-FILE01\DistShares\2000 Western Region Office\ControllerDir\KevinJ\South LeMay\Budget History\Budget 2024\2183-2184\Capex Support | AR30: =IF(R30="", "", R30) ->  | AS30: =IFERROR(VLOOKUP($AR30,[1]TruckCenterReference!$C$23:$I56,3,FALSE), "") ->  | AT30: =IF(R30<>"",IF(AS30<>I30,"Review","ok"), "") ->  | AV30: =IFERROR(VLOOKUP($AR30,[1]TruckCenterReference!$C$23:$I56,4,FALSE), "") ->  | AW30: =IF(R30="","", IF($AV30<>$Q30, "Fix!", "OK")) ->  | AY30: =IFERROR(VLOOKUP(N30,SubtypeToTruckType,2,FALSE),"") ->  | AZ30: =IFERROR(VLOOKUP($AR30,[1]TruckCenterReference!$C$23:$I56,6,FALSE), "") ->  | BA30: =IF(R30<>"",IF(AY30<>AZ30,"Fix!","ok"), "") ->  | BC30: =IFERROR(VLOOKUP($AR30,[1]TruckCenterReference!$C$23:$I56,7,FALSE), 0) -> 0 | BD30: =IFERROR(VLOOKUP($AR30,[1]TruckCenterReference!$C$23:$K56,9,FALSE), 0) -> 0 | BE30: =IFERROR(VLOOKUP($AR30,[1]TruckCenterReference!$C$23:$K56,8,FALSE), 0) -> 0 | BF30: =IF(BC30<>0,BC30-AF30-BE30,"") ->  | BG30: =IF(R30="","",IF(ABS(BF30)>3000,IF(RIGHT(N30,4)="Body","Review","Fix!"),"OK")) -> 
A31: FALSE | B31: 0002-1 | C31: 0002-1 | D31: 1 | F31: 2188 | G31: 2 | H31: 1 | I31: 24 Pre Order - New ASL Peterbilt 520 RH Only Diesel / Labrie Automizer Full Eject | J31: New ASL Peterbilt 520 RH Only Diesel / Labrie Automizer Full Eject | K31: Site is looking to add a new ASL to service the newly added East Lewis county area. An additional truck would be needed to add the routes as planned. | M31: New Trucks | N31: Sideloader | O31: 10 | P31: A | Q31: N | R31: 18465 | S31: 501594 | T31: 0 | U31: 0 | V31: 0 | W31: 0 | X31: 0 | Y31: 0 | Z31: 0 | AA31: 0 | AB31: 0 | AC31: 0 | AD31: 0 | AF31: 501594 | AH31: 299485 | AI31: 2007 Type H TSide ASL | AJ31: Site is looking to add a new ASL to service the newly added East Lewis county area. An additional truck would be needed to add the routes as planned. | AN31: \\WEST-FILE01\DistShares\2000 Western Region Office\ControllerDir\KevinJ\South LeMay\Budget History\Budget 2024\2183-2184\Capex Support | AP31: Garbage | AR31: 18465 | AS31: =IFERROR(VLOOKUP($AR31,[1]TruckCenterReference!$C$23:$I57,3,FALSE), "") ->  | AT31: Review | AV31: =IFERROR(VLOOKUP($AR31,[1]TruckCenterReference!$C$23:$I57,4,FALSE), "") ->  | AW31: Fix! | AY31: Sideloader | AZ31: =IFERROR(VLOOKUP($AR31,[1]TruckCenterReference!$C$23:$I57,6,FALSE), "") ->  | BA31: Fix! | BC31: =IFERROR(VLOOKUP($AR31,[1]TruckCenterReference!$C$23:$I57,7,FALSE), 0) -> 0 | BD31: =IFERROR(VLOOKUP($AR31,[1]TruckCenterReference!$C$23:$K57,9,FALSE), 0) -> 0 | BE31: =IFERROR(VLOOKUP($AR31,[1]TruckCenterReference!$C$23:$K57,8,FALSE), 0) -> 0
A32: FALSE | B32: 0003-1 | C32: 0003-1 | D32: 1 | F32: 2188 | G32: 3 | H32: 1 | I32: 24 Pre Order - New ASL Peterbilt 520 RH Only Diesel / Labrie Automizer Full Eject | J32: New ASL Peterbilt 520 RH Only Diesel / Labrie Automizer Full Eject | K32: Site is looking to replace Truck#3601. Truck is a 2007 Pete 320 / Curbtender. Over the last year the maintnence cost for this truck was $13.7k. The chassis and body are poor. The truck will need partial floor reline and arm repair within the upcoming 12 months. The engine has fuel in oil. Truck has 225k miles and 27k hours of run time on it. | M32: New Trucks | N32: Sideloader | O32: 10 | P32: R | Q32: N | R32: 18653 | S32: 0 | T32: 0 | U32: 0 | V32: 0 | W32: 0 | X32: 501594 | Y32: 0 | Z32: 0 | AA32: 0 | AB32: 0 | AC32: 0 | AD32: 0 | AF32: 501594 | AH32: 299485 | AJ32: Site is looking to replace Truck#3601. Truck is a 2007 Pete 320 / Curbtender. Over the last year the maintnence cost for this truck was $13.7k. The chassis and body are poor. The truck will need partial floor reline and arm repair within the upcoming 12 months. The engine has fuel in oil. Truck has 225k miles and 27k hours of run time on it. | AK32: 3601 | AL32: 2007 | AN32: \\WEST-FILE01\DistShares\2000 Western Region Office\ControllerDir\KevinJ\South LeMay\Budget History\Budget 2024\2183-2184\Capex Support | AP32: Garbage | AR32: 18653 | AS32: =IFERROR(VLOOKUP($AR32,[1]TruckCenterReference!$C$23:$I58,3,FALSE), "") ->  | AT32: Review | AV32: =IFERROR(VLOOKUP($AR32,[1]TruckCenterReference!$C$23:$I58,4,FALSE), "") ->  | AW32: Fix! | AY32: Sideloader | AZ32: =IFERROR(VLOOKUP($AR32,[1]TruckCenterReference!$C$23:$I58,6,FALSE), "") ->  | BA32: Fix! | BC32: =IFERROR(VLOOKUP($AR32,[1]TruckCenterReference!$C$23:$I58,7,FALSE), 0) -> 0 | BD32: =IFERROR(VLOOKUP($AR32,[1]TruckCenterReference!$C$23:$K58,9,FALSE), 0) -> 0 | BE32: =IFERROR(VLOOKUP($AR32,[1]TruckCenterReference!$C$23:$K58,8,FALSE), 0) -> 0
A33: FALSE | B33: 0004-1 | C33: 0004-1 | D33: 1 | F33: 2188 | G33: 4 | H33: 1 | I33: New REL Freightliner M2 106 62K GVW/ Labrie Leach 2R3 | J33: New REL Freightliner M2 106 62K GVW/ Labrie Leach 2R3 | K33: Site is looking to replace Truck#1035.Truck is a 2002 International RearLoader. Over the last year the monthly maintnence cost for this truck was $6.2k. The engine is tired, the bed needs a new floor, the back is rusted and there is poor visibility out of the cab.Truck has over 264k miles and 30.3k hours of run time. | M33: New Trucks | N33: Rear Load | O33: 10 | P33: R | Q33: N | R33: 18656 | S33: 0 | T33: 0 | U33: 0 | V33: 348386 | W33: 0 | X33: 0 | Y33: 0 | Z33: 0 | AA33: 0 | AB33: 0 | AC33: 0 | AD33: 0 | AF33: 348386 | AH33: 306555 | AI33: 2002 Type H Rear REL | AJ33: Site is looking to replace Truck#1035.Truck is a 2002 International RearLoader. Over the last year the monthly maintnence cost for this truck was $6.2k. The engine is tired, the bed needs a new floor, the back is rusted and there is poor visibility out of the cab.Truck has over 264k miles and 30.3k hours of run time. | AK33: 1035 | AL33: 2002 | AN33: \\WEST-FILE01\DistShares\2000 Western Region Office\ControllerDir\KevinJ\South LeMay\Budget History\Budget 2024\2183-2184\Capex Support | AP33: Garbage | AR33: 18656 | AS33: =IFERROR(VLOOKUP($AR33,[1]TruckCenterReference!$C$23:$I59,3,FALSE), "") ->  | AT33: Review | AV33: =IFERROR(VLOOKUP($AR33,[1]TruckCenterReference!$C$23:$I59,4,FALSE), "") ->  | AW33: Fix! | AY33: Rear Loader | AZ33: =IFERROR(VLOOKUP($AR33,[1]TruckCenterReference!$C$23:$I59,6,FALSE), "") ->  | BA33: Fix! | BC33: =IFERROR(VLOOKUP($AR33,[1]TruckCenterReference!$C$23:$I59,7,FALSE), 0) -> 0 | BD33: =IFERROR(VLOOKUP($AR33,[1]TruckCenterReference!$C$23:$K59,9,FALSE), 0) -> 0 | BE33: =IFERROR(VLOOKUP($AR33,[1]TruckCenterReference!$C$23:$K59,8,FALSE), 0) -> 0
A34: FALSE | B34: 0005-1 | C34: 0005-1 | D34: 1 | F34: 2188 | G34: 5 | H34: 1 | I34: New ASL Peterbilt 520 RH Only Diesel / Labrie Automizer Full Eject | J34: New ASL Peterbilt 520 RH Only Diesel / Labrie Automizer Full Eject | K34: Site is looking to replace Truck#3065. Truck is a 2007 Pete 320 / Curbtender. Over the last year the maintnence cost was $14.3k. The body and chassis are poor and will need a partial floor reline and arm repair. The truck has 251k miles on it with 29.5k hours of run time. | M34: New Trucks | N34: Sideloader | O34: 10 | P34: R | Q34: N | R34: 18757 | S34: 0 | T34: 0 | U34: 0 | V34: 0 | W34: 0 | X34: 0 | Y34: 0 | Z34: 0 | AA34: 501594 | AB34: 0 | AC34: 0 | AD34: 0 | AF34: 501594 | AH34: 61122 | AJ34: Site is looking to replace Truck#3065. Truck is a 2007 Pete 320 / Curbtender. Over the last year the maintnence cost was $14.3k. The body and chassis are poor and will need a partial floor reline and arm repair. The truck has 251k miles on it with 29.5k hours of run time. | AK34: 3605 | AL34: 2007 | AN34: \\WEST-FILE01\DistShares\2000 Western Region Office\ControllerDir\KevinJ\South LeMay\Budget History\Budget 2024\2183-2184\Capex Support | AP34: Garbage | AR34: 18757 | AS34: =IFERROR(VLOOKUP($AR34,[1]TruckCenterReference!$C$23:$I60,3,FALSE), "") ->  | AT34: Review | AV34: =IFERROR(VLOOKUP($AR34,[1]TruckCenterReference!$C$23:$I60,4,FALSE), "") ->  | AW34: Fix! | AY34: Sideloader | AZ34: =IFERROR(VLOOKUP($AR34,[1]TruckCenterReference!$C$23:$I60,6,FALSE), "") ->  | BA34: Fix! | BC34: =IFERROR(VLOOKUP($AR34,[1]TruckCenterReference!$C$23:$I60,7,FALSE), 0) -> 0 | BD34: =IFERROR(VLOOKUP($AR34,[1]TruckCenterReference!$C$23:$K60,9,FALSE), 0) -> 0 | BE34: =IFERROR(VLOOKUP($AR34,[1]TruckCenterReference!$C$23:$K60,8,FALSE), 0) -> 0
A35: FALSE | B35: 0006-1 | C35: 0006-1 | D35: 1 | F35: 2188 | G35: 6 | H35: 1 | I35: Delivery Truck | J35: Delivery Truck | K35: Site is looking to replace delivery truck 9571. Truck is a 2005 Iszu delivery truck for various types of containers. The engine is tired and there is fuel in oil. The bed needs a new floor and the lift gate is worn out, which does not allow for metal containers to be delivered. Over the past year, the maintnence cost was $9.6k. Truck has 263k miles on it. | M35: New Trucks | N35: Pickup | O35: 10 | P35: R | Q35: N | R35: 18658 | S35: 0 | T35: 0 | U35: 0 | V35: 0 | W35: 106974 | X35: 0 | Y35: 0 | Z35: 0 | AA35: 0 | AB35: 0 | AC35: 0 | AD35: 0 | AF35: 106974 | AH35: 90436 | AI35: 2005 Isuzu Delivery Truck | AJ35: Site is looking to replace delivery truck 9571. Truck is a 2005 Iszu delivery truck for various types of containers. The engine is tired and there is fuel in oil. The bed needs a new floor and the lift gate is worn out, which does not allow for metal containers to be delivered. Over the past year, the maintnence cost was $9.6k. Truck has 263k miles on it. | AK35: 9571 | AL35: 2005 | AN35: \\WEST-FILE01\DistShares\2000 Western Region Office\ControllerDir\KevinJ\South LeMay\Budget History\Budget 2024\2183-2184\Capex Support | AP35: Container Delivery | AR35: 18658 | AS35: =IFERROR(VLOOKUP($AR35,[1]TruckCenterReference!$C$23:$I61,3,FALSE), "") ->  | AT35: Review | AV35: =IFERROR(VLOOKUP($AR35,[1]TruckCenterReference!$C$23:$I61,4,FALSE), "") ->  | AW35: Fix! | AY35: Pickup | AZ35: =IFERROR(VLOOKUP($AR35,[1]TruckCenterReference!$C$23:$I61,6,FALSE), "") ->  | BA35: Fix! | BC35: =IFERROR(VLOOKUP($AR35,[1]TruckCenterReference!$C$23:$I61,7,FALSE), 0) -> 0 | BD35: =IFERROR(VLOOKUP($AR35,[1]TruckCenterReference!$C$23:$K61,9,FALSE), 0) -> 0 | BE35: =IFERROR(VLOOKUP($AR35,[1]TruckCenterReference!$C$23:$K61,8,FALSE), 0) -> 0
A36: FALSE | B36: 0010-1 | C36: 0010-1 | D36: 1 | F36: 2188 | G36: 10 | H36: 1 | I36: 23 Rollover - New REL Peterbilt 520 / Labrie Body Alpha III | J36: 23 Rollover - New REL Peterbilt 520 / Labrie Body Alpha III | K36: Requesting a new REL truck to replace #1060 - 2007 - Type H. Single axel, Changing to tandem due to weight. Bed is worn out. Truck has 290k miles on it, and 24k service hours. Truck condition is poor. | M36: New Trucks | N36: Rear Load | O36: 10 | P36: R | Q36: N | S36: 0 | T36: 175652 | U36: 0 | V36: 0 | W36: 0 | X36: 0 | Y36: 0 | Z36: 0 | AA36: 0 | AB36: 0 | AC36: 0 | AD36: 0 | AF36: 175652 | AH36: 61400 | AI36: 2007 Type H Rear REL | AJ36: Requesting a new REL truck to replace #1060 - 2007 - Type H. Single axel, Changing to tandem due to weight. Bed is worn out. Truck has 290k miles on it, and 24k service hours. Truck condition is poor. | AK36: 1060 | AL36: 2007 | AP36: Residential Recycling | AS36: =IFERROR(VLOOKUP($AR36,[1]TruckCenterReference!$C$23:$I62,3,FALSE), "") ->  | AV36: =IFERROR(VLOOKUP($AR36,[1]TruckCenterReference!$C$23:$I62,4,FALSE), "") ->  | AY36: Rear Loader | AZ36: =IFERROR(VLOOKUP($AR36,[1]TruckCenterReference!$C$23:$I62,6,FALSE), "") ->  | BC36: =IFERROR(VLOOKUP($AR36,[1]TruckCenterReference!$C$23:$I62,7,FALSE), 0) -> 0 | BD36: =IFERROR(VLOOKUP($AR36,[1]TruckCenterReference!$C$23:$K62,9,FALSE), 0) -> 0 | BE36: =IFERROR(VLOOKUP($AR36,[1]TruckCenterReference!$C$23:$K62,8,FALSE), 0) -> 0
A37: FALSE | B37: 0011-1 | C37: 0011-1 | D37: 1 | F37: 2188 | G37: 11 | H37: 1 | I37: (1,500) 96 Gal Recy Carts (East End UTC Rollout) | J37: (1,500) 96 Gal Recy Carts (East End UTC Rollout) | K37: Rolling out a commingle program for the East side of Lewis County. Mandatory payment for every customer totaling $X in monthly revenue | M37: Containers | N37: Toter – Plastic | O37: 7 | P37: A | Q37: N | S37: 0 | T37: 0 | U37: 100000 | V37: 0 | W37: 0 | X37: 0 | Y37: 0 | Z37: 0 | AA37: 0 | AB37: 0 | AC37: 0 | AD37: 0 | AF37: 100000 | AJ37: Rolling out a commingle program for the East side of Lewis County. Mandatory payment for every customer totaling $X in monthly revenue | AP37: Recycling | AS37: =IFERROR(VLOOKUP($AR37,[1]TruckCenterReference!$C$23:$I63,3,FALSE), "") ->  | AV37: =IFERROR(VLOOKUP($AR37,[1]TruckCenterReference!$C$23:$I63,4,FALSE), "") ->  | AZ37: =IFERROR(VLOOKUP($AR37,[1]TruckCenterReference!$C$23:$I63,6,FALSE), "") ->  | BC37: =IFERROR(VLOOKUP($AR37,[1]TruckCenterReference!$C$23:$I63,7,FALSE), 0) -> 0 | BD37: =IFERROR(VLOOKUP($AR37,[1]TruckCenterReference!$C$23:$K63,9,FALSE), 0) -> 0 | BE37: =IFERROR(VLOOKUP($AR37,[1]TruckCenterReference!$C$23:$K63,8,FALSE), 0) -> 0
A38: FALSE | D38: 1 | E38: $14k wet kit was non budgeted but will happen before rate case. | S38: 0 | T38: 0 | U38: 0 | V38: 0 | W38: 0 | X38: 0 | Y38: 0 | Z38: 0 | AA38: 0 | AB38: 0 | AC38: 0 | AD38: 0 | AF38: 0 | AS38: =IFERROR(VLOOKUP($AR38,[1]TruckCenterReference!$C$23:$I64,3,FALSE), "") ->  | AV38: =IFERROR(VLOOKUP($AR38,[1]TruckCenterReference!$C$23:$I64,4,FALSE), "") ->  | AZ38: =IFERROR(VLOOKUP($AR38,[1]TruckCenterReference!$C$23:$I64,6,FALSE), "") ->  | BC38: =IFERROR(VLOOKUP($AR38,[1]TruckCenterReference!$C$23:$I64,7,FALSE), 0) -> 0 | BD38: =IFERROR(VLOOKUP($AR38,[1]TruckCenterReference!$C$23:$K64,9,FALSE), 0) -> 0 | BE38: =IFERROR(VLOOKUP($AR38,[1]TruckCenterReference!$C$23:$K64,8,FALSE), 0) -> 0
A39: FALSE | D39: 1 | S39: 0 | T39: 0 | U39: 0 | V39: 0 | W39: 0 | X39: 0 | Y39: 0 | Z39: 0 | AA39: 0 | AB39: 0 | AC39: 0 | AD39: 0 | AF39: 0 | AS39: =IFERROR(VLOOKUP($AR39,[1]TruckCenterReference!$C$23:$I65,3,FALSE), "") ->  | AV39: =IFERROR(VLOOKUP($AR39,[1]TruckCenterReference!$C$23:$I65,4,FALSE), "") ->  | AZ39: =IFERROR(VLOOKUP($AR39,[1]TruckCenterReference!$C$23:$I65,6,FALSE), "") ->  | BC39: =IFERROR(VLOOKUP($AR39,[1]TruckCenterReference!$C$23:$I65,7,FALSE), 0) -> 0 | BD39: =IFERROR(VLOOKUP($AR39,[1]TruckCenterReference!$C$23:$K65,9,FALSE), 0) -> 0 | BE39: =IFERROR(VLOOKUP($AR39,[1]TruckCenterReference!$C$23:$K65,8,FALSE), 0) -> 0
A40: FALSE | D40: 1 | S40: 0 | T40: 0 | U40: 0 | V40: 0 | W40: 0 | X40: 0 | Y40: 0 | Z40: 0 | AA40: 0 | AB40: 0 | AC40: 0 | AD40: 0 | AF40: 0 | AS40: =IFERROR(VLOOKUP($AR40,[1]TruckCenterReference!$C$23:$I66,3,FALSE), "") ->  | AV40: =IFERROR(VLOOKUP($AR40,[1]TruckCenterReference!$C$23:$I66,4,FALSE), "") ->  | AZ40: =IFERROR(VLOOKUP($AR40,[1]TruckCenterReference!$C$23:$I66,6,FALSE), "") ->  | BC40: =IFERROR(VLOOKUP($AR40,[1]TruckCenterReference!$C$23:$I66,7,FALSE), 0) -> 0 | BD40: =IFERROR(VLOOKUP($AR40,[1]TruckCenterReference!$C$23:$K66,9,FALSE), 0) -> 0 | BE40: =IFERROR(VLOOKUP($AR40,[1]TruckCenterReference!$C$23:$K66,8,FALSE), 0) -> 0
A41: FALSE | D41: 1 | S41: 0 | T41: 0 | U41: 0 | V41: 0 | W41: 0 | X41: 0 | Y41: 0 | Z41: 0 | AA41: 0 | AB41: 0 | AC41: 0 | AD41: 0 | AF41: 0 | AS41: =IFERROR(VLOOKUP($AR41,[1]TruckCenterReference!$C$23:$I67,3,FALSE), "") ->  | AV41: =IFERROR(VLOOKUP($AR41,[1]TruckCenterReference!$C$23:$I67,4,FALSE), "") ->  | AZ41: =IFERROR(VLOOKUP($AR41,[1]TruckCenterReference!$C$23:$I67,6,FALSE), "") ->  | BC41: =IFERROR(VLOOKUP($AR41,[1]TruckCenterReference!$C$23:$I67,7,FALSE), 0) -> 0 | BD41: =IFERROR(VLOOKUP($AR41,[1]TruckCenterReference!$C$23:$K67,9,FALSE), 0) -> 0 | BE41: =IFERROR(VLOOKUP($AR41,[1]TruckCenterReference!$C$23:$K67,8,FALSE), 0) -> 0
A42: FALSE | D42: 1 | S42: 0 | T42: 0 | U42: 0 | V42: 0 | W42: 0 | X42: 0 | Y42: 0 | Z42: 0 | AA42: 0 | AB42: 0 | AC42: 0 | AD42: 0 | AF42: 0 | AS42: =IFERROR(VLOOKUP($AR42,[1]TruckCenterReference!$C$23:$I68,3,FALSE), "") ->  | AV42: =IFERROR(VLOOKUP($AR42,[1]TruckCenterReference!$C$23:$I68,4,FALSE), "") ->  | AZ42: =IFERROR(VLOOKUP($AR42,[1]TruckCenterReference!$C$23:$I68,6,FALSE), "") ->  | BC42: =IFERROR(VLOOKUP($AR42,[1]TruckCenterReference!$C$23:$I68,7,FALSE), 0) -> 0 | BD42: =IFERROR(VLOOKUP($AR42,[1]TruckCenterReference!$C$23:$K68,9,FALSE), 0) -> 0 | BE42: =IFERROR(VLOOKUP($AR42,[1]TruckCenterReference!$C$23:$K68,8,FALSE), 0) -> 0
A43: FALSE | D43: 1 | S43: 0 | T43: 0 | U43: 0 | V43: 0 | W43: 0 | X43: 0 | Y43: 0 | Z43: 0 | AA43: 0 | AB43: 0 | AC43: 0 | AD43: 0 | AF43: 0 | AS43: =IFERROR(VLOOKUP($AR43,[1]TruckCenterReference!$C$23:$I69,3,FALSE), "") ->  | AV43: =IFERROR(VLOOKUP($AR43,[1]TruckCenterReference!$C$23:$I69,4,FALSE), "") ->  | AZ43: =IFERROR(VLOOKUP($AR43,[1]TruckCenterReference!$C$23:$I69,6,FALSE), "") ->  | BC43: =IFERROR(VLOOKUP($AR43,[1]TruckCenterReference!$C$23:$I69,7,FALSE), 0) -> 0 | BD43: =IFERROR(VLOOKUP($AR43,[1]TruckCenterReference!$C$23:$K69,9,FALSE), 0) -> 0 | BE43: =IFERROR(VLOOKUP($AR43,[1]TruckCenterReference!$C$23:$K69,8,FALSE), 0) -> 0
A44: FALSE | D44: 1 | S44: 0 | T44: 0 | U44: 0 | V44: 0 | W44: 0 | X44: 0 | Y44: 0 | Z44: 0 | AA44: 0 | AB44: 0 | AC44: 0 | AD44: 0 | AF44: 0 | AS44: =IFERROR(VLOOKUP($AR44,[1]TruckCenterReference!$C$23:$I70,3,FALSE), "") ->  | AV44: =IFERROR(VLOOKUP($AR44,[1]TruckCenterReference!$C$23:$I70,4,FALSE), "") ->  | AZ44: =IFERROR(VLOOKUP($AR44,[1]TruckCenterReference!$C$23:$I70,6,FALSE), "") ->  | BC44: =IFERROR(VLOOKUP($AR44,[1]TruckCenterReference!$C$23:$I70,7,FALSE), 0) -> 0 | BD44: =IFERROR(VLOOKUP($AR44,[1]TruckCenterReference!$C$23:$K70,9,FALSE), 0) -> 0 | BE44: =IFERROR(VLOOKUP($AR44,[1]TruckCenterReference!$C$23:$K70,8,FALSE), 0) -> 0
A45: FALSE | D45: 1 | S45: 0 | T45: 0 | U45: 0 | V45: 0 | W45: 0 | X45: 0 | Y45: 0 | Z45: 0 | AA45: 0 | AB45: 0 | AC45: 0 | AD45: 0 | AF45: 0 | AS45: =IFERROR(VLOOKUP($AR45,[1]TruckCenterReference!$C$23:$I71,3,FALSE), "") ->  | AV45: =IFERROR(VLOOKUP($AR45,[1]TruckCenterReference!$C$23:$I71,4,FALSE), "") ->  | AZ45: =IFERROR(VLOOKUP($AR45,[1]TruckCenterReference!$C$23:$I71,6,FALSE), "") ->  | BC45: =IFERROR(VLOOKUP($AR45,[1]TruckCenterReference!$C$23:$I71,7,FALSE), 0) -> 0 | BD45: =IFERROR(VLOOKUP($AR45,[1]TruckCenterReference!$C$23:$K71,9,FALSE), 0) -> 0 | BE45: =IFERROR(VLOOKUP($AR45,[1]TruckCenterReference!$C$23:$K71,8,FALSE), 0) -> 0
A46: FALSE | D46: 1 | S46: 0 | T46: 0 | U46: 0 | V46: 0 | W46: 0 | X46: 0 | Y46: 0 | Z46: 0 | AA46: 0 | AB46: 0 | AC46: 0 | AD46: 0 | AF46: 0 | AS46: =IFERROR(VLOOKUP($AR46,[1]TruckCenterReference!$C$23:$I72,3,FALSE), "") ->  | AV46: =IFERROR(VLOOKUP($AR46,[1]TruckCenterReference!$C$23:$I72,4,FALSE), "") ->  | AZ46: =IFERROR(VLOOKUP($AR46,[1]TruckCenterReference!$C$23:$I72,6,FALSE), "") ->  | BC46: =IFERROR(VLOOKUP($AR46,[1]TruckCenterReference!$C$23:$I72,7,FALSE), 0) -> 0 | BD46: =IFERROR(VLOOKUP($AR46,[1]TruckCenterReference!$C$23:$K72,9,FALSE), 0) -> 0 | BE46: =IFERROR(VLOOKUP($AR46,[1]TruckCenterReference!$C$23:$K72,8,FALSE), 0) -> 0
A47: FALSE | D47: 1 | S47: 0 | T47: 0 | U47: 0 | V47: 0 | W47: 0 | X47: 0 | Y47: 0 | Z47: 0 | AA47: 0 | AB47: 0 | AC47: 0 | AD47: 0 | AF47: 0 | AS47: =IFERROR(VLOOKUP($AR47,[1]TruckCenterReference!$C$23:$I73,3,FALSE), "") ->  | AV47: =IFERROR(VLOOKUP($AR47,[1]TruckCenterReference!$C$23:$I73,4,FALSE), "") ->  | AZ47: =IFERROR(VLOOKUP($AR47,[1]TruckCenterReference!$C$23:$I73,6,FALSE), "") ->  | BC47: =IFERROR(VLOOKUP($AR47,[1]TruckCenterReference!$C$23:$I73,7,FALSE), 0) -> 0 | BD47: =IFERROR(VLOOKUP($AR47,[1]TruckCenterReference!$C$23:$K73,9,FALSE), 0) -> 0 | BE47: =IFERROR(VLOOKUP($AR47,[1]TruckCenterReference!$C$23:$K73,8,FALSE), 0) -> 0
A48: FALSE | D48: 1 | S48: 0 | T48: 0 | U48: 0 | V48: 0 | W48: 0 | X48: 0 | Y48: 0 | Z48: 0 | AA48: 0 | AB48: 0 | AC48: 0 | AD48: 0 | AF48: 0 | AS48: =IFERROR(VLOOKUP($AR48,[1]TruckCenterReference!$C$23:$I74,3,FALSE), "") ->  | AV48: =IFERROR(VLOOKUP($AR48,[1]TruckCenterReference!$C$23:$I74,4,FALSE), "") ->  | AZ48: =IFERROR(VLOOKUP($AR48,[1]TruckCenterReference!$C$23:$I74,6,FALSE), "") ->  | BC48: =IFERROR(VLOOKUP($AR48,[1]TruckCenterReference!$C$23:$I74,7,FALSE), 0) -> 0 | BD48: =IFERROR(VLOOKUP($AR48,[1]TruckCenterReference!$C$23:$K74,9,FALSE), 0) -> 0 | BE48: =IFERROR(VLOOKUP($AR48,[1]TruckCenterReference!$C$23:$K74,8,FALSE), 0) -> 0
A49: FALSE | D49: 1 | S49: 0 | T49: 0 | U49: 0 | V49: 0 | W49: 0 | X49: 0 | Y49: 0 | Z49: 0 | AA49: 0 | AB49: 0 | AC49: 0 | AD49: 0 | AF49: 0 | AS49: =IFERROR(VLOOKUP($AR49,[1]TruckCenterReference!$C$23:$I75,3,FALSE), "") ->  | AV49: =IFERROR(VLOOKUP($AR49,[1]TruckCenterReference!$C$23:$I75,4,FALSE), "") ->  | AZ49: =IFERROR(VLOOKUP($AR49,[1]TruckCenterReference!$C$23:$I75,6,FALSE), "") ->  | BC49: =IFERROR(VLOOKUP($AR49,[1]TruckCenterReference!$C$23:$I75,7,FALSE), 0) -> 0 | BD49: =IFERROR(VLOOKUP($AR49,[1]TruckCenterReference!$C$23:$K75,9,FALSE), 0) -> 0 | BE49: =IFERROR(VLOOKUP($AR49,[1]TruckCenterReference!$C$23:$K75,8,FALSE), 0) -> 0
A50: FALSE | D50: 1 | S50: 0 | T50: 0 | U50: 0 | V50: 0 | W50: 0 | X50: 0 | Y50: 0 | Z50: 0 | AA50: 0 | AB50: 0 | AC50: 0 | AD50: 0 | AF50: 0 | AS50: =IFERROR(VLOOKUP($AR50,[1]TruckCenterReference!$C$23:$I76,3,FALSE), "") ->  | AV50: =IFERROR(VLOOKUP($AR50,[1]TruckCenterReference!$C$23:$I76,4,FALSE), "") ->  | AZ50: =IFERROR(VLOOKUP($AR50,[1]TruckCenterReference!$C$23:$I76,6,FALSE), "") ->  | BC50: =IFERROR(VLOOKUP($AR50,[1]TruckCenterReference!$C$23:$I76,7,FALSE), 0) -> 0 | BD50: =IFERROR(VLOOKUP($AR50,[1]TruckCenterReference!$C$23:$K76,9,FALSE), 0) -> 0 | BE50: =IFERROR(VLOOKUP($AR50,[1]TruckCenterReference!$C$23:$K76,8,FALSE), 0) -> 0
A51: FALSE | D51: 1 | S51: 0 | T51: 0 | U51: 0 | V51: 0 | W51: 0 | X51: 0 | Y51: 0 | Z51: 0 | AA51: 0 | AB51: 0 | AC51: 0 | AD51: 0 | AF51: 0 | AS51: =IFERROR(VLOOKUP($AR51,[1]TruckCenterReference!$C$23:$I77,3,FALSE), "") ->  | AV51: =IFERROR(VLOOKUP($AR51,[1]TruckCenterReference!$C$23:$I77,4,FALSE), "") ->  | AZ51: =IFERROR(VLOOKUP($AR51,[1]TruckCenterReference!$C$23:$I77,6,FALSE), "") ->  | BC51: =IFERROR(VLOOKUP($AR51,[1]TruckCenterReference!$C$23:$I77,7,FALSE), 0) -> 0 | BD51: =IFERROR(VLOOKUP($AR51,[1]TruckCenterReference!$C$23:$K77,9,FALSE), 0) -> 0 | BE51: =IFERROR(VLOOKUP($AR51,[1]TruckCenterReference!$C$23:$K77,8,FALSE), 0) -> 0
A52: FALSE | D52: 1 | S52: 0 | T52: 0 | U52: 0 | V52: 0 | W52: 0 | X52: 0 | Y52: 0 | Z52: 0 | AA52: 0 | AB52: 0 | AC52: 0 | AD52: 0 | AF52: 0 | AS52: =IFERROR(VLOOKUP($AR52,[1]TruckCenterReference!$C$23:$I78,3,FALSE), "") ->  | AV52: =IFERROR(VLOOKUP($AR52,[1]TruckCenterReference!$C$23:$I78,4,FALSE), "") ->  | AZ52: =IFERROR(VLOOKUP($AR52,[1]TruckCenterReference!$C$23:$I78,6,FALSE), "") ->  | BC52: =IFERROR(VLOOKUP($AR52,[1]TruckCenterReference!$C$23:$I78,7,FALSE), 0) -> 0 | BD52: =IFERROR(VLOOKUP($AR52,[1]TruckCenterReference!$C$23:$K78,9,FALSE), 0) -> 0 | BE52: =IFERROR(VLOOKUP($AR52,[1]TruckCenterReference!$C$23:$K78,8,FALSE), 0) -> 0
A53: FALSE | D53: 1 | S53: 0 | T53: 0 | U53: 0 | V53: 0 | W53: 0 | X53: 0 | Y53: 0 | Z53: 0 | AA53: 0 | AB53: 0 | AC53: 0 | AD53: 0 | AF53: 0 | AS53: =IFERROR(VLOOKUP($AR53,[1]TruckCenterReference!$C$23:$I79,3,FALSE), "") ->  | AV53: =IFERROR(VLOOKUP($AR53,[1]TruckCenterReference!$C$23:$I79,4,FALSE), "") ->  | AZ53: =IFERROR(VLOOKUP($AR53,[1]TruckCenterReference!$C$23:$I79,6,FALSE), "") ->  | BC53: =IFERROR(VLOOKUP($AR53,[1]TruckCenterReference!$C$23:$I79,7,FALSE), 0) -> 0 | BD53: =IFERROR(VLOOKUP($AR53,[1]TruckCenterReference!$C$23:$K79,9,FALSE), 0) -> 0 | BE53: =IFERROR(VLOOKUP($AR53,[1]TruckCenterReference!$C$23:$K79,8,FALSE), 0) -> 0
A54: FALSE | D54: 1 | S54: 0 | T54: 0 | U54: 0 | V54: 0 | W54: 0 | X54: 0 | Y54: 0 | Z54: 0 | AA54: 0 | AB54: 0 | AC54: 0 | AD54: 0 | AF54: 0 | AS54: =IFERROR(VLOOKUP($AR54,[1]TruckCenterReference!$C$23:$I80,3,FALSE), "") ->  | AV54: =IFERROR(VLOOKUP($AR54,[1]TruckCenterReference!$C$23:$I80,4,FALSE), "") ->  | AZ54: =IFERROR(VLOOKUP($AR54,[1]TruckCenterReference!$C$23:$I80,6,FALSE), "") ->  | BC54: =IFERROR(VLOOKUP($AR54,[1]TruckCenterReference!$C$23:$I80,7,FALSE), 0) -> 0 | BD54: =IFERROR(VLOOKUP($AR54,[1]TruckCenterReference!$C$23:$K80,9,FALSE), 0) -> 0 | BE54: =IFERROR(VLOOKUP($AR54,[1]TruckCenterReference!$C$23:$K80,8,FALSE), 0) -> 0
A55: FALSE | D55: 1 | S55: 0 | T55: 0 | U55: 0 | V55: 0 | W55: 0 | X55: 0 | Y55: 0 | Z55: 0 | AA55: 0 | AB55: 0 | AC55: 0 | AD55: 0 | AF55: 0 | AS55: =IFERROR(VLOOKUP($AR55,[1]TruckCenterReference!$C$23:$I81,3,FALSE), "") ->  | AV55: =IFERROR(VLOOKUP($AR55,[1]TruckCenterReference!$C$23:$I81,4,FALSE), "") ->  | AZ55: =IFERROR(VLOOKUP($AR55,[1]TruckCenterReference!$C$23:$I81,6,FALSE), "") ->  | BC55: =IFERROR(VLOOKUP($AR55,[1]TruckCenterReference!$C$23:$I81,7,FALSE), 0) -> 0 | BD55: =IFERROR(VLOOKUP($AR55,[1]TruckCenterReference!$C$23:$K81,9,FALSE), 0) -> 0 | BE55: =IFERROR(VLOOKUP($AR55,[1]TruckCenterReference!$C$23:$K81,8,FALSE), 0) -> 0
A56: FALSE | D56: 1 | S56: 0 | T56: 0 | U56: 0 | V56: 0 | W56: 0 | X56: 0 | Y56: 0 | Z56: 0 | AA56: 0 | AB56: 0 | AC56: 0 | AD56: 0 | AF56: 0 | AS56: =IFERROR(VLOOKUP($AR56,[1]TruckCenterReference!$C$23:$I82,3,FALSE), "") ->  | AV56: =IFERROR(VLOOKUP($AR56,[1]TruckCenterReference!$C$23:$I82,4,FALSE), "") ->  | AZ56: =IFERROR(VLOOKUP($AR56,[1]TruckCenterReference!$C$23:$I82,6,FALSE), "") ->  | BC56: =IFERROR(VLOOKUP($AR56,[1]TruckCenterReference!$C$23:$I82,7,FALSE), 0) -> 0 | BD56: =IFERROR(VLOOKUP($AR56,[1]TruckCenterReference!$C$23:$K82,9,FALSE), 0) -> 0 | BE56: =IFERROR(VLOOKUP($AR56,[1]TruckCenterReference!$C$23:$K82,8,FALSE), 0) -> 0
A57: FALSE | D57: 1 | S57: 0 | T57: 0 | U57: 0 | V57: 0 | W57: 0 | X57: 0 | Y57: 0 | Z57: 0 | AA57: 0 | AB57: 0 | AC57: 0 | AD57: 0 | AF57: 0 | AS57: =IFERROR(VLOOKUP($AR57,[1]TruckCenterReference!$C$23:$I83,3,FALSE), "") ->  | AV57: =IFERROR(VLOOKUP($AR57,[1]TruckCenterReference!$C$23:$I83,4,FALSE), "") ->  | AZ57: =IFERROR(VLOOKUP($AR57,[1]TruckCenterReference!$C$23:$I83,6,FALSE), "") ->  | BC57: =IFERROR(VLOOKUP($AR57,[1]TruckCenterReference!$C$23:$I83,7,FALSE), 0) -> 0 | BD57: =IFERROR(VLOOKUP($AR57,[1]TruckCenterReference!$C$23:$K83,9,FALSE), 0) -> 0 | BE57: =IFERROR(VLOOKUP($AR57,[1]TruckCenterReference!$C$23:$K83,8,FALSE), 0) -> 0
E58: End of List (save and re-pull for at least 5 more rows)
R59: TOTAL CAPITAL | S59: =SUM(S29:S58) -> 670344 | T59: 175652 | U59: 100000 | V59: 517136 | W59: 106974 | X59: 501594 | Y59: 168750 | Z59: 0 | AA59: 501594 | AB59: 168750 | AC59: 0 | AD59: 0 | AF59: =SUM(AF29:AF58) -> 2910794
AL64: Life | AN64: Test Year Depreciation | AP64: NBV
N65: Purchase | O65: Useful Life | P65: Test Year Depreciation | Q65: Ending Depreciation | R65: NBV | AJ65: Garbage | AK65: =+SUMIF($AP$30:$AP$57,AJ65,$AF$30:$AF$57)*0.5 -> 926584 | AL65: 10 | AN65: =+AK65/AL65 -> 92658.4 | AP65: =+AK65-AN65 -> 833925.6
M66: Recycling Carts | N66: 115000 | O66: 7 | P66: =+N66/O66 -> 16428.57143 | Q66: =+P66 -> 16428.57143 | R66: =+N66-Q66 -> 98571.42857 | AJ66: Container Delivery | AK66: =+SUMIF($AP$30:$AP$57,AJ66,$AF$30:$AF$57)*0.5 -> 53487 | AL66: 10 | AN66: =+AK66/AL66 -> 5348.7 | AP66: =+AK66-AN66 -> 48138.3
M67: Wet Kit | N67: 14000 | O67: 10 | P67: =+N67/O67 -> 1400 | Q67: =+P67 -> 1400 | R67: =+N67-Q67 -> 12600 | AJ67: Residential Recycling | AK67: =+SUMIF($AP$30:$AP$57,AJ67,$AF$30:$AF$57)*0.5 -> 87826 | AL67: 10 | AN67: 8782.6 | AP67: 79043.4
AJ68: Recycling | AK68: =+SUMIF($AP$30:$AP$57,AJ68,$AF$30:$AF$57)+181000/3*0.5 -> 130166.6667 | AL68: 7 | AN68: 18595.2381 | AP68: 111571.4286
AJ69: Garbage Containers | AK69: =494000*0.5 -> 247000 | AL69: 7 | AN69: 35285.71429 | AP69: 211714.2857
AJ70: Garbage Carts | AK70: =181000/3*0.5 -> 30166.66667 | AL70: 7 | AN70: 4309.52381 | AP70: 25857.14286
AL71: 7 | AN71: 0 | AP71: 0
AJ72: Yard Waste | AK72: =181000/3*0.5 -> 30166.66667 | AL72: 7 | AN72: 4309.52381 | AP72: 25857.14286
AJ73: Containers (Mixed) | AL73: 12 | AN73: 0 | AP73: 0
AK74: =SUM(AK65:AK73) -> 1505397 | AN74: =SUM(AN65:AN73) -> 169289.7 | AP74: =SUM(AP65:AP73) -> 1336107.3
AK75: =+AK74-AF59 -> -1405397

Sheet Trucks 2188
C1: 2188 Lewis County/Joe's Refuse
C2: Depreciation Schedule | N2: 1 | O2: Test Period Beg. Month | AK2: CONVENTIONS
C3: 2020-05-31 | N3: 12 | O3: Test Period End Month
N4: 2023 | O4: First Year | AJ4: 1 | AK4: Calendar year test period: | AN4: 12 | AO4: mos in first year
G5: Last Filing | I5: 2009-12-31 | N5: 2023 | O5: Second year | AK5: 1993 | AN5: 0 | AO5: mos in 2nd year
M6: =SUM(M69:M71) -> 1034795.46 | N6: =+N5+(N3/12) -> 2024 | O6: Test Period End Mo/Yr | AN6: 93 | AO6: First year
N7: =+N4+(N2/12) -> 2023.083333 | O7: Test Period Beg. Mo/Yr | AN7: 94 | AO7: Second Year
R8: Beginning | S8: Ending
E9: GARBAGE | H9: Salvage | K9: Year | Q9: Total | R9: Accum. | S9: Accum. | T9: Average
D10: Truck | F10: Date in Service | H10: Value | I10: Method | J10: Life | K10: Fully | L10: Year/Mo | M10: Asset | N10: Depr | O10: Monthly | P10: Annual | Q10: Test yr. | R10: Depr. | S10: Depr. | T10: Investment | AJ10: 2 | AK10: Dispositions must be in test period
A11: FAR # | B11: FAR | C11: Codes | D11: No | E11: Asset Description | F11: Year | G11: Mo | H11: % | I11: M | J11: Years | K11: Depr | L11: Fully Depr | M11: Cost | N11: Cost | O11: Depr | P11: Depr | Q11: Depn. | R11: =+'Summary 2188'!F7 -> 2023-01-01 | S11: =+'Summary 2188'!G7 -> 2023-12-31 | T11: =+'Summary 2188'!H7 -> 2023-12-31
C12: P/U | D12: 6205 | E12: 1986 DODGE TRUCK | F12: 1994 | G12: 3 | H12: 0 | I12: S/L | J12: 7 | K12: =F12+J12 -> 2001 | L12: =+K12+(G12/12) -> 2001.25 | M12: =+'Trucks 2188 - Original'!Q12 -> 21357.6 | N12: =M12-M12*H12 -> 21357.6 | O12: =N12/J12/12 -> 254.2571429 | P12: =+O12*12 -> 3051.085714 | Q12: =+IF(L12<=$N$6,0,P12) -> 0 | R12: =+IF($L12<=$N$7,$M12,IF(($F12+($G12/12))>=$N$7,0,((($M12-((($L12-$N$7)*12)*$O12)))))) -> 21357.6 | S12: =+IF(L12<=$N$6,M12,IF(Q12=0,R12,R12+Q12)) -> 21357.6 | T12: =+M12-S12 -> 0
D13: 6205 | E13: Truck #6205 Amort of Salvage | F13: 2019 | G13: 6 | H13: 0 | I13: S/L | J13: 3 | K13: 2022 | L13: =+K13+(G13/12) -> 2022.5 | M13: =+'Trucks 2188 - Original'!O12-'Trucks 2188'!M12 -> 5339.4 | N13: =M13-M13*H13 -> 5339.4 | O13: =N13/J13/12 -> 148.3166667 | P13: =+O13*12 -> 1779.8 | Q13: =+IF(L13<=$N$6,0,P13) -> 0 | R13: =+IF($L13<=$N$7,$M13,IF(($F13+($G13/12))>=$N$7,0,((($M13-((($L13-$N$7)*12)*$O13)))))) -> 5339.4 | S13: 5339.4 | T13: =+M13-S13 -> 0
C14: P/U | D14: 6014 | E14: '97 FORD RANGER | F14: 1999 | G14: 1 | H14: 0 | I14: S/L | J14: 5 | K14: 2004 | L14: =+K14+(G14/12) -> 2004.083333 | M14: =+'Trucks 2188 - Original'!Q16 -> 5810.24 | N14: =M14-M14*H14 -> 5810.24 | O14: 96.83733333 | P14: 1162.048 | Q14: 0 | R14: 5810.24 | S14: 5810.24 | T14: 0
D15: 6014 | E15: Truck #1002 Amort of Salvage | F15: 2019 | G15: 6 | H15: 0 | I15: S/L | J15: 3 | K15: =F15+J15 -> 2022 | L15: =+K15+(G15/12) -> 2022.5 | M15: =+'Trucks 2188 - Original'!O16-'Trucks 2188'!M14 -> 2861.76 | N15: =M15-M15*H15 -> 2861.76 | O15: 79.49333333 | P15: 953.92 | Q15: 0 | R15: 2861.76 | S15: 2861.76 | T15: 0
C16: FL | D16: 2019 | E16: 03 PB 320 W/WITTKE FLC-2102 PA | F16: 2003 | G16: 5 | H16: 0 | I16: S/L | J16: 7 | K16: 2010 | L16: 2010.416667 | M16: =+'Trucks 2188 - Original'!Q18 -> 137042.712 | N16: 137042.712 | O16: 1631.460857 | P16: 19577.53029 | Q16: 0 | R16: 137042.712 | S16: 137042.712 | T16: 0
D17: 2019 | E17: Truck #2019 Amort of Salvage | F17: 2019 | G17: 6 | H17: 0 | I17: S/L | J17: 3 | K17: 2022 | L17: =+K17+(G17/12) -> 2022.5 | M17: =+'Trucks 2188 - Original'!O18-'Trucks 2188'!M16 -> 34260.678 | N17: =M17-M17*H17 -> 34260.678 | O17: 951.6855 | P17: 11420.226 | Q17: 0 | R17: 34260.678 | S17: 34260.678 | T17: 0
C18: SL | D18: 3592 | E18: '06 PETE W/27 CY CURBTENDER | F18: 2006 | G18: 4 | H18: 0 | I18: S/L | J18: 7 | K18: 2013 | L18: 2013.333333 | M18: =+'Trucks 2188 - Original'!Q19 -> 143783.984 | N18: 143783.984 | O18: 1711.714095 | P18: 20540.56914 | Q18: 0 | R18: 143783.984 | S18: 143783.984 | T18: 0
D19: 3592 | E19: Truck #3592 Amort of Salvage | F19: 2019 | G19: 6 | H19: 0 | I19: S/L | J19: 3 | K19: =F19+J19 -> 2022 | L19: =+K19+(G19/12) -> 2022.5 | M19: =+'Trucks 2188 - Original'!O19-'Trucks 2188'!M18 -> 35945.996 | N19: =M19-M19*H19 -> 35945.996 | O19: 998.4998889 | P19: 11981.99867 | Q19: 0 | R19: 35945.996 | S19: 35945.996 | T19: 0
C20: SL | D20: 3592 | E20: GREASER UNIT FOR 3592 | F20: 2006 | G20: 4 | H20: 0 | I20: S/L | J20: 7 | K20: 2013 | L20: 2013.333333 | M20: =+'Trucks 2188 - Original'!Q20 -> 3058.592 | N20: 3058.592 | O20: 36.41180952 | P20: 436.9417143 | Q20: 0 | R20: 3058.592 | S20: 3058.592 | T20: 0
D21: 3592 | E21: Truck #3592 Amort of Salvage | F21: 2019 | G21: 6 | H21: 0 | I21: S/L | J21: 3 | K21: 2022 | L21: =+K21+(G21/12) -> 2022.5 | M21: =+'Trucks 2188 - Original'!O20-'Trucks 2188'!M20 -> 764.648 | N21: =M21-M21*H21 -> 764.648 | O21: 21.24022222 | P21: 254.8826667 | Q21: 0 | R21: 764.648 | S21: 764.648 | T21: 0
C22: RW | D22: 11092 | E22: ROUTWARE INSTALLATIONS (NON-REG) | F22: 2007 | G22: 4 | H22: 0 | I22: S/L | J22: 7 | K22: 2014 | L22: 2014.333333 | M22: =+'Trucks 2188 - Original'!Q26 -> 50784.872 | N22: 50784.872 | O22: 604.5818095 | P22: 7254.981714 | Q22: 0 | R22: 50784.872 | S22: 50784.872 | T22: 0
D23: 11092 | E23: Truck #11092 Amort of Salvage | F23: 2019 | G23: 6 | H23: 0 | I23: S/L | J23: 3 | K23: 2022 | L23: =+K23+(G23/12) -> 2022.5 | M23: =+'Trucks 2188 - Original'!O26-'Trucks 2188'!M22 -> 12696.218 | N23: =M23-M23*H23 -> 12696.218 | O23: 352.6727222 | P23: 4232.072667 | Q23: 0 | R23: 12696.218 | S23: 12696.218 | T23: 0
C24: RL | D24: 1061 | E24: 07 INT'L W/METROPAK R/L BODY | F24: 2007 | G24: 5 | H24: 0 | I24: S/L | J24: 7 | K24: 2014 | L24: 2014.416667 | M24: =+'Trucks 2188 - Original'!Q28 -> 101874.976 | N24: 101874.976 | O24: 1212.797333 | P24: 14553.568 | Q24: 0 | R24: 101874.976 | S24: 101874.976 | T24: 0
D25: 1061 | E25: Truck #1061 Amort of Salvage | F25: 2019 | G25: 6 | H25: 0 | I25: S/L | J25: 3 | K25: 2022 | L25: =+K25+(G25/12) -> 2022.5 | M25: =+'Trucks 2188 - Original'!O28-'Trucks 2188'!M24 -> 25468.744 | N25: =M25-M25*H25 -> 25468.744 | O25: 707.4651111 | P25: 8489.581333 | Q25: 0 | R25: 25468.744 | S25: 25468.744 | T25: 0
C26: RW | D26: 11093 | E26: ROUTWARE INSTALLATIONS | F26: 2007 | G26: 7 | H26: 0 | I26: S/L | J26: 5 | K26: 2012 | L26: 2012.583333 | M26: =+'Trucks 2188 - Original'!Q29 -> 118876.626 | N26: 118876.626 | O26: 1981.2771 | P26: 23775.3252 | Q26: 0 | R26: 118876.626 | S26: 118876.626 | T26: 0
D27: 11093 | E27: Truck #11093 Amort of Salvage | F27: 2019 | G27: 6 | H27: 0 | I27: S/L | J27: 3 | K27: =F27+J27 -> 2022 | L27: =+K27+(G27/12) -> 2022.5 | M27: =+'Trucks 2188 - Original'!O29-'Trucks 2188'!M26 -> 58551.174 | N27: =M27-M27*H27 -> 58551.174 | O27: 1626.4215 | P27: 19517.058 | Q27: 0 | R27: 58551.174 | S27: 58551.174 | T27: 0
C28: RL | D28: 1060 | E28: '07 INT'L W/METROPAK R/L BODY | F28: 2007 | G28: 7 | H28: 0 | I28: S/L | J28: 7 | K28: 2014 | L28: 2014.583333 | M28: =+'Trucks 2188 - Original'!Q30 -> 101874.976 | N28: 101874.976 | O28: 1212.797333 | P28: 14553.568 | Q28: 0 | R28: 101874.976 | S28: 101874.976 | T28: 0
D29: 1060 | E29: Truck #1060 Amort of Salvage | F29: 2019 | G29: 6 | H29: 0 | I29: S/L | J29: 3 | K29: 2022 | L29: =+K29+(G29/12) -> 2022.5 | M29: =+'Trucks 2188 - Original'!O30-'Trucks 2188'!M28 -> 25468.744 | N29: =M29-M29*H29 -> 25468.744 | O29: 707.4651111 | P29: 8489.581333 | Q29: 0 | R29: 25468.744 | S29: 25468.744 | T29: 0
C30: SL | D30: 3627 | E30: 2009 PB CHASSIS FOR ASL | F30: 2008 | G30: 10 | H30: 0 | I30: S/L | J30: 7 | K30: 2015 | L30: 2015.833333 | M30: =+'Trucks 2188 - Original'!Q35 -> 101681.232 | N30: 101681.232 | O30: 1210.490857 | P30: 14525.89029 | Q30: 0 | R30: 101681.232 | S30: 101681.232 | T30: 0
D31: 3627 | E31: Truck #3627 Amort of Salvage | F31: 2019 | G31: 6 | H31: 0 | I31: S/L | J31: 3 | K31: =F31+J31 -> 2022 | L31: =+K31+(G31/12) -> 2022.5 | M31: =+'Trucks 2188 - Original'!O35-'Trucks 2188'!M30 -> 25420.308 | N31: =M31-M31*H31 -> 25420.308 | O31: 706.1196667 | P31: 8473.436 | Q31: 0 | R31: 25420.308 | S31: 25420.308 | T31: 0
C32: SL | D32: 3627 | E32: 2009 PETERBILT 320 BODY | F32: 2008 | G32: 12 | H32: 0 | I32: S/L | J32: 7 | K32: 2015 | L32: 2016 | M32: =+'Trucks 2188 - Original'!Q36 -> 80455.752 | N32: 80455.752 | O32: 957.8065714 | P32: 11493.67886 | Q32: 0 | R32: 80455.752 | S32: 80455.752 | T32: 0
D33: 3627 | E33: Truck #3627 Amort of Salvage | F33: 2019 | G33: 6 | H33: 0 | I33: S/L | J33: 3 | K33: 2022 | L33: =+K33+(G33/12) -> 2022.5 | M33: =+'Trucks 2188 - Original'!O36-'Trucks 2188'!M32 -> 20113.938 | N33: =M33-M33*H33 -> 20113.938 | O33: 558.7205 | P33: 6704.646 | Q33: 0 | R33: 20113.938 | S33: 20113.938 | T33: 0
C34: SL | D34: 3592 | E34: FLUP - TRUCK 3592 | F34: 2009 | G34: 5 | H34: 0 | I34: S/L | J34: 3 | K34: 2012 | L34: 2012.416667 | M34: 2584.07 | N34: 2584.07 | O34: 71.77972222 | P34: 861.3566667 | Q34: 0 | R34: 2584.07 | S34: 2584.07 | T34: 0 | AJ34: 4 | AK34: Asset put in service in first month of test
C35: FL | D35: 2019 | E35: FLUP - TRUCK 2019 | F35: 2009 | G35: 5 | H35: 0 | I35: S/L | J35: 3 | K35: =F35+J35 -> 2012 | L35: 2012.416667 | M35: 7366.07 | N35: 7366.07 | O35: 204.6130556 | P35: 2455.356667 | Q35: 0 | R35: 7366.07 | S35: 7366.07 | T35: 0
C36: DC | D36: 67254 | E36: DRIVE CAM INSTALLATIONS (46) | F36: 2009 | G36: 6 | H36: 0 | I36: S/L | J36: 5 | K36: 2014 | L36: 2014.5 | M36: =+'Trucks 2188 - Original'!Q48 -> 8967.0589 | N36: 8967.0589 | O36: 149.4509817 | P36: 1793.41178 | Q36: 0 | R36: 8967.0589 | S36: 8967.0589 | T36: 0
D37: 67254 | E37: Truck #67254 Amort of Salvage | F37: 2019 | G37: 6 | H37: 0 | I37: S/L | J37: 3 | K37: 2022 | L37: =+K37+(G37/12) -> 2022.5 | M37: =+'Trucks 2188 - Original'!O48-M36 -> 4416.6111 | N37: =M37-M37*H37 -> 4416.6111 | O37: 122.6836417 | P37: 1472.2037 | Q37: 0 | R37: 4416.6111 | S37: 4416.6111 | T37: 0
C38: DC | D38: 67256 | E38: DRIVE CAM INSTALLATIONS (46) | F38: 2009 | G38: 6 | H38: 0 | I38: S/L | J38: 5 | K38: 2014 | L38: 2014.5 | M38: =+'Trucks 2188 - Original'!Q49 -> 266.2714 | N38: 266.2714 | O38: 4.437856667 | P38: 53.25428 | Q38: 0 | R38: 266.2714 | S38: 266.2714 | T38: 0
D39: 67256 | E39: Truck #67256 Amort of Salvage | F39: 2019 | G39: 6 | H39: 0 | I39: S/L | J39: 3 | K39: =F39+J39 -> 2022 | L39: =+K39+(G39/12) -> 2022.5 | M39: =+'Trucks 2188 - Original'!O49-M38 -> 131.1486 | N39: =M39-M39*H39 -> 131.1486 | O39: 3.643016667 | P39: 43.7162 | Q39: 0 | R39: 131.1486 | S39: 131.1486 | T39: 0
A40: 89106, 89107 | B40: 2189 | D40: 3543 | E40: DRIVE CAM | F40: 2011 | G40: 11 | H40: 0 | I40: S/L | J40: 7 | K40: 2018 | L40: 2018.916667 | M40: =1251.9/2 -> 625.95 | N40: 625.95 | O40: 7.451785714 | P40: 89.42142857 | Q40: 0 | R40: 625.95 | S40: 625.95 | T40: 0
D41: 88724 | E41: (16) TRUCK RADIOS | F41: 2011 | G41: 12 | H41: 0 | I41: S/L | J41: 5 | K41: 2016 | L41: 2017 | M41: =468.93*16 -> 7502.88 | N41: 7502.88 | O41: 125.048 | P41: 1500.576 | Q41: 0 | R41: 7502.88 | S41: 7502.88 | T41: 0
A42: 88662, 88898 | B42: 2189 | D42: 3543 | E42: 2012 INTERNATIONAL RETRIEVER (N) | F42: 2011 | G42: 12 | H42: 0 | I42: S/L | J42: 6.11 | K42: 2017.11 | L42: 2018.11 | M42: =108532.26+3443.64+129.14 -> 112105.04 | N42: 112105.04 | O42: 1528.983088 | P42: 18347.79705 | Q42: 0 | R42: 112105.04 | S42: 112105.04 | T42: 0
A43: 88724 | E43: (6) TRUCK RADIOS | F43: 2011 | G43: 12 | H43: 0 | I43: S/L | J43: 5 | K43: 2016 | L43: 2017 | M43: =468.93*6 -> 2813.58 | N43: 2813.58 | O43: 46.893 | P43: 562.716 | Q43: 0 | R43: 2813.58 | S43: 2813.58 | T43: 0
A44: 99664 | D44: 1070 | E44: 2013 PETERBILT 320 W/ NEW WAY BODY (N) | F44: 2012 | G44: 12 | H44: 0 | I44: S/L | J44: 10 | K44: 2022 | L44: 2023 | M44: 259759.91 | N44: 259759.91 | O44: 2164.665917 | P44: 25975.991 | Q44: 0 | R44: 259759.91 | S44: =+IF(L44<=$N$6,M44,IF(Q44=0,R44,R44+Q44)) -> 259759.91 | T44: 0
A45: 109521 | C45: ASL | D45: 3636 | E45: 2014 Peterbilt/Wayne ASL (N) | F45: 2013 | G45: 12 | H45: 0 | I45: S/L | J45: 10 | K45: 2023 | L45: 2024 | M45: 322008.34 | N45: 322008.34 | O45: 2683.402833 | P45: 32200.834 | Q45: 0 | R45: 292490.9088 | S45: 322008.34 | T45: 0
A46: 110129 | D46: 3636 | E46: DriveCam #3636 | F46: 2013 | G46: 12 | H46: 0 | I46: S/L | J46: 10 | K46: 2023 | L46: 2024 | M46: 632.57 | N46: 632.57 | O46: 5.271416667 | P46: 63.257 | Q46: =+IF(L46<=$N$6,0,P46) -> 0 | R46: 574.5844167 | S46: 632.57 | T46: 0
A47: 109522 | C47: DEL | D47: 9389 | E47: 2014 Ford F-550 Cont. Del (N) | F47: 2013 | G47: 12 | H47: 0 | I47: S/L | J47: 10 | K47: 2023 | L47: 2024 | M47: 67654.96 | N47: 67654.96 | O47: 563.7913333 | P47: 6765.496 | Q47: 0 | R47: 61453.25533 | S47: 67654.96 | T47: =+M47-S47 -> 0
A48: 118079 | C48: ASL | D48: 3642 | E48: 2015 ASL Truck (N) | F48: 2014 | G48: 12 | H48: 0 | I48: S/L | J48: 10 | K48: 2024 | L48: 2025 | M48: =327334.16+912.06 -> 328246.22 | N48: 328246.22 | O48: 2735.385167 | P48: 32824.622 | Q48: 32824.622 | R48: 265332.3612 | S48: 298156.9832 | T48: =+M48-S48 -> 30089.23683
A49: 118254 | C49: SL | D49: 3627 | E49: Improvement - ASL Auto Hopper Cover Kit | F49: 2014 | G49: 12 | H49: 0 | I49: S/L | J49: 3 | K49: 2017 | L49: 2018 | M49: 2532.61 | N49: 2532.61 | O49: 70.35027778 | P49: 844.2033333 | Q49: 0 | R49: 2532.61 | S49: 2532.61 | T49: 0
A50: 118253 | C50: SL | D50: 3614 | E50: Improvement - ASL Auto Hopper Cover Kit | F50: 2014 | G50: 12 | H50: 0 | I50: S/L | J50: 3 | K50: 2017 | L50: 2018 | M50: 2532.61 | N50: 2532.61 | O50: 70.35027778 | P50: 844.2033333 | Q50: 0 | R50: 2532.61 | S50: 2532.61 | T50: 0
A51: 118250 | C51: SL | D51: 3592 | E51: Improvement - ASL Auto Hopper Cover Kit | F51: 2014 | G51: 12 | H51: 0 | I51: S/L | J51: 3 | K51: 2017 | L51: 2018 | M51: 2532.61 | N51: 2532.61 | O51: 70.35027778 | P51: 844.2033333 | Q51: 0 | R51: 2532.61 | S51: 2532.61 | T51: 0
A52: 123521 | C52: SL | D52: 3627 | E52: Engine Repair | F52: 2015 | G52: 5 | H52: 0 | I52: S/L | J52: 3 | K52: 2018 | L52: 2018.416667 | M52: 21954.8 | N52: 21954.8 | O52: 609.8555556 | P52: 7318.266667 | Q52: 0 | R52: 21954.8 | S52: 21954.8 | T52: 0
A53: 132281/133543/139787 | E53: (34) Samsung Tablets, Hardware, & Setup | F53: 2016 | G53: 4 | H53: 0 | I53: S/L | J53: 1 | K53: 2017 | L53: 2017.333333 | M53: =((7403.89+8314.08+342)/38)*34 -> 14369.44684 | N53: 14369.44684 | O53: 1197.453904 | P53: 14369.44684 | Q53: 0 | R53: 14369.44684 | S53: 14369.44684 | T53: 0
A54: 132761/139725/132761 | C54: ASL | D54: 3655 | E54: 2016 ASL Truck (N), Decals, and Licensing | F54: 2016 | G54: 5 | H54: 0 | I54: S/L | J54: 10 | K54: 2026 | L54: 2026.416667 | M54: =323407.89+1609.81+472 -> 325489.7 | N54: 325489.7 | O54: 2712.414167 | P54: 32548.97 | Q54: 32548.97 | R54: 216993.1333 | S54: 249542.1033 | T54: 75947.59667
A55: 133442/139726/165761 | C55: ASL | D55: 3656 | E55: 2016 ASL Truck (N), Decals, and Licensing | F55: 2016 | G55: 6 | H55: 0 | I55: S/L | J55: 10 | K55: 2026 | L55: 2026.5 | M55: =323407.89+1609.81+472 -> 325489.7 | N55: 325489.7 | O55: 2712.414167 | P55: 32548.97 | Q55: 32548.97 | R55: 214280.7192 | S55: 246829.6892 | T55: 78660.01083
A56: 133443/139727/165760 | C56: RL | D56: 1074 | E56: 2016 REL Truck (N), Decals, and Licensing | F56: 2016 | G56: 6 | H56: 0 | I56: S/L | J56: 10 | K56: 2026 | L56: 2026.5 | M56: =284597.5+1554.65+472 -> 286624.15 | N56: 286624.15 | O56: 2388.534583 | P56: 28662.415 | Q56: 28662.415 | R56: 188694.2321 | S56: 217356.6471 | T56: 69267.50292
A57: 167733 | E57: (5) Mounting Hardware & AC Adapters | F57: 2016 | G57: 6 | H57: 0 | I57: S/L | J57: 1 | K57: 2017 | L57: 2017.5 | M57: 472.52 | N57: 472.52 | O57: 39.37666667 | P57: 472.52 | Q57: 0 | R57: 472.52 | S57: =+IF(L57<=$N$6,M57,IF(Q57=0,R57,R57+Q57)) -> 472.52 | T57: 0
A58: 128675 | C58: ASL | D58: 3646 | E58: 2016 ASL Truck- Resi Garbage | F58: 2016 | G58: 12 | H58: 0 | I58: S/L | J58: 10 | K58: =F58+J58 -> 2026 | L58: =+K58+(G58/12) -> 2027 | M58: 336161.88 | N58: =M58-M58*H58 -> 336161.88 | O58: =N58/J58/12 -> 2801.349 | P58: =+O58*12 -> 33616.188 | Q58: =+IF(L58<=$N$6,0,P58) -> 33616.188 | R58: =+IF($L58<=$N$7,$M58,IF(($F58+($G58/12))>=$N$7,0,((($M58-((($L58-$N$7)*12)*$O58)))))) -> 204498.477 | S58: 238114.665 | T58: =+M58-S58 -> 98047.215
A59: 128837 | C59: ASL | D59: 3646 | E59: Drive Cam/ Decals | F59: 2016 | G59: 12 | H59: 0 | I59: S/L | J59: 10 | K59: =F59+J59 -> 2026 | L59: =+K59+(G59/12) -> 2027 | M59: 1674.62 | N59: =M59-M59*H59 -> 1674.62 | O59: 13.95516667 | P59: 167.462 | Q59: 167.462 | R59: 1018.727167 | S59: 1186.189167 | T59: 488.4308333
A60: 187610 | D60: 3303 | E60: 2017 SL Truck | F60: 2017 | G60: 10 | H60: 0 | I60: S/L | J60: 10 | K60: 2027 | L60: 2027.833333 | M60: 135413.12 | N60: 135413.12 | O60: 1128.442667 | P60: 13541.312 | Q60: 13541.312 | R60: 71091.888 | S60: 84633.2 | T60: 50779.92
A61: 191690 | D61: 2510 | E61: 2018 FEL Truck | F61: 2018 | G61: 1 | H61: 0 | I61: S/L | J61: 10 | K61: =F61+J61 -> 2028 | L61: 2028.083333 | M61: 312655.16 | N61: 312655.16 | O61: 2605.459667 | P61: 31265.516 | Q61: 31265.516 | R61: 156327.58 | S61: 187593.096 | T61: 125062.064
A62: 193351/191690 | D62: 2510 | E62: Decals for New Truck | F62: 2018 | G62: 1 | H62: 0 | I62: S/L | J62: 10 | K62: 2028 | L62: =+K62+(G62/12) -> 2028.083333 | M62: 957.42 | N62: =M62-M62*H62 -> 957.42 | O62: 7.9785 | P62: 95.742 | Q62: 95.742 | R62: 478.71 | S62: 574.452 | T62: 382.968
A63: 200354/61382 | D63: 2019 | E63: Cap Repair: Engine Repair Truck 2019 | F63: 2018 | G63: 6 | H63: 0 | I63: S/L | J63: 3 | K63: 2021 | L63: 2021.5 | M63: 35182.24 | N63: 35182.24 | O63: 977.2844444 | P63: 11727.41333 | Q63: 0 | R63: 35182.24 | S63: 35182.24 | T63: 0
A64: 207703/203826 | D64: 3688 | E64: Decals on Truck 3688 | F64: 2018 | G64: 9 | H64: 0 | I64: S/L | J64: 10 | K64: 2028 | L64: 2028.75 | M64: 1071.18 | N64: 1071.18 | O64: 8.9265 | P64: 107.118 | Q64: 107.118 | R64: 464.178 | S64: 571.296 | T64: 499.884
A65: 202837 | D65: 3684 | E65: 2019 ASL Truck | F65: 2018 | G65: 9 | H65: 0 | I65: S/L | J65: 10 | K65: 2028 | L65: 2028.75 | M65: 337246.78 | N65: 337246.78 | O65: 2810.389833 | P65: 33724.678 | Q65: 33724.678 | R65: 146140.2713 | S65: 179864.9493 | T65: 157381.8307
A66: 204912/202837 | D66: 3684 | E66: Decals | F66: 2018 | G66: 9 | H66: 0 | I66: S/L | J66: 10 | K66: 2028 | L66: 2028.75 | M66: 1071.18 | N66: 1071.18 | O66: 8.9265 | P66: 107.118 | Q66: 107.118 | R66: 464.178 | S66: 571.296 | T66: 499.884
A67: 203826 | D67: 3688 | E67: 2019 ASL Truck | F67: 2018 | G67: 10 | H67: 0 | I67: S/L | J67: 10 | K67: 2028 | L67: 2028.833333 | M67: 336943.72 | N67: 336943.72 | O67: 2807.864333 | P67: 33694.372 | Q67: 33694.372 | R67: 143201.081 | S67: 176895.453 | T67: 160048.267
A68: 217463 | D68: 1082 | E68: New 2019 REL Truck | F68: 2019 | G68: 7 | H68: 0 | I68: S/L | J68: 9 | K68: 2028 | L68: 2028.583333 | M68: =217213.1+681.66 -> 217894.76 | N68: 217894.76 | O68: 2017.544074 | P68: 24210.52889 | Q68: 24210.52889 | R68: 84736.85111 | S68: 108947.38 | T68: 108947.38
A69: 223833 | D69: 1084 | E69: 2020 Peterbilt REL Truck | F69: 2019 | G69: 11 | H69: 0 | I69: S/L | J69: 10 | K69: 2029 | L69: 2029.916667 | M69: =304103.06+843.96 -> 304947.02 | N69: 304947.02 | O69: 2541.225167 | P69: 30494.702 | Q69: 30494.702 | R69: 96566.55633 | S69: 127061.2583 | T69: 177885.7617
A70: 225451 | D70: 3702 | E70: 2020 Peterbilt ASL Truck | F70: 2019 | G70: 12 | H70: 0 | I70: S/L | J70: 10 | K70: =F70+J70 -> 2029 | L70: =+K70+(G70/12) -> 2030 | M70: 364924.22 | N70: =M70-M70*H70 -> 364924.22 | O70: 3041.035167 | P70: 36492.422 | Q70: 36492.422 | R70: 112518.3012 | S70: 149010.7232 | T70: 215913.4968
A71: 225452 | D71: 3701 | E71: 2020 Peterbilt ASL Truck | F71: 2019 | G71: 12 | H71: 0 | I71: S/L | J71: 10 | K71: 2029 | L71: 2030 | M71: 364924.22 | N71: 364924.22 | O71: 3041.035167 | P71: 36492.422 | Q71: 36492.422 | R71: 112518.3012 | S71: 149010.7232 | T71: 215913.4968
A72: 229087/225451 | D72: 3702 | E72: Truck Vinyls | F72: 2020 | G72: 3 | H72: 0 | I72: S/L | J72: 10 | K72: 2030 | L72: 2030.25 | M72: 984.62 | N72: 984.62 | O72: 8.205166667 | P72: 98.462 | Q72: 98.462 | R72: 278.9756667 | S72: 377.4376667 | T72: 607.1823333
A73: 232358/232184/90441 | D73: 3543 | E73: Capital Repair: Truck 3543 | F73: 2020 | G73: 4 | H73: 0 | I73: S/L | J73: 3 | K73: 2023 | L73: 2023.333333 | M73: =33092.15-79.22 -> 33012.93 | N73: 33012.93 | O73: 917.0258333 | P73: 11004.31 | Q73: 0 | R73: 30261.8525 | S73: 33012.93 | T73: 0
A74: 232998 | D74: 1089 | E74: 2020 Peterbilt REL Truck | F74: 2020 | G74: 5 | H74: 0 | I74: S/L | J74: 10 | K74: 2030 | L74: 2030.416667 | M74: 312121.17 | N74: 312121.17 | O74: 2601.00975 | P74: 31212.117 | Q74: 31212.117 | R74: 83232.312 | S74: 114444.429 | T74: 197676.741
A75: 241522 | D75: 2062 | E75: 2019 Peterbilt FEL Truck | F75: 2020 | G75: 11 | H75: 0 | I75: S/L | J75: 8 | K75: 2028 | L75: 2028.916667 | M75: 252000 | N75: 252000 | O75: 2625 | P75: 31500 | Q75: 31500 | R75: 68250 | S75: 99750 | T75: 152250
A76: 242815 | D76: 3714 | E76: 2021 Peterbilt ASL Truck | F76: 2020 | G76: 11 | H76: 0 | I76: S/L | J76: 10 | K76: 2030 | L76: 2030.916667 | M76: 367978.17 | N76: 367978.17 | O76: 3066.48475 | P76: 36797.817 | Q76: 36797.817 | R76: 79728.6035 | S76: 116526.4205 | T76: 251451.7495
A77: 244667/241522 | D77: 2062 | E77: License & Use Tax | F77: 2020 | G77: 12 | H77: 0 | I77: S/L | J77: 8 | K77: =F77+J77 -> 2028 | L77: =+K77+(G77/12) -> 2029 | M77: 5150 | N77: =M77-M77*H77 -> 5150 | O77: 53.64583333 | P77: 643.75 | Q77: 643.75 | R77: 1341.145833 | S77: 1984.895833 | T77: 3165.104167
A78: 244668/241522 | D78: 2062 | E78: License & Use Tax | F78: 2020 | G78: 12 | H78: 0 | I78: S/L | J78: 8 | K78: 2028 | L78: 2029 | M78: 5150 | N78: 5150 | O78: 53.64583333 | P78: 643.75 | Q78: 643.75 | R78: 1341.145833 | S78: 1984.895833 | T78: 3165.104167
A79: 244669/241522 | D79: 2062 | E79: License & Use Tax | F79: 2020 | G79: 12 | H79: 0 | I79: S/L | J79: 8 | K79: 2028 | L79: 2029 | M79: 5150 | N79: 5150 | O79: 53.64583333 | P79: 643.75 | Q79: 643.75 | R79: 1341.145833 | S79: 1984.895833 | T79: 3165.104167
A80: 244670/241522 | D80: 2062 | E80: License & Use Tax | F80: 2020 | G80: 12 | H80: 0 | I80: S/L | J80: 8 | K80: 2028 | L80: 2029 | M80: 5150 | N80: 5150 | O80: 53.64583333 | P80: 643.75 | Q80: 643.75 | R80: 1341.145833 | S80: 1984.895833 | T80: 3165.104167
A81: 244671/241522 | D81: 2062 | E81: License & Use Tax | F81: 2020 | G81: 12 | H81: 0 | I81: S/L | J81: 8 | K81: 2028 | L81: 2029 | M81: 2442.65 | N81: 2442.65 | O81: 25.44427083 | P81: 305.33125 | Q81: 305.33125 | R81: 636.1067708 | S81: 941.4380208 | T81: 1501.211979
A82: 232998/234514 | D82: 1089 | E82: Decals | F82: 2020 | G82: 5 | H82: 0 | I82: S/L | J82: 10 | K82: 2030 | L82: 2030.416667 | M82: 843.96 | N82: 843.96 | O82: 7.033 | P82: 84.396 | Q82: 84.396 | R82: 225.056 | S82: 309.452 | T82: 534.508
D84: 16 | E84: TOTAL GARBAGE | M84: =SUM(M12:M83) -> 6961623.017 | N84: =SUM(N12:N83) -> 6961623.017 | O84: 71333.33544 | P84: 856000.0253 | Q84: 503167.6811 | R84: 4237430.381 | S84: 4779126.261 | T84: 2182496.756 | U84: Updated Useful Lives to FAR
E87: ROLL OFF
D88: 4024 | E88: '00 INT'L 9200I SBA 6X4 CAB & CHASSIS | F88: 2000 | G88: 8 | H88: 0 | I88: S/L | J88: 7 | K88: =F88+J88 -> 2007 | L88: =+K88+(G88/12) -> 2007.666667 | M88: =+'Trucks 2188 - Original'!Q93 -> 73750.376 | N88: =M88-M88*H88 -> 73750.376 | O88: =N88/J88/12 -> 877.9806667 | P88: =+O88*12 -> 10535.768 | Q88: =+IF(L88<=$N$6,0,P88) -> 0 | R88: =+IF($L88<=$N$7,$M88,IF(($F88+($G88/12))>=$N$7,0,((($M88-((($L88-$N$7)*12)*$O88)))))) -> 73750.376 | S88: =+IF(L88<=$N$6,M88,IF(Q88=0,R88,R88+Q88)) -> 73750.376 | T88: =+M88-S88 -> 0
D89: 4024 | E89: Truck #4024 Amort of Salvage | F89: 2019 | G89: 6 | H89: 0 | I89: S/L | J89: 3 | K89: 2022 | L89: =+K89+(G89/12) -> 2022.5 | M89: =+'Trucks 2188 - Original'!O93-M88 -> 18437.594 | N89: =M89-M89*H89 -> 18437.594 | O89: 512.1553889 | P89: 6145.864667 | Q89: 0 | R89: 18437.594 | S89: 18437.594 | T89: 0
C90: RO | D90: 4045 | E90: '06 VOLVO W/DROP MECHANISM | F90: 2005 | G90: 9 | H90: 0 | I90: S/L | J90: 7 | K90: 2012 | L90: 2012.75 | M90: =+'Trucks 2188 - Original'!Q96 -> 116925.504 | N90: =M90-M90*H90 -> 116925.504 | O90: 1391.970286 | P90: 16703.64343 | Q90: 0 | R90: 116925.504 | S90: 116925.504 | T90: 0
D91: 4045 | E91: Truck #4045 Amort of Salvage | F91: 2019 | G91: 6 | H91: 0 | I91: S/L | J91: 3 | K91: =F91+J91 -> 2022 | L91: =+K91+(G91/12) -> 2022.5 | M91: =+'Trucks 2188 - Original'!O96-M90 -> 29231.376 | N91: =M91-M91*H91 -> 29231.376 | O91: 811.9826667 | P91: 9743.792 | Q91: 0 | R91: 29231.376 | S91: 29231.376 | T91: 0
C92: RO | D92: 4043 | E92: '06 VOLVO ROLLOFF | F92: 2005 | G92: 12 | H92: 0 | I92: S/L | J92: 7 | K92: 2012 | L92: 2013 | M92: =+'Trucks 2188 - Original'!Q97 -> 116339.08 | N92: 116339.08 | O92: 1384.989048 | P92: 16619.86857 | Q92: 0 | R92: 116339.08 | S92: 116339.08 | T92: 0
D93: 4043 | E93: Truck #4043 Amort of Salvage | F93: 2019 | G93: 6 | H93: 0 | I93: S/L | J93: 3 | K93: 2022 | L93: =+K93+(G93/12) -> 2022.5 | M93: =+'Trucks 2188 - Original'!O97-M92 -> 29084.77 | N93: =M93-M93*H93 -> 29084.77 | O93: 807.9102778 | P93: 9694.923333 | Q93: 0 | R93: 29084.77 | S93: 29084.77 | T93: 0
C94: RO | D94: 4057 | E94: '07 VOLVO W/HELM DROP | F94: 2007 | G94: 5 | H94: 0 | I94: S/L | J94: 7 | K94: 2014 | L94: 2014.416667 | M94: =+'Trucks 2188 - Original'!Q98 -> 125666.272 | N94: 125666.272 | O94: 1496.027048 | P94: 17952.32457 | Q94: 0 | R94: 125666.272 | S94: 125666.272 | T94: 0
D95: 4057 | E95: Truck #4057 Amort of Salvage | F95: 2019 | G95: 6 | H95: 0 | I95: S/L | J95: 3 | K95: =F95+J95 -> 2022 | L95: =+K95+(G95/12) -> 2022.5 | M95: =+'Trucks 2188 - Original'!O98-M94 -> 31416.568 | N95: =M95-M95*H95 -> 31416.568 | O95: 872.6824444 | P95: 10472.18933 | Q95: 0 | R95: 31416.568 | S95: 31416.568 | T95: 0
C96: RO | D96: 11095 | E96: ROUTWARE INSTALLATIONS (NON-REG) | F96: 2008 | G96: 1 | H96: 0 | I96: S/L | J96: 7 | K96: 2015 | L96: 2015.083333 | M96: =+'Trucks 2188 - Original'!Q99 -> 48001.32 | N96: 48001.32 | O96: 571.4442857 | P96: 6857.331429 | Q96: 0 | R96: 48001.32 | S96: 48001.32 | T96: 0
D97: 11095 | E97: Truck #11095 Amort of Salvage | F97: 2019 | G97: 6 | H97: 0 | I97: S/L | J97: 3 | K97: 2022 | L97: =+K97+(G97/12) -> 2022.5 | M97: =+'Trucks 2188 - Original'!O99-M96 -> 12000.33 | N97: =M97-M97*H97 -> 12000.33 | O97: 333.3425 | P97: 4000.11 | Q97: 0 | R97: 12000.33 | S97: 12000.33 | T97: 0
C98: RO | D98: 4066 | E98: '09 VOLVO VNM84T W/HELM BOOM | F98: 2008 | G98: 10 | H98: 0 | I98: S/L | J98: 7 | K98: 2015 | L98: 2015.833333 | M98: =+'Trucks 2188 - Original'!Q100 -> 135504.632 | N98: 135504.632 | O98: 1613.150381 | P98: 19357.80457 | Q98: 0 | R98: 135504.632 | S98: 135504.632 | T98: 0
D99: 4066 | E99: Truck #4066 Amort of Salvage | F99: 2019 | G99: 6 | H99: 0 | I99: S/L | J99: 3 | K99: =F99+J99 -> 2022 | L99: =+K99+(G99/12) -> 2022.5 | M99: =+'Trucks 2188 - Original'!O100-M98 -> 33876.158 | N99: =M99-M99*H99 -> 33876.158 | O99: 941.0043889 | P99: 11292.05267 | Q99: 0 | R99: 33876.158 | S99: 33876.158 | T99: 0
C100: RO | D100: 4071 | E100: 2009 VOLVO TYPE: H DROP | F100: 2008 | G100: 10 | H100: 0 | I100: S/L | J100: 7 | K100: 2015 | L100: 2015.833333 | M100: =+'Trucks 2188 - Original'!Q101 -> 132388.56 | N100: 132388.56 | O100: 1576.054286 | P100: 18912.65143 | Q100: 0 | R100: 132388.56 | S100: 132388.56 | T100: 0
D101: 4071 | E101: Truck #4071 Amort of Salvage | F101: 2019 | G101: 6 | H101: 0 | I101: S/L | J101: 3 | K101: 2022 | L101: =+K101+(G101/12) -> 2022.5 | M101: =+'Trucks 2188 - Original'!O101-M100 -> 33097.14 | N101: =M101-M101*H101 -> 33097.14 | O101: 919.365 | P101: 11032.38 | Q101: 0 | R101: 33097.14 | S101: 33097.14 | T101: 0
D102: 4065 | E102: 2009 VOLVO VNM84T200 TYPE: H DROP | F102: 2008 | G102: 10 | H102: 0 | I102: S/L | J102: 7 | K102: 2015 | L102: 2015.833333 | M102: 127101.54 | N102: 127101.54 | O102: 1513.113571 | P102: 18157.36286 | Q102: 0 | R102: 127101.54 | S102: 127101.54 | T102: 0
C103: RO | D103: 4071 | E103: AUTOGREASER | F103: 2009 | G103: 1 | H103: 0 | I103: S/L | J103: 7 | K103: 2016 | L103: 2016.083333 | M103: =+'Trucks 2188 - Original'!Q103 -> 3121.784 | N103: 3121.784 | O103: 37.16409524 | P103: 445.9691429 | Q103: 0 | R103: 3121.784 | S103: 3121.784 | T103: 0
D104: 4071 | E104: Truck #4071 Amort of Salvage | F104: 2019 | G104: 6 | H104: 0 | I104: S/L | J104: 3 | K104: =F104+J104 -> 2022 | L104: =+K104+(G104/12) -> 2022.5 | M104: =+'Trucks 2188 - Original'!O103-'Trucks 2188'!M103 -> 780.446 | N104: =M104-M104*H104 -> 780.446 | O104: 21.67905556 | P104: 260.1486667 | Q104: 0 | R104: 780.446 | S104: 780.446 | T104: 0
C105: DC | D105: 4024 | E105: FLUP 4024 | F105: 2009 | G105: 6 | H105: 0 | I105: S/L | J105: 3 | K105: 2012 | L105: 2012.5 | M105: 2534.42 | N105: 2534.42 | O105: 70.40055556 | P105: 844.8066667 | Q105: 0 | R105: 2534.42 | S105: 2534.42 | T105: 0
A106: 68607 | E106: DRIVE CAMS | F106: 2009 | G106: 7 | H106: 0 | I106: S/L | J106: 5 | K106: 2014 | L106: 2014.583333 | M106: =+'Trucks 2188 - Original'!Q105 -> 2824.4788 | N106: 2824.4788 | O106: 47.07464667 | P106: 564.89576 | Q106: 0 | R106: 2824.4788 | S106: 2824.4788 | T106: 0
E107: Drive Cams Amort of Salvage | F107: 2019 | G107: 6 | H107: 0 | I107: S/L | J107: 3 | K107: 2022 | L107: =+K107+(G107/12) -> 2022.5 | M107: =+'Trucks 2188 - Original'!O105-'Trucks 2188'!M106 -> 1391.1612 | N107: =M107-M107*H107 -> 1391.1612 | O107: 38.64336667 | P107: 463.7204 | Q107: 0 | R107: 1391.1612 | S107: 1391.1612 | T107: 0
C108: RO | D108: 8715 | E108: 2012 R/O SKID TRAILER (N) | F108: 2011 | G108: 7 | H108: 0 | I108: S/L | J108: 10 | K108: 2021 | L108: 2021.583333 | M108: 51904.55 | N108: 51904.55 | O108: 432.5379167 | P108: 5190.455 | Q108: 0 | R108: 51904.55 | S108: 51904.55 | T108: 0
D109: 88724 | E109: (6) TRUCK RADIOS | F109: 2011 | G109: 12 | H109: 0 | I109: S/L | J109: 5 | K109: 2016 | L109: 2017 | M109: =468.93*6 -> 2813.58 | N109: 2813.58 | O109: 46.893 | P109: 562.716 | Q109: 0 | R109: 2813.58 | S109: 2813.58 | T109: 0
A110: 88724 | E110: (4) TRUCK RADIOS | F110: 2011 | G110: 12 | H110: 0 | I110: S/L | J110: 5 | K110: 2016 | L110: 2017 | M110: =468.93*4 -> 1875.72 | N110: 1875.72 | O110: 31.262 | P110: 375.144 | Q110: 0 | R110: 1875.72 | S110: 1875.72 | T110: 0
A111: 100082 | D111: 4065 | E111: Automatic Tarp Unit #4065 | F111: 2012 | G111: 12 | H111: 0 | I111: S/L | J111: 3 | K111: 2015 | L111: 2016 | M111: 8838 | N111: 8838 | O111: 245.5 | P111: 2946 | Q111: 0 | R111: 8838 | S111: 8838 | T111: 0
A112: 101833 | D112: 4057 | E112: AA Welding Automatic Tarp Unit | F112: 2013 | G112: 1 | H112: 0 | I112: S/L | J112: 3 | K112: 2016 | L112: 2016.083333 | M112: 8837.86 | N112: 8837.86 | O112: 245.4961111 | P112: 2945.953333 | Q112: 0 | R112: 8837.86 | S112: 8837.86 | T112: 0
A113: 102419 | D113: 4066 | E113: AA Welding Automatic Tarp Unit | F113: 2013 | G113: 2 | H113: 0 | I113: S/L | J113: 3 | K113: 2016 | L113: 2016.166667 | M113: 8837.86 | N113: 8837.86 | O113: 245.4961111 | P113: 2945.953333 | Q113: 0 | R113: 8837.86 | S113: 8837.86 | T113: 0
A114: 102420 | D114: 4071 | E114: AA Welding Automatic Tarp Unit | F114: 2013 | G114: 2 | H114: 0 | I114: S/L | J114: 3 | K114: 2016 | L114: 2016.166667 | M114: 8837.86 | N114: 8837.86 | O114: 245.4961111 | P114: 2945.953333 | Q114: 0 | R114: 8837.86 | S114: 8837.86 | T114: 0
A115: 102418 | D115: 4045 | E115: AA Welding Automatic Tarp Unit | F115: 2013 | G115: 2 | H115: 0 | I115: S/L | J115: 3 | K115: 2016 | L115: 2016.166667 | M115: 8837.86 | N115: 8837.86 | O115: 245.4961111 | P115: 2945.953333 | Q115: 0 | R115: 8837.86 | S115: 8837.86 | T115: 0
D117: 6 | E117: TOTAL ROLL OFF | M117: =SUM(M88:M116) -> 1174256.8 | N117: =SUM(N88:N116) -> 1174256.8 | O117: 17576.31132 | P117: 210915.7358 | Q117: 0 | R117: 1174256.8 | S117: 1174256.8 | T117: =SUM(T88:T116) -> 0 | U117: Updated Useful Lives to FAR
E120: RESI RECYCLE
C121: SL | D121: 3613 | E121: 07 PB 320 W/27 CY CURBTENDER | F121: 2007 | G121: 8 | H121: 0 | I121: S/L | J121: 7 | K121: =F121+J121 -> 2014 | L121: =+K121+(G121/12) -> 2014.666667 | M121: =+'Trucks 2188 - Original'!Q131 -> 155764.032 | N121: =M121-M121*H121 -> 155764.032 | O121: =N121/J121/12 -> 1854.333714 | P121: =+O121*12 -> 22252.00457 | Q121: =+IF(L121<=$N$6,0,P121) -> 0 | R121: =+IF($L121<=$N$7,$M121,IF(($F121+($G121/12))>=$N$7,0,((($M121-((($L121-$N$7)*12)*$O121)))))) -> 155764.032 | S121: =+IF(L121<=$N$6,M121,IF(Q121=0,R121,R121+Q121)) -> 155764.032 | T121: =+M121-S121 -> 0
D122: 3613 | E122: Truck #3613 Amort of Salvage | F122: 2019 | G122: 6 | H122: 0 | I122: S/L | J122: 3 | K122: =F122+J122 -> 2022 | L122: =+K122+(G122/12) -> 2022.5 | M122: =+'Trucks 2188 - Original'!O131-'Trucks 2188'!M121 -> 38941.008 | N122: =M122-M122*H122 -> 38941.008 | O122: 1081.694667 | P122: 12980.336 | Q122: 0 | R122: 38941.008 | S122: 38941.008 | T122: 0
C123: RW | D123: 11094 | E123: ROUTWARE INSTALLATIONS | F123: 2007 | G123: 9 | H123: 0 | I123: S/L | J123: 7 | K123: 2014 | L123: 2014.75 | M123: =+'Trucks 2188 - Original'!Q132 -> 26695.296 | N123: 26695.296 | O123: 317.8011429 | P123: 3813.613714 | Q123: 0 | R123: 26695.296 | S123: 26695.296 | T123: 0
D124: 11094 | E124: Truck #11094 Amort of Salvage | F124: 2019 | G124: 6 | H124: 0 | I124: S/L | J124: 3 | K124: 2022 | L124: =+K124+(G124/12) -> 2022.5 | M124: =+'Trucks 2188 - Original'!O132-'Trucks 2188'!M123 -> 6673.824 | N124: =M124-M124*H124 -> 6673.824 | O124: 185.384 | P124: 2224.608 | Q124: 0 | R124: 6673.824 | S124: 6673.824 | T124: 0
C125: DC | D125: 68606 | E125: DRIVE CAMS (ONSITE TECHNICIANS) | F125: 2009 | G125: 7 | H125: 0 | I125: S/L | J125: 5 | K125: 2014 | L125: 2014.583333 | M125: =+'Trucks 2188 - Original'!Q137 -> 2958.9679 | N125: 2958.9679 | O125: 49.31613167 | P125: 591.79358 | Q125: 0 | R125: 2958.9679 | S125: 2958.9679 | T125: 0
D126: 68606 | E126: Truck #68606 Amort of Salvage | F126: 2019 | G126: 6 | H126: 0 | I126: S/L | J126: 3 | K126: 2022 | L126: =+K126+(G126/12) -> 2022.5 | M126: =+'Trucks 2188 - Original'!O137-'Trucks 2188'!M125 -> 1457.4021 | N126: =M126-M126*H126 -> 1457.4021 | O126: 40.48339167 | P126: 485.8007 | Q126: 0 | R126: 1457.4021 | S126: 1457.4021 | T126: 0
D127: 88724 | E127: (5) TRUCK RADIOS | F127: 2011 | G127: 12 | H127: 0 | I127: S/L | J127: 5 | K127: 2016 | L127: 2017 | M127: =468.93*5 -> 2344.65 | N127: 2344.65 | O127: 39.0775 | P127: 468.93 | Q127: 0 | R127: 2344.65 | S127: 2344.65 | T127: 0
A128: 97261 | D128: 3613 | E128: Plastic Hopper Door for #3613 | F128: 2012 | G128: 10 | H128: 0 | I128: S/L | J128: 3 | K128: 2015 | L128: 2015.833333 | M128: 2558.53 | N128: 2558.53 | O128: 71.07027778 | P128: 852.8433333 | Q128: 0 | R128: 2558.53 | S128: 2558.53 | T128: 0
A129: 88724 | E129: (2) TRUCK RADIOS | F129: 2011 | G129: 12 | H129: 0 | I129: S/L | J129: 5 | K129: 2016 | L129: 2017 | M129: =468.93*2 -> 937.86 | N129: =M129-M129*H129 -> 937.86 | O129: 15.631 | P129: 187.572 | Q129: 0 | R129: 937.86 | S129: 937.86 | T129: 0
A130: 132281/133543/139787 | E130: (4) Samsung Tablets, Hardware, & Setup | F130: 2016 | G130: 4 | H130: 0 | I130: S/L | J130: 1 | K130: 2017 | L130: 2017.333333 | M130: =((7403.89+8314.08+342)/38)*4 -> 1690.523158 | N130: =M130-M130*H130 -> 1690.523158 | O130: 140.8769298 | P130: 1690.523158 | Q130: 0 | R130: 1690.523158 | S130: 1690.523158 | T130: 0
A131: PROFORMA | C131: ASL | E131: 2020 ASL Pete 520/ Labrie 29 YD | F131: 2020 | G131: 8 | H131: 0 | I131: S/L | J131: 10 | K131: 2030 | L131: 2030.666667 | M131: 379778 | N131: =M131-M131*H131 -> 379778 | O131: 3164.816667 | P131: 37977.8 | Q131: 37977.8 | R131: 91779.68333 | S131: 129757.4833 | T131: 250020.5167
E132: Amortization of Salvage Value of 2019 & 2020 Retired Trucks | F132: 2019 | G132: 6 | H132: 0 | I132: S/L | J132: 3 | K132: =F132+J132 -> 2022 | L132: =+K132+(G132/12) -> 2022.5 | M132: =+M263 -> 31221.414 | N132: =M132-M132*H132 -> 31221.414 | O132: 867.2615 | P132: 10407.138 | Q132: 0 | R132: 31221.414 | S132: 31221.414 | T132: 0
D134: 5 | E134: TOTAL RESI RECYCLE | M134: =SUM(M121:M133) -> 651021.5072 | N134: =SUM(N121:N133) -> 651021.5072 | O134: 7827.746921 | P134: 93932.96306 | Q134: 37977.8 | R134: 363023.1905 | S134: 401000.9905 | T134: 250020.5167 | U134: Updated Useful Lives to FAR
E137: MF
C139: RL - SP | D139: 1002 | E139: TYRONE UNITS (20%) | F139: 1995 | G139: 9 | H139: 0 | I139: S/L | J139: 7 | K139: =F139+J139 -> 2002 | L139: =+K139+(G139/12) -> 2002.75 | M139: =+'Trucks 2188 - Original'!Q153 -> 61.76 | N139: =M139-M139*H139 -> 61.76 | O139: =N139/J139/12 -> 0.7352380952 | P139: =+O139*12 -> 8.822857143 | Q139: =+IF(L139<=$N$6,0,P139) -> 0 | R139: =+IF($L139<=$N$7,$M139,IF(($F139+($G139/12))>=$N$7,0,((($M139-((($L139-$N$7)*12)*$O139)))))) -> 61.76 | S139: =+IF(L139<=$N$6,M139,IF(Q139=0,R139,R139+Q139)) -> 61.76 | T139: =+M139-S139 -> 0 | AJ139: 3 | AK139: Computes with one month convention
D140: 1002 | E140: Truck #1002 Amort of Salvage | F140: 2019 | G140: 6 | H140: 0 | I140: S/L | J140: 3 | K140: 2022 | L140: 2022.5 | M140: =+'Trucks 2188 - Original'!O153-'Trucks 2188'!M139 -> 15.44 | N140: 15.44 | O140: 0.4288888889 | P140: 5.146666667 | Q140: 0 | R140: 15.44 | S140: 15.44 | T140: 0
C141: RL - SP | D141: 1002 | E141: 20YD ALPHA BODY (20%) | F141: 1995 | G141: 10 | H141: 0 | I141: S/L | J141: 7 | K141: 2002 | L141: 2002.833333 | M141: =+'Trucks 2188 - Original'!Q154 -> 4347.2 | N141: 4347.2 | O141: 51.75238095 | P141: 621.0285714 | Q141: 0 | R141: 4347.2 | S141: 4347.2 | T141: 0 | AK141: i.e. whole month depreciation no
D142: 1002 | E142: Truck #1002 Amort of Salvage | F142: 2019 | G142: 6 | H142: 0 | I142: S/L | J142: 3 | K142: 2022 | L142: 2022.5 | M142: =+'Trucks 2188 - Original'!O154-'Trucks 2188'!M141 -> 1086.8 | N142: 1086.8 | O142: 30.18888889 | P142: 362.2666667 | Q142: 0 | R142: 1086.8 | S142: 1086.8 | T142: 0
C143: RL - SP | D143: 1002 | E143: 1996 VOLVO FE42 (20%) | F143: 1995 | G143: 10 | H143: 0 | I143: S/L | J143: 7 | K143: 2002 | L143: 2002.833333 | M143: =+'Trucks 2188 - Original'!Q155 -> 7952 | N143: 7952 | O143: 94.66666667 | P143: 1136 | Q143: 0 | R143: 7952 | S143: 7952 | T143: 0 | AK143: matter what day of month put on
D144: 1002 | E144: Truck #1002 Amort of Salvage | F144: 2019 | G144: 6 | H144: 0 | I144: S/L | J144: 3 | K144: 2022 | L144: 2022.5 | M144: =+'Trucks 2188 - Original'!O155-'Trucks 2188'!M143 -> 1988 | N144: 1988 | O144: 55.22222222 | P144: 662.6666667 | Q144: 0 | R144: 1988 | S144: 1988 | T144: 0
E146: TOTAL MF | M146: =SUM(M139:M145) -> 15451.2 | N146: =SUM(N139:N145) -> 15451.2 | O146: 232.9942857 | P146: 2795.931429 | Q146: 0 | R146: 15451.2 | S146: 15451.2 | T146: 0
E149: YARD WASTE
C151: RL - SP | D151: 1002 | E151: TYRONE UNITS (20%) | F151: 1995 | G151: 9 | H151: 0 | I151: S/L | J151: 7 | K151: =F151+J151 -> 2002 | L151: =+K151+(G151/12) -> 2002.75 | M151: =+'Trucks 2188 - Original'!Q162 -> 61.76 | N151: =M151-M151*H151 -> 61.76 | O151: =N151/J151/12 -> 0.7352380952 | P151: =+O151*12 -> 8.822857143 | Q151: =+IF(L151<=$N$6,0,P151) -> 0 | R151: =+IF($L151<=$N$7,$M151,IF(($F151+($G151/12))>=$N$7,0,((($M151-((($L151-$N$7)*12)*$O151)))))) -> 61.76 | S151: =+IF(L151<=$N$6,M151,IF(Q151=0,R151,R151+Q151)) -> 61.76 | T151: =+M151-S151 -> 0 | AJ151: 3 | AK151: Computes with one month convention
D152: 1002 | E152: Truck #1002 Amort of Salvage | F152: 2019 | G152: 6 | H152: 0 | I152: S/L | J152: 3 | K152: 2022 | L152: 2022.5 | M152: =+'Trucks 2188 - Original'!O162-'Trucks 2188'!M151 -> 15.44 | N152: 15.44 | O152: 0.4288888889 | P152: 5.146666667 | Q152: 0 | R152: 15.44 | S152: 15.44 | T152: 0
C153: RL - SP | D153: 1002 | E153: 20YD ALPHA BODY (20%) | F153: 1995 | G153: 10 | H153: 0 | I153: S/L | J153: 7 | K153: 2002 | L153: 2002.833333 | M153: =+'Trucks 2188 - Original'!Q163 -> 4347.2 | N153: 4347.2 | O153: 51.75238095 | P153: 621.0285714 | Q153: 0 | R153: 4347.2 | S153: 4347.2 | T153: 0 | AK153: i.e. whole month depreciation no
D154: 1002 | E154: Truck #1002 Amort of Salvage | F154: 2019 | G154: 6 | H154: 0 | I154: S/L | J154: 3 | K154: 2022 | L154: 2022.5 | M154: =+'Trucks 2188 - Original'!O163-'Trucks 2188'!M153 -> 1086.8 | N154: 1086.8 | O154: 30.18888889 | P154: 362.2666667 | Q154: 0 | R154: 1086.8 | S154: 1086.8 | T154: 0
C155: RL - SP | D155: 1002 | E155: 1996 VOLVO FE42 (20%) | F155: 1995 | G155: 10 | H155: 0 | I155: S/L | J155: 7 | K155: 2002 | L155: 2002.833333 | M155: =+'Trucks 2188 - Original'!Q164 -> 7952 | N155: 7952 | O155: 94.66666667 | P155: 1136 | Q155: 0 | R155: 7952 | S155: 7952 | T155: 0 | AK155: matter what day of month put on
D156: 1002 | E156: Truck #1002 Amort of Salvage | F156: 2019 | G156: 6 | H156: 0 | I156: S/L | J156: 3 | K156: 2022 | L156: 2022.5 | M156: =+'Trucks 2188 - Original'!O164-'Trucks 2188'!M155 -> 1988 | N156: 1988 | O156: 55.22222222 | P156: 662.6666667 | Q156: 0 | R156: 1988 | S156: 1988 | T156: 0
E158: TOTAL YARD WASTE | M158: =SUM(M151:M157) -> 15451.2 | N158: =SUM(N151:N157) -> 15451.2 | O158: 232.9942857 | P158: 2795.931429 | Q158: 0 | R158: 15451.2 | S158: 15451.2 | T158: 0
E161: Commercial Recycling
C163: TRL | D163: 8707 | E163: S828 PEERLESS TRAILER | F163: 1997 | G163: 5 | H163: 0 | I163: S/L | J163: 7 | K163: =F163+J163 -> 2004 | L163: =+K163+(G163/12) -> 2004.416667 | M163: =+'Trucks 2188 - Original'!Q171 -> 2400 | N163: =M163-M163*H163 -> 2400 | O163: =N163/J163/12 -> 28.57142857 | P163: =+O163*12 -> 342.8571429 | Q163: =+IF(L163<=$N$6,0,P163) -> 0 | R163: =+IF($L163<=$N$7,$M163,IF(($F163+($G163/12))>=$N$7,0,((($M163-((($L163-$N$7)*12)*$O163)))))) -> 2400 | S163: =+IF(L163<=$N$6,M163,IF(Q163=0,R163,R163+Q163)) -> 2400 | T163: =+M163-S163 -> 0
D164: 8707 | E164: S828 PEERLESS TRAILER Amort of Salvage | F164: 2022 | G164: 9 | H164: 0 | I164: S/L | J164: 6 | K164: =F164+J164 -> 2028 | L164: =+K164+(G164/12) -> 2028.75 | M164: =+'Trucks 2188 - Original'!O171-M163 -> 600 | N164: =M164-M164*H164 -> 600 | O164: =N164/J164/12 -> 8.333333333 | P164: =+O164*12 -> 100 | Q164: =+IF(L164<=$N$6,0,P164) -> 100 | R164: 33.33333333 | S164: =+IF(L164<=$N$6,M164,IF(Q164=0,R164,R164+Q164)) -> 133.3333333
D165: 8707 | E165: TAX ON #8707 | F165: 1997 | G165: 6 | H165: 0 | I165: S/L | J165: 7 | K165: 2004 | L165: 2004.5 | M165: =+'Trucks 2188 - Original'!Q172 -> 224 | N165: 224 | O165: 2.666666667 | P165: 32 | Q165: 0 | R165: 224 | S165: 224 | T165: 0
D166: 8707 | E166: TAX ON #8707 Amort of Salvage | F166: 2022 | G166: 9 | H166: 0 | I166: S/L | J166: 6 | K166: =F166+J166 -> 2028 | L166: =+K166+(G166/12) -> 2028.75 | M166: =+'Trucks 2188 - Original'!O172-M165 -> 56 | N166: =M166-M166*H166 -> 56 | O166: =N166/J166/12 -> 0.7777777778 | P166: =+O166*12 -> 9.333333333 | Q166: =+IF(L166<=$N$6,0,P166) -> 9.333333333 | R166: 3.111111111 | S166: =+IF(L166<=$N$6,M166,IF(Q166=0,R166,R166+Q166)) -> 12.44444444 | T166: =+M166-S166 -> 43.55555556
D167: 8587 | E167: S837 PEERLESS DOLLY | F167: 1997 | G167: 5 | H167: 0 | I167: S/L | J167: 7 | K167: 2004 | L167: 2004.416667 | M167: =+'Trucks 2188 - Original'!Q173 -> 2400 | N167: 2400 | O167: 28.57142857 | P167: 342.8571429 | Q167: 0 | R167: 2400 | S167: 2400 | T167: 0
D168: 8587 | E168: S837 PEERLESS DOLLY Amort of Salvage | F168: 2022 | G168: 9 | H168: 0 | I168: S/L | J168: 6 | K168: =F168+J168 -> 2028 | L168: =+K168+(G168/12) -> 2028.75 | M168: =+'Trucks 2188 - Original'!O173-M167 -> 600 | N168: =M168-M168*H168 -> 600 | O168: =N168/J168/12 -> 8.333333333 | P168: =+O168*12 -> 100 | Q168: =+IF(L168<=$N$6,0,P168) -> 100 | R168: 33.33333333 | S168: =+IF(L168<=$N$6,M168,IF(Q168=0,R168,R168+Q168)) -> 133.3333333 | T168: =+M168-S168 -> 466.6666667
D169: 8587 | E169: TAX ON #8587 | F169: 1997 | G169: 6 | H169: 0 | I169: S/L | J169: 7 | K169: 2004 | L169: 2004.5 | M169: =+'Trucks 2188 - Original'!Q174 -> 224 | N169: 224 | O169: 2.666666667 | P169: 32 | Q169: 0 | R169: 224 | S169: 224 | T169: 0
D170: 8587 | E170: TAX ON #8587 Amort of Salvage | F170: 2022 | G170: 9 | H170: 0 | I170: S/L | J170: 6 | K170: =F170+J170 -> 2028 | L170: =+K170+(G170/12) -> 2028.75 | M170: =+'Trucks 2188 - Original'!O174-M169 -> 56 | N170: =M170-M170*H170 -> 56 | O170: =N170/J170/12 -> 0.7777777778 | P170: =+O170*12 -> 9.333333333 | Q170: =+IF(L170<=$N$6,0,P170) -> 9.333333333 | R170: 3.111111111 | S170: =+IF(L170<=$N$6,M170,IF(Q170=0,R170,R170+Q170)) -> 12.44444444 | T170: =+M170-S170 -> 43.55555556
A171: 88724 | E171: (6) TRUCK RADIOS | F171: 2011 | G171: 12 | H171: 0 | I171: S/L | J171: 5 | K171: 2016 | L171: 2017 | M171: =468.93*6 -> 2813.58 | N171: 2813.58 | O171: 46.893 | P171: 562.716 | Q171: 0 | R171: 2813.58 | S171: 2813.58 | T171: 0
A172: 126242, 126243,126244,126245,126246 | D172: 1072 | E172: 2006 Int'l 7400 Chassis (N) | F172: 2006 | G172: 4 | H172: 0 | I172: S/L | J172: 7 | K172: =F172+J172 -> 2013 | L172: =+K172+(G172/12) -> 2013.333333 | M172: =+'Trucks 2188 - Original'!Q178 -> 113774.96 | N172: =M172-M172*H172 -> 113774.96 | O172: 1354.46381 | P172: 16253.56571 | Q172: 0 | R172: 113774.96 | S172: 113774.96 | T172: 0
A173: 126242, 126243,126244,126245,126246 | D173: 1072 | E173: 2006 Int'l 7400 Chassis (N) Amort of Salvage | F173: 2022 | G173: 9 | H173: 0 | I173: S/L | J173: 6 | K173: =F173+J173 -> 2028 | L173: =+K173+(G173/12) -> 2028.75 | M173: =+'Trucks 2188 - Original'!O178-M172 -> 28443.74 | N173: =M173-M173*H173 -> 28443.74 | O173: =N173/J173/12 -> 395.0519444 | P173: =+O173*12 -> 4740.623333 | Q173: =+IF(L173<=$N$6,0,P173) -> 4740.623333 | R173: 1580.207778 | S173: =+IF(L173<=$N$6,M173,IF(Q173=0,R173,R173+Q173)) -> 6320.831111 | T173: =+M173-S173 -> 22122.90889
C174: SL | D174: 3614 | E174: 07 PB 320 W/27 CY CURBTENDER | F174: 2007 | G174: 8 | H174: 0 | I174: S/L | J174: 7 | K174: =F174+J174 -> 2014 | L174: =+K174+(G174/12) -> 2014.666667 | M174: =+'Trucks 2188 - Original'!Q179 -> 155764 | N174: =M174-M174*H174 -> 155764 | O174: 1854.333333 | P174: 22252 | Q174: 0 | R174: 155764 | S174: 155764 | T174: 0
C175: SL | D175: 3614 | E175: 07 PB 320 W/27 CY CURBTENDER Amort of Salvage | F175: 2022 | G175: 9 | H175: 0 | I175: S/L | J175: 6 | K175: =F175+J175 -> 2028 | L175: =+K175+(G175/12) -> 2028.75 | M175: =+'Trucks 2188 - Original'!O179-M174 -> 38941.04 | N175: =M175-M175*H175 -> 38941.04 | O175: =N175/J175/12 -> 540.8477778 | P175: =+O175*12 -> 6490.173333 | Q175: =+IF(L175<=$N$6,0,P175) -> 6490.173333 | R175: 2163.391111 | S175: =+IF(L175<=$N$6,M175,IF(Q175=0,R175,R175+Q175)) -> 8653.564444 | T175: =+M175-S175 -> 30287.47556
E177: TOTAL COMMERCIAL RECYCLING | M177: =SUM(M163:M176) -> 346297.32 | N177: =SUM(N163:N176) -> 346297.32 | O177: 4272.288278 | P177: 51267.45933 | Q177: 11449.46333 | R177: 281417.0278 | S177: 292866.4911 | T177: 52964.16222
E179: Container Delivery
A181: 79653 | C181: DEL | D181: 9571 | E181: 2005 ISUZU DELIVERY TRUCK (U) | F181: 2007 | G181: 2 | H181: 0 | I181: S/L | J181: 5 | K181: =F181+J181 -> 2012 | L181: =+K181+(G181/12) -> 2012.166667 | M181: =+'Trucks 2188 - Original'!Q186 -> 20156.1125 | N181: =M181-M181*H181 -> 20156.1125 | O181: =N181/J181/12 -> 335.9352083 | P181: =+O181*12 -> 4031.2225 | Q181: =+IF(L181<=$N$6,0,P181) -> 0 | R181: =+IF($L181<=$N$7,$M181,IF(($F181+($G181/12))>=$N$7,0,((($M181-((($L181-$N$7)*12)*$O181)))))) -> 20156.1125 | S181: =+IF(L181<=$N$6,M181,IF(Q181=0,R181,R181+Q181)) -> 20156.1125 | T181: =+M181-S181 -> 0
D182: 9571 | E182: Truck #9571 Amort of Salvage | F182: 2019 | G182: 6 | H182: 0 | I182: S/L | J182: 3 | K182: =F182+J182 -> 2022 | L182: =+K182+(G182/12) -> 2022.5 | M182: =+'Trucks 2188 - Original'!O186-'Trucks 2188'!M181 -> 9927.6375 | N182: =M182-M182*H182 -> 9927.6375 | O182: =N182/J182/12 -> 275.7677083 | P182: =+O182*12 -> 3309.2125 | Q182: =+IF(L182<=$N$6,0,P182) -> 0 | R182: =+IF($L182<=$N$7,$M182,IF(($F182+($G182/12))>=$N$7,0,((($M182-((($L182-$N$7)*12)*$O182)))))) -> 9927.6375 | S182: =+IF(L182<=$N$6,M182,IF(Q182=0,R182,R182+Q182)) -> 9927.6375 | T182: =+M182-S182 -> 0
A183: 118080 | C183: DEL | D183: 9388 | E183: 2012 Container Delivery Truck (U) | F183: 2014 | G183: 12 | H183: 0 | I183: S/L | J183: 7 | K183: =F183+J183 -> 2021 | L183: =+K183+(G183/12) -> 2022 | M183: 144943.14 | N183: =M183-M183*H183 -> 144943.14 | O183: =N183/J183/12 -> 1725.513571 | P183: =+O183*12 -> 20706.16286 | Q183: =+IF(L183<=$N$6,0,P183) -> 0 | R183: =+IF($L183<=$N$7,$M183,IF(($F183+($G183/12))>=$N$7,0,((($M183-((($L183-$N$7)*12)*$O183)))))) -> 144943.14 | S183: =+IF(L183<=$N$6,M183,IF(Q183=0,R183,R183+Q183)) -> 144943.14 | T183: =+M183-S183 -> 0
E184: Amortization of Salvage Value of 2019 & 2020 Retired Trucks | F184: 2019 | G184: 6 | H184: 0 | I184: S/L | J184: 3 | K184: =F184+J184 -> 2022 | L184: =+K184+(G184/12) -> 2022.5 | M184: =+M251+M253 -> 11303.5 | N184: =M184-M184*H184 -> 11303.5 | O184: =N184/J184/12 -> 313.9861111 | P184: =+O184*12 -> 3767.833333 | Q184: =+IF(L184<=$N$6,0,P184) -> 0 | R184: =+IF($L184<=$N$7,$M184,IF(($F184+($G184/12))>=$N$7,0,((($M184-((($L184-$N$7)*12)*$O184)))))) -> 11303.5 | S184: =+IF(L184<=$N$6,M184,IF(Q184=0,R184,R184+Q184)) -> 11303.5 | T184: =+M184-S184 -> 0
E186: TOTAL CONTAINER DELIVERY | M186: =SUM(M181:M185) -> 186330.39 | N186: =SUM(N181:N185) -> 186330.39 | O186: 2651.202599 | P186: 31814.43119 | Q186: 0 | R186: 186330.39 | S186: 186330.39 | T186: 0 | U186: Updated Useful Lives to FAR
E188: General Recycling
A189: 67022 | C189: LH | D189: 5600 | E189: 2001 Type H Trac Tr | F189: 2008 | G189: 11 | H189: 0 | I189: S/L | J189: 3 | K189: =F189+J189 -> 2011 | L189: =+K189+(G189/12) -> 2011.916667 | M189: 15000 | N189: =M189-M189*H189 -> 15000 | O189: =N189/J189/12 -> 416.6666667 | P189: =+O189*12 -> 5000 | Q189: =+IF(L189<=$N$6,0,P189) -> 0 | R189: =+IF($L189<=$N$7,$M189,IF(($F189+($G189/12))>=$N$7,0,((($M189-((($L189-$N$7)*12)*$O189)))))) -> 15000 | S189: =+IF(L189<=$N$6,M189,IF(Q189=0,R189,R189+Q189)) -> 15000 | T189: =+M189-S189 -> 0 | U189: 2189 FAR
A190: 86922 | C190: LH | D190: 8142 | E190: 1990 Type HT D-V Trailer | F190: 2008 | G190: 11 | H190: 0 | I190: S/L | J190: 3 | K190: 2011 | L190: 2011.916667 | M190: 2500 | N190: 2500 | O190: 69.44444444 | P190: 833.3333333 | Q190: 0 | R190: 2500 | S190: 2500 | T190: 0 | U190: 2189 FAR
A191: 90985 | C191: LH | D191: 8141 | E191: 1995 Type HT D-V Trailer | F191: 2008 | G191: 11 | H191: 0 | I191: S/L | J191: 3 | K191: 2011 | L191: 2011.916667 | M191: 2500 | N191: 2500 | O191: 69.44444444 | P191: 833.3333333 | Q191: 0 | R191: 2500 | S191: 2500 | T191: 0 | U191: 2189 FAR
A192: 217499 | C192: LH | D192: 8136 | E192: 53 Foot Trailer 4 axle Dry Van | F192: 2019 | G192: 7 | H192: 0 | I192: S/L | J192: 0 | K192: 2019 | L192: 2019.583333 | M192: 0 | N192: 0 | O192: =IFERROR(N192/J192/12,0) -> 0 | P192: 0 | Q192: 0 | R192: 0 | S192: 0 | T192: 0 | U192: 2189 FAR
A193: 86896 | D193: 8149 | E193: 1990 Dry Van 53' Trailer | F193: 2011 | G193: 1 | H193: 0 | I193: S/L | J193: 1 | K193: 2012 | L193: 2012.083333 | M193: 0 | N193: 0 | O193: 0 | P193: 0 | Q193: 0 | R193: 0 | S193: 0 | T193: 0 | U193: 2189 FAR
A194: 67700 | D194: 8394 | E194: 1964 Type HT Flat Trailer | F194: 2008 | G194: 11 | H194: 0 | I194: S/L | J194: 3 | K194: 2011 | L194: 2011.916667 | M194: 1000 | N194: 1000 | O194: 27.77777778 | P194: 333.3333333 | Q194: 0 | R194: 1000 | S194: 1000 | T194: 0 | U194: 2189 FAR
E196: TOTAL GENERAL RECYCLING | M196: =SUM(M189:M195) -> 21000 | N196: =SUM(N189:N195) -> 21000 | O196: 583.3333333 | P196: 7000 | Q196: 0 | R196: 21000 | S196: 21000 | T196: 0
E198: GRAND TOTAL | M198: =SUM(M158,M146,M134,M117,M84,M177,M186,M196) -> 9371431.434 | N198: =SUM(N158,N146,N134,N117,N84,N177,N186,N196) -> 9371431.434 | O198: 104710.2065 | P198: 1256522.478 | Q198: 552594.9445 | R198: 6294360.189 | S198: 6885483.333 | T198: 2485481.434
E203: RETIRED/TRANSFERRED 2011
C204: FL | D204: 2027 | E204: '05 AUTOCAR W/MCNEILUS F/L BODY | F204: 2006 | G204: 9 | H204: 0.2 | I204: S/L | J204: 7 | K204: =F204+J204 -> 2013 | L204: =+K204+(G204/12) -> 2013.75 | M204: 201740.62 | N204: =M204-M204*H204 -> 161392.496 | O204: =N204/J204/12 -> 1921.339238 | P204: =+O204*12 -> 23056.07086 | Q204: =+IF(L204<=$N$5,0,IF(K204>$N$4,P204,(O204*G204))) -> 0 | R204: =+IF(Q204=0,M204,IF($N$3-F204<1,0,(($N$3-F204)*P204))) -> 201740.62 | S204: =+IF(Q204=0,R204,R204+Q204) -> 201740.62 | T204: =+M204-S204 -> 0
E208: RETIRED/TRANSFERRED 2012
A209: 88663 | B209: 2188 | C209: FL | D209: 2036 | E209: 2011 PETERBUILT FEL W/MCNEILUS BODY (N) | F209: 2011 | G209: 12 | H209: 0.2 | I209: S/L | J209: 7 | K209: =F209+J209 -> 2018 | L209: =+K209+(G209/12) -> 2019 | M209: 245480.55 | N209: =M209-M209*H209 -> 196384.44 | O209: =N209/J209/12 -> 2337.91 | P209: =+O209*12 -> 28054.92 | Q209: =+IF(L209<=$N$5,0,IF(K209>$N$4,P209,(O209*G209))) -> 0 | R209: =+IF(Q209=0,M209,IF($N$3-F209<1,0,(($N$3-F209)*P209))) -> 245480.55 | S209: =+IF(Q209=0,R209,R209+Q209) -> 245480.55 | T209: =+M209-S209 -> 0
E212: RETIRED/TRANSFERRED 2013
C213: RO | D213: 4032 | E213: '02 INT'L 9200I W/DROP | F213: 2003 | G213: 7 | H213: 0.2 | I213: S/L | J213: 7 | K213: =F213+J213 -> 2010 | L213: =+K213+(G213/12) -> 2010.583333 | M213: 106113.75 | N213: =M213-M213*H213 -> 84891 | O213: =N213/J213/12 -> 1010.607143 | P213: =+O213*12 -> 12127.28571 | Q213: =+IF(L213<=$N$5,0,IF(K213>$N$4,P213,(O213*G213))) -> 0 | R213: =+IF(Q213=0,M213,IF($N$3-F213<1,0,(($N$3-F213)*P213))) -> 106113.75 | S213: =+IF(Q213=0,R213,R213+Q213) -> 106113.75 | T213: =+M213-S213 -> 0
E218: RETIRED/TRANSFERRED 2014
C219: FL | D219: 2502 | E219: 1996 MACK | F219: 1996 | G219: 4 | H219: 0.2 | I219: S/L | J219: 7 | K219: =F219+J219 -> 2003 | L219: =+K219+(G219/12) -> 2003.333333 | M219: 89610 | N219: =M219-M219*H219 -> 71688 | O219: =N219/J219/12 -> 853.4285714 | P219: =+O219*12 -> 10241.14286 | Q219: =+IF(L219<=$N$5,0,IF(K219>$N$4,P219,(O219*G219))) -> 0 | R219: =+IF(Q219=0,M219,IF($N$3-F219<1,0,(($N$3-F219)*P219))) -> 89610 | S219: =+IF(Q219=0,R219,R219+Q219) -> 89610 | T219: =+M219-S219 -> 0
C220: FL | D220: 2502 | E220: 40YD F/L PACKER | F220: 1996 | G220: 6 | H220: 0.2 | I220: S/L | J220: 7 | K220: 2003 | L220: 2003.5 | M220: 42120 | N220: 33696 | O220: 401.1428571 | P220: 4813.714286 | Q220: 0 | R220: 42120 | S220: 42120 | T220: 0
C221: FL | D221: 2502 | E221: INSTALLATION FOR #2502 | F221: 1996 | G221: 6 | H221: 0.2 | I221: S/L | J221: 7 | K221: 2003 | L221: 2003.5 | M221: 15490 | N221: 12392 | O221: 147.5238095 | P221: 1770.285714 | Q221: 0 | R221: 15490 | S221: 15490 | T221: 0
C222: FL | D222: 2502 | E222: FLEXARM | F222: 1999 | G222: 8 | H222: 0.2 | I222: S/L | J222: 7 | K222: 2006 | L222: 2006.666667 | M222: 22752.08 | N222: 18201.664 | O222: 216.6864762 | P222: 2600.237714 | Q222: 0 | R222: 22752.08 | S222: 22752.08 | T222: 0
C223: RL SP | D223: 1638 | E223: 1994 Type H Rear REL | F223: 2007 | G223: 2 | H223: 0.33 | I223: S/L | J223: 5 | K223: 2012 | L223: 2012.166667 | M223: 0 | N223: 0 | O223: 0 | P223: 0 | Q223: 0 | R223: 0 | S223: 0 | T223: 0
D224: 1638 | E224: NEW TRANSMISSION. REL 1994 FREIGHTLINER. | F224: 2007 | G224: 2 | H224: 0 | I224: S/L | J224: 3 | K224: 2010 | L224: 2010.166667 | M224: 7114.37 | N224: 7114.37 | O224: 197.6213889 | P224: 2371.456667 | Q224: 0 | R224: 7114.37 | S224: 7114.37 | T224: 0
E227: RETIRED/TRANSFERRED 2016
D228: 4022 | E228: 2000 INTERNATIONAL 9200I SBA 6X4 | F228: 1999 | G228: 12 | H228: 0.2 | I228: S/L | J228: 7 | K228: =F228+J228 -> 2006 | L228: =+K228+(G228/12) -> 2007 | M228: 79524.98 | N228: =M228-M228*H228 -> 63619.984 | O228: =N228/J228/12 -> 757.3807619 | P228: =+O228*12 -> 9088.569143 | Q228: =+IF(L228<=$N$5,0,IF(K228>$N$4,P228,(O228*G228))) -> 0 | R228: =+IF(Q228=0,M228,IF($N$3-F228<1,0,(($N$3-F228)*P228))) -> 79524.98 | S228: =+IF(Q228=0,R228,R228+Q228) -> 79524.98 | T228: =+M228-S228 -> 0
C229: RO | D229: 4022 | E229: HY-TOWER TARPER | F229: 1999 | G229: 3 | H229: 0.33 | I229: S/L | J229: 5 | K229: 2004 | L229: 2004.25 | M229: 2470.69 | N229: 1655.3623 | O229: 27.58937167 | P229: 331.07246 | Q229: 0 | R229: 2470.69 | S229: 2470.69 | T229: 0
C230: RO | D230: 4022 | E230: LIFT AXLE | F230: 2000 | G230: 7 | H230: 0.2 | I230: S/L | J230: 7 | K230: 2007 | L230: 2007.583333 | M230: 5662.21 | N230: 4529.768 | O230: 53.92580952 | P230: 647.1097143 | Q230: 0 | R230: 5662.21 | S230: 5662.21 | T230: 0
C231: TF Tractor SP | D231: 4022 | E231: ROLL-OFF UNIT | F231: 2000 | G231: 9 | H231: 0.2 | I231: S/L | J231: 7 | K231: 2007 | L231: 2007.75 | M231: 6768.27 | N231: 5414.616 | O231: 64.45971429 | P231: 773.5165714 | Q231: 0 | R231: 6768.27 | S231: 6768.27 | T231: 0
D232: 4022 | E232: FLUP 4022 | F232: 2009 | G232: 5 | H232: 0 | I232: S/L | J232: 3 | K232: 2012 | L232: 2012.416667 | M232: 2957.15 | N232: 2957.15 | O232: 82.14305556 | P232: 985.7166667 | Q232: 0 | R232: 2957.15 | S232: 2957.15 | T232: 0
C233: ASL | D233: 3518 | E233: '00 PETE 320 W/24YD LEACH CURBTENDER | F233: 2000 | G233: 9 | H233: 0.2 | I233: S/L | J233: 7 | K233: 2007 | L233: 2007.75 | M233: 141947.68 | N233: 113558.144 | O233: 1351.882667 | P233: 16222.592 | Q233: 0 | R233: 141947.68 | S233: 141947.68 | T233: 0
A234: 118257 | C234: ASL | D234: 3518 | E234: Trans Replacement #3518 | F234: 2014 | G234: 10 | H234: 0 | I234: S/L | J234: 3 | K234: 2017 | L234: 2017.833333 | M234: 6739.1 | N234: 6739.1 | O234: 187.1972222 | P234: 2246.366667 | Q234: 0 | R234: 6739.1 | S234: 6739.1 | T234: 0
A235: 118256 | C235: ASL | D235: 3518 | E235: Improvement - ASL Auto Hopper Cover Kit | F235: 2014 | G235: 12 | H235: 0 | I235: S/L | J235: 3 | K235: 2017 | L235: 2018 | M235: 2532.61 | N235: 2532.61 | O235: 70.35027778 | P235: 844.2033333 | Q235: 0 | R235: 2532.61 | S235: 2532.61 | T235: 0
C236: SL | D236: 3514 | E236: 2000 PETERBILT | F236: 1999 | G236: 8 | H236: 0.2 | I236: S/L | J236: 7 | K236: 2006 | L236: 2006.666667 | M236: 77645.95 | N236: 62116.76 | O236: 739.4852381 | P236: 8873.822857 | Q236: 0 | R236: 77645.95 | S236: 77645.95 | T236: 0
C237: SL | D237: 3514 | E237: 24 CU YD LEACH CURBTENDER | F237: 1999 | G237: 10 | H237: 0.2 | I237: S/L | J237: 7 | K237: 2006 | L237: 2006.833333 | M237: 61640.63 | N237: 49312.504 | O237: 587.053619 | P237: 7044.643429 | Q237: 0 | R237: 61640.63 | S237: 61640.63 | T237: 0
C238: SL | D238: 3514 | E238: TRAVEL COSTS-3514 | F238: 1999 | G238: 11 | H238: 0.2 | I238: S/L | J238: 7 | K238: 2006 | L238: 2006.916667 | M238: 1156.43 | N238: 925.144 | O238: 11.01361905 | P238: 132.1634286 | Q238: 0 | R238: 1156.43 | S238: 1156.43 | T238: 0
C239: SL | D239: 3514 | E239: FLUP - TRUCK 3514 | F239: 2009 | G239: 6 | H239: 0 | I239: S/L | J239: 3 | K239: 2012 | L239: 2012.5 | M239: 3470.7 | N239: 3470.7 | O239: 96.40833333 | P239: 1156.9 | Q239: 0 | R239: 3470.7 | S239: 3470.7 | T239: 0
A240: 118255 | C240: SL | D240: 3514 | E240: Improvement - ASL Auto Hopper Cover Kit | F240: 2014 | G240: 12 | H240: 0 | I240: S/L | J240: 3 | K240: 2017 | L240: 2018 | M240: 2532.61 | N240: 2532.61 | O240: 70.35027778 | P240: 844.2033333 | Q240: 0 | R240: 2532.61 | S240: 2532.61 | T240: 0
... 92 more rows

Sheet Containers 2188
A1: 2188 Lewis County/Joe's Refuse
A2: Depreciation Schedule | N2: 1 | O2: Test Period Beg. Month
A3: ='Summary 2188'!A3 -> 2023-12-31 | N3: 12 | O3: Test Period End Month
N4: 2023 | O4: First Year
N5: 2023 | O5: Second year
N6: =+N5+(N3/12) -> 2024 | O6: Test Period End Mo/Yr
N7: =+N4+(N2/12) -> 2023.083333 | O7: Test Period Beg. Mo/Yr
K8: =SUM(K133:K133,K207,K230) -> 102486.88 | P8: Beginning | Q8: Ending
F9: Salvage | I9: Year | O9: Total | P9: Accum. | Q9: Accum. | R9: Average
B10: Quantity | D10: Date in Service | F10: Value | G10: Method | H10: Life | I10: Fully | J10: Year/Mo | K10: Asset | L10: Depr | M10: Monthly | N10: Annual | O10: Test yr. | P10: Depr. | Q10: Depr. | R10: Investment
A11: Codes | B11: No | C11: Asset Classification | D11: Year | E11: Mo | F11: % | G11: M | H11: Years | I11: Depr | J11: Fully Depr | K11: Cost | L11: Cost | M11: Depr | N11: Depr | O11: Depn. | P11: =+'Summary 2188'!F7 -> 2023-01-01 | Q11: =+'Summary 2188'!G7 -> 2023-12-31 | R11: =+'Summary 2188'!H7 -> 2023-12-31
C12: CONTAINERS
B13: 16 | C13: 2 YD R/L CONTAINERS | D13: 2007 | E13: 8 | F13: 0 | G13: S/L | H13: 10 | I13: =D13+H13 -> 2017 | J13: =+I13+(E13/12) -> 2017.666667 | K13: 5334.58 | L13: =K13-K13*F13 -> 5334.58 | M13: =L13/H13/12 -> 44.45483333 | N13: =+M13*12 -> 533.458 | O13: =+IF(J13<=$N$6,0,N13) -> 0 | P13: =+IF($J13<=$N$7,$L13,IF(($D13+($E13/12))>=$N$7,0,((($L13-((($J13-$N$7)*12)*$M13)))))) -> 5334.58 | Q13: =+IF(O13=0,K13,P13+O13) -> 5334.58 | R13: =+L13-Q13 -> 0
B14: 22 | C14: 6 YD F/L CONTAINERS | D14: 2007 | E14: 8 | F14: 0 | G14: S/L | H14: 10 | I14: 2017 | J14: 2017.666667 | K14: 9945.14 | L14: 9945.14 | M14: 82.87616667 | N14: 994.514 | O14: 0 | P14: 9945.14 | Q14: 9945.14 | R14: =+L14-Q14 -> 0
B15: 17 | C15: 6 YD F/L CONTAINERS | D15: 2007 | E15: 9 | F15: 0 | G15: S/L | H15: 10 | I15: 2017 | J15: 2017.75 | K15: 7753.68 | L15: 7753.68 | M15: 64.614 | N15: 775.368 | O15: 0 | P15: 7753.68 | Q15: 7753.68 | R15: 0
B16: 28 | C16: 3 YD F/L CONTAINERS | D16: 2007 | E16: 10 | F16: 0 | G16: S/L | H16: 10 | I16: 2017 | J16: 2017.833333 | K16: 10361.84 | L16: 10361.84 | M16: 86.34866667 | N16: 1036.184 | O16: 0 | P16: 10361.84 | Q16: 10361.84 | R16: 0
B17: 18 | C17: 1 YD CONTAINER | D17: 2007 | E17: 11 | F17: 0 | G17: S/L | H17: 10 | I17: 2017 | J17: 2017.916667 | K17: 5194.53 | L17: 5194.53 | M17: 43.28775 | N17: 519.453 | O17: 0 | P17: 5194.53 | Q17: 5194.53 | R17: 0
B18: 21 | C18: 3 YD F/L CONTAINERS | D18: 2007 | E18: 11 | F18: 0 | G18: S/L | H18: 10 | I18: 2017 | J18: 2017.916667 | K18: 7919.21 | L18: 7919.21 | M18: 65.99341667 | N18: 791.921 | O18: 0 | P18: 7919.21 | Q18: 7919.21 | R18: 0
B19: 22 | C19: 6 YD F/L CONTAINERS | D19: 2007 | E19: 11 | F19: 0 | G19: S/L | H19: 10 | I19: 2017 | J19: 2017.916667 | K19: 10018.8 | L19: 10018.8 | M19: 83.49 | N19: 1001.88 | O19: 0 | P19: 10018.8 | Q19: 10018.8 | R19: 0
B20: 9 | C20: 3 YD F/L CONTAINERS | D20: 2007 | E20: 12 | F20: 0 | G20: S/L | H20: 10 | I20: 2017 | J20: 2018 | K20: 3332.34 | L20: 3332.34 | M20: 27.7695 | N20: 333.234 | O20: 0 | P20: 3332.34 | Q20: 3332.34 | R20: 0
B21: 10 | C21: 4 YD F/L CONTAINERS | D21: 2007 | E21: 12 | F21: 0 | G21: S/L | H21: 10 | I21: 2017 | J21: 2018 | K21: 3920.4 | L21: 3920.4 | M21: 32.67 | N21: 392.04 | O21: 0 | P21: 3920.4 | Q21: 3920.4 | R21: 0
B22: 10 | C22: 4 YD F/L CONTAINERS | D22: 2007 | E22: 12 | F22: 0 | G22: S/L | H22: 10 | I22: 2017 | J22: 2018 | K22: 3920.4 | L22: 3920.4 | M22: 32.67 | N22: 392.04 | O22: 0 | P22: 3920.4 | Q22: 3920.4 | R22: 0
B23: 17 | C23: 1.5 YD F/L CONTAINERS | D23: 2007 | E23: 12 | F23: 0 | G23: S/L | H23: 10 | I23: 2017 | J23: 2018 | K23: 5357.88 | L23: 5357.88 | M23: 44.649 | N23: 535.788 | O23: 0 | P23: 5357.88 | Q23: 5357.88 | R23: 0
B24: 11 | C24: 8 YD CONTAINERS | D24: 2007 | E24: 12 | F24: 0 | G24: S/L | H24: 10 | I24: 2017 | J24: 2018 | K24: 5417.78 | L24: 5417.78 | M24: 45.14816667 | N24: 541.778 | O24: 0 | P24: 5417.78 | Q24: 5417.78 | R24: 0
B25: 35 | C25: 1 YD F/L CONTAINERS | D25: 2008 | E25: 1 | F25: 0 | G25: S/L | H25: 10 | I25: 2018 | J25: 2018.083333 | K25: 10025.33 | L25: 10025.33 | M25: 83.54441667 | N25: 1002.533 | O25: 0 | P25: 10025.33 | Q25: 10025.33 | R25: 0
B26: 35 | C26: 1 YD F/L CONTAINERS | D26: 2008 | E26: 1 | F26: 0 | G26: S/L | H26: 10 | I26: 2018 | J26: 2018.083333 | K26: 10062.36 | L26: 10062.36 | M26: 83.853 | N26: 1006.236 | O26: 0 | P26: 10062.36 | Q26: 10062.36 | R26: 0
B27: 22 | C27: 2 YD F/L CONTAINERS | D27: 2008 | E27: 1 | F27: 0 | G27: S/L | H27: 10 | I27: 2018 | J27: 2018.083333 | K27: 7347.48 | L27: 7347.48 | M27: 61.229 | N27: 734.748 | O27: 0 | P27: 7347.48 | Q27: 7347.48 | R27: 0
B28: 20 | C28: 2 YD F/L CONTAINERS | D28: 2008 | E28: 1 | F28: 0 | G28: S/L | H28: 10 | I28: 2018 | J28: 2018.083333 | K28: 6869.41 | L28: 6869.41 | M28: 57.24508333 | N28: 686.941 | O28: 0 | P28: 6869.41 | Q28: 6869.41 | R28: 0
B29: 9 | C29: 3 YD F/L CONTAINERS | D29: 2008 | E29: 1 | F29: 0 | G29: S/L | H29: 10 | I29: 2018 | J29: 2018.083333 | K29: 3277.89 | L29: 3277.89 | M29: 27.31575 | N29: 327.789 | O29: 0 | P29: 3277.89 | Q29: 3277.89 | R29: 0
B30: 38 | C30: 1 YD R/L CONTAINER | D30: 2008 | E30: 3 | F30: 0 | G30: S/L | H30: 10 | I30: =D30+H30 -> 2018 | J30: =+I30+(E30/12) -> 2018.25 | K30: 10922.67 | L30: =K30-K30*F30 -> 10922.67 | M30: =L30/H30/12 -> 91.02225 | N30: =+M30*12 -> 1092.267 | O30: =+IF(J30<=$N$6,0,N30) -> 0 | P30: =+IF($J30<=$N$7,$L30,IF(($D30+($E30/12))>=$N$7,0,((($L30-((($J30-$N$7)*12)*$M30)))))) -> 10922.67 | Q30: 10922.67 | R30: 0
B31: 6 | C31: 6 YD F/L CONTAINERS | D31: 2008 | E31: 3 | F31: 0 | G31: S/L | H31: 10 | I31: 2018 | J31: 2018.25 | K31: 2774.4 | L31: 2774.4 | M31: 23.12 | N31: 277.44 | O31: 0 | P31: 2774.4 | Q31: 2774.4 | R31: 0
B32: 18 | C32: 1.5 YD CONTAINER | D32: 2008 | E32: 3 | F32: 0 | G32: S/L | H32: 10 | I32: 2018 | J32: 2018.25 | K32: 5564.79 | L32: 5564.79 | M32: 46.37325 | N32: 556.479 | O32: 0 | P32: 5564.79 | Q32: 5564.79 | R32: 0
B33: 57 | C33: 2 YD R/L CONTAINERS | D33: 2008 | E33: 3 | F33: 0 | G33: S/L | H33: 10 | I33: 2018 | J33: 2018.25 | K33: 19476.77 | L33: 19476.77 | M33: 162.3064167 | N33: 1947.677 | O33: 0 | P33: 19476.77 | Q33: 19476.77 | R33: 0
B34: 23 | C34: 3 YD F/L CONTAINERS | D34: 2008 | E34: 3 | F34: 0 | G34: S/L | H34: 10 | I34: 2018 | J34: 2018.25 | K34: 8477.87 | L34: 8477.87 | M34: 70.64891667 | N34: 847.787 | O34: 0 | P34: 8477.87 | Q34: 8477.87 | R34: 0
B35: 34 | C35: 2 YD R/L CONTAINERS | D35: 2008 | E35: 4 | F35: 0 | G35: S/L | H35: 10 | I35: 2018 | J35: 2018.333333 | K35: 11440.64 | L35: 11440.64 | M35: 95.33866667 | N35: 1144.064 | O35: 0 | P35: 11440.64 | Q35: 11440.64 | R35: 0
B36: 40 | C36: 1 YD F/L CONTAINERS | D36: 2008 | E36: 5 | F36: 0 | G36: S/L | H36: 10 | I36: 2018 | J36: 2018.416667 | K36: 11314.2 | L36: 11314.2 | M36: 94.285 | N36: 1131.42 | O36: 0 | P36: 11314.2 | Q36: 11314.2 | R36: 0
B37: 37 | C37: 2 YD F/L CONTAINERS | D37: 2008 | E37: 5 | F37: 0 | G37: S/L | H37: 10 | I37: 2018 | J37: 2018.416667 | K37: 12731.2 | L37: 12731.2 | M37: 106.0933333 | N37: 1273.12 | O37: 0 | P37: 12731.2 | Q37: 12731.2 | R37: 0
B38: 56 | C38: 2 YD F/L CONTAINERS | D38: 2008 | E38: 5 | F38: 0 | G38: S/L | H38: 10 | I38: 2018 | J38: 2018.416667 | K38: 18911.5 | L38: 18911.5 | M38: 157.5958333 | N38: 1891.15 | O38: 0 | P38: 18911.5 | Q38: 18911.5 | R38: 0
B39: 38 | C39: 3 YD F/L CONTAINERS | D39: 2008 | E39: 5 | F39: 0 | G39: S/L | H39: 10 | I39: 2018 | J39: 2018.416667 | K39: 14300.8 | L39: 14300.8 | M39: 119.1733333 | N39: 1430.08 | O39: 0 | P39: 14300.8 | Q39: 14300.8 | R39: 0
B40: 24 | C40: 6 YD F/L CONTAINERS | D40: 2008 | E40: 5 | F40: 0 | G40: S/L | H40: 10 | I40: 2018 | J40: 2018.416667 | K40: 11052.6 | L40: 11052.6 | M40: 92.105 | N40: 1105.26 | O40: 0 | P40: 11052.6 | Q40: 11052.6 | R40: 0
B41: 12 | C41: 8 YD CONTAINERS | D41: 2008 | E41: 5 | F41: 0 | G41: S/L | H41: 10 | I41: 2018 | J41: 2018.416667 | K41: 6104 | L41: 6104 | M41: 50.86666667 | N41: 610.4 | O41: 0 | P41: 6104 | Q41: 6104 | R41: 0
B42: 117 | C42: 1 YD R/L CONTAINER | D42: 2008 | E42: 6 | F42: 0 | G42: S/L | H42: 10 | I42: 2018 | J42: 2018.5 | K42: 33332.2 | L42: 33332.2 | M42: 277.7683333 | N42: 3333.22 | O42: 0 | P42: 33332.2 | Q42: 33332.2 | R42: 0
B43: 39 | C43: 1 YD R/L CONTAINER | D43: 2008 | E43: 6 | F43: 0 | G43: S/L | H43: 10 | I43: 2018 | J43: 2018.5 | K43: 11063.5 | L43: 11063.5 | M43: 92.19583333 | N43: 1106.35 | O43: 0 | P43: 11063.5 | Q43: 11063.5 | R43: 0
B44: 38 | C44: 2 YD F/L CONTAINERS | D44: 2008 | E44: 6 | F44: 0 | G44: S/L | H44: 10 | I44: 2018 | J44: 2018.5 | K44: 12894.7 | L44: 12894.7 | M44: 107.4558333 | N44: 1289.47 | O44: 0 | P44: 12894.7 | Q44: 12894.7 | R44: 0
B45: 41 | C45: 4 YD F/L CONTAINERS | D45: 2008 | E45: 6 | F45: 0 | G45: S/L | H45: 10 | I45: 2018 | J45: 2018.5 | K45: 16764.2 | L45: 16764.2 | M45: 139.7016667 | N45: 1676.42 | O45: 0 | P45: 16764.2 | Q45: 16764.2 | R45: 0
B46: 75 | C46: 1.5 YD F/L CONTAINERS | D46: 2008 | E46: 6 | F46: 0 | G46: S/L | H46: 10 | I46: 2018 | J46: 2018.5 | K46: 23587.6 | L46: 23587.6 | M46: 196.5633333 | N46: 2358.76 | O46: 0 | P46: 23587.6 | Q46: 23587.6 | R46: 0
B47: 20 | C47: 6 YD F/L CONTAINERS | D47: 2007 | E47: 6 | F47: 0 | G47: S/L | H47: 10 | I47: =D47+H47 -> 2017 | J47: =+I47+(E47/12) -> 2017.5 | K47: 9011.48 | L47: =K47-K47*F47 -> 9011.48 | M47: =L47/H47/12 -> 75.09566667 | N47: =+M47*12 -> 901.148 | O47: =+IF(J47<=$N$6,0,N47) -> 0 | P47: =+IF($J47<=$N$7,$L47,IF(($D47+($E47/12))>=$N$7,0,((($L47-((($J47-$N$7)*12)*$M47)))))) -> 9011.48 | Q47: 9011.48 | R47: 0
A48: 182399 | B48: 34 | C48: 1.5 Yard Commercial Containers | D48: 2008 | E48: 11 | F48: 0 | G48: S/L | H48: 12 | I48: 2020 | J48: 2020.916667 | K48: 4038.58 | L48: 4038.58 | M48: 28.04569444 | N48: 336.5483333 | O48: 0 | P48: 4038.58 | Q48: 4038.58 | R48: 0
A49: 182394 | B49: 16 | C49: 2 Yard Commercial Conatiners | D49: 2008 | E49: 11 | F49: 0 | G49: S/L | H49: 12 | I49: 2020 | J49: 2020.916667 | K49: 5041.74 | L49: 5041.74 | M49: 35.01208333 | N49: 420.145 | O49: 0 | P49: 5041.74 | Q49: 5041.74 | R49: 0
A50: 198077 | B50: 30 | C50: 2 Yard Commercial Containers | D50: 2008 | E50: 11 | F50: 0 | G50: S/L | H50: 12 | I50: 2020 | J50: 2020.916667 | K50: 1867.5 | L50: 1867.5 | M50: 12.96875 | N50: 155.625 | O50: 0 | P50: 1867.5 | Q50: 1867.5 | R50: 0
A51: 200837 | B51: 381 | C51: 2 Yd Containers | D51: 2008 | E51: 11 | F51: 0 | G51: S/L | H51: 7 | I51: 2015 | J51: 2015.916667 | K51: 26144.22 | L51: 26144.22 | M51: 311.2407143 | N51: 3734.888571 | O51: 0 | P51: 26144.22 | Q51: 26144.22 | R51: 0
A52: 200836 | B52: 30 | C52: 1 Yd Containers | D52: 2008 | E52: 11 | F52: 0 | G52: S/L | H52: 7 | I52: 2015 | J52: 2015.916667 | K52: 2058.6 | L52: 2058.6 | M52: 24.50714286 | N52: 294.0857143 | O52: 0 | P52: 2058.6 | Q52: 2058.6 | R52: 0
A53: 200596 | B53: 40 | C53: 2 Yd Containers | D53: 2008 | E53: 11 | F53: 0 | G53: S/L | H53: 7 | I53: 2015 | J53: 2015.916667 | K53: =1920-S53 -> 1920 | L53: 1920 | M53: 22.85714286 | N53: 274.2857143 | O53: 0 | P53: 1920 | Q53: 1920 | R53: 0
A54: 200602 | B54: 53 | C54: 3 Yd Containers | D54: 2008 | E54: 11 | F54: 0 | G54: S/L | H54: 7 | I54: 2015 | J54: 2015.916667 | K54: =2544-S54 -> 2544 | L54: 2544 | M54: 30.28571429 | N54: 363.4285714 | O54: 0 | P54: 2544 | Q54: 2544 | R54: 0
A55: 237940 | B55: 14 | C55: 1.5 Yard Commercial Containers | D55: 2008 | E55: 11 | F55: 0 | G55: S/L | H55: 12 | I55: =D55+H55 -> 2020 | J55: =+I55+(E55/12) -> 2020.916667 | K55: 1662.94 | L55: =K55-K55*F55 -> 1662.94 | M55: 11.54819444 | N55: 138.5783333 | O55: 0 | P55: 1662.94 | Q55: 1662.94 | R55: 0
A56: 240300 | B56: 82 | C56: 1.5 Yard Commercial Containers | D56: 2008 | E56: 11 | F56: 0 | G56: S/L | H56: 12 | I56: =D56+H56 -> 2020 | J56: =+I56+(E56/12) -> 2020.916667 | K56: 6872.43 | L56: =K56-K56*F56 -> 6872.43 | M56: 47.72520833 | N56: 572.7025 | O56: 0 | P56: 6872.43 | Q56: 6872.43 | R56: 0
A57: 71897 | B57: 17 | C57: 3 YD F/L CONTAINERS | D57: 2010 | E57: 1 | F57: 0 | G57: S/L | H57: 10 | I57: 2020 | J57: 2020.083333 | K57: =7616+612 -> 8228 | L57: 8228 | M57: 68.56666667 | N57: 822.8 | O57: 0 | P57: 8228 | Q57: 8228 | R57: 0
A58: 71897 | B58: 55 | C58: 4 YD F/L CONTAINERS | D58: 2010 | E58: 1 | F58: 0 | G58: S/L | H58: 10 | I58: 2020 | J58: 2020.083333 | K58: =29095+1980+5871.83 -> 36946.83 | L58: 36946.83 | M58: 307.89025 | N58: 3694.683 | O58: 0 | P58: 36946.83 | Q58: 36946.83 | R58: 0
A59: 71897 | B59: 36 | C59: 6YD F/L CONTAINERS | D59: 2010 | E59: 1 | F59: 0 | G59: S/L | H59: 10 | I59: 2020 | J59: 2020.083333 | K59: =25524+9500 -> 35024 | L59: 35024 | M59: 291.8666667 | N59: 3502.4 | O59: 0 | P59: 35024 | Q59: 35024 | R59: 0
A60: 75728 | B60: 8 | C60: 3 YD F/L CONTAINERS - PLASTIC | D60: 2010 | E60: 6 | F60: 0 | G60: S/L | H60: 7 | I60: 2017 | J60: 2017.5 | K60: 5610.74 | L60: 5610.74 | M60: 66.79452381 | N60: 801.5342857 | O60: 0 | P60: 5610.74 | Q60: 5610.74 | R60: 0
A61: 75725 | B61: 7 | C61: 2 YD F/L CONTAINERS - PLASTIC | D61: 2010 | E61: 6 | F61: 0 | G61: S/L | H61: 7 | I61: 2017 | J61: 2017.5 | K61: 3838.31 | L61: 3838.31 | M61: 45.69416667 | N61: 548.33 | O61: 0 | P61: 3838.31 | Q61: 3838.31 | R61: 0
A62: 200580 | B62: 80 | C62: 1 Yd Containers (Chehalis) | D62: 2010 | E62: 1 | F62: 0 | G62: S/L | H62: 12 | I62: 2022 | J62: 2022.083333 | K62: 35644 | L62: 35644 | M62: 247.5277778 | N62: 2970.333333 | O62: 0 | P62: 35644 | Q62: 35644 | R62: 0
A63: 87859 | B63: 8 | C63: 1 YD F/L CONTAINERS | D63: 2011 | E63: 11 | F63: 0 | G63: S/L | H63: 12 | I63: =D63+H63 -> 2023 | J63: =+I63+(E63/12) -> 2023.916667 | K63: =3219.74+(28.31*8)+75.99 -> 3522.21 | L63: =K63-K63*F63 -> 3522.21 | M63: 24.45979167 | N63: 293.5175 | O63: 0 | P63: 3277.612083 | Q63: =+IF(O63=0,K63,P63+O63) -> 3522.21 | R63: 0
A64: 87859 | B64: 7 | C64: 1.5 YD F/L CONTAINERS | D64: 2011 | E64: 11 | F64: 0 | G64: S/L | H64: 12 | I64: 2023 | J64: 2023.916667 | K64: =3149.6+(28.31*7) -> 3347.77 | L64: 3347.77 | M64: 23.24840278 | N64: 278.9808333 | O64: 0 | P64: 3115.285972 | Q64: 3347.77 | R64: 0
A65: 87859 | B65: 10 | C65: 2 YD F/L CONTAINERS | D65: 2011 | E65: 11 | F65: 0 | G65: S/L | H65: 12 | I65: 2023 | J65: 2023.916667 | K65: =4779.97+(28.31*10) -> 5063.07 | L65: 5063.07 | M65: 35.16020833 | N65: 421.9225 | O65: 0 | P65: 4711.467917 | Q65: 5063.07 | R65: 0
A66: 87859 | B66: 6 | C66: 4 YD F/L CONTAINERS | D66: 2011 | E66: 11 | F66: 0 | G66: S/L | H66: 12 | I66: 2023 | J66: 2023.916667 | K66: =3606.02+(28.31*6) -> 3775.88 | L66: 3775.88 | M66: 26.22138889 | N66: 314.6566667 | O66: 0 | P66: 3513.666111 | Q66: 3775.88 | R66: 0
A67: 87859 | B67: 3 | C67: 6 YD F/L CONTAINERS | D67: 2011 | E67: 11 | F67: 0 | G67: S/L | H67: 12 | I67: 2023 | J67: 2023.916667 | K67: =2314.46+(28.31*3) -> 2399.39 | L67: 2399.39 | M67: 16.66243056 | N67: 199.9491667 | O67: 0 | P67: 2232.765694 | Q67: 2399.39 | R67: 0
A68: 200578 | B68: 8 | C68: 1 Yd Containers | D68: 2011 | E68: 11 | F68: 0 | G68: S/L | H68: 12 | I68: 2023 | J68: 2023.916667 | K68: 4260.8 | L68: 4260.8 | M68: 29.58888889 | N68: 355.0666667 | O68: 0 | P68: 3964.911111 | Q68: 4260.8 | R68: 0
A69: 200591 | B69: 7 | C69: 1.5 Yd Containers | D69: 2011 | E69: 11 | F69: 0 | G69: S/L | H69: 12 | I69: 2023 | J69: 2023.916667 | K69: 3728.2 | L69: 3728.2 | M69: 25.89027778 | N69: 310.6833333 | O69: 0 | P69: 3469.297222 | Q69: 3728.2 | R69: 0
A70: 200597 | B70: 10 | C70: 2 Yd Containers | D70: 2011 | E70: 11 | F70: 0 | G70: S/L | H70: 12 | I70: 2023 | J70: 2023.916667 | K70: 5326 | L70: 5326 | M70: 36.98611111 | N70: 443.8333333 | O70: 0 | P70: 4956.138889 | Q70: 5326 | R70: 0
A71: 200603 | B71: 6 | C71: 4 Yd Containers | D71: 2011 | E71: 11 | F71: 0 | G71: S/L | H71: 12 | I71: 2023 | J71: 2023.916667 | K71: 3195.6 | L71: 3195.6 | M71: 22.19166667 | N71: 266.3 | O71: 0 | P71: 2973.683333 | Q71: 3195.6 | R71: 0
A72: 90239 | B72: 4 | C72: 1 YD F/L CONTAINERS | D72: 2012 | E72: 1 | F72: 0 | G72: S/L | H72: 12 | I72: 2024 | J72: 2024.083333 | K72: 1690 | L72: 1690 | M72: 11.73611111 | N72: 140.8333333 | O72: 140.8333333 | P72: 1549.166667 | Q72: 1690 | R72: 0
A73: 90239 | B73: 3 | C73: 1.5 YD F/L CONTAINERS | D73: 2012 | E73: 1 | F73: 0 | G73: S/L | H73: 12 | I73: 2024 | J73: 2024.083333 | K73: 1449 | L73: 1449 | M73: 10.0625 | N73: 120.75 | O73: 120.75 | P73: 1328.25 | Q73: 1449 | R73: 0
A74: 90239 | B74: 5 | C74: 2 YD F/L CONTAINERS | D74: 2012 | E74: 1 | F74: 0 | G74: S/L | H74: 12 | I74: 2024 | J74: 2024.083333 | K74: 2413 | L74: 2413 | M74: 16.75694444 | N74: 201.0833333 | O74: 201.0833333 | P74: 2211.916667 | Q74: 2413 | R74: 0
A75: 90239 | B75: 2 | C75: 4 YD F/L CONTAINERS | D75: 2012 | E75: 1 | F75: 0 | G75: S/L | H75: 12 | I75: 2024 | J75: 2024.083333 | K75: 1312 | L75: 1312 | M75: 9.111111111 | N75: 109.3333333 | O75: 109.3333333 | P75: 1202.666667 | Q75: 1312 | R75: 0
A76: 90239 | B76: 1 | C76: 6 YD F/L CONTAINERS | D76: 2012 | E76: 1 | F76: 0 | G76: S/L | H76: 12 | I76: 2024 | J76: 2024.083333 | K76: 913 | L76: 913 | M76: 6.340277778 | N76: 76.08333333 | O76: 76.08333333 | P76: 836.9166667 | Q76: 913 | R76: 0
A77: 200579 | B77: 4 | C77: 1 Yd Containers | D77: 2012 | E77: 1 | F77: 0 | G77: S/L | H77: 12 | I77: 2024 | J77: 2024.083333 | K77: 2392.48 | L77: 2392.48 | M77: 16.61444444 | N77: 199.3733333 | O77: 199.3733333 | P77: 2193.106667 | Q77: =+IF(O77=0,K77,P77+O77) -> 2392.48 | R77: 0
A78: 200592 | B78: 3 | C78: 1.5 Yd Containers | D78: 2012 | E78: 1 | F78: 0 | G78: S/L | H78: 12 | I78: 2024 | J78: 2024.083333 | K78: 1794.33 | L78: 1794.33 | M78: 12.460625 | N78: 149.5275 | O78: 149.5275 | P78: 1644.8025 | Q78: 1794.33 | R78: =+L78-Q78 -> 0
A79: 200598 | B79: 5 | C79: 2 Yd FEL Containers | D79: 2012 | E79: 1 | F79: 0 | G79: S/L | H79: 12 | I79: 2024 | J79: 2024.083333 | K79: 2990.55 | L79: 2990.55 | M79: 20.76770833 | N79: 249.2125 | O79: 249.2125 | P79: 2741.3375 | Q79: 2990.55 | R79: 0
A80: 108497, 108495 | B80: =14+6 -> 20 | C80: 1 YD R/L CONTAINERS | D80: 2013 | E80: 9 | F80: 0 | G80: S/L | H80: 10 | I80: 2023 | J80: 2023.75 | K80: =6199.2+2656.8 -> 8856 | L80: 8856 | M80: 73.8 | N80: 885.6 | O80: 0 | P80: 8265.6 | Q80: 8856 | R80: 0
A81: 108496, 108494 | B81: 20 | C81: 1.5 YD R/L CONTAINERS | D81: 2013 | E81: 9 | F81: 0 | G81: S/L | H81: 10 | I81: 2023 | J81: 2023.75 | K81: =3758.4+5637.6 -> 9396 | L81: 9396 | M81: 78.3 | N81: 939.6 | O81: 0 | P81: 8769.6 | Q81: 9396 | R81: 0
A82: 108493 | B82: 10 | C82: 4 YD F/L CONTAINERS | D82: 2013 | E82: 9 | F82: 0 | G82: S/L | H82: 12 | I82: 2025 | J82: 2025.75 | K82: 6210 | L82: 6210 | M82: 43.125 | N82: 517.5 | O82: 517.5 | P82: 4830 | Q82: 5347.5 | R82: 862.5
A83: 109346, 109345 | B83: =11+17 -> 28 | C83: 6 YD F/L CONTAINERS | D83: 2013 | E83: 9 | F83: 0 | G83: S/L | H83: 10 | I83: 2023 | J83: 2023.75 | K83: =8613+7047 -> 15660 | L83: 15660 | M83: 130.5 | N83: 1566 | O83: 0 | P83: 14616 | Q83: 15660 | R83: 0
A84: 117913 | B84: 30 | C84: 2 YD REL CONTAINERS | D84: 2014 | E84: 11 | F84: 0 | G84: S/L | H84: 12 | I84: 2026 | J84: 2026.916667 | K84: 16038 | L84: 16038 | M84: 111.375 | N84: 1336.5 | O84: 1336.5 | P84: 10914.75 | Q84: 12251.25 | R84: 3786.75
A85: 117912 | B85: 30 | C85: 1 YD REL CONTAINERS | D85: 2014 | E85: 11 | F85: 0 | G85: S/L | H85: 12 | I85: 2026 | J85: 2026.916667 | K85: 13510.8 | L85: 13510.8 | M85: 93.825 | N85: 1125.9 | O85: 1125.9 | P85: 9194.85 | Q85: 10320.75 | R85: 3190.05
A86: 115107 | B86: 6 | C86: 1.5 YD FEL CONTAINERS | D86: 2014 | E86: 7 | F86: 0 | G86: S/L | H86: 12 | I86: 2026 | J86: 2026.583333 | K86: 2941.92 | L86: 2941.92 | M86: 20.43 | N86: 245.16 | O86: 245.16 | P86: 2083.86 | Q86: 2329.02 | R86: 612.9
A87: 115110 | B87: 5 | C87: 6 YD FEL CONTAINERS | D87: 2014 | E87: 7 | F87: 0 | G87: S/L | H87: 12 | I87: 2026 | J87: 2026.583333 | K87: 3877.2 | L87: 3877.2 | M87: 26.925 | N87: 323.1 | O87: 323.1 | P87: 2746.35 | Q87: 3069.45 | R87: 807.75
A88: 115115 | B88: 4 | C88: 1.5 YD FEL CONTAINERS | D88: 2014 | E88: 7 | F88: 0 | G88: S/L | H88: 12 | I88: 2026 | J88: 2026.583333 | K88: 1961.28 | L88: 1961.28 | M88: 13.62 | N88: 163.44 | O88: 163.44 | P88: 1389.24 | Q88: 1552.68 | R88: 408.6
A89: 115105 | B89: 10 | C89: 1.5 YD FEL CONTAINERS | D89: 2014 | E89: 7 | F89: 0 | G89: S/L | H89: 12 | I89: 2026 | J89: 2026.583333 | K89: 4816.8 | L89: 4816.8 | M89: 33.45 | N89: 401.4 | O89: 401.4 | P89: 3411.9 | Q89: 3813.3 | R89: 1003.5
A90: 115109 | B90: 10 | C90: 3 YD FEL CONTAINERS | D90: 2014 | E90: 7 | F90: 0 | G90: S/L | H90: 12 | I90: 2026 | J90: 2026.583333 | K90: 5756.4 | L90: 5756.4 | M90: 39.975 | N90: 479.7 | O90: 479.7 | P90: 4077.45 | Q90: 4557.15 | R90: 1199.25
A91: 115108 | B91: 10 | C91: 2 YD FEL CONTAINERS | D91: 2014 | E91: 7 | F91: 0 | G91: S/L | H91: 12 | I91: 2026 | J91: 2026.583333 | K91: 5238 | L91: 5238 | M91: 36.375 | N91: 436.5 | O91: 436.5 | P91: 3710.25 | Q91: 4146.75 | R91: 1091.25
A92: 115111 | B92: 12 | C92: 2 YD REL CONTAINERS | D92: 2014 | E92: 7 | F92: 0 | G92: S/L | H92: 12 | I92: 2026 | J92: 2026.583333 | K92: 6415.2 | L92: 6415.2 | M92: 44.55 | N92: 534.6 | O92: 534.6 | P92: 4544.1 | Q92: 5078.7 | R92: 1336.5
A93: 115112 | B93: 13 | C93: 2 YD REL CONTAINERS | D93: 2014 | E93: 7 | F93: 0 | G93: S/L | H93: 12 | I93: 2026 | J93: 2026.583333 | K93: 6949.8 | L93: 6949.8 | M93: 48.2625 | N93: 579.15 | O93: 579.15 | P93: 4922.775 | Q93: 5501.925 | R93: 1447.875
A94: 115113 | B94: 13 | C94: 1 YD REL CONTAINERS | D94: 2014 | E94: 7 | F94: 0 | G94: S/L | H94: 12 | I94: 2026 | J94: 2026.583333 | K94: 5854.68 | L94: 5854.68 | M94: 40.6575 | N94: 487.89 | O94: 487.89 | P94: 4147.065 | Q94: 4634.955 | R94: 1219.725
A95: 115114 | B95: 12 | C95: 1 YD REL CONTAINERS | D95: 2014 | E95: 7 | F95: 0 | G95: S/L | H95: 12 | I95: =D95+H95 -> 2026 | J95: =+I95+(E95/12) -> 2026.583333 | K95: 5404.32 | L95: =K95-K95*F95 -> 5404.32 | M95: =L95/H95/12 -> 37.53 | N95: =+M95*12 -> 450.36 | O95: =+IF(J95<=$N$6,0,N95) -> 450.36 | P95: =+IF($J95<=$N$7,$L95,IF(($D95+($E95/12))>=$N$7,0,((($L95-((($J95-$N$7)*12)*$M95)))))) -> 3828.06 | Q95: 4278.42 | R95: 1125.9
A96: 115200 | B96: 5 | C96: 1.5 YD REL CONTAINERS | D96: 2014 | E96: 7 | F96: 0 | G96: S/L | H96: 12 | I96: 2026 | J96: 2026.583333 | K96: 2408.4 | L96: 2408.4 | M96: 16.725 | N96: 200.7 | O96: 200.7 | P96: 1705.95 | Q96: 1906.65 | R96: 501.75
A97: 115106 | B97: 3 | C97: 2 YD REL CONTAINERS | D97: 2014 | E97: 7 | F97: 0 | G97: S/L | H97: 12 | I97: 2026 | J97: 2026.583333 | K97: =8958.6/15*3 -> 1791.72 | L97: 1791.72 | M97: 12.4425 | N97: 149.31 | O97: 149.31 | P97: 1269.135 | Q97: 1418.445 | R97: 373.275
A98: 115106 | B98: 12 | C98: 2 YD REL Containers | D98: 2014 | E98: 7 | F98: 0 | G98: S/L | H98: 10 | I98: =D98+H98 -> 2024 | J98: =+I98+(E98/12) -> 2024.583333 | K98: =8952.6/15*12 -> 7162.08 | L98: =K98-K98*F98 -> 7162.08 | M98: 59.684 | N98: 716.208 | O98: 716.208 | P98: 6087.768 | Q98: 6803.976 | R98: 358.104
A99: 118904 | B99: 10 | C99: 1 YD REL CONTAINERS | D99: 2015 | E99: 1 | F99: 0 | G99: S/L | H99: 11.1 | I99: 2026.1 | J99: 2026.183333 | K99: 4503.6 | L99: 4503.6 | M99: 33.81081081 | N99: 405.7297297 | O99: 405.7297297 | P99: 3245.837838 | Q99: 3651.567568 | R99: 852.0324324
A100: 120926 | B100: 20 | C100: 6 YD FEL CONTAINERS | D100: 2015 | E100: 1 | F100: 0 | G100: S/L | H100: 11.11 | I100: 2026.11 | J100: 2026.193333 | K100: 16092 | L100: 16092 | M100: 120.7020702 | N100: 1448.424842 | O100: 1448.424842 | P100: 11587.39874 | Q100: 13035.82358 | R100: 3056.176418
A101: 126868 | B101: 50 | C101: 1 YD REL CONTAINERS | D101: 2015 | E101: 11 | F101: 0 | G101: S/L | H101: 12 | I101: 2027 | J101: 2027.916667 | K101: 23227.18 | L101: 23227.18 | M101: 161.2998611 | N101: 1935.598333 | O101: 1935.598333 | P101: 13871.78806 | Q101: 15807.38639 | R101: 7419.793611
A102: 126869 | B102: 20 | C102: 1.5 YD REL CONTAINERS | D102: 2015 | E102: 11 | F102: 0 | G102: S/L | H102: 12 | I102: 2027 | J102: 2027.916667 | K102: 10047.02 | L102: 10047.02 | M102: 69.77097222 | N102: 837.2516667 | O102: 837.2516667 | P102: 6000.303611 | Q102: 6837.555278 | R102: 3209.464722
A103: 126870 | B103: 24 | C103: 3 YD FEL CONTAINERS | D103: 2015 | E103: 11 | F103: 0 | G103: S/L | H103: 12 | I103: 2027 | J103: 2027.916667 | K103: 14155.75 | L103: 14155.75 | M103: 98.30381944 | N103: 1179.645833 | O103: 1179.645833 | P103: 8454.128472 | Q103: 9633.774306 | R103: 4521.975694
A104: 126871 | B104: 24 | C104: 6 YD FEL CONTAINERS | D104: 2015 | E104: 11 | F104: 0 | G104: S/L | H104: 12 | I104: 2027 | J104: 2027.916667 | K104: 18925.25 | L104: 18925.25 | M104: 131.4253472 | N104: 1577.104167 | O104: 1577.104167 | P104: 11302.57986 | Q104: 12879.68403 | R104: 6045.565972
A105: 168986 | B105: 15 | C105: 2 YD PLASTIC CONTAINERS | D105: 2016 | E105: 10 | F105: 0 | G105: S/L | H105: 7 | I105: 2023 | J105: 2023.833333 | K105: 8796.66 | L105: 8796.66 | M105: 104.7221429 | N105: 1256.665714 | O105: 0 | P105: 7854.160714 | Q105: 8796.66 | R105: 0
A106: 243140 | B106: 27 | C106: 2 Yd Commercial Container | D106: 2016 | E106: 6 | F106: 0 | G106: S/L | H106: 7 | I106: 2023 | J106: 2023.5 | K106: 4050 | L106: 4050 | M106: 48.21428571 | N106: 578.5714286 | O106: 0 | P106: 3808.928571 | Q106: 4050 | R106: 0
A107: 185772 | B107: 24 | C107: 1 YD RL Containers | D107: 2017 | E107: 8 | F107: 0 | G107: S/L | H107: 12 | I107: 2029 | J107: 2029.666667 | K107: 11815.44 | L107: 11815.44 | M107: 82.05166667 | N107: 984.62 | O107: 984.62 | P107: 5333.358333 | Q107: 6317.978333 | R107: 5497.461667
A108: 185771 | B108: 24 | C108: 2 YD RL Containers | D108: 2017 | E108: 8 | F108: 0 | G108: S/L | H108: 12 | I108: 2029 | J108: 2029.666667 | K108: 13113.84 | L108: 13113.84 | M108: 91.06833333 | N108: 1092.82 | O108: 1092.82 | P108: 5919.441667 | Q108: 7012.261667 | R108: 6101.578333
A109: 172849 | B109: 50 | C109: 2 Yd REL Container | D109: 2017 | E109: 1 | F109: 0 | G109: S/L | H109: 12 | I109: 2029 | J109: 2029.083333 | K109: 26954.09 | L109: 26954.09 | M109: 187.1811806 | N109: 2246.174167 | O109: 2246.174167 | P109: 13477.045 | Q109: 15723.21917 | R109: 11230.87083
A110: 172848 | B110: 30 | C110: 1 Yd REL Container | D110: 2017 | E110: 1 | F110: 0 | G110: S/L | H110: 12 | I110: 2029 | J110: 2029.083333 | K110: 13708.81 | L110: 13708.81 | M110: 95.20006944 | N110: 1142.400833 | O110: 1142.400833 | P110: 6854.405 | Q110: 7996.805833 | R110: 5712.004167
A111: 172847 | B111: 20 | C111: 6 Yd FEL Container | D111: 2017 | E111: 1 | F111: 0 | G111: S/L | H111: 12 | I111: 2029 | J111: 2029.083333 | K111: 15953.91 | L111: 15953.91 | M111: 110.7910417 | N111: 1329.4925 | O111: 1329.4925 | P111: 7976.955 | Q111: 9306.4475 | R111: 6647.4625
A112: 172846 | B112: 10 | C112: 4 Yd FEL Container | D112: 2017 | E112: 1 | F112: 0 | G112: S/L | H112: 12 | I112: 2029 | J112: 2029.083333 | K112: 6085.09 | L112: 6085.09 | M112: 42.25756944 | N112: 507.0908333 | O112: 507.0908333 | P112: 3042.545 | Q112: 3549.635833 | R112: 2535.454167
A113: 188898 | B113: 14 | C113: 4 Yd Containers | D113: 2017 | E113: 11 | F113: 0 | G113: S/L | H113: 12 | I113: 2029 | J113: 2029.916667 | K113: 11053.99 | L113: 11053.99 | M113: 76.76381944 | N113: 921.1658333 | O113: 921.1658333 | P113: 4759.356806 | Q113: 5680.522639 | R113: 5373.467361
A114: 188899 | B114: 20 | C114: 6 Yd Containers | D114: 2017 | E114: 11 | F114: 0 | G114: S/L | H114: 12 | I114: 2029 | J114: 2029.916667 | K114: 18010.15 | L114: 18010.15 | M114: 125.0704861 | N114: 1500.845833 | O114: 1500.845833 | P114: 7754.370139 | Q114: 9255.215972 | R114: 8754.934028
A115: 189792 | B115: 20 | C115: 1 Yd Containers | D115: 2017 | E115: 11 | F115: 0 | G115: S/L | H115: 12 | I115: 2029 | J115: 2029.916667 | K115: 9303.25 | L115: 9303.25 | M115: 64.60590278 | N115: 775.2708333 | O115: 775.2708333 | P115: 4005.565972 | Q115: 4780.836806 | R115: 4522.413194
A116: 189793 | B116: 20 | C116: 1.5 Yd Containers | D116: 2017 | E116: 11 | F116: 0 | G116: S/L | H116: 12 | I116: 2029 | J116: 2029.916667 | K116: 9609.24 | L116: 9609.24 | M116: 66.73083333 | N116: 800.77 | O116: 800.77 | P116: 4137.311667 | Q116: 4938.081667 | R116: 4671.158333
A117: 189794 | B117: 20 | C117: 2 Yd Containers | D117: 2017 | E117: 11 | F117: 0 | G117: S/L | H117: 12 | I117: 2029 | J117: 2029.916667 | K117: 9843.38 | L117: 9843.38 | M117: 68.35680556 | N117: 820.2816667 | O117: 820.2816667 | P117: 4238.121944 | Q117: 5058.403611 | R117: 4784.976389
A118: 189795 | B118: 15 | C118: 3 Yd Containers | D118: 2017 | E118: 11 | F118: 0 | G118: S/L | H118: 12 | I118: 2029 | J118: 2029.916667 | K118: 8703.01 | L118: 8703.01 | M118: 60.43756944 | N118: 725.2508333 | O118: 725.2508333 | P118: 3747.129306 | Q118: 4472.380139 | R118: 4230.629861
A119: 189796 | B119: 1 | C119: 4 Yd Containers | D119: 2017 | E119: 11 | F119: 0 | G119: S/L | H119: 12 | I119: 2029 | J119: 2029.916667 | K119: 619.94 | L119: 619.94 | M119: 4.305138889 | N119: 51.66166667 | O119: 51.66166667 | P119: 266.9186111 | Q119: 318.5802778 | R119: 301.3597222
A120: 197275 | B120: 20 | C120: 6yd FL Containers | D120: 2018 | E120: 4 | F120: 0 | G120: S/L | H120: 12 | I120: 2030 | J120: 2030.333333 | K120: 17684.02 | L120: 17684.02 | M120: 122.8056944 | N120: 1473.668333 | O120: 1473.668333 | P120: 6999.924583 | Q120: 8473.592917 | R120: 9210.427083
A121: 198695 | B121: 30 | C121: 2Yd Metal Containers | D121: 2018 | E121: 4 | F121: 0 | G121: S/L | H121: 12 | I121: 2030 | J121: 2030.333333 | K121: 17172.21 | L121: 17172.21 | M121: 119.2514583 | N121: 1431.0175 | O121: 1431.0175 | P121: 6797.333125 | Q121: 8228.350625 | R121: 8943.859375
A122: 198694 | B122: 40 | C122: 1Yd Metal Containers | D122: 2018 | E122: 5 | F122: 0 | G122: S/L | H122: 12 | I122: 2030 | J122: 2030.416667 | K122: 21642.89 | L122: 21642.89 | M122: 150.2978472 | N122: 1803.574167 | O122: 1803.574167 | P122: 8416.679444 | Q122: 10220.25361 | R122: 11422.63639
A123: 206417 | B123: 10 | C123: 2YD Metal OCC Container | D123: 2018 | E123: 11 | F123: 0 | G123: S/L | H123: 12 | I123: 2030 | J123: 2030.916667 | K123: 8441.24 | L123: 8441.24 | M123: 58.61972222 | N123: 703.4366667 | O123: 703.4366667 | P123: 2930.986111 | Q123: 3634.422778 | R123: 4806.817222
A124: 206418 | B124: 10 | C124: 2YD Metal Container | D124: 2018 | E124: 11 | F124: 0 | G124: S/L | H124: 12 | I124: 2030 | J124: 2030.916667 | K124: 7057.39 | L124: 7057.39 | M124: 49.00965278 | N124: 588.1158333 | O124: 588.1158333 | P124: 2450.482639 | Q124: 3038.598472 | R124: 4018.791528
A125: 206420 | B125: 16 | C125: 2yd Metal Containers | D125: 2018 | E125: 11 | F125: 0 | G125: S/L | H125: 12 | I125: 2030 | J125: 2030.916667 | K125: 10069.18 | L125: 10069.18 | M125: 69.92486111 | N125: 839.0983333 | O125: 839.0983333 | P125: 3496.243056 | Q125: 4335.341389 | R125: 5733.838611
A126: 243139 | B126: 28 | C126: 2 Yd FEL Containers | D126: 2018 | E126: 1 | F126: 0 | G126: S/L | H126: 5 | I126: 2023 | J126: 2023.083333 | K126: 4760 | L126: 4760 | M126: 79.33333333 | N126: 952 | O126: 0 | P126: 4760 | Q126: 4760 | R126: 0
A127: 218570 | B127: 25 | C127: 3 Yd Metal Containers | D127: 2019 | E127: 7 | F127: 0 | G127: S/L | H127: 12 | I127: 2031 | J127: 2031.583333 | K127: =15225.29 -> 15225.29 | L127: 15225.29 | M127: 105.7311806 | N127: 1268.774167 | O127: 1268.774167 | P127: 4440.709583 | Q127: 5709.48375 | R127: 9515.80625
A128: 218571 | B128: 20 | C128: 4 Yd Metal Containers | D128: 2019 | E128: 7 | F128: 0 | G128: S/L | H128: 12 | I128: 2031 | J128: 2031.583333 | K128: =12829.43 -> 12829.43 | L128: 12829.43 | M128: 89.09326389 | N128: 1069.119167 | O128: 1069.119167 | P128: 3741.917083 | Q128: 4811.03625 | R128: 8018.39375
A129: 218572 | B129: 10 | C129: 6 Yd Metal Containers | D129: 2019 | E129: 7 | F129: 0 | G129: S/L | H129: 12 | I129: 2031 | J129: 2031.583333 | K129: =8816.75 -> 8816.75 | L129: 8816.75 | M129: 61.22743056 | N129: 734.7291667 | O129: 734.7291667 | P129: 2571.552083 | Q129: 3306.28125 | R129: 5510.46875
A130: 218573 | B130: 30 | C130: 1 Yd Metail Containers | D130: 2019 | E130: 7 | F130: 0 | G130: S/L | H130: 12 | I130: =D130+H130 -> 2031 | J130: =+I130+(E130/12) -> 2031.583333 | K130: =15738.46 -> 15738.46 | L130: =K130-K130*F130 -> 15738.46 | M130: 109.2948611 | N130: 1311.538333 | O130: 1311.538333 | P130: 4590.384167 | Q130: 5901.9225 | R130: 9836.5375
A131: 218574 | B131: 20 | C131: 1.5 Yd Metal Containers | D131: 2019 | E131: 7 | F131: 0 | G131: S/L | H131: 12 | I131: =D131+H131 -> 2031 | J131: =+I131+(E131/12) -> 2031.583333 | K131: =11292.99 -> 11292.99 | L131: =K131-K131*F131 -> 11292.99 | M131: 78.42354167 | N131: 941.0825 | O131: 941.0825 | P131: 3293.78875 | Q131: 4234.87125 | R131: 7058.11875
A132: 218575 | B132: 25 | C132: 2 Yd Metal Containers | D132: 2019 | E132: 7 | F132: 0 | G132: S/L | H132: 12 | I132: =D132+H132 -> 2031 | J132: =+I132+(E132/12) -> 2031.583333 | K132: =16496.64 -> 16496.64 | L132: =K132-K132*F132 -> 16496.64 | M132: 114.56 | N132: 1374.72 | O132: 1374.72 | P132: 4811.52 | Q132: 6186.24 | R132: 10310.4
A133: 225391 | B133: 40 | C133: 2 Yd REL Metal Containers | D133: 2019 | E133: 12 | F133: 0 | G133: S/L | H133: 12 | I133: =D133+H133 -> 2031 | J133: =+I133+(E133/12) -> 2032 | K133: 26713.17 | L133: =K133-K133*F133 -> 26713.17 | M133: 185.508125 | N133: 2226.0975 | O133: 2226.0975 | P133: 6863.800625 | Q133: 9089.898125 | R133: 17623.27188
A134: 234953 | B134: 25 | C134: 2yd REL Metal Containers | D134: 2020 | E134: 6 | F134: 0 | G134: S/L | H134: 12 | I134: =D134+H134 -> 2032 | J134: =+I134+(E134/12) -> 2032.5 | K134: 13930.75 | L134: =K134-K134*F134 -> 13930.75 | M134: 96.74131944 | N134: 1160.895833 | O134: 1160.895833 | P134: 2998.980903 | Q134: 4159.876736 | R134: 9770.873264
A135: 235562 | B135: 7 | C135: 1yd REL Metal Containers | D135: 2020 | E135: 7 | F135: 0 | G135: S/L | H135: 12 | I135: =D135+H135 -> 2032 | J135: =+I135+(E135/12) -> 2032.583333 | K135: 3711.26 | L135: =K135-K135*F135 -> 3711.26 | M135: 25.77263889 | N135: 309.2716667 | O135: 309.2716667 | P135: 773.1791667 | Q135: 1082.450833 | R135: 2628.809167
A136: 235563 | B136: 23 | C136: 1yd REL Metal Containers | D136: 2020 | E136: 7 | F136: 0 | G136: S/L | H136: 12 | I136: 2032 | J136: 2032.583333 | K136: 12194.14 | L136: 12194.14 | M136: 84.68152778 | N136: 1016.178333 | O136: 1016.178333 | P136: 2540.445833 | Q136: 3556.624167 | R136: 8637.515833
A137: 237328 | B137: 10 | C137: 3Yd REL Metal Containers | D137: 2020 | E137: 7 | F137: 0 | G137: S/L | H137: 12 | I137: 2032 | J137: 2032.583333 | K137: 6181.1 | L137: 6181.1 | M137: 42.92430556 | N137: 515.0916667 | O137: 515.0916667 | P137: 1287.729167 | Q137: 1802.820833 | R137: 4378.279167
A138: 241360 | B138: 30 | C138: 2yd Metal REL Containers | D138: 2020 | E138: 11 | F138: 0 | G138: S/L | H138: 12 | I138: 2032 | J138: 2032.916667 | K138: 19540.92 | L138: 19540.92 | M138: 135.7008333 | N138: 1628.41 | O138: 1628.41 | P138: 3528.221667 | Q138: 5156.631667 | R138: 14384.28833
A139: 237694 | B139: 20 | C139: 1.5 Yard Commercial Containers | D139: 2008 | E139: 11 | F139: 0 | G139: S/L | H139: 12 | I139: 2020 | J139: 2020.916667 | K139: 2391.71 | L139: 2391.71 | M139: 16.60909722 | N139: 199.3091667 | O139: 0 | P139: 2391.71 | Q139: 2391.71 | R139: 0
A140: 237695 | B140: 5 | C140: 2 Yard Commercial Containers (plastic) | D140: 2010 | E140: 6 | F140: 0 | G140: S/L | H140: 7 | I140: 2017 | J140: 2017.5 | K140: 2741.65 | L140: 2741.65 | M140: 32.63869048 | N140: 391.6642857 | O140: 0 | P140: 2741.65 | Q140: 2741.65 | R140: 0
A141: 237696 | B141: 3 | C141: 3 Yard Commercial Containers (plastic) | D141: 2010 | E141: 6 | F141: 0 | G141: S/L | H141: 7 | I141: 2017 | J141: 2017.5 | K141: 2104.05 | L141: 2104.05 | M141: 25.04821429 | N141: 300.5785714 | O141: 0 | P141: 2104.05 | Q141: =+IF(O141=0,K141,P141+O141) -> 2104.05 | R141: 0
C143: Total Containers | K143: =SUM(K13:K142) -> 1224354.78 | L143: =SUM(L13:L142) -> 1224354.78 | M143: 9519.476494 | N143: 114233.7179 | O143: 50070.03341 | P143: 901832.693 | Q143: 957751.1887 | R143: 266603.5913
C146: GARBAGE CARTS
B147: 400 | C147: 95 GALLON GREEN CARTS | D147: 2002 | E147: 2 | F147: 0 | G147: S/L | H147: 7 | I147: =D147+H147 -> 2009 | J147: =+I147+(E147/12) -> 2009.166667 | K147: 19217.52 | L147: =K147-K147*F147 -> 19217.52 | M147: =L147/H147/12 -> 228.78 | N147: =+M147*12 -> 2745.36 | O147: =+IF(J147<=$N$6,0,N147) -> 0 | P147: =+IF($J147<=$N$7,$L147,IF(($D147+($E147/12))>=$N$7,0,((($L147-((($J147-$N$7)*12)*$M147)))))) -> 19217.52 | Q147: =+IF(O147=0,K147,P147+O147) -> 19217.52 | R147: =+K147-Q147 -> 0
B148: 75 | C148: 96 GALLON AUTOMATED CONTAINERS | D148: 2003 | E148: 10 | F148: 0 | G148: S/L | H148: 7 | I148: 2010 | J148: 2010.833333 | K148: 3553.24 | L148: 3553.24 | M148: 42.30047619 | N148: 507.6057143 | O148: 0 | P148: 3553.24 | Q148: 3553.24 | R148: 0
B149: 518 | C149: 95 GALLON GREEN CARTS | D149: 2006 | E149: 5 | F149: 0 | G149: S/L | H149: 7 | I149: 2013 | J149: 2013.416667 | K149: 24885.64 | L149: 24885.64 | M149: 296.257619 | N149: 3555.091429 | O149: 0 | P149: 24885.64 | Q149: 24885.64 | R149: 0
B150: 270 | C150: 65 GALLON GREEN CARTS | D150: 2003 | E150: 7 | F150: 0 | G150: S/L | H150: 7 | I150: 2010 | J150: 2010.583333 | K150: 12676.29 | L150: 12676.29 | M150: 150.9082143 | N150: 1810.898571 | O150: 0 | P150: 12676.29 | Q150: 12676.29 | R150: 0
B151: 400 | C151: 20 GALLON INSERTS | D151: 2003 | E151: 10 | F151: 0 | G151: S/L | H151: 7 | I151: 2010 | J151: 2010.833333 | K151: 6672.79 | L151: 6672.79 | M151: 79.43797619 | N151: 953.2557143 | O151: 0 | P151: 6672.79 | Q151: 6672.79 | R151: 0
B152: 1100 | C152: 32 GALLON AUTOMATED CONTAINERS | D152: 2003 | E152: 10 | F152: 0 | G152: S/L | H152: 7 | I152: 2010 | J152: 2010.833333 | K152: 34240.68 | L152: 34240.68 | M152: 407.6271429 | N152: 4891.525714 | O152: 0 | P152: 34240.68 | Q152: 34240.68 | R152: 0
B153: 25 | C153: 64 GALLON AUTOMATED CONTAINERS | D153: 2003 | E153: 10 | F153: 0 | G153: S/L | H153: 7 | I153: 2010 | J153: 2010.833333 | K153: 1103.64 | L153: 1103.64 | M153: 13.13857143 | N153: 157.6628571 | O153: 0 | P153: 1103.64 | Q153: 1103.64 | R153: 0
B154: 1066 | C154: 68 GALLON GRAY CARTS | D154: 2003 | E154: 12 | F154: 0 | G154: S/L | H154: 7 | I154: 2010 | J154: 2011 | K154: 50121.71 | L154: 50121.71 | M154: 596.6870238 | N154: 7160.244286 | O154: 0 | P154: 50121.71 | Q154: 50121.71 | R154: 0
B155: 170 | C155: 65 GALLON GREEN CARTS | D155: 2004 | E155: 3 | F155: 0 | G155: S/L | H155: 7 | I155: 2011 | J155: 2011.25 | K155: 7995.71 | L155: 7995.71 | M155: 95.18702381 | N155: 1142.244286 | O155: 0 | P155: 7995.71 | Q155: 7995.71 | R155: 0
B156: 84 | C156: 65 GALLON GREEN CARTS | D156: 2004 | E156: 4 | F156: 0 | G156: S/L | H156: 7 | I156: 2011 | J156: 2011.333333 | K156: 3971.2 | L156: 3971.2 | M156: 47.27619048 | N156: 567.3142857 | O156: 0 | P156: 3971.2 | Q156: 3971.2 | R156: 0
B157: 527 | C157: 65 GALLON GREEN CARTS | D157: 2004 | E157: 5 | F157: 0 | G157: S/L | H157: 7 | I157: 2011 | J157: 2011.416667 | K157: 24754.18 | L157: 24754.18 | M157: 294.692619 | N157: 3536.311429 | O157: 0 | P157: 24754.18 | Q157: 24754.18 | R157: 0
B158: 148 | C158: 65 GALLON GREEN CARTS | D158: 2004 | E158: 7 | F158: 0 | G158: S/L | H158: 7 | I158: 2011 | J158: 2011.583333 | K158: 6962.12 | L158: 6962.12 | M158: 82.88238095 | N158: 994.5885714 | O158: 0 | P158: 6962.12 | Q158: 6962.12 | R158: 0
B159: 519 | C159: 68 GALLON BLUE CARTS | D159: 2004 | E159: 8 | F159: 0 | G159: S/L | H159: 7 | I159: 2011 | J159: 2011.666667 | K159: 24403.76 | L159: 24403.76 | M159: 290.5209524 | N159: 3486.251429 | O159: 0 | P159: 24403.76 | Q159: 24403.76 | R159: 0
B160: 570 | C160: 65 GALLON GREEN CARTS | D160: 2005 | E160: 1 | F160: 0 | G160: S/L | H160: 7 | I160: 2012 | J160: 2012.083333 | K160: 26768.65 | L160: 26768.65 | M160: 318.6744048 | N160: 3824.092857 | O160: 0 | P160: 26768.65 | Q160: 26768.65 | R160: 0
B161: 570 | C161: 65 GALLON GREEN CARTS | D161: 2005 | E161: 1 | F161: 0 | G161: S/L | H161: 7 | I161: 2012 | J161: 2012.083333 | K161: 26768.65 | L161: 26768.65 | M161: 318.6744048 | N161: 3824.092857 | O161: 0 | P161: 26768.65 | Q161: 26768.65 | R161: 0
B162: 267 | C162: 65 GALLON GREEN CARTS | D162: 2005 | E162: 6 | F162: 0 | G162: S/L | H162: 7 | I162: 2012 | J162: 2012.5 | K162: 12560.44 | L162: 12560.44 | M162: 149.5290476 | N162: 1794.348571 | O162: 0 | P162: 12560.44 | Q162: 12560.44 | R162: 0
B163: 600 | C163: 65 GALLON GREEN CARTS | D163: 2005 | E163: 7 | F163: 0 | G163: S/L | H163: 7 | I163: 2012 | J163: 2012.583333 | K163: 28195.52 | L163: 28195.52 | M163: 335.6609524 | N163: 4027.931429 | O163: 0 | P163: 28195.52 | Q163: 28195.52 | R163: 0
B164: 600 | C164: 65 GALLON GREEN CARTS | D164: 2005 | E164: 7 | F164: 0 | G164: S/L | H164: 7 | I164: 2012 | J164: 2012.583333 | K164: 28195.52 | L164: 28195.52 | M164: 335.6609524 | N164: 4027.931429 | O164: 0 | P164: 28195.52 | Q164: 28195.52 | R164: 0
B165: 598 | C165: 65 GALLON GREEN CARTS | D165: 2005 | E165: 8 | F165: 0 | G165: S/L | H165: 7 | I165: 2012 | J165: 2012.666667 | K165: 28114.58 | L165: 28114.58 | M165: 334.697381 | N165: 4016.368571 | O165: 0 | P165: 28114.58 | Q165: 28114.58 | R165: 0
B166: 50 | C166: 64 GALLON UNIV XHD AUTOMATED CARTS-GRAY | D166: 2005 | E166: 10 | F166: 0 | G166: S/L | H166: 7 | I166: 2012 | J166: 2012.833333 | K166: 2859.35 | L166: 2859.35 | M166: 34.03988095 | N166: 408.4785714 | O166: 0 | P166: 2859.35 | Q166: 2859.35 | R166: 0
B167: 659 | C167: 65 GALLON GREEN CARTS | D167: 2006 | E167: 6 | F167: 0 | G167: S/L | H167: 7 | I167: 2013 | J167: 2013.5 | K167: 30983.32 | L167: 30983.32 | M167: 368.8490476 | N167: 4426.188571 | O167: 0 | P167: 30983.32 | Q167: 30983.32 | R167: 0
B168: 378 | C168: 65 GALLON BLUE CARTS | D168: 2007 | E168: 1 | F168: 0 | G168: S/L | H168: 7 | I168: 2014 | J168: 2014.083333 | K168: 17745.34 | L168: 17745.34 | M168: 211.2540476 | N168: 2535.048571 | O168: 0 | P168: 17745.34 | Q168: 17745.34 | R168: 0
B169: 687 | C169: 65 GALLON GREEN CARTS | D169: 2007 | E169: 5 | F169: 0 | G169: S/L | H169: 7 | I169: 2014 | J169: 2014.416667 | K169: 32274.32 | L169: 32274.32 | M169: 384.2180952 | N169: 4610.617143 | O169: 0 | P169: 32274.32 | Q169: 32274.32 | R169: 0
B170: 50 | C170: 64 GALLON CARTS | D170: 2007 | E170: 6 | F170: 0 | G170: S/L | H170: 7 | I170: 2014 | J170: 2014.5 | K170: 2722.34 | L170: 2722.34 | M170: 32.40880952 | N170: 388.9057143 | O170: 0 | P170: 2722.34 | Q170: 2722.34 | R170: 0
A171: 124165 | B171: 50 | C171: 24 GALLON GARBAGE CARTS | D171: 2015 | E171: 6 | F171: 0 | G171: S/L | H171: 7 | I171: 2022 | J171: 2022.5 | K171: 1811.7 | L171: 1811.7 | M171: 21.56785714 | N171: 258.8142857 | O171: 0 | P171: 1811.7 | Q171: 1811.7 | R171: 0
B172: 340 | C172: 65 GALLON BLUE CARTS | D172: 2007 | E172: 7 | F172: 0 | G172: S/L | H172: 7 | I172: =D172+H172 -> 2014 | J172: =+I172+(E172/12) -> 2014.583333 | K172: 15959.48 | L172: =K172-K172*F172 -> 15959.48 | M172: =L172/H172/12 -> 189.9938095 | N172: =+M172*12 -> 2279.925714 | O172: =+IF(J172<=$N$6,0,N172) -> 0 | P172: =+IF($J172<=$N$7,$L172,IF(($D172+($E172/12))>=$N$7,0,((($L172-((($J172-$N$7)*12)*$M172)))))) -> 15959.48 | Q172: 15959.48 | R172: =+K172-Q172 -> 0
B173: 687 | C173: 65 GALLON GREEN CARTS | D173: 2007 | E173: 7 | F173: 0 | G173: S/L | H173: 7 | I173: 2014 | J173: 2014.583333 | K173: 32298.1 | L173: 32298.1 | M173: 384.5011905 | N173: 4614.014286 | O173: 0 | P173: 32298.1 | Q173: 32298.1 | R173: 0
B174: 141 | C174: 95 GALLON BLUE CARTS | D174: 2007 | E174: 7 | F174: 0 | G174: S/L | H174: 7 | I174: 2014 | J174: 2014.583333 | K174: 6765.98 | L174: 6765.98 | M174: 80.54738095 | N174: 966.5685714 | O174: 0 | P174: 6765.98 | Q174: 6765.98 | R174: 0
B175: 729 | C175: 65 GALLON BLUE CARTS | D175: 2008 | E175: 1 | F175: 0 | G175: S/L | H175: 7 | I175: 2015 | J175: 2015.083333 | K175: 34274.33 | L175: 34274.33 | M175: 408.0277381 | N175: 4896.332857 | O175: 0 | P175: 34274.33 | Q175: 34274.33 | R175: 0
B176: 730 | C176: 65 GALLON GREEN CARTS | D176: 2008 | E176: 3 | F176: 0 | G176: S/L | H176: 7 | I176: 2015 | J176: 2015.25 | K176: 34294.38 | L176: 34294.38 | M176: 408.2664286 | N176: 4899.197143 | O176: 0 | P176: 34294.38 | Q176: 34294.38 | R176: 0
B177: 740 | C177: 65 GALLON GREEN CARTS | D177: 2008 | E177: 4 | F177: 0 | G177: S/L | H177: 7 | I177: 2015 | J177: 2015.333333 | K177: 34784.95 | L177: 34784.95 | M177: 414.1065476 | N177: 4969.278571 | O177: 0 | P177: 34784.95 | Q177: 34784.95 | R177: 0
B178: 741 | C178: 65 GALLON GREEN CARTS | D178: 2008 | E178: 6 | F178: 0 | G178: S/L | H178: 7 | I178: 2015 | J178: 2015.5 | K178: 34808.73 | L178: 34808.73 | M178: 414.3896429 | N178: 4972.675714 | O178: 0 | P178: 34808.73 | Q178: 34808.73 | R178: 0
B179: 452 | C179: 65 GALLON CARTS - DARK AQUA BLUE | D179: 2009 | E179: 8 | F179: 0 | G179: S/L | H179: 7 | I179: 2016 | J179: 2016.666667 | K179: 18171.27 | L179: 18171.27 | M179: 216.3246429 | N179: 2595.895714 | O179: 0 | P179: 18171.27 | Q179: 18171.27 | R179: 0
B180: 300, 300 | C180: 80 LITER CART, 65 LITER CART LID | D180: 2009 | E180: 11 | F180: 0 | G180: S/L | H180: 7 | I180: 2016 | J180: 2016.916667 | K180: 10368.11 | L180: 10368.11 | M180: 123.429881 | N180: 1481.158571 | O180: 0 | P180: 10368.11 | Q180: 10368.11 | R180: 0
A181: 73264 | B181: 243 | C181: 95 GAL CARTS - NAVY BLUE - GARBAGE | D181: 2010 | E181: 3 | F181: 0 | G181: S/L | H181: 7 | I181: 2017 | J181: 2017.25 | K181: 12139.72 | L181: 12139.72 | M181: 144.5204762 | N181: 1734.245714 | O181: 0 | P181: 12139.72 | Q181: 12139.72 | R181: 0
A182: 73263 | B182: 324 | C182: 65 GAL CARTS - NAVY BLUE - GARBAGE | D182: 2010 | E182: 3 | F182: 0 | G182: S/L | H182: 7 | I182: 2017 | J182: 2017.25 | K182: 14319.46 | L182: 14319.46 | M182: 170.4697619 | N182: 2045.637143 | O182: 0 | P182: 14319.46 | Q182: 14319.46 | R182: 0
B183: 432 | C183: 65 GAL NAVY CART/BLUE LID - REFUSE | D183: 2010 | E183: 9 | F183: 0 | G183: S/L | H183: 7 | I183: 2017 | J183: 2017.75 | K183: 17837.06 | L183: 17837.06 | M183: 212.3459524 | N183: 2548.151429 | O183: 0 | P183: 17837.06 | Q183: 17837.06 | R183: 0
B184: 243 | C184: 95 GALLON BLUE CARTS | D184: 2011 | E184: 9 | F184: 0 | G184: S/L | H184: 7 | I184: 2018 | J184: 2018.75 | K184: 13162.28 | L184: 13162.28 | M184: 156.6938095 | N184: 1880.325714 | O184: 0 | P184: 13162.28 | Q184: 13162.28 | R184: 0
B185: 180 | C185: 65 GALLON BLUE CARTS | D185: 2011 | E185: 9 | F185: 0 | G185: S/L | H185: 7 | I185: 2018 | J185: 2018.75 | K185: 8633.08 | L185: 8633.08 | M185: 102.7747619 | N185: 1233.297143 | O185: 0 | P185: 8633.08 | Q185: 8633.08 | R185: 0
A186: 93241 | B186: 612 | C186: 65 GALLON BLUE CARTS | D186: 2012 | E186: 4 | F186: 0 | G186: S/L | H186: 7 | I186: =D186+H186 -> 2019 | J186: =+I186+(E186/12) -> 2019.333333 | K186: 26726.71 | L186: 26726.71 | M186: 318.175119 | N186: =+M186*12 -> 3818.101429 | O186: =+IF(J186<=$N$6,0,N186) -> 0 | P186: =+IF($J186<=$N$7,$L186,IF(($D186+($E186/12))>=$N$7,0,((($L186-((($J186-$N$7)*12)*$M186)))))) -> 26726.71 | Q186: 26726.71 | R186: 0
A187: 93408 | B187: 49 | C187: 20 GALLON BLUE CARTS | D187: 2012 | E187: 4 | F187: 0 | G187: S/L | H187: 7 | I187: 2019 | J187: 2019.333333 | K187: 1816.14 | L187: =K187-K187*F187 -> 1816.14 | M187: =L187/H187/12 -> 21.62071429 | N187: 259.4485714 | O187: 0 | P187: 1816.14 | Q187: 1816.14 | R187: =+K187-Q187 -> 0
A188: 98832 | B188: 386 | C188: 65 GALLON BLUE CARTS | D188: 2012 | E188: 11 | F188: 0 | G188: S/L | H188: 7 | I188: 2019 | J188: 2019.916667 | K188: 17179.43 | L188: 17179.43 | M188: 204.5170238 | N188: 2454.204286 | O188: 0 | P188: 17179.43 | Q188: 17179.43 | R188: 0
A189: 106428 | B189: 648 | C189: 95 GALLON GARBAGE CARTS | D189: 2013 | E189: 7 | F189: 0 | G189: S/L | H189: 7 | I189: 2020 | J189: 2020.583333 | K189: 15565.82 | L189: 15565.82 | M189: 185.307381 | N189: 2223.688571 | O189: 0 | P189: 15565.82 | Q189: 15565.82 | R189: 0
A190: 109687 | B190: 243 | C190: 95 GALLON GARBAGE CARTS | D190: 2013 | E190: 11 | F190: 0 | G190: S/L | H190: 7 | I190: 2020 | J190: 2020.916667 | K190: 12390.3 | L190: 12390.3 | M190: 147.5035714 | N190: 1770.042857 | O190: 0 | P190: 12390.3 | Q190: 12390.3 | R190: 0
A191: 109684 | B191: 648 | C191: 65 GALLON GARBAGE CARTS | D191: 2013 | E191: 11 | F191: 0 | G191: S/L | H191: 7 | I191: 2020 | J191: 2020.916667 | K191: 28522.98 | L191: 28522.98 | M191: 339.5592857 | N191: 4074.711429 | O191: 0 | P191: 28522.98 | Q191: 28522.98 | R191: 0
A192: 116098 | B192: 504 | C192: 95 GALLON GARBAGE CARTS | D192: 2014 | E192: 8 | F192: 0 | G192: S/L | H192: 7 | I192: 2021 | J192: 2021.666667 | K192: 27565.76 | L192: 27565.76 | M192: 328.1638095 | N192: 3937.965714 | O192: 0 | P192: 27565.76 | Q192: 27565.76 | R192: 0
A193: 124164 | B193: 684 | C193: 65 GALLON GARBAGE CARTS | D193: 2015 | E193: 6 | F193: 0 | G193: S/L | H193: 7 | I193: 2022 | J193: 2022.5 | K193: 30287.52 | L193: 30287.52 | M193: 360.5657143 | N193: 4326.788571 | O193: 0 | P193: 30287.52 | Q193: 30287.52 | R193: 0
A194: 124070 | B194: 50 | C194: 35 GALLON GARBAGE CARTS | D194: 2015 | E194: 6 | F194: 0 | G194: S/L | H194: 7 | I194: 2022 | J194: 2022.5 | K194: 1836 | L194: 1836 | M194: 21.85714286 | N194: 262.2857143 | O194: 0 | P194: 1836 | Q194: 1836 | R194: 0
A195: 128358 | B195: 684 | C195: 65 GALLON GARBAGE CARTS | D195: 2015 | E195: 12 | F195: 0 | G195: S/L | H195: 7 | I195: 2022 | J195: 2023 | K195: 31007.79 | L195: 31007.79 | M195: 369.1403571 | N195: 4429.684286 | O195: 0 | P195: 31007.79 | Q195: 31007.79 | R195: 0
A196: 166330 | B196: 648 | C196: 65 GALLON GARBAGE CARTS | D196: 2016 | E196: 8 | F196: 0 | G196: S/L | H196: 7 | I196: 2023 | J196: 2023.666667 | K196: 28378.7 | L196: 28378.7 | M196: 337.8416667 | N196: 4054.1 | O196: 0 | P196: 26013.80833 | Q196: 28378.7 | R196: 0
A197: 186098 | B197: 50 | C197: 35 Gallon Refuse Carts | D197: 2017 | E197: 9 | F197: 0 | G197: S/L | H197: 7 | I197: 2024 | J197: 2024.75 | K197: 1761.5 | L197: 1761.5 | M197: 20.9702381 | N197: 251.6428571 | O197: 251.6428571 | P197: 1342.095238 | Q197: 1593.738095 | R197: 167.7619048
A198: 178892 | B198: 648 | C198: 65gal Garbage Carts | D198: 2017 | E198: 3 | F198: 0 | G198: S/L | H198: 7 | I198: 2024 | J198: 2024.25 | K198: 29663.68 | L198: 29663.68 | M198: 353.1390476 | N198: 4237.668571 | O198: 4237.668571 | P198: 24719.73333 | Q198: 28957.4019 | R198: 706.2780952
A199: 187750 | B199: 648 | C199: 65 Gallon Refuse Carts | D199: 2017 | E199: 9 | F199: 0 | G199: S/L | H199: 7 | I199: 2024 | J199: 2024.75 | K199: 27848.17 | L199: 27848.17 | M199: 331.5258333 | N199: 3978.31 | O199: 3978.31 | P199: 21217.65333 | Q199: 25195.96333 | R199: 2652.206667
A200: 191606 | B200: 648 | C200: 65 Gallon Refuse Carts | D200: 2018 | E200: 1 | F200: 0 | G200: S/L | H200: 6.11 | I200: 2024.11 | J200: 2024.193333 | K200: 32819.91 | L200: 32819.91 | M200: 447.6256137 | N200: 5371.507365 | O200: 5371.507365 | P200: 26857.53682 | Q200: 32229.04419 | R200: 590.8658101
A201: 202946 | B201: 351 | C201: 95 Gallon Refuse Container | D201: 2018 | E201: 8 | F201: 0 | G201: S/L | H201: 7 | I201: 2025 | J201: 2025.666667 | K201: 21048.63 | L201: 21048.63 | M201: 250.5789286 | N201: 3006.947143 | O201: 3006.947143 | P201: 13280.68321 | Q201: 16287.63036 | R201: 4760.999643
A202: 202196 | B202: 648 | C202: 65 Gallon Refuse Container | D202: 2018 | E202: 8 | F202: 0 | G202: S/L | H202: 7 | I202: 2025 | J202: 2025.666667 | K202: 32253.07 | L202: 32253.07 | M202: 383.965119 | N202: 4607.581429 | O202: 4607.581429 | P202: 20350.15131 | Q202: 24957.73274 | R202: 7295.337262
A203: 210349 | B203: 112 | C203: 35 Gallon Refuse Containers | D203: 2019 | E203: 2 | F203: 0 | G203: S/L | H203: 7 | I203: 2026 | J203: =+I203+(E203/12) -> 2026.166667 | K203: 4122.68 | L203: =K203-K203*F203 -> 4122.68 | M203: 49.07952381 | N203: 588.9542857 | O203: 588.9542857 | P203: 2306.737619 | Q203: 2895.691905 | R203: 1226.988095
... 218 more rows

Sheet OTHER EQUIP 2188
A1: 2188 Lewis County/Joe's Refuse
A2: Depreciation Schedule | N2: 1 | O2: Test Period Beg. Month
A3: ='Summary 2188'!A3 -> 2023-12-31 | N3: 12 | O3: Test Period End Month
N4: 2023 | O4: First Year
N5: 2023 | O5: Second year
N6: =+N5+(N3/12) -> 2024 | O6: Test Period End Mo/Yr
L7: =SUM(L80) -> 11256.05 | N7: =+N4+(N2/12) -> 2023.083333 | O7: Test Period Beg. Mo/Yr
Q8: Beginning | R8: Ending
E9: Date in | G9: Salvage | J9: Year | Q9: Accum. | R9: Accum. | S9: Average
E10: Service | G10: Value | H10: Method | I10: Life | J10: Fully | K10: Year/Mo | L10: Asset | M10: Depr | N10: Monthly | O10: Annual | P10: Test yr. | Q10: Depr. | R10: Depr. | S10: Investment
A11: FAR # | B11: Codes/Parent | C11: Truck No. | D11: Asset Classification | E11: Year | F11: Mo | G11: % | H11: M | I11: Years | J11: Depr | K11: Fully Depr | L11: Cost | M11: Cost | N11: Depr | O11: Depr | P11: Depn. | Q11: =+'Summary 2188'!F7 -> 2023-01-01 | R11: =+A3 -> 2023-12-31 | S11: =R11 -> 2023-12-31
D12: BUILDING STRUCTURES
D14: BUILDINGS | E14: 1965 | F14: 6 | G14: 0 | H14: S/L | I14: 40 | J14: =E14+I14 -> 2005 | K14: =+J14+(F14/12) -> 2005.5 | L14: 13330 | M14: =L14-L14*G14 -> 13330 | N14: =M14/I14/12 -> 27.77083333 | O14: =+N14*12 -> 333.25 | P14: =+IF(K14<=$N$6,0,O14) -> 0 | Q14: =+IF(K14<=$N$7,M14,IF((E14+(F14/12))>=$N$7,0,((M14-((K14-$N$7)*12)*N14)))) -> 13330 | R14: =+IF(K14<=$N$6,L14,IF(P14=0,Q14,Q14+P14)) -> 13330 | S14: =+L14-R14 -> 0
